Workbook

Sheet ATIVO
B1: 1 | C1: 2 | D1: 3 | E1: 4 | F1: 5 | G1: 6 | H1: 7 | I1: 8 | J1: 9 | K1: 10 | L1: 11 | M1: 12 | N1: 13
B2: Valores em R$ mil | C2: 2010-12-31 | D2: 2011-12-31 | E2: 2012-12-31 | F2: 2013-12-31 | G2: 2014-12-31 | H2: 2015-12-31 | I2: 2016-12-31 | J2: 2017-12-31 | K2: 2018-12-31 | L2: 2019-12-31 | M2: 2020-12-31 | N2: 2021-12-31 | O2: 2022-12-31
B3: TOTAL DO ATIVO (Consolidado) | C3: =C4+C25 -> 1133069 | D3: 1132142 | E3: 1067195 | F3: 1131544 | G3: 1094219 | H3: 1098255 | I3: 1125762 | J3: 1245025 | K3: 1338612 | L3: 1500335 | M3: 1711417 | N3: =N4+N25 -> 1632597 | O3: 1990685
B4: Total do Ativo Circulante | C4: =SUM(C5:C24) -> 106810 | D4: 169472 | E4: 215488 | F4: 244629 | G4: 197903 | H4: 180651 | I4: 222288 | J4: 273816 | K4: 417979 | L4: 601235 | M4: 731880 | N4: =SUM(N5:N24) -> 524213 | O4: =SUM(O5:O24) -> 890441
B5: Caixa e equivalentes de caixa | C5: 21436 | D5: 81933 | E5: 56502 | F5: 80708 | G5: 21451 | H5: 50145 | I5: 80279 | J5: 136214 | K5: 232433 | L5: 412922 | M5: 518714 | N5: 311072 | O5: 436741
B6: Revendedores | C6: 11371 | D6: 14234 | E6: 15472 | F6: 17477 | G6: 11050 | H6: 16337 | I6: 29211 | J6: 18153 | K6: 38502 | L6: 37979 | M6: 40805 | N6: 40946 | O6: 46173
B7: Consumidores | C7: 2116 | D7: 2473 | E7: 2362 | F7: 1492 | G7: 1560 | H7: 846 | I7: 4191 | J7: 466 | L7: 0 | M7: 0 | N7: - | O7: -
B8: Valores a receber - Energia livre | C8: 2104 | D8: 2040 | E8: 2040 | F8: 0 | G8: 0 | H8: 0 | I8: 0 | J8: 0 | K8: 0 | L8: 0 | M8: 0 | N8: - | O8: -
B9: Energia de curto prazo - CCEE | C9: 1297 | D9: 4816 | E9: 558 | F9: 0 | G9: 0 | H9: 0 | I9: 0 | J9: 0 | K9: 0 | L9: 0 | M9: 0 | N9: - | O9: -
B10: Ativo financeiro indenizável | C10: 0 | D10: 0 | E10: 0 | F10: 0 | G10: 0 | H10: 0 | I10: 0 | J10: 323 | K10: 13357 | L10: 14990 | M10: 4901 | N10: 9064 | O10: 12394
B11: Serviços - Canal Pinheiros | C11: 0 | D11: 0 | E11: 0 | F11: 21803 | G11: 8212 | H11: 8115 | I11: 1774 | J11: 3463 | K11: 3174 | L11: 0 | M11: 0 | N11: - | O11: -
B12: Alienação de bens e direitos | C12: 0 | D12: 1762 | E12: 221 | F12: 645 | G12: 6035 | H12: 835 | I12: 263 | J12: 148 | K12: 0 | L12: 0 | M12: 0 | N12: - | O12: -
B13: Adiantamento a fornecedores | C13: 0 | D13: 0 | E13: 1075 | F13: 0 | G13: 0 | H13: 0 | I13: 0 | J13: 0 | K13: 0 | L13: 0 | M13: 0 | N13: - | O13: -
B14: IR e CSLL a recuperar | C14: 14260 | D14: 0 | E14: 0 | F14: 14008 | G14: 0 | H14: 2784 | I14: 11 | J14: 1331 | K14: 2313 | L14: 2946 | M14: 11245 | N14: 3591 | O14: 415
B15: Tributos e contribuições sociais compensáveis | C15: 4323 | D15: 3350 | E15: 11349 | F15: 1438 | G15: 1512 | H15: 1712 | I15: 1552 | J15: 1123 | K15: 1641 | L15: 1199 | M15: 1420 | N15: 626 | O15: 256
B16: Estoque | C16: 2460 | D16: 2630 | E16: 2111 | F16: 2073 | G16: 2141 | H16: 2099 | I16: 1965 | J16: 1789 | K16: 1930 | L16: 1609 | M16: 1865 | N16: 1847 | O16: 1842
B17: Indenização Porto Góes | C17: 0 | D17: 0 | E17: 37690 | F17: 0 | G17: 0 | H17: 0 | I17: 0 | J17: 0 | K17: 0 | L17: 0 | M17: 0 | N17: - | O17: -
B18: Despesas antecipadas | C18: 98 | D18: 196 | E18: 65 | F18: 101 | G18: 188 | H18: 236 | I18: 214 | J18: 245 | K18: 1577 | L18: 3000 | M18: 4550 | N18: 917 | O18: 3919
B19: Arrendamento UTE Piratininga | C19: 32390 | D19: 35283 | E19: 44991 | F19: 42866 | G19: 71990 | H19: 75623 | I19: 85141 | J19: 79364 | K19: 85337 | L19: 91558 | M19: 112714 | N19: 132732 | O19: 139937
B20: Ativo financeiro - Sabesp | C20: 0 | D20: 0 | E20: 0 | F20: 0 | G20: 0 | H20: 0 | I20: 0 | J20: 15545 | K20: 16129 | L20: 16824 | M20: 17584 | N20: 7868 | O20: 8323
B21: Cauções e depósitos vinculados | C21: 7769 | D21: 6637 | E21: 31211 | F21: 25295 | G21: 10123 | H21: 13033 | I21: 10372 | J21: 10161 | K21: 10999 | L21: 11671 | M21: 14466 | N21: 12110 | O21: 612
B22: Ativo não circulante mantido para venda | C22: 0 | D22: 0 | E22: 0 | F22: 0 | G22: 0 | H22: 0 | I22: 0 | J22: 0 | K22: 0 | L22: 0 | M22: 0 | N22: 0 | O22: 238228
B23: Provisão para créditos de liquidação duvidosa | C23: -4751 | D23: -5271 | E23: -8600 | F23: 0 | G23: 0 | H23: 0 | I23: 0 | J23: 0 | K23: 0 | L23: 0 | M23: 0 | N23: - | O23: -
B24: Outros créditos | C24: 11937 | D24: 19389 | E24: 18441 | F24: =36723 -> 36723 | G24: 63641 | H24: 8886 | I24: 7315 | J24: 5491 | K24: 10587 | L24: 6537 | M24: 3616 | N24: 3440 | O24: 1601
B25: Total do Ativo Não Circulante | C25: =SUM(C27:C36) -> 1026259 | D25: 962670 | E25: 851707 | F25: 886915 | G25: 896316 | H25: 917604 | I25: 903474 | J25: 971209 | K25: 920633 | L25: 899100 | M25: 979537 | N25: =SUM(N27:N36) -> 1108384 | O25: =SUM(O27:O36) -> 1100244
B26: Ativo Realizável a Longo Prazo | C26: =SUM(C27:C33) -> 461997 | D26: 449001 | E26: 481776 | F26: 789562 | G26: 706067 | H26: 737917 | I26: 730859 | J26: 792376 | K26: 693794 | L26: =SUM(L27:L33) -> 669469
B27: Arrendamento UTE Piratininga | C27: 421073 | D27: 423396 | E27: 433962 | F27: 432236 | G27: 392959 | H27: 404984 | I27: 391257 | J27: 352015 | K27: 328676 | L27: 294160 | M27: 283387 | N27: 232290 | O27: 127936
B28: Ativo financeiro - Sabesp | C28: 0 | D28: 0 | E28: 0 | F28: 0 | G28: 0 | H28: 13879 | I28: 0 | J28: 96915 | K28: 91447 | L28: 85208 | M28: 77677 | N28: 83580 | O28: 86250
B29: IR e CSLL diferidos | C29: 0 | D29: 0 | E29: 0 | F29: 0 | G29: 0 | H29: 0 | I29: 0 | J29: 0 | K29: 0 | L29: 0 | M29: 48052 | N29: 124665 | O29: 18687
B30: Cauções e depósitos vinculados | C30: 8839 | D30: 10955 | E30: 4691 | F30: 8536 | G30: 9400 | I30: 15806 | J30: 15336 | K30: 15597 | L30: 17067 | M30: 25329 | N30: 32040 | O30: 45023
B31: Ativo financeiro indenizável | C31: 0 | D31: 0 | E31: 0 | F31: 52574 | G31: 29330 | H31: 40716 | I31: 46386 | J31: 53683 | K31: 62419 | L31: 77660 | M31: 112866 | N31: 202073 | O31: 257496
B32: Ativo reversível da concessão | C32: 0 | D32: 0 | E32: 0 | F32: 296216 | G32: 274378 | H32: 275273 | I32: 275273 | J32: 273218 | K32: 195374 | L32: 195374 | M32: 195374 | N32: 195374 | O32: 195374
B33: Outros créditos | C33: 32085 | D33: 14650 | E33: 43123 | F33: 0 | G33: 0 | H33: 3065 | I33: 2137 | J33: 1209 | K33: 281 | L33: 0 | M33: 0 | N33: - | O33: -
B34: Investimentos | C34: 1390 | D34: 1391 | E34: 1389 | F34: 1390 | G34: 1390 | H34: 1390 | I34: 1390 | J34: 1390 | K34: 1390 | L34: 1390 | M34: 1390 | N34: 1392 | O34: 130762
B35: Imobilizado | C35: 562236 | D35: 511394 | E35: 367977 | F35: 95560 | G35: 188311 | H35: 176037 | I35: 169461 | J35: 174876 | K35: 222987 | L35: 222237 | M35: 227463 | N35: 226232 | O35: 224786
B36: Intangível | C36: 636 | D36: 884 | E36: 565 | F36: 403 | G36: 548 | H36: 2260 | I36: 1764 | J36: 2567 | K36: 2462 | L36: 6004 | M36: 7999 | N36: 10738 | O36: 13930
N38: =N3-PASSIVO_PL!#REF! ->  | O38: =O3-PASSIVO_PL!#REF! -> 
B39: Observações: (1) Em 01/01/2013 a EMAE prorrogou a concessão das Usinas Henry Borden, Porto Góes e Rasgão nos termos da Lei n.º 12.783/13 (regime de cotas) (2) A partir de julho de 2018, a receita das Usinas prorrogadas no regime de cotas foi incrementada com recursos para realização de investimentos na concessão (GAG Melhorias) (3) As informações disponibilizadas nessa planilha são para simples referência e reproduzem os dados publicados pela EMAE. A utilização dos dados é de inteira responsabilidade do usuário e não exclui a necessidade do usuário consultar as Demonstrações Financeiras da Companhia, arquivadas na Comissão de Valores Mobiliários e no site da EMAE.

Sheet PASSIVO_PL
B1: 1 | C1: 2 | D1: 3 | E1: 4 | F1: 5 | G1: 6 | H1: 7 | I1: 8 | J1: 9 | K1: 11 | L1: 12 | M1: 13
B2: Valores em R$ mil | C2: 2010-12-31 | D2: 2011-12-31 | E2: 2012-12-31 | F2: 2013-12-31 | G2: 2014-12-31 | H2: 2015-12-31 | I2: 2016-12-31 | J2: 2017-12-31 | K2: 2018-12-31 | L2: 2019-12-31 | M2: 2020-12-31 | N2: 2021-12-31 | O2: 2022-12-31
B3: TOTAL DO PASSIVO E DO PATRIMÔNIO LÍQUIDO (Consolidado) | C3: =SUM(C4,C22,C34,) -> 1133069 | D3: 1132142 | E3: 1067195 | F3: 1131544 | G3: 1094219 | H3: 1098255 | I3: 1125762 | J3: 1245025 | K3: 1338612 | L3: 1500335 | M3: 1711417 | N3: =SUM(N4,N22,N34,) -> 1632597 | O3: 1990685
B4: Total do Passivo Circulante | C4: =SUM(C5:C21) -> 86033 | D4: 139687 | E4: 75244 | F4: 92824 | G4: 81430 | H4: 70240 | I4: 94413 | J4: 96414 | K4: 137179 | L4: 124657 | M4: 433571 | N4: =SUM(N5:N21) -> 129178 | O4: 106749
B5: Fornecedores | C5: 3110 | D5: 9581 | E5: 7635 | F5: 6631 | G5: 8332 | H5: 4742 | I5: 5084 | J5: 6923 | K5: 6763 | L5: 4627 | M5: 4656 | N5: 6713 | O5: 10124
B6: Financiamento | C6: 19371 | D6: 8509 | E6: 0 | F6: 0 | G6: 2959 | H6: 6549 | I6: 6671 | J6: 7312 | K6: 6744 | L6: 5208 | M6: 66361 | N6: - | O6: -
A7: 3783 | B7: Folha de pagamento | C7: 5284 | D7: 5802 | E7: 4713 | F7: 4164 | G7: 5198 | H7: 4824 | I7: 5382 | J7: 6204 | K7: 5491 | L7: 3257 | M7: 4593 | N7: 4724 | O7: 3783 | P7: 3783 | Q7: 3783 | R7: 3783 | S7: 3783 | T7: 3783 | U7: 3783 | V7: 3783 | W7: 3783 | X7: 3783 | Y7: 3783 | Z7: 3783 | AA7: 3783 | AB7: 3783 | AC7: 3783 | AD7: 3783 | AE7: 3783 | AF7: 3783 | AG7: 3783 | AH7: 3783 | AI7: 3783 | AJ7: 3783 | AK7: 3783 | AL7: 3783 | AM7: 3783 | AN7: 3783 | AO7: 3783 | AP7: 3783 | AQ7: 3783 | AR7: 3783 | AS7: 3783 | AT7: 3783 | AU7: 3783 | AV7: 3783 | AW7: 3783 | AX7: 3783 | AY7: 3783 | AZ7: 3783 | BA7: 3783 | BB7: 3783 | BC7: 3783 | BD7: 3783 | BE7: 3783 | BF7: 3783 | BG7: 3783 | BH7: 3783 | BI7: 3783 | BJ7: 3783 | BK7: 3783 | BL7: 3783 | BM7: 3783 | BN7: 3783 | BO7: 3783 | BP7: 3783 | BQ7: 3783 | BR7: 3783 | BS7: 3783 | BT7: 3783 | BU7: 3783 | BV7: 3783 | BW7: 3783 | BX7: 3783 | BY7: 3783 | BZ7: 3783 | CA7: 3783 | CB7: 3783 | CC7: 3783 | CD7: 3783 | CE7: 3783 | CF7: 3783 | CG7: 3783 | CH7: 3783 | CI7: 3783 | CJ7: 3783 | CK7: 3783 | CL7: 3783 | CM7: 3783 | CN7: 3783 | CO7: 3783 | CP7: 3783 | CQ7: 3783 | CR7: 3783 | CS7: 3783 | CT7: 3783 | CU7: 3783 | CV7: 3783 | CW7: 3783 | CX7: 3783 | CY7: 3783 | CZ7: 3783 | DA7: 3783 | DB7: 3783 | DC7: 3783 | DD7: 3783 | DE7: 3783 | DF7: 3783 | DG7: 3783 | DH7: 3783 | DI7: 3783 | DJ7: 3783 | DK7: 3783 | DL7: 3783 | DM7: 3783 | DN7: 3783 | DO7: 3783 | DP7: 3783 | DQ7: 3783 | DR7: 3783 | DS7: 3783 | DT7: 3783 | DU7: 3783 | DV7: 3783 | DW7: 3783 | DX7: 3783 | DY7: 3783 | DZ7: 3783 | EA7: 3783 | EB7: 3783 | EC7: 3783 | ED7: 3783 | EE7: 3783 | EF7: 3783 | EG7: 3783 | EH7: 3783 | EI7: 3783 | EJ7: 3783 | EK7: 3783 | EL7: 3783 | EM7: 3783 | EN7: 3783 | EO7: 3783 | EP7: 3783 | EQ7: 3783 | ER7: 3783 | ES7: 3783 | ET7: 3783 | EU7: 3783 | EV7: 3783 | EW7: 3783 | EX7: 3783 | EY7: 3783 | EZ7: 3783 | FA7: 3783 | FB7: 3783 | FC7: 3783 | FD7: 3783 | FE7: 3783 | FF7: 3783 | FG7: 3783 | FH7: 3783 | FI7: 3783 | FJ7: 3783 | FK7: 3783 | FL7: 3783 | FM7: 3783 | FN7: 3783 | FO7: 3783 | FP7: 3783 | FQ7: 3783 | FR7: 3783 | FS7: 3783 | FT7: 3783 | FU7: 3783 | FV7: 3783 | FW7: 3783 | FX7: 3783 | FY7: 3783 | FZ7: 3783 | GA7: 3783 | GB7: 3783 | GC7: 3783 | GD7: 3783 | GE7: 3783 | GF7: 3783 | GG7: 3783 | GH7: 3783 | GI7: 3783 | GJ7: 3783 | GK7: 3783 | GL7: 3783 | GM7: 3783 | GN7: 3783 | GO7: 3783 | GP7: 3783 | GQ7: 3783 | GR7: 3783 | GS7: 3783 | GT7: 3783 | GU7: 3783 | GV7: 3783 | GW7: 3783 | GX7: 3783 | GY7: 3783 | GZ7: 3783 | HA7: 3783 | HB7: 3783 | HC7: 3783 | HD7: 3783 | HE7: 3783 | HF7: 3783 | HG7: 3783 | HH7: 3783 | HI7: 3783 | HJ7: 3783 | HK7: 3783 | HL7: 3783 | HM7: 3783 | HN7: 3783 | HO7: 3783 | HP7: 3783 | HQ7: 3783 | HR7: 3783 | HS7: 3783 | HT7: 3783 | HU7: 3783 | HV7: 3783 | HW7: 3783 | HX7: 3783 | HY7: 3783 | HZ7: 3783 | IA7: 3783 | IB7: 3783 | IC7: 3783 | ID7: 3783 | IE7: 3783 | IF7: 3783 | IG7: 3783 | IH7: 3783 | II7: 3783 | IJ7: 3783 | IK7: 3783 | IL7: 3783 | IM7: 3783 | IN7: 3783 | IO7: 3783 | IP7: 3783 | IQ7: 3783 | IR7: 3783 | IS7: 3783 | IT7: 3783 | IU7: 3783 | IV7: 3783 | IW7: 3783 | IX7: 3783 | IY7: 3783 | IZ7: 3783 | JA7: 3783 | JB7: 3783 | JC7: 3783 | JD7: 3783 | JE7: 3783 | JF7: 3783 | JG7: 3783 | JH7: 3783 | JI7: 3783 | JJ7: 3783 | JK7: 3783 | JL7: 3783 | JM7: 3783 | JN7: 3783 | JO7: 3783 | JP7: 3783 | JQ7: 3783 | JR7: 3783 | JS7: 3783 | JT7: 3783 | JU7: 3783 | JV7: 3783 | JW7: 3783 | JX7: 3783 | JY7: 3783 | JZ7: 3783 | KA7: 3783 | KB7: 3783 | KC7: 3783 | KD7: 3783 | KE7: 3783 | KF7: 3783 | KG7: 3783 | KH7: 3783 | KI7: 3783 | KJ7: 3783 | KK7: 3783 | KL7: 3783 | KM7: 3783 | KN7: 3783 | KO7: 3783 | KP7: 3783 | KQ7: 3783 | KR7: 3783 | KS7: 3783 | KT7: 3783 | KU7: 3783 | KV7: 3783 | KW7: 3783 | KX7: 3783 | KY7: 3783 | KZ7: 3783 | LA7: 3783 | LB7: 3783 | LC7: 3783 | LD7: 3783 | LE7: 3783 | LF7: 3783 | LG7: 3783 | LH7: 3783 | LI7: 3783 | LJ7: 3783 | LK7: 3783 | LL7: 3783 | LM7: 3783 | LN7: 3783 | LO7: 3783 | LP7: 3783 | LQ7: 3783 | LR7: 3783 | LS7: 3783 | LT7: 3783 | LU7: 3783 | LV7: 3783 | LW7: 3783 | LX7: 3783 | LY7: 3783 | LZ7: 3783 | MA7: 3783 | MB7: 3783 | MC7: 3783 | MD7: 3783 | ME7: 3783 | MF7: 3783 | MG7: 3783 | MH7: 3783 | MI7: 3783 | MJ7: 3783 | MK7: 3783 | ML7: 3783 | MM7: 3783 | MN7: 3783 | MO7: 3783 | MP7: 3783 | MQ7: 3783 | MR7: 3783 | MS7: 3783 | MT7: 3783 | MU7: 3783 | MV7: 3783 | MW7: 3783 | MX7: 3783 | MY7: 3783 | MZ7: 3783 | NA7: 3783 | NB7: 3783 | NC7: 3783 | ND7: 3783 | NE7: 3783 | NF7: 3783 | NG7: 3783 | NH7: 3783 | NI7: 3783 | NJ7: 3783 | NK7: 3783 | NL7: 3783 | NM7: 3783 | NN7: 3783 | NO7: 3783 | NP7: 3783 | NQ7: 3783 | NR7: 3783 | NS7: 3783 | NT7: 3783 | NU7: 3783 | NV7: 3783 | NW7: 3783 | NX7: 3783 | NY7: 3783 | NZ7: 3783 | OA7: 3783 | OB7: 3783 | OC7: 3783 | OD7: 3783 | OE7: 3783 | OF7: 3783 | OG7: 3783 | OH7: 3783 | OI7: 3783 | OJ7: 3783 | OK7: 3783 | OL7: 3783 | OM7: 3783 | ON7: 3783 | OO7: 3783 | OP7: 3783 | OQ7: 3783 | OR7: 3783 | OS7: 3783 | OT7: 3783 | OU7: 3783 | OV7: 3783 | OW7: 3783 | OX7: 3783 | OY7: 3783 | OZ7: 3783 | PA7: 3783 | PB7: 3783 | PC7: 3783 | PD7: 3783 | PE7: 3783 | PF7: 3783 | PG7: 3783 | PH7: 3783 | PI7: 3783 | PJ7: 3783 | PK7: 3783 | PL7: 3783 | PM7: 3783 | PN7: 3783 | PO7: 3783 | PP7: 3783 | PQ7: 3783 | PR7: 3783 | PS7: 3783 | PT7: 3783 | PU7: 3783 | PV7: 3783 | PW7: 3783 | PX7: 3783 | PY7: 3783 | PZ7: 3783 | QA7: 3783 | QB7: 3783 | QC7: 3783 | QD7: 3783 | QE7: 3783 | QF7: 3783 | QG7: 3783 | QH7: 3783 | QI7: 3783 | QJ7: 3783 | QK7: 3783 | QL7: 3783 | QM7: 3783 | QN7: 3783 | QO7: 3783 | QP7: 3783 | QQ7: 3783 | QR7: 3783 | QS7: 3783 | QT7: 3783 | QU7: 3783 | QV7: 3783 | QW7: 3783 | QX7: 3783 | QY7: 3783 | QZ7: 3783 | RA7: 3783 | RB7: 3783 | RC7: 3783 | RD7: 3783 | RE7: 3783 | RF7: 3783 | RG7: 3783 | RH7: 3783 | RI7: 3783 | RJ7: 3783 | RK7: 3783 | RL7: 3783 | RM7: 3783 | RN7: 3783 | RO7: 3783 | RP7: 3783 | RQ7: 3783 | RR7: 3783 | RS7: 3783 | RT7: 3783 | RU7: 3783 | RV7: 3783 | RW7: 3783 | RX7: 3783 | RY7: 3783 | RZ7: 3783 | SA7: 3783 | SB7: 3783 | SC7: 3783 | SD7: 3783 | SE7: 3783 | SF7: 3783 | SG7: 3783 | SH7: 3783 | SI7: 3783 | SJ7: 3783 | SK7: 3783 | SL7: 3783 | SM7: 3783 | SN7: 3783 | SO7: 3783 | SP7: 3783 | SQ7: 3783 | SR7: 3783 | SS7: 3783 | ST7: 3783 | SU7: 3783 | SV7: 3783 | SW7: 3783 | SX7: 3783 | SY7: 3783 | SZ7: 3783 | TA7: 3783 | TB7: 3783 | TC7: 3783 | TD7: 3783 | TE7: 3783 | TF7: 3783 | TG7: 3783 | TH7: 3783 | TI7: 3783 | TJ7: 3783 | TK7: 3783 | TL7: 3783 | TM7: 3783 | TN7: 3783 | TO7: 3783 | TP7: 3783 | TQ7: 3783 | TR7: 3783 | TS7: 3783 | TT7: 3783 | TU7: 3783 | TV7: 3783 | TW7: 3783 | TX7: 3783 | TY7: 3783 | TZ7: 3783 | UA7: 3783 | UB7: 3783 | UC7: 3783 | UD7: 3783 | UE7: 3783 | UF7: 3783 | UG7: 3783 | UH7: 3783 | UI7: 3783 | UJ7: 3783 | UK7: 3783 | UL7: 3783 | UM7: 3783 | UN7: 3783 | UO7: 3783 | UP7: 3783 | UQ7: 3783 | UR7: 3783 | US7: 3783 | UT7: 3783 | UU7: 3783 | UV7: 3783 | UW7: 3783 | UX7: 3783 | UY7: 3783 | UZ7: 3783 | VA7: 3783 | VB7: 3783 | VC7: 3783 | VD7: 3783 | VE7: 3783 | VF7: 3783 | VG7: 3783 | VH7: 3783 | VI7: 3783 | VJ7: 3783 | VK7: 3783 | VL7: 3783 | VM7: 3783 | VN7: 3783 | VO7: 3783 | VP7: 3783 | VQ7: 3783 | VR7: 3783 | VS7: 3783 | VT7: 3783 | VU7: 3783 | VV7: 3783 | VW7: 3783 | VX7: 3783 | VY7: 3783 | VZ7: 3783 | WA7: 3783 | WB7: 3783 | WC7: 3783 | WD7: 3783 | WE7: 3783 | WF7: 3783 | WG7: 3783 | WH7: 3783 | WI7: 3783 | WJ7: 3783 | WK7: 3783 | WL7: 3783 | WM7: 3783 | WN7: 3783 | WO7: 3783 | WP7: 3783 | WQ7: 3783 | WR7: 3783 | WS7: 3783 | WT7: 3783 | WU7: 3783 | WV7: 3783 | WW7: 3783 | WX7: 3783 | WY7: 3783 | WZ7: 3783 | XA7: 3783 | XB7: 3783 | XC7: 3783 | XD7: 3783 | XE7: 3783 | XF7: 3783 | XG7: 3783 | XH7: 3783 | XI7: 3783 | XJ7: 3783 | XK7: 3783 | XL7: 3783 | XM7: 3783 | XN7: 3783 | XO7: 3783 | XP7: 3783 | XQ7: 3783 | XR7: 3783 | XS7: 3783 | XT7: 3783 | XU7: 3783 | XV7: 3783 | XW7: 3783 | XX7: 3783 | XY7: 3783 | XZ7: 3783 | YA7: 3783 | YB7: 3783 | YC7: 3783 | YD7: 3783 | YE7: 3783 | YF7: 3783 | YG7: 3783 | YH7: 3783 | YI7: 3783 | YJ7: 3783 | YK7: 3783 | YL7: 3783 | YM7: 3783 | YN7: 3783 | YO7: 3783 | YP7: 3783 | YQ7: 3783 | YR7: 3783 | YS7: 3783 | YT7: 3783 | YU7: 3783 | YV7: 3783 | YW7: 3783 | YX7: 3783 | YY7: 3783 | YZ7: 3783 | ZA7: 3783 | ZB7: 3783 | ZC7: 3783 | ZD7: 3783 | ZE7: 3783 | ZF7: 3783 | ZG7: 3783 | ZH7: 3783 | ZI7: 3783 | ZJ7: 3783 | ZK7: 3783 | ZL7: 3783 | ZM7: 3783 | ZN7: 3783 | ZO7: 3783 | ZP7: 3783 | ZQ7: 3783 | ZR7: 3783 | ZS7: 3783 | ZT7: 3783 | ZU7: 3783 | ZV7: 3783 | ZW7: 3783 | ZX7: 3783 | ZY7: 3783 | ZZ7: 3783 | AAA7: 3783 | AAB7: 3783 | AAC7: 3783 | AAD7: 3783 | AAE7: 3783 | AAF7: 3783 | AAG7: 3783 | AAH7: 3783 | AAI7: 3783 | AAJ7: 3783 | AAK7: 3783 | AAL7: 3783 | AAM7: 3783 | AAN7: 3783 | AAO7: 3783 | AAP7: 3783 | AAQ7: 3783 | AAR7: 3783 | AAS7: 3783 | AAT7: 3783 | AAU7: 3783 | AAV7: 3783 | AAW7: 3783 | AAX7: 3783 | AAY7: 3783 | AAZ7: 3783 | ABA7: 3783 | ABB7: 3783 | ABC7: 3783 | ABD7: 3783 | ABE7: 3783 | ABF7: 3783 | ABG7: 3783 | ABH7: 3783 | ABI7: 3783 | ABJ7: 3783 | ABK7: 3783 | ABL7: 3783 | ABM7: 3783 | ABN7: 3783 | ABO7: 3783 | ABP7: 3783 | ABQ7: 3783 | ABR7: 3783 | ABS7: 3783 | ABT7: 3783 | ABU7: 3783 | ABV7: 3783 | ABW7: 3783 | ABX7: 3783 | ABY7: 3783 | ABZ7: 3783 | ACA7: 3783 | ACB7: 3783 | ACC7: 3783 | ACD7: 3783 | ACE7: 3783 | ACF7: 3783 | ACG7: 3783 | ACH7: 3783 | ACI7: 3783 | ACJ7: 3783 | ACK7: 3783 | ACL7: 3783 | ACM7: 3783 | ACN7: 3783 | ACO7: 3783 | ACP7: 3783 | ACQ7: 3783 | ACR7: 3783 | ACS7: 3783 | ACT7: 3783 | ACU7: 3783 | ACV7: 3783 | ACW7: 3783 | ACX7: 3783 | ACY7: 3783 | ACZ7: 3783 | ADA7: 3783 | ADB7: 3783 | ADC7: 3783 | ADD7: 3783 | ADE7: 3783 | ADF7: 3783 | ADG7: 3783 | ADH7: 3783 | ADI7: 3783 | ADJ7: 3783 | ADK7: 3783 | ADL7: 3783 | ADM7: 3783 | ADN7: 3783 | ADO7: 3783 | ADP7: 3783 | ADQ7: 3783 | ADR7: 3783 | ADS7: 3783 | ADT7: 3783 | ADU7: 3783 | ADV7: 3783 | ADW7: 3783 | ADX7: 3783 | ADY7: 3783 | ADZ7: 3783 | AEA7: 3783 | AEB7: 3783 | AEC7: 3783 | AED7: 3783 | AEE7: 3783 | AEF7: 3783 | AEG7: 3783 | AEH7: 3783 | AEI7: 3783 | AEJ7: 3783 | AEK7: 3783 | AEL7: 3783 | AEM7: 3783 | AEN7: 3783 | AEO7: 3783 | AEP7: 3783 | AEQ7: 3783 | AER7: 3783 | AES7: 3783 | AET7: 3783 | AEU7: 3783 | AEV7: 3783 | AEW7: 3783 | AEX7: 3783 | AEY7: 3783 | AEZ7: 3783 | AFA7: 3783 | AFB7: 3783 | AFC7: 3783 | AFD7: 3783 | AFE7: 3783 | AFF7: 3783 | AFG7: 3783 | AFH7: 3783 | AFI7: 3783 | AFJ7: 3783 | AFK7: 3783 | AFL7: 3783 | AFM7: 3783 | AFN7: 3783 | AFO7: 3783 | AFP7: 3783 | AFQ7: 3783 | AFR7: 3783 | AFS7: 3783 | AFT7: 3783 | AFU7: 3783 | AFV7: 3783 | AFW7: 3783 | AFX7: 3783 | AFY7: 3783 | AFZ7: 3783 | AGA7: 3783 | AGB7: 3783 | AGC7: 3783 | AGD7: 3783 | AGE7: 3783 | AGF7: 3783 | AGG7: 3783 | AGH7: 3783 | AGI7: 3783 | AGJ7: 3783 | AGK7: 3783 | AGL7: 3783 | AGM7: 3783 | AGN7: 3783 | AGO7: 3783 | AGP7: 3783 | AGQ7: 3783 | AGR7: 3783 | AGS7: 3783 | AGT7: 3783 | AGU7: 3783 | AGV7: 3783 | AGW7: 3783 | AGX7: 3783 | AGY7: 3783 | AGZ7: 3783 | AHA7: 3783 | AHB7: 3783 | AHC7: 3783 | AHD7: 3783 | AHE7: 3783 | AHF7: 3783 | AHG7: 3783 | AHH7: 3783 | AHI7: 3783 | AHJ7: 3783 | AHK7: 3783 | AHL7: 3783 | AHM7: 3783 | AHN7: 3783 | AHO7: 3783 | AHP7: 3783 | AHQ7: 3783 | AHR7: 3783 | AHS7: 3783 | AHT7: 3783 | AHU7: 3783 | AHV7: 3783 | AHW7: 3783 | AHX7: 3783 | AHY7: 3783 | AHZ7: 3783 | AIA7: 3783 | AIB7: 3783 | AIC7: 3783 | AID7: 3783 | AIE7: 3783 | AIF7: 3783 | AIG7: 3783 | AIH7: 3783 | AII7: 3783 | AIJ7: 3783 | AIK7: 3783 | AIL7: 3783 | AIM7: 3783 | AIN7: 3783 | AIO7: 3783 | AIP7: 3783 | AIQ7: 3783 | AIR7: 3783 | AIS7: 3783 | AIT7: 3783 | AIU7: 3783 | AIV7: 3783 | AIW7: 3783 | AIX7: 3783 | AIY7: 3783 | AIZ7: 3783 | AJA7: 3783 | AJB7: 3783 | AJC7: 3783 | AJD7: 3783 | AJE7: 3783 | AJF7: 3783 | AJG7: 3783 | AJH7: 3783 | AJI7: 3783 | AJJ7: 3783 | AJK7: 3783 | AJL7: 3783 | AJM7: 3783 | AJN7: 3783 | AJO7: 3783 | AJP7: 3783 | AJQ7: 3783 | AJR7: 3783 | AJS7: 3783 | AJT7: 3783 | AJU7: 3783 | AJV7: 3783 | AJW7: 3783 | AJX7: 3783 | AJY7: 3783 | AJZ7: 3783 | AKA7: 3783 | AKB7: 3783 | AKC7: 3783 | AKD7: 3783 | AKE7: 3783 | AKF7: 3783 | AKG7: 3783 | AKH7: 3783 | AKI7: 3783 | AKJ7: 3783 | AKK7: 3783 | AKL7: 3783 | AKM7: 3783 | AKN7: 3783 | AKO7: 3783 | AKP7: 3783 | AKQ7: 3783 | AKR7: 3783 | AKS7: 3783 | AKT7: 3783 | AKU7: 3783 | AKV7: 3783 | AKW7: 3783 | AKX7: 3783 | AKY7: 3783 | AKZ7: 3783 | ALA7: 3783 | ALB7: 3783 | ALC7: 3783 | ALD7: 3783 | ALE7: 3783 | ALF7: 3783 | ALG7: 3783 | ALH7: 3783 | ALI7: 3783 | ALJ7: 3783 | ALK7: 3783 | ALL7: 3783 | ALM7: 3783 | ALN7: 3783 | ALO7: 3783 | ALP7: 3783 | ALQ7: 3783 | ALR7: 3783 | ALS7: 3783 | ALT7: 3783 | ALU7: 3783 | ALV7: 3783 | ALW7: 3783 | ALX7: 3783 | ALY7: 3783 | ALZ7: 3783 | AMA7: 3783 | AMB7: 3783 | AMC7: 3783 | AMD7: 3783 | AME7: 3783 | AMF7: 3783 | AMG7: 3783 | AMH7: 3783 | AMI7: 3783 | AMJ7: 3783 | AMK7: 3783 | AML7: 3783 | AMM7: 3783 | AMN7: 3783 | AMO7: 3783 | AMP7: 3783 | AMQ7: 3783 | AMR7: 3783 | AMS7: 3783 | AMT7: 3783 | AMU7: 3783 | AMV7: 3783 | AMW7: 3783 | AMX7: 3783 | AMY7: 3783 | AMZ7: 3783 | ANA7: 3783 | ANB7: 3783 | ANC7: 3783 | AND7: 3783 | ANE7: 3783 | ANF7: 3783 | ANG7: 3783 | ANH7: 3783 | ANI7: 3783 | ANJ7: 3783 | ANK7: 3783 | ANL7: 3783 | ANM7: 3783 | ANN7: 3783 | ANO7: 3783 | ANP7: 3783 | ANQ7: 3783 | ANR7: 3783 | ANS7: 3783 | ANT7: 3783 | ANU7: 3783 | ANV7: 3783 | ANW7: 3783 | ANX7: 3783 | ANY7: 3783 | ANZ7: 3783 | AOA7: 3783 | AOB7: 3783 | AOC7: 3783 | AOD7: 3783 | AOE7: 3783 | AOF7: 3783 | AOG7: 3783 | AOH7: 3783 | AOI7: 3783 | AOJ7: 3783 | AOK7: 3783 | AOL7: 3783 | AOM7: 3783 | AON7: 3783 | AOO7: 3783 | AOP7: 3783 | AOQ7: 3783 | AOR7: 3783 | AOS7: 3783 | AOT7: 3783 | AOU7: 3783 | AOV7: 3783 | AOW7: 3783 | AOX7: 3783 | AOY7: 3783 | AOZ7: 3783 | APA7: 3783 | APB7: 3783 | APC7: 3783 | APD7: 3783 | APE7: 3783 | APF7: 3783 | APG7: 3783 | APH7: 3783 | API7: 3783 | APJ7: 3783 | APK7: 3783 | APL7: 3783 | APM7: 3783 | APN7: 3783 | APO7: 3783 | APP7: 3783 | APQ7: 3783 | APR7: 3783 | APS7: 3783 | APT7: 3783 | APU7: 3783 | APV7: 3783 | APW7: 3783 | APX7: 3783 | APY7: 3783 | APZ7: 3783 | AQA7: 3783 | AQB7: 3783 | AQC7: 3783 | AQD7: 3783 | AQE7: 3783 | AQF7: 3783 | AQG7: 3783 | AQH7: 3783 | AQI7: 3783 | AQJ7: 3783 | AQK7: 3783 | AQL7: 3783 | AQM7: 3783 | AQN7: 3783 | AQO7: 3783 | AQP7: 3783 | AQQ7: 3783 | AQR7: 3783 | AQS7: 3783 | AQT7: 3783 | AQU7: 3783 | AQV7: 3783 | AQW7: 3783 | AQX7: 3783 | AQY7: 3783 | AQZ7: 3783 | ARA7: 3783 | ARB7: 3783 | ARC7: 3783 | ARD7: 3783 | ARE7: 3783 | ARF7: 3783 | ARG7: 3783 | ARH7: 3783 | ARI7: 3783 | ARJ7: 3783 | ARK7: 3783 | ARL7: 3783 | ARM7: 3783 | ARN7: 3783 | ARO7: 3783 | ARP7: 3783 | ARQ7: 3783 | ARR7: 3783 | ARS7: 3783 | ART7: 3783 | ARU7: 3783 | ARV7: 3783 | ARW7: 3783 | ARX7: 3783 | ARY7: 3783 | ARZ7: 3783 | ASA7: 3783 | ASB7: 3783 | ASC7: 3783 | ASD7: 3783 | ASE7: 3783 | ASF7: 3783 | ASG7: 3783 | ASH7: 3783 | ASI7: 3783 | ASJ7: 3783 | ASK7: 3783 | ASL7: 3783 | ASM7: 3783 | ASN7: 3783 | ASO7: 3783 | ASP7: 3783 | ASQ7: 3783 | ASR7: 3783 | ASS7: 3783 | AST7: 3783 | ASU7: 3783 | ASV7: 3783 | ASW7: 3783 | ASX7: 3783 | ASY7: 3783 | ASZ7: 3783 | ATA7: 3783 | ATB7: 3783 | ATC7: 3783 | ATD7: 3783 | ATE7: 3783 | ATF7: 3783 | ATG7: 3783 | ATH7: 3783 | ATI7: 3783 | ATJ7: 3783 | ATK7: 3783 | ATL7: 3783 | ATM7: 3783 | ATN7: 3783 | ATO7: 3783 | ATP7: 3783 | ATQ7: 3783 | ATR7: 3783 | ATS7: 3783 | ATT7: 3783 | ATU7: 3783 | ATV7: 3783 | ATW7: 3783 | ATX7: 3783 | ATY7: 3783 | ATZ7: 3783 | AUA7: 3783 | AUB7: 3783 | AUC7: 3783 | AUD7: 3783 | AUE7: 3783 | AUF7: 3783 | AUG7: 3783 | AUH7: 3783 | AUI7: 3783 | AUJ7: 3783 | AUK7: 3783 | AUL7: 3783 | AUM7: 3783 | AUN7: 3783 | AUO7: 3783 | AUP7: 3783 | AUQ7: 3783 | AUR7: 3783 | AUS7: 3783 | AUT7: 3783 | AUU7: 3783 | AUV7: 3783 | AUW7: 3783 | AUX7: 3783 | AUY7: 3783 | AUZ7: 3783 | AVA7: 3783 | AVB7: 3783 | AVC7: 3783 | AVD7: 3783 | AVE7: 3783 | AVF7: 3783 | AVG7: 3783 | AVH7: 3783 | AVI7: 3783 | AVJ7: 3783 | AVK7: 3783 | AVL7: 3783 | AVM7: 3783 | AVN7: 3783 | AVO7: 3783 | AVP7: 3783 | AVQ7: 3783 | AVR7: 3783 | AVS7: 3783 | AVT7: 3783 | AVU7: 3783 | AVV7: 3783 | AVW7: 3783 | AVX7: 3783 | AVY7: 3783 | AVZ7: 3783 | AWA7: 3783 | AWB7: 3783 | AWC7: 3783 | AWD7: 3783 | AWE7: 3783 | AWF7: 3783 | AWG7: 3783 | AWH7: 3783 | AWI7: 3783 | AWJ7: 3783 | AWK7: 3783 | AWL7: 3783 | AWM7: 3783 | AWN7: 3783 | AWO7: 3783 | AWP7: 3783 | AWQ7: 3783 | AWR7: 3783 | AWS7: 3783 | AWT7: 3783 | AWU7: 3783 | AWV7: 3783 | AWW7: 3783 | AWX7: 3783 | AWY7: 3783 | AWZ7: 3783 | AXA7: 3783 | AXB7: 3783 | AXC7: 3783 | AXD7: 3783 | AXE7: 3783 | AXF7: 3783 | AXG7: 3783 | AXH7: 3783 | AXI7: 3783 | AXJ7: 3783 | AXK7: 3783 | AXL7: 3783 | AXM7: 3783 | AXN7: 3783 | AXO7: 3783 | AXP7: 3783 | AXQ7: 3783 | AXR7: 3783 | AXS7: 3783 | AXT7: 3783 | AXU7: 3783 | AXV7: 3783 | AXW7: 3783 | AXX7: 3783 | AXY7: 3783 | AXZ7: 3783 | AYA7: 3783 | AYB7: 3783 | AYC7: 3783 | AYD7: 3783 | AYE7: 3783 | AYF7: 3783 | AYG7: 3783 | AYH7: 3783 | AYI7: 3783 | AYJ7: 3783 | AYK7: 3783 | AYL7: 3783 | AYM7: 3783 | AYN7: 3783 | AYO7: 3783 | AYP7: 3783 | AYQ7: 3783 | AYR7: 3783 | AYS7: 3783 | AYT7: 3783 | AYU7: 3783 | AYV7: 3783 | AYW7: 3783 | AYX7: 3783 | AYY7: 3783 | AYZ7: 3783 | AZA7: 3783 | AZB7: 3783 | AZC7: 3783 | AZD7: 3783 | AZE7: 3783 | AZF7: 3783 | AZG7: 3783 | AZH7: 3783 | AZI7: 3783 | AZJ7: 3783 | AZK7: 3783 | AZL7: 3783 | AZM7: 3783 | AZN7: 3783 | AZO7: 3783 | AZP7: 3783 | AZQ7: 3783 | AZR7: 3783 | AZS7: 3783 | AZT7: 3783 | AZU7: 3783 | AZV7: 3783 | AZW7: 3783 | AZX7: 3783 | AZY7: 3783 | AZZ7: 3783 | BAA7: 3783 | BAB7: 3783 | BAC7: 3783 | BAD7: 3783 | BAE7: 3783 | BAF7: 3783 | BAG7: 3783 | BAH7: 3783 | BAI7: 3783 | BAJ7: 3783 | BAK7: 3783 | BAL7: 3783 | BAM7: 3783 | BAN7: 3783 | BAO7: 3783 | BAP7: 3783 | BAQ7: 3783 | BAR7: 3783 | BAS7: 3783 | BAT7: 3783 | BAU7: 3783 | BAV7: 3783 | BAW7: 3783 | BAX7: 3783 | BAY7: 3783 | BAZ7: 3783 | BBA7: 3783 | BBB7: 3783 | BBC7: 3783 | BBD7: 3783 | BBE7: 3783 | BBF7: 3783 | BBG7: 3783 | BBH7: 3783 | BBI7: 3783 | BBJ7: 3783 | BBK7: 3783 | BBL7: 3783 | BBM7: 3783 | BBN7: 3783 | BBO7: 3783 | BBP7: 3783 | BBQ7: 3783 | BBR7: 3783 | BBS7: 3783 | BBT7: 3783 | BBU7: 3783 | BBV7: 3783 | BBW7: 3783 | BBX7: 3783 | BBY7: 3783 | BBZ7: 3783 | BCA7: 3783 | BCB7: 3783 | BCC7: 3783 | BCD7: 3783 | BCE7: 3783 | BCF7: 3783 | BCG7: 3783 | BCH7: 3783 | BCI7: 3783 | BCJ7: 3783 | BCK7: 3783 | BCL7: 3783 | BCM7: 3783 | BCN7: 3783 | BCO7: 3783 | BCP7: 3783 | BCQ7: 3783 | BCR7: 3783 | BCS7: 3783 | BCT7: 3783 | BCU7: 3783 | BCV7: 3783 | BCW7: 3783 | BCX7: 3783 | BCY7: 3783 | BCZ7: 3783 | BDA7: 3783 | BDB7: 3783 | BDC7: 3783 | BDD7: 3783 | BDE7: 3783 | BDF7: 3783 | BDG7: 3783 | BDH7: 3783 | BDI7: 3783 | BDJ7: 3783 | BDK7: 3783 | BDL7: 3783 | BDM7: 3783 | BDN7: 3783 | BDO7: 3783 | BDP7: 3783 | BDQ7: 3783 | BDR7: 3783 | BDS7: 3783 | BDT7: 3783 | BDU7: 3783 | BDV7: 3783 | BDW7: 3783 | BDX7: 3783 | BDY7: 3783 | BDZ7: 3783 | BEA7: 3783 | BEB7: 3783 | BEC7: 3783 | BED7: 3783 | BEE7: 3783 | BEF7: 3783 | BEG7: 3783 | BEH7: 3783 | BEI7: 3783 | BEJ7: 3783 | BEK7: 3783 | BEL7: 3783 | BEM7: 3783 | BEN7: 3783 | BEO7: 3783 | BEP7: 3783 | BEQ7: 3783 | BER7: 3783 | BES7: 3783 | BET7: 3783 | BEU7: 3783 | BEV7: 3783 | BEW7: 3783 | BEX7: 3783 | BEY7: 3783 | BEZ7: 3783 | BFA7: 3783 | BFB7: 3783 | BFC7: 3783 | BFD7: 3783 | BFE7: 3783 | BFF7: 3783 | BFG7: 3783 | BFH7: 3783 | BFI7: 3783 | BFJ7: 3783 | BFK7: 3783 | BFL7: 3783 | BFM7: 3783 | BFN7: 3783 | BFO7: 3783 | BFP7: 3783 | BFQ7: 3783 | BFR7: 3783 | BFS7: 3783 | BFT7: 3783 | BFU7: 3783 | BFV7: 3783 | BFW7: 3783 | BFX7: 3783 | BFY7: 3783 | BFZ7: 3783 | BGA7: 3783 | BGB7: 3783 | BGC7: 3783 | BGD7: 3783 | BGE7: 3783 | BGF7: 3783 | BGG7: 3783 | BGH7: 3783 | BGI7: 3783 | BGJ7: 3783 | BGK7: 3783 | BGL7: 3783 | BGM7: 3783 | BGN7: 3783 | BGO7: 3783 | BGP7: 3783 | BGQ7: 3783 | BGR7: 3783 | BGS7: 3783 | BGT7: 3783 | BGU7: 3783 | BGV7: 3783 | BGW7: 3783 | BGX7: 3783 | BGY7: 3783 | BGZ7: 3783 | BHA7: 3783 | BHB7: 3783 | BHC7: 3783 | BHD7: 3783 | BHE7: 3783 | BHF7: 3783 | BHG7: 3783 | BHH7: 3783 | BHI7: 3783 | BHJ7: 3783 | BHK7: 3783 | BHL7: 3783 | BHM7: 3783 | BHN7: 3783 | BHO7: 3783 | BHP7: 3783 | BHQ7: 3783 | BHR7: 3783 | BHS7: 3783 | BHT7: 3783 | BHU7: 3783 | BHV7: 3783 | BHW7: 3783 | BHX7: 3783 | BHY7: 3783 | BHZ7: 3783 | BIA7: 3783 | BIB7: 3783 | BIC7: 3783 | BID7: 3783 | BIE7: 3783 | BIF7: 3783 | BIG7: 3783 | BIH7: 3783 | BII7: 3783 | BIJ7: 3783 | BIK7: 3783 | BIL7: 3783 | BIM7: 3783 | BIN7: 3783 | BIO7: 3783 | BIP7: 3783 | BIQ7: 3783 | BIR7: 3783 | BIS7: 3783 | BIT7: 3783 | BIU7: 3783 | BIV7: 3783 | BIW7: 3783 | BIX7: 3783 | BIY7: 3783 | BIZ7: 3783 | BJA7: 3783 | BJB7: 3783 | BJC7: 3783 | BJD7: 3783 | BJE7: 3783 | BJF7: 3783 | BJG7: 3783 | BJH7: 3783 | BJI7: 3783 | BJJ7: 3783 | BJK7: 3783 | BJL7: 3783 | BJM7: 3783 | BJN7: 3783 | BJO7: 3783 | BJP7: 3783 | BJQ7: 3783 | BJR7: 3783 | BJS7: 3783 | BJT7: 3783 | BJU7: 3783 | BJV7: 3783 | BJW7: 3783 | BJX7: 3783 | BJY7: 3783 | BJZ7: 3783 | BKA7: 3783 | BKB7: 3783 | BKC7: 3783 | BKD7: 3783 | BKE7: 3783 | BKF7: 3783 | BKG7: 3783 | BKH7: 3783 | BKI7: 3783 | BKJ7: 3783 | BKK7: 3783 | BKL7: 3783 | BKM7: 3783 | BKN7: 3783 | BKO7: 3783 | BKP7: 3783 | BKQ7: 3783 | BKR7: 3783 | BKS7: 3783 | BKT7: 3783 | BKU7: 3783 | BKV7: 3783 | BKW7: 3783 | BKX7: 3783 | BKY7: 3783 | BKZ7: 3783 | BLA7: 3783 | BLB7: 3783 | BLC7: 3783 | BLD7: 3783 | BLE7: 3783 | BLF7: 3783 | BLG7: 3783 | BLH7: 3783 | BLI7: 3783 | BLJ7: 3783 | BLK7: 3783 | BLL7: 3783 | BLM7: 3783 | BLN7: 3783 | BLO7: 3783 | BLP7: 3783 | BLQ7: 3783 | BLR7: 3783 | BLS7: 3783 | BLT7: 3783 | BLU7: 3783 | BLV7: 3783 | BLW7: 3783 | BLX7: 3783 | BLY7: 3783 | BLZ7: 3783 | BMA7: 3783 | BMB7: 3783 | BMC7: 3783 | BMD7: 3783 | BME7: 3783 | BMF7: 3783 | BMG7: 3783 | BMH7: 3783 | BMI7: 3783 | BMJ7: 3783 | BMK7: 3783 | BML7: 3783 | BMM7: 3783 | BMN7: 3783 | BMO7: 3783 | BMP7: 3783 | BMQ7: 3783 | BMR7: 3783 | BMS7: 3783 | BMT7: 3783 | BMU7: 3783 | BMV7: 3783 | BMW7: 3783 | BMX7: 3783 | BMY7: 3783 | BMZ7: 3783 | BNA7: 3783 | BNB7: 3783 | BNC7: 3783 | BND7: 3783 | BNE7: 3783 | BNF7: 3783 | BNG7: 3783 | BNH7: 3783 | BNI7: 3783 | BNJ7: 3783 | BNK7: 3783 | BNL7: 3783 | BNM7: 3783 | BNN7: 3783 | BNO7: 3783 | BNP7: 3783 | BNQ7: 3783 | BNR7: 3783 | BNS7: 3783 | BNT7: 3783 | BNU7: 3783 | BNV7: 3783 | BNW7: 3783 | BNX7: 3783 | BNY7: 3783 | BNZ7: 3783 | BOA7: 3783 | BOB7: 3783 | BOC7: 3783 | BOD7: 3783 | BOE7: 3783 | BOF7: 3783 | BOG7: 3783 | BOH7: 3783 | BOI7: 3783 | BOJ7: 3783 | BOK7: 3783 | BOL7: 3783 | BOM7: 3783 | BON7: 3783 | BOO7: 3783 | BOP7: 3783 | BOQ7: 3783 | BOR7: 3783 | BOS7: 3783 | BOT7: 3783 | BOU7: 3783 | BOV7: 3783 | BOW7: 3783 | BOX7: 3783 | BOY7: 3783 | BOZ7: 3783 | BPA7: 3783 | BPB7: 3783 | BPC7: 3783 | BPD7: 3783 | BPE7: 3783 | BPF7: 3783 | BPG7: 3783 | BPH7: 3783 | BPI7: 3783 | BPJ7: 3783 | BPK7: 3783 | BPL7: 3783 | BPM7: 3783 | BPN7: 3783 | BPO7: 3783 | BPP7: 3783 | BPQ7: 3783 | BPR7: 3783 | BPS7: 3783 | BPT7: 3783 | BPU7: 3783 | BPV7: 3783 | BPW7: 3783 | BPX7: 3783 | BPY7: 3783 | BPZ7: 3783 | BQA7: 3783 | BQB7: 3783 | BQC7: 3783 | BQD7: 3783 | BQE7: 3783 | BQF7: 3783 | BQG7: 3783 | BQH7: 3783 | BQI7: 3783 | BQJ7: 3783 | BQK7: 3783 | BQL7: 3783 | BQM7: 3783 | BQN7: 3783 | BQO7: 3783 | BQP7: 3783 | BQQ7: 3783 | BQR7: 3783 | BQS7: 3783 | BQT7: 3783 | BQU7: 3783 | BQV7: 3783 | BQW7: 3783 | BQX7: 3783 | BQY7: 3783 | BQZ7: 3783 | BRA7: 3783 | BRB7: 3783 | BRC7: 3783 | BRD7: 3783 | BRE7: 3783 | BRF7: 3783 | BRG7: 3783 | BRH7: 3783 | BRI7: 3783 | BRJ7: 3783 | BRK7: 3783 | BRL7: 3783 | BRM7: 3783 | BRN7: 3783 | BRO7: 3783 | BRP7: 3783 | BRQ7: 3783 | BRR7: 3783 | BRS7: 3783 | BRT7: 3783 | BRU7: 3783 | BRV7: 3783 | BRW7: 3783 | BRX7: 3783 | BRY7: 3783 | BRZ7: 3783 | BSA7: 3783 | BSB7: 3783 | BSC7: 3783 | BSD7: 3783 | BSE7: 3783 | BSF7: 3783 | BSG7: 3783 | BSH7: 3783 | BSI7: 3783 | BSJ7: 3783 | BSK7: 3783 | BSL7: 3783 | BSM7: 3783 | BSN7: 3783 | BSO7: 3783 | BSP7: 3783 | BSQ7: 3783 | BSR7: 3783 | BSS7: 3783 | BST7: 3783 | BSU7: 3783 | BSV7: 3783 | BSW7: 3783 | BSX7: 3783 | BSY7: 3783 | BSZ7: 3783 | BTA7: 3783 | BTB7: 3783 | BTC7: 3783 | BTD7: 3783 | BTE7: 3783 | BTF7: 3783 | BTG7: 3783 | BTH7: 3783 | BTI7: 3783 | BTJ7: 3783 | BTK7: 3783 | BTL7: 3783 | BTM7: 3783 | BTN7: 3783 | BTO7: 3783 | BTP7: 3783 | BTQ7: 3783 | BTR7: 3783 | BTS7: 3783 | BTT7: 3783 | BTU7: 3783 | BTV7: 3783 | BTW7: 3783 | BTX7: 3783 | BTY7: 3783 | BTZ7: 3783 | BUA7: 3783 | BUB7: 3783 | BUC7: 3783 | BUD7: 3783 | BUE7: 3783 | BUF7: 3783 | BUG7: 3783 | BUH7: 3783 | BUI7: 3783 | BUJ7: 3783 | BUK7: 3783 | BUL7: 3783 | BUM7: 3783 | BUN7: 3783 | BUO7: 3783 | BUP7: 3783 | BUQ7: 3783 | BUR7: 3783 | BUS7: 3783 | BUT7: 3783 | BUU7: 3783 | BUV7: 3783 | BUW7: 3783 | BUX7: 3783 | BUY7: 3783 | BUZ7: 3783 | BVA7: 3783 | BVB7: 3783 | BVC7: 3783 | BVD7: 3783 | BVE7: 3783 | BVF7: 3783 | BVG7: 3783 | BVH7: 3783 | BVI7: 3783 | BVJ7: 3783 | BVK7: 3783 | BVL7: 3783 | BVM7: 3783 | BVN7: 3783 | BVO7: 3783 | BVP7: 3783 | BVQ7: 3783 | BVR7: 3783 | BVS7: 3783 | BVT7: 3783 | BVU7: 3783 | BVV7: 3783 | BVW7: 3783 | BVX7: 3783 | BVY7: 3783 | BVZ7: 3783 | BWA7: 3783 | BWB7: 3783 | BWC7: 3783 | BWD7: 3783 | BWE7: 3783 | BWF7: 3783 | BWG7: 3783 | BWH7: 3783 | BWI7: 3783 | BWJ7: 3783 | BWK7: 3783 | BWL7: 3783 | BWM7: 3783 | BWN7: 3783 | BWO7: 3783 | BWP7: 3783 | BWQ7: 3783 | BWR7: 3783 | BWS7: 3783 | BWT7: 3783 | BWU7: 3783 | BWV7: 3783 | BWW7: 3783 | BWX7: 3783 | BWY7: 3783 | BWZ7: 3783 | BXA7: 3783 | BXB7: 3783 | BXC7: 3783 | BXD7: 3783 | BXE7: 3783 | BXF7: 3783 | BXG7: 3783 | BXH7: 3783 | BXI7: 3783 | BXJ7: 3783 | BXK7: 3783 | BXL7: 3783 | BXM7: 3783 | BXN7: 3783 | BXO7: 3783 | BXP7: 3783 | BXQ7: 3783 | BXR7: 3783 | BXS7: 3783 | BXT7: 3783 | BXU7: 3783 | BXV7: 3783 | BXW7: 3783 | BXX7: 3783 | BXY7: 3783 | BXZ7: 3783 | BYA7: 3783 | BYB7: 3783 | BYC7: 3783 | BYD7: 3783 | BYE7: 3783 | BYF7: 3783 | BYG7: 3783 | BYH7: 3783 | BYI7: 3783 | BYJ7: 3783 | BYK7: 3783 | BYL7: 3783 | BYM7: 3783 | BYN7: 3783 | BYO7: 3783 | BYP7: 3783 | BYQ7: 3783 | BYR7: 3783 | BYS7: 3783 | BYT7: 3783 | BYU7: 3783 | BYV7: 3783 | BYW7: 3783 | BYX7: 3783 | BYY7: 3783 | BYZ7: 3783 | BZA7: 3783 | BZB7: 3783 | BZC7: 3783 | BZD7: 3783 | BZE7: 3783 | BZF7: 3783 | BZG7: 3783 | BZH7: 3783 | BZI7: 3783 | BZJ7: 3783 | BZK7: 3783 | BZL7: 3783 | BZM7: 3783 | BZN7: 3783 | BZO7: 3783 | BZP7: 3783 | BZQ7: 3783 | BZR7: 3783 | BZS7: 3783 | BZT7: 3783 | BZU7: 3783 | BZV7: 3783 | BZW7: 3783 | BZX7: 3783 | BZY7: 3783 | BZZ7: 3783 | CAA7: 3783 | CAB7: 3783 | CAC7: 3783 | CAD7: 3783 | CAE7: 3783 | CAF7: 3783 | CAG7: 3783 | CAH7: 3783 | CAI7: 3783 | CAJ7: 3783 | CAK7: 3783 | CAL7: 3783 | CAM7: 3783 | CAN7: 3783 | CAO7: 3783 | CAP7: 3783 | CAQ7: 3783 | CAR7: 3783 | CAS7: 3783 | CAT7: 3783 | CAU7: 3783 | CAV7: 3783 | CAW7: 3783 | CAX7: 3783 | CAY7: 3783 | CAZ7: 3783 | CBA7: 3783 | CBB7: 3783 | CBC7: 3783 | CBD7: 3783 | CBE7: 3783 | CBF7: 3783 | CBG7: 3783 | CBH7: 3783 | CBI7: 3783 | CBJ7: 3783 | CBK7: 3783 | CBL7: 3783 | CBM7: 3783 | CBN7: 3783 | CBO7: 3783 | CBP7: 3783 | CBQ7: 3783 | CBR7: 3783 | CBS7: 3783 | CBT7: 3783 | CBU7: 3783 | CBV7: 3783 | CBW7: 3783 | CBX7: 3783 | CBY7: 3783 | CBZ7: 3783 | CCA7: 3783 | CCB7: 3783 | CCC7: 3783 | CCD7: 3783 | CCE7: 3783 | CCF7: 3783 | CCG7: 3783 | CCH7: 3783 | CCI7: 3783 | CCJ7: 3783 | CCK7: 3783 | CCL7: 3783 | CCM7: 3783 | CCN7: 3783 | CCO7: 3783 | CCP7: 3783 | CCQ7: 3783 | CCR7: 3783 | CCS7: 3783 | CCT7: 3783 | CCU7: 3783 | CCV7: 3783 | CCW7: 3783 | CCX7: 3783 | CCY7: 3783 | CCZ7: 3783 | CDA7: 3783 | CDB7: 3783 | CDC7: 3783 | CDD7: 3783 | CDE7: 3783 | CDF7: 3783 | CDG7: 3783 | CDH7: 3783 | CDI7: 3783 | CDJ7: 3783 | CDK7: 3783 | CDL7: 3783 | CDM7: 3783 | CDN7: 3783 | CDO7: 3783 | CDP7: 3783 | CDQ7: 3783 | CDR7: 3783 | CDS7: 3783 | CDT7: 3783 | CDU7: 3783 | CDV7: 3783 | CDW7: 3783 | CDX7: 3783 | CDY7: 3783 | CDZ7: 3783 | CEA7: 3783 | CEB7: 3783 | CEC7: 3783 | CED7: 3783 | CEE7: 3783 | CEF7: 3783 | CEG7: 3783 | CEH7: 3783 | CEI7: 3783 | CEJ7: 3783 | CEK7: 3783 | CEL7: 3783 | CEM7: 3783 | CEN7: 3783 | CEO7: 3783 | CEP7: 3783 | CEQ7: 3783 | CER7: 3783 | CES7: 3783 | CET7: 3783 | CEU7: 3783 | CEV7: 3783 | CEW7: 3783 | CEX7: 3783 | CEY7: 3783 | CEZ7: 3783 | CFA7: 3783 | CFB7: 3783 | CFC7: 3783 | CFD7: 3783 | CFE7: 3783 | CFF7: 3783 | CFG7: 3783 | CFH7: 3783 | CFI7: 3783 | CFJ7: 3783 | CFK7: 3783 | CFL7: 3783 | CFM7: 3783 | CFN7: 3783 | CFO7: 3783 | CFP7: 3783 | CFQ7: 3783 | CFR7: 3783 | CFS7: 3783 | CFT7: 3783 | CFU7: 3783 | CFV7: 3783 | CFW7: 3783 | CFX7: 3783 | CFY7: 3783 | CFZ7: 3783 | CGA7: 3783 | CGB7: 3783 | CGC7: 3783 | CGD7: 3783 | CGE7: 3783 | CGF7: 3783 | CGG7: 3783 | CGH7: 3783 | CGI7: 3783 | CGJ7: 3783 | CGK7: 3783 | CGL7: 3783 | CGM7: 3783 | CGN7: 3783 | CGO7: 3783 | CGP7: 3783 | CGQ7: 3783 | CGR7: 3783 | CGS7: 3783 | CGT7: 3783 | CGU7: 3783 | CGV7: 3783 | CGW7: 3783 | CGX7: 3783 | CGY7: 3783 | CGZ7: 3783 | CHA7: 3783 | CHB7: 3783 | CHC7: 3783 | CHD7: 3783 | CHE7: 3783 | CHF7: 3783 | CHG7: 3783 | CHH7: 3783 | CHI7: 3783 | CHJ7: 3783 | CHK7: 3783 | CHL7: 3783 | CHM7: 3783 | CHN7: 3783 | CHO7: 3783 | CHP7: 3783 | CHQ7: 3783 | CHR7: 3783 | CHS7: 3783 | CHT7: 3783 | CHU7: 3783 | CHV7: 3783 | CHW7: 3783 | CHX7: 3783 | CHY7: 3783 | CHZ7: 3783 | CIA7: 3783 | CIB7: 3783 | CIC7: 3783 | CID7: 3783 | CIE7: 3783 | CIF7: 3783 | CIG7: 3783 | CIH7: 3783 | CII7: 3783 | CIJ7: 3783 | CIK7: 3783 | CIL7: 3783 | CIM7: 3783 | CIN7: 3783 | CIO7: 3783 | CIP7: 3783 | CIQ7: 3783 | CIR7: 3783 | CIS7: 3783 | CIT7: 3783 | CIU7: 3783 | CIV7: 3783 | CIW7: 3783 | CIX7: 3783 | CIY7: 3783 | CIZ7: 3783 | CJA7: 3783 | CJB7: 3783 | CJC7: 3783 | CJD7: 3783 | CJE7: 3783 | CJF7: 3783 | CJG7: 3783 | CJH7: 3783 | CJI7: 3783 | CJJ7: 3783 | CJK7: 3783 | CJL7: 3783 | CJM7: 3783 | CJN7: 3783 | CJO7: 3783 | CJP7: 3783 | CJQ7: 3783 | CJR7: 3783 | CJS7: 3783 | CJT7: 3783 | CJU7: 3783 | CJV7: 3783 | CJW7: 3783 | CJX7: 3783 | CJY7: 3783 | CJZ7: 3783 | CKA7: 3783 | CKB7: 3783 | CKC7: 3783 | CKD7: 3783 | CKE7: 3783 | CKF7: 3783 | CKG7: 3783 | CKH7: 3783 | CKI7: 3783 | CKJ7: 3783 | CKK7: 3783 | CKL7: 3783 | CKM7: 3783 | CKN7: 3783 | CKO7: 3783 | CKP7: 3783 | CKQ7: 3783 | CKR7: 3783 | CKS7: 3783 | CKT7: 3783 | CKU7: 3783 | CKV7: 3783 | CKW7: 3783 | CKX7: 3783 | CKY7: 3783 | CKZ7: 3783 | CLA7: 3783 | CLB7: 3783 | CLC7: 3783 | CLD7: 3783 | CLE7: 3783 | CLF7: 3783 | CLG7: 3783 | CLH7: 3783 | CLI7: 3783 | CLJ7: 3783 | CLK7: 3783 | CLL7: 3783 | CLM7: 3783 | CLN7: 3783 | CLO7: 3783 | CLP7: 3783 | CLQ7: 3783 | CLR7: 3783 | CLS7: 3783 | CLT7: 3783 | CLU7: 3783 | CLV7: 3783 | CLW7: 3783 | CLX7: 3783 | CLY7: 3783 | CLZ7: 3783 | CMA7: 3783 | CMB7: 3783 | CMC7: 3783 | CMD7: 3783 | CME7: 3783 | CMF7: 3783 | CMG7: 3783 | CMH7: 3783 | CMI7: 3783 | CMJ7: 3783 | CMK7: 3783 | CML7: 3783 | CMM7: 3783 | CMN7: 3783 | CMO7: 3783 | CMP7: 3783 | CMQ7: 3783 | CMR7: 3783 | CMS7: 3783 | CMT7: 3783 | CMU7: 3783 | CMV7: 3783 | CMW7: 3783 | CMX7: 3783 | CMY7: 3783 | CMZ7: 3783 | CNA7: 3783 | CNB7: 3783 | CNC7: 3783 | CND7: 3783 | CNE7: 3783 | CNF7: 3783 | CNG7: 3783 | CNH7: 3783 | CNI7: 3783 | CNJ7: 3783 | CNK7: 3783 | CNL7: 3783 | CNM7: 3783 | CNN7: 3783 | CNO7: 3783 | CNP7: 3783 | CNQ7: 3783 | CNR7: 3783 | CNS7: 3783 | CNT7: 3783 | CNU7: 3783 | CNV7: 3783 | CNW7: 3783 | CNX7: 3783 | CNY7: 3783 | CNZ7: 3783 | COA7: 3783 | COB7: 3783 | COC7: 3783 | COD7: 3783 | COE7: 3783 | COF7: 3783 | COG7: 3783 | COH7: 3783 | COI7: 3783 | COJ7: 3783 | COK7: 3783 | COL7: 3783 | COM7: 3783 | CON7: 3783 | COO7: 3783 | COP7: 3783 | COQ7: 3783 | COR7: 3783 | COS7: 3783 | COT7: 3783 | COU7: 3783 | COV7: 3783 | COW7: 3783 | COX7: 3783 | COY7: 3783 | COZ7: 3783 | CPA7: 3783 | CPB7: 3783 | CPC7: 3783 | CPD7: 3783 | CPE7: 3783 | CPF7: 3783 | CPG7: 3783 | CPH7: 3783 | CPI7: 3783 | CPJ7: 3783 | CPK7: 3783 | CPL7: 3783 | CPM7: 3783 | CPN7: 3783 | CPO7: 3783 | CPP7: 3783 | CPQ7: 3783 | CPR7: 3783 | CPS7: 3783 | CPT7: 3783 | CPU7: 3783 | CPV7: 3783 | CPW7: 3783 | CPX7: 3783 | CPY7: 3783 | CPZ7: 3783 | CQA7: 3783 | CQB7: 3783 | CQC7: 3783 | CQD7: 3783 | CQE7: 3783 | CQF7: 3783 | CQG7: 3783 | CQH7: 3783 | CQI7: 3783 | CQJ7: 3783 | CQK7: 3783 | CQL7: 3783 | CQM7: 3783 | CQN7: 3783 | CQO7: 3783 | CQP7: 3783 | CQQ7: 3783 | CQR7: 3783 | CQS7: 3783 | CQT7: 3783 | CQU7: 3783 | CQV7: 3783 | CQW7: 3783 | CQX7: 3783 | CQY7: 3783 | CQZ7: 3783 | CRA7: 3783 | CRB7: 3783 | CRC7: 3783 | CRD7: 3783 | CRE7: 3783 | CRF7: 3783 | CRG7: 3783 | CRH7: 3783 | CRI7: 3783 | CRJ7: 3783 | CRK7: 3783 | CRL7: 3783 | CRM7: 3783 | CRN7: 3783 | CRO7: 3783 | CRP7: 3783 | CRQ7: 3783 | CRR7: 3783 | CRS7: 3783 | CRT7: 3783 | CRU7: 3783 | CRV7: 3783 | CRW7: 3783 | CRX7: 3783 | CRY7: 3783 | CRZ7: 3783 | CSA7: 3783 | CSB7: 3783 | CSC7: 3783 | CSD7: 3783 | CSE7: 3783 | CSF7: 3783 | CSG7: 3783 | CSH7: 3783 | CSI7: 3783 | CSJ7: 3783 | CSK7: 3783 | CSL7: 3783 | CSM7: 3783 | CSN7: 3783 | CSO7: 3783 | CSP7: 3783 | CSQ7: 3783 | CSR7: 3783 | CSS7: 3783 | CST7: 3783 | CSU7: 3783 | CSV7: 3783 | CSW7: 3783 | CSX7: 3783 | CSY7: 3783 | CSZ7: 3783 | CTA7: 3783 | CTB7: 3783 | CTC7: 3783 | CTD7: 3783 | CTE7: 3783 | CTF7: 3783 | CTG7: 3783 | CTH7: 3783 | CTI7: 3783 | CTJ7: 3783 | CTK7: 3783 | CTL7: 3783 | CTM7: 3783 | CTN7: 3783 | CTO7: 3783 | CTP7: 3783 | CTQ7: 3783 | CTR7: 3783 | CTS7: 3783 | CTT7: 3783 | CTU7: 3783 | CTV7: 3783 | CTW7: 3783 | CTX7: 3783 | CTY7: 3783 | CTZ7: 3783 | CUA7: 3783 | CUB7: 3783 | CUC7: 3783 | CUD7: 3783 | CUE7: 3783 | CUF7: 3783 | CUG7: 3783 | CUH7: 3783 | CUI7: 3783 | CUJ7: 3783 | CUK7: 3783 | CUL7: 3783 | CUM7: 3783 | CUN7: 3783 | CUO7: 3783 | CUP7: 3783 | CUQ7: 3783 | CUR7: 3783 | CUS7: 3783 | CUT7: 3783 | CUU7: 3783 | CUV7: 3783 | CUW7: 3783 | CUX7: 3783 | CUY7: 3783 | CUZ7: 3783 | CVA7: 3783 | CVB7: 3783 | CVC7: 3783 | CVD7: 3783 | CVE7: 3783 | CVF7: 3783 | CVG7: 3783 | CVH7: 3783 | CVI7: 3783 | CVJ7: 3783 | CVK7: 3783 | CVL7: 3783 | CVM7: 3783 | CVN7: 3783 | CVO7: 3783 | CVP7: 3783 | CVQ7: 3783 | CVR7: 3783 | CVS7: 3783 | CVT7: 3783 | CVU7: 3783 | CVV7: 3783 | CVW7: 3783 | CVX7: 3783 | CVY7: 3783 | CVZ7: 3783 | CWA7: 3783 | CWB7: 3783 | CWC7: 3783 | CWD7: 3783 | CWE7: 3783 | CWF7: 3783 | CWG7: 3783 | CWH7: 3783 | CWI7: 3783 | CWJ7: 3783 | CWK7: 3783 | CWL7: 3783 | CWM7: 3783 | CWN7: 3783 | CWO7: 3783 | CWP7: 3783 | CWQ7: 3783 | CWR7: 3783 | CWS7: 3783 | CWT7: 3783 | CWU7: 3783 | CWV7: 3783 | CWW7: 3783 | CWX7: 3783 | CWY7: 3783 | CWZ7: 3783 | CXA7: 3783 | CXB7: 3783 | CXC7: 3783 | CXD7: 3783 | CXE7: 3783 | CXF7: 3783 | CXG7: 3783 | CXH7: 3783 | CXI7: 3783 | CXJ7: 3783 | CXK7: 3783 | CXL7: 3783 | CXM7: 3783 | CXN7: 3783 | CXO7: 3783 | CXP7: 3783 | CXQ7: 3783 | CXR7: 3783 | CXS7: 3783 | CXT7: 3783 | CXU7: 3783 | CXV7: 3783 | CXW7: 3783 | CXX7: 3783 | CXY7: 3783 | CXZ7: 3783 | CYA7: 3783 | CYB7: 3783 | CYC7: 3783 | CYD7: 3783 | CYE7: 3783 | CYF7: 3783 | CYG7: 3783 | CYH7: 3783 | CYI7: 3783 | CYJ7: 3783 | CYK7: 3783 | CYL7: 3783 | CYM7: 3783 | CYN7: 3783 | CYO7: 3783 | CYP7: 3783 | CYQ7: 3783 | CYR7: 3783 | CYS7: 3783 | CYT7: 3783 | CYU7: 3783 | CYV7: 3783 | CYW7: 3783 | CYX7: 3783 | CYY7: 3783 | CYZ7: 3783 | CZA7: 3783 | CZB7: 3783 | CZC7: 3783 | CZD7: 3783 | CZE7: 3783 | CZF7: 3783 | CZG7: 3783 | CZH7: 3783 | CZI7: 3783 | CZJ7: 3783 | CZK7: 3783 | CZL7: 3783 | CZM7: 3783 | CZN7: 3783 | CZO7: 3783 | CZP7: 3783 | CZQ7: 3783 | CZR7: 3783 | CZS7: 3783 | CZT7: 3783 | CZU7: 3783 | CZV7: 3783 | CZW7: 3783 | CZX7: 3783 | CZY7: 3783 | CZZ7: 3783 | DAA7: 3783 | DAB7: 3783 | DAC7: 3783 | DAD7: 3783 | DAE7: 3783 | DAF7: 3783 | DAG7: 3783 | DAH7: 3783 | DAI7: 3783 | DAJ7: 3783 | DAK7: 3783 | DAL7: 3783 | DAM7: 3783 | DAN7: 3783 | DAO7: 3783 | DAP7: 3783 | DAQ7: 3783 | DAR7: 3783 | DAS7: 3783 | DAT7: 3783 | DAU7: 3783 | DAV7: 3783 | DAW7: 3783 | DAX7: 3783 | DAY7: 3783 | DAZ7: 3783 | DBA7: 3783 | DBB7: 3783 | DBC7: 3783 | DBD7: 3783 | DBE7: 3783 | DBF7: 3783 | DBG7: 3783 | DBH7: 3783 | DBI7: 3783 | DBJ7: 3783 | DBK7: 3783 | DBL7: 3783 | DBM7: 3783 | DBN7: 3783 | DBO7: 3783 | DBP7: 3783 | DBQ7: 3783 | DBR7: 3783 | DBS7: 3783 | DBT7: 3783 | DBU7: 3783 | DBV7: 3783 | DBW7: 3783 | DBX7: 3783 | DBY7: 3783 | DBZ7: 3783 | DCA7: 3783 | DCB7: 3783 | DCC7: 3783 | DCD7: 3783 | DCE7: 3783 | DCF7: 3783 | DCG7: 3783 | DCH7: 3783 | DCI7: 3783 | DCJ7: 3783 | DCK7: 3783 | DCL7: 3783 | DCM7: 3783 | DCN7: 3783 | DCO7: 3783 | DCP7: 3783 | DCQ7: 3783 | DCR7: 3783 | DCS7: 3783 | DCT7: 3783 | DCU7: 3783 | DCV7: 3783 | DCW7: 3783 | DCX7: 3783 | DCY7: 3783 | DCZ7: 3783 | DDA7: 3783 | DDB7: 3783 | DDC7: 3783 | DDD7: 3783 | DDE7: 3783 | DDF7: 3783 | DDG7: 3783 | DDH7: 3783 | DDI7: 3783 | DDJ7: 3783 | DDK7: 3783 | DDL7: 3783 | DDM7: 3783 | DDN7: 3783 | DDO7: 3783 | DDP7: 3783 | DDQ7: 3783 | DDR7: 3783 | DDS7: 3783 | DDT7: 3783 | DDU7: 3783 | DDV7: 3783 | DDW7: 3783 | DDX7: 3783 | DDY7: 3783 | DDZ7: 3783 | DEA7: 3783 | DEB7: 3783 | DEC7: 3783 | DED7: 3783 | DEE7: 3783 | DEF7: 3783 | DEG7: 3783 | DEH7: 3783 | DEI7: 3783 | DEJ7: 3783 | DEK7: 3783 | DEL7: 3783 | DEM7: 3783 | DEN7: 3783 | DEO7: 3783 | DEP7: 3783 | DEQ7: 3783 | DER7: 3783 | DES7: 3783 | DET7: 3783 | DEU7: 3783 | DEV7: 3783 | DEW7: 3783 | DEX7: 3783 | DEY7: 3783 | DEZ7: 3783 | DFA7: 3783 | DFB7: 3783 | DFC7: 3783 | DFD7: 3783 | DFE7: 3783 | DFF7: 3783 | DFG7: 3783 | DFH7: 3783 | DFI7: 3783 | DFJ7: 3783 | DFK7: 3783 | DFL7: 3783 | DFM7: 3783 | DFN7: 3783 | DFO7: 3783 | DFP7: 3783 | DFQ7: 3783 | DFR7: 3783 | DFS7: 3783 | DFT7: 3783 | DFU7: 3783 | DFV7: 3783 | DFW7: 3783 | DFX7: 3783 | DFY7: 3783 | DFZ7: 3783 | DGA7: 3783 | DGB7: 3783 | DGC7: 3783 | DGD7: 3783 | DGE7: 3783 | DGF7: 3783 | DGG7: 3783 | DGH7: 3783 | DGI7: 3783 | DGJ7: 3783 | DGK7: 3783 | DGL7: 3783 | DGM7: 3783 | DGN7: 3783 | DGO7: 3783 | DGP7: 3783 | DGQ7: 3783 | DGR7: 3783 | DGS7: 3783 | DGT7: 3783 | DGU7: 3783 | DGV7: 3783 | DGW7: 3783 | DGX7: 3783 | DGY7: 3783 | DGZ7: 3783 | DHA7: 3783 | DHB7: 3783 | DHC7: 3783 | DHD7: 3783 | DHE7: 3783 | DHF7: 3783 | DHG7: 3783 | DHH7: 3783 | DHI7: 3783 | DHJ7: 3783 | DHK7: 3783 | DHL7: 3783 | DHM7: 3783 | DHN7: 3783 | DHO7: 3783 | DHP7: 3783 | DHQ7: 3783 | DHR7: 3783 | DHS7: 3783 | DHT7: 3783 | DHU7: 3783 | DHV7: 3783 | DHW7: 3783 | DHX7: 3783 | DHY7: 3783 | DHZ7: 3783 | DIA7: 3783 | DIB7: 3783 | DIC7: 3783 | DID7: 3783 | DIE7: 3783 | DIF7: 3783 | DIG7: 3783 | DIH7: 3783 | DII7: 3783 | DIJ7: 3783 | DIK7: 3783 | DIL7: 3783 | DIM7: 3783 | DIN7: 3783 | DIO7: 3783 | DIP7: 3783 | DIQ7: 3783 | DIR7: 3783 | DIS7: 3783 | DIT7: 3783 | DIU7: 3783 | DIV7: 3783 | DIW7: 3783 | DIX7: 3783 | DIY7: 3783 | DIZ7: 3783 | DJA7: 3783 | DJB7: 3783 | DJC7: 3783 | DJD7: 3783 | DJE7: 3783 | DJF7: 3783 | DJG7: 3783 | DJH7: 3783 | DJI7: 3783 | DJJ7: 3783 | DJK7: 3783 | DJL7: 3783 | DJM7: 3783 | DJN7: 3783 | DJO7: 3783 | DJP7: 3783 | DJQ7: 3783 | DJR7: 3783 | DJS7: 3783 | DJT7: 3783 | DJU7: 3783 | DJV7: 3783 | DJW7: 3783 | DJX7: 3783 | DJY7: 3783 | DJZ7: 3783 | DKA7: 3783 | DKB7: 3783 | DKC7: 3783 | DKD7: 3783 | DKE7: 3783 | DKF7: 3783 | DKG7: 3783 | DKH7: 3783 | DKI7: 3783 | DKJ7: 3783 | DKK7: 3783 | DKL7: 3783 | DKM7: 3783 | DKN7: 3783 | DKO7: 3783 | DKP7: 3783 | DKQ7: 3783 | DKR7: 3783 | DKS7: 3783 | DKT7: 3783 | DKU7: 3783 | DKV7: 3783 | DKW7: 3783 | DKX7: 3783 | DKY7: 3783 | DKZ7: 3783 | DLA7: 3783 | DLB7: 3783 | DLC7: 3783 | DLD7: 3783 | DLE7: 3783 | DLF7: 3783 | DLG7: 3783 | DLH7: 3783 | DLI7: 3783 | DLJ7: 3783 | DLK7: 3783 | DLL7: 3783 | DLM7: 3783 | DLN7: 3783 | DLO7: 3783 | DLP7: 3783 | DLQ7: 3783 | DLR7: 3783 | DLS7: 3783 | DLT7: 3783 | DLU7: 3783 | DLV7: 3783 | DLW7: 3783 | DLX7: 3783 | DLY7: 3783 | DLZ7: 3783 | DMA7: 3783 | DMB7: 3783 | DMC7: 3783 | DMD7: 3783 | DME7: 3783 | DMF7: 3783 | DMG7: 3783 | DMH7: 3783 | DMI7: 3783 | DMJ7: 3783 | DMK7: 3783 | DML7: 3783 | DMM7: 3783 | DMN7: 3783 | DMO7: 3783 | DMP7: 3783 | DMQ7: 3783 | DMR7: 3783 | DMS7: 3783 | DMT7: 3783 | DMU7: 3783 | DMV7: 3783 | DMW7: 3783 | DMX7: 3783 | DMY7: 3783 | DMZ7: 3783 | DNA7: 3783 | DNB7: 3783 | DNC7: 3783 | DND7: 3783 | DNE7: 3783 | DNF7: 3783 | DNG7: 3783 | DNH7: 3783 | DNI7: 3783 | DNJ7: 3783 | DNK7: 3783 | DNL7: 3783 | DNM7: 3783 | DNN7: 3783 | DNO7: 3783 | DNP7: 3783 | DNQ7: 3783 | DNR7: 3783 | DNS7: 3783 | DNT7: 3783 | DNU7: 3783 | DNV7: 3783 | DNW7: 3783 | DNX7: 3783 | DNY7: 3783 | DNZ7: 3783 | DOA7: 3783 | DOB7: 3783 | DOC7: 3783 | DOD7: 3783 | DOE7: 3783 | DOF7: 3783 | DOG7: 3783 | DOH7: 3783 | DOI7: 3783 | DOJ7: 3783 | DOK7: 3783 | DOL7: 3783 | DOM7: 3783 | DON7: 3783 | DOO7: 3783 | DOP7: 3783 | DOQ7: 3783 | DOR7: 3783 | DOS7: 3783 | DOT7: 3783 | DOU7: 3783 | DOV7: 3783 | DOW7: 3783 | DOX7: 3783 | DOY7: 3783 | DOZ7: 3783 | DPA7: 3783 | DPB7: 3783 | DPC7: 3783 | DPD7: 3783 | DPE7: 3783 | DPF7: 3783 | DPG7: 3783 | DPH7: 3783 | DPI7: 3783 | DPJ7: 3783 | DPK7: 3783 | DPL7: 3783 | DPM7: 3783 | DPN7: 3783 | DPO7: 3783 | DPP7: 3783 | DPQ7: 3783 | DPR7: 3783 | DPS7: 3783 | DPT7: 3783 | DPU7: 3783 | DPV7: 3783 | DPW7: 3783 | DPX7: 3783 | DPY7: 3783 | DPZ7: 3783 | DQA7: 3783 | DQB7: 3783 | DQC7: 3783 | DQD7: 3783 | DQE7: 3783 | DQF7: 3783 | DQG7: 3783 | DQH7: 3783 | DQI7: 3783 | DQJ7: 3783 | DQK7: 3783 | DQL7: 3783 | DQM7: 3783 | DQN7: 3783 | DQO7: 3783 | DQP7: 3783 | DQQ7: 3783 | DQR7: 3783 | DQS7: 3783 | DQT7: 3783 | DQU7: 3783 | DQV7: 3783 | DQW7: 3783 | DQX7: 3783 | DQY7: 3783 | DQZ7: 3783 | DRA7: 3783 | DRB7: 3783 | DRC7: 3783 | DRD7: 3783 | DRE7: 3783 | DRF7: 3783 | DRG7: 3783 | DRH7: 3783 | DRI7: 3783 | DRJ7: 3783 | DRK7: 3783 | DRL7: 3783 | DRM7: 3783 | DRN7: 3783 | DRO7: 3783 | DRP7: 3783 | DRQ7: 3783 | DRR7: 3783 | DRS7: 3783 | DRT7: 3783 | DRU7: 3783 | DRV7: 3783 | DRW7: 3783 | DRX7: 3783 | DRY7: 3783 | DRZ7: 3783 | DSA7: 3783 | DSB7: 3783 | DSC7: 3783 | DSD7: 3783 | DSE7: 3783 | DSF7: 3783 | DSG7: 3783 | DSH7: 3783 | DSI7: 3783 | DSJ7: 3783 | DSK7: 3783 | DSL7: 3783 | DSM7: 3783 | DSN7: 3783 | DSO7: 3783 | DSP7: 3783 | DSQ7: 3783 | DSR7: 3783 | DSS7: 3783 | DST7: 3783 | DSU7: 3783 | DSV7: 3783 | DSW7: 3783 | DSX7: 3783 | DSY7: 3783 | DSZ7: 3783 | DTA7: 3783 | DTB7: 3783 | DTC7: 3783 | DTD7: 3783 | DTE7: 3783 | DTF7: 3783 | DTG7: 3783 | DTH7: 3783 | DTI7: 3783 | DTJ7: 3783 | DTK7: 3783 | DTL7: 3783 | DTM7: 3783 | DTN7: 3783 | DTO7: 3783 | DTP7: 3783 | DTQ7: 3783 | DTR7: 3783 | DTS7: 3783 | DTT7: 3783 | DTU7: 3783 | DTV7: 3783 | DTW7: 3783 | DTX7: 3783 | DTY7: 3783 | DTZ7: 3783 | DUA7: 3783 | DUB7: 3783 | DUC7: 3783 | DUD7: 3783 | DUE7: 3783 | DUF7: 3783 | DUG7: 3783 | DUH7: 3783 | DUI7: 3783 | DUJ7: 3783 | DUK7: 3783 | DUL7: 3783 | DUM7: 3783 | DUN7: 3783 | DUO7: 3783 | DUP7: 3783 | DUQ7: 3783 | DUR7: 3783 | DUS7: 3783 | DUT7: 3783 | DUU7: 3783 | DUV7: 3783 | DUW7: 3783 | DUX7: 3783 | DUY7: 3783 | DUZ7: 3783 | DVA7: 3783 | DVB7: 3783 | DVC7: 3783 | DVD7: 3783 | DVE7: 3783 | DVF7: 3783 | DVG7: 3783 | DVH7: 3783 | DVI7: 3783 | DVJ7: 3783 | DVK7: 3783 | DVL7: 3783 | DVM7: 3783 | DVN7: 3783 | DVO7: 3783 | DVP7: 3783 | DVQ7: 3783 | DVR7: 3783 | DVS7: 3783 | DVT7: 3783 | DVU7: 3783 | DVV7: 3783 | DVW7: 3783 | DVX7: 3783 | DVY7: 3783 | DVZ7: 3783 | DWA7: 3783 | DWB7: 3783 | DWC7: 3783 | DWD7: 3783 | DWE7: 3783 | DWF7: 3783 | DWG7: 3783 | DWH7: 3783 | DWI7: 3783 | DWJ7: 3783 | DWK7: 3783 | DWL7: 3783 | DWM7: 3783 | DWN7: 3783 | DWO7: 3783 | DWP7: 3783 | DWQ7: 3783 | DWR7: 3783 | DWS7: 3783 | DWT7: 3783 | DWU7: 3783 | DWV7: 3783 | DWW7: 3783 | DWX7: 3783 | DWY7: 3783 | DWZ7: 3783 | DXA7: 3783 | DXB7: 3783 | DXC7: 3783 | DXD7: 3783 | DXE7: 3783 | DXF7: 3783 | DXG7: 3783 | DXH7: 3783 | DXI7: 3783 | DXJ7: 3783 | DXK7: 3783 | DXL7: 3783 | DXM7: 3783 | DXN7: 3783 | DXO7: 3783 | DXP7: 3783 | DXQ7: 3783 | DXR7: 3783 | DXS7: 3783 | DXT7: 3783 | DXU7: 3783 | DXV7: 3783 | DXW7: 3783 | DXX7: 3783 | DXY7: 3783 | DXZ7: 3783 | DYA7: 3783 | DYB7: 3783 | DYC7: 3783 | DYD7: 3783 | DYE7: 3783 | DYF7: 3783 | DYG7: 3783 | DYH7: 3783 | DYI7: 3783 | DYJ7: 3783 | DYK7: 3783 | DYL7: 3783 | DYM7: 3783 | DYN7: 3783 | DYO7: 3783 | DYP7: 3783 | DYQ7: 3783 | DYR7: 3783 | DYS7: 3783 | DYT7: 3783 | DYU7: 3783 | DYV7: 3783 | DYW7: 3783 | DYX7: 3783 | DYY7: 3783 | DYZ7: 3783 | DZA7: 3783 | DZB7: 3783 | DZC7: 3783 | DZD7: 3783 | DZE7: 3783 | DZF7: 3783 | DZG7: 3783 | DZH7: 3783 | DZI7: 3783 | DZJ7: 3783 | DZK7: 3783 | DZL7: 3783 | DZM7: 3783 | DZN7: 3783 | DZO7: 3783 | DZP7: 3783 | DZQ7: 3783 | DZR7: 3783 | DZS7: 3783 | DZT7: 3783 | DZU7: 3783 | DZV7: 3783 | DZW7: 3783 | DZX7: 3783 | DZY7: 3783 | DZZ7: 3783 | EAA7: 3783 | EAB7: 3783 | EAC7: 3783 | EAD7: 3783 | EAE7: 3783 | EAF7: 3783 | EAG7: 3783 | EAH7: 3783 | EAI7: 3783 | EAJ7: 3783 | EAK7: 3783 | EAL7: 3783 | EAM7: 3783 | EAN7: 3783 | EAO7: 3783 | EAP7: 3783 | EAQ7: 3783 | EAR7: 3783 | EAS7: 3783 | EAT7: 3783 | EAU7: 3783 | EAV7: 3783 | EAW7: 3783 | EAX7: 3783 | EAY7: 3783 | EAZ7: 3783 | EBA7: 3783 | EBB7: 3783 | EBC7: 3783 | EBD7: 3783 | EBE7: 3783 | EBF7: 3783 | EBG7: 3783 | EBH7: 3783 | EBI7: 3783 | EBJ7: 3783 | EBK7: 3783 | EBL7: 3783 | EBM7: 3783 | EBN7: 3783 | EBO7: 3783 | EBP7: 3783 | EBQ7: 3783 | EBR7: 3783 | EBS7: 3783 | EBT7: 3783 | EBU7: 3783 | EBV7: 3783 | EBW7: 3783 | EBX7: 3783 | EBY7: 3783 | EBZ7: 3783 | ECA7: 3783 | ECB7: 3783 | ECC7: 3783 | ECD7: 3783 | ECE7: 3783 | ECF7: 3783 | ECG7: 3783 | ECH7: 3783 | ECI7: 3783 | ECJ7: 3783 | ECK7: 3783 | ECL7: 3783 | ECM7: 3783 | ECN7: 3783 | ECO7: 3783 | ECP7: 3783 | ECQ7: 3783 | ECR7: 3783 | ECS7: 3783 | ECT7: 3783 | ECU7: 3783 | ECV7: 3783 | ECW7: 3783 | ECX7: 3783 | ECY7: 3783 | ECZ7: 3783 | EDA7: 3783 | EDB7: 3783 | EDC7: 3783 | EDD7: 3783 | EDE7: 3783 | EDF7: 3783 | EDG7: 3783 | EDH7: 3783 | EDI7: 3783 | EDJ7: 3783 | EDK7: 3783 | EDL7: 3783 | EDM7: 3783 | EDN7: 3783 | EDO7: 3783 | EDP7: 3783 | EDQ7: 3783 | EDR7: 3783 | EDS7: 3783 | EDT7: 3783 | EDU7: 3783 | EDV7: 3783 | EDW7: 3783 | EDX7: 3783 | EDY7: 3783 | EDZ7: 3783 | EEA7: 3783 | EEB7: 3783 | EEC7: 3783 | EED7: 3783 | EEE7: 3783 | EEF7: 3783 | EEG7: 3783 | EEH7: 3783 | EEI7: 3783 | EEJ7: 3783 | EEK7: 3783 | EEL7: 3783 | EEM7: 3783 | EEN7: 3783 | EEO7: 3783 | EEP7: 3783 | EEQ7: 3783 | EER7: 3783 | EES7: 3783 | EET7: 3783 | EEU7: 3783 | EEV7: 3783 | EEW7: 3783 | EEX7: 3783 | EEY7: 3783 | EEZ7: 3783 | EFA7: 3783 | EFB7: 3783 | EFC7: 3783 | EFD7: 3783 | EFE7: 3783 | EFF7: 3783 | EFG7: 3783 | EFH7: 3783 | EFI7: 3783 | EFJ7: 3783 | EFK7: 3783 | EFL7: 3783 | EFM7: 3783 | EFN7: 3783 | EFO7: 3783 | EFP7: 3783 | EFQ7: 3783 | EFR7: 3783 | EFS7: 3783 | EFT7: 3783 | EFU7: 3783 | EFV7: 3783 | EFW7: 3783 | EFX7: 3783 | EFY7: 3783 | EFZ7: 3783 | EGA7: 3783 | EGB7: 3783 | EGC7: 3783 | EGD7: 3783 | EGE7: 3783 | EGF7: 3783 | EGG7: 3783 | EGH7: 3783 | EGI7: 3783 | EGJ7: 3783 | EGK7: 3783 | EGL7: 3783 | EGM7: 3783 | EGN7: 3783 | EGO7: 3783 | EGP7: 3783 | EGQ7: 3783 | EGR7: 3783 | EGS7: 3783 | EGT7: 3783 | EGU7: 3783 | EGV7: 3783 | EGW7: 3783 | EGX7: 3783 | EGY7: 3783 | EGZ7: 3783 | EHA7: 3783 | EHB7: 3783 | EHC7: 3783 | EHD7: 3783 | EHE7: 3783 | EHF7: 3783 | EHG7: 3783 | EHH7: 3783 | EHI7: 3783 | EHJ7: 3783 | EHK7: 3783 | EHL7: 3783 | EHM7: 3783 | EHN7: 3783 | EHO7: 3783 | EHP7: 3783 | EHQ7: 3783 | EHR7: 3783 | EHS7: 3783 | EHT7: 3783 | EHU7: 3783 | EHV7: 3783 | EHW7: 3783 | EHX7: 3783 | EHY7: 3783 | EHZ7: 3783 | EIA7: 3783 | EIB7: 3783 | EIC7: 3783 | EID7: 3783 | EIE7: 3783 | EIF7: 3783 | EIG7: 3783 | EIH7: 3783 | EII7: 3783 | EIJ7: 3783 | EIK7: 3783 | EIL7: 3783 | EIM7: 3783 | EIN7: 3783 | EIO7: 3783 | EIP7: 3783 | EIQ7: 3783 | EIR7: 3783 | EIS7: 3783 | EIT7: 3783 | EIU7: 3783 | EIV7: 3783 | EIW7: 3783 | EIX7: 3783 | EIY7: 3783 | EIZ7: 3783 | EJA7: 3783 | EJB7: 3783 | EJC7: 3783 | EJD7: 3783 | EJE7: 3783 | EJF7: 3783 | EJG7: 3783 | EJH7: 3783 | EJI7: 3783 | EJJ7: 3783 | EJK7: 3783 | EJL7: 3783 | EJM7: 3783 | EJN7: 3783 | EJO7: 3783 | EJP7: 3783 | EJQ7: 3783 | EJR7: 3783 | EJS7: 3783 | EJT7: 3783 | EJU7: 3783 | EJV7: 3783 | EJW7: 3783 | EJX7: 3783 | EJY7: 3783 | EJZ7: 3783 | EKA7: 3783 | EKB7: 3783 | EKC7: 3783 | EKD7: 3783 | EKE7: 3783 | EKF7: 3783 | EKG7: 3783 | EKH7: 3783 | EKI7: 3783 | EKJ7: 3783 | EKK7: 3783 | EKL7: 3783 | EKM7: 3783 | EKN7: 3783 | EKO7: 3783 | EKP7: 3783 | EKQ7: 3783 | EKR7: 3783 | EKS7: 3783 | EKT7: 3783 | EKU7: 3783 | EKV7: 3783 | EKW7: 3783 | EKX7: 3783 | EKY7: 3783 | EKZ7: 3783 | ELA7: 3783 | ELB7: 3783 | ELC7: 3783 | ELD7: 3783 | ELE7: 3783 | ELF7: 3783 | ELG7: 3783 | ELH7: 3783 | ELI7: 3783 | ELJ7: 3783 | ELK7: 3783 | ELL7: 3783 | ELM7: 3783 | ELN7: 3783 | ELO7: 3783 | ELP7: 3783 | ELQ7: 3783 | ELR7: 3783 | ELS7: 3783 | ELT7: 3783 | ELU7: 3783 | ELV7: 3783 | ELW7: 3783 | ELX7: 3783 | ELY7: 3783 | ELZ7: 3783 | EMA7: 3783 | EMB7: 3783 | EMC7: 3783 | EMD7: 3783 | EME7: 3783 | EMF7: 3783 | EMG7: 3783 | EMH7: 3783 | EMI7: 3783 | EMJ7: 3783 | EMK7: 3783 | EML7: 3783 | EMM7: 3783 | EMN7: 3783 | EMO7: 3783 | EMP7: 3783 | EMQ7: 3783 | EMR7: 3783 | EMS7: 3783 | EMT7: 3783 | EMU7: 3783 | EMV7: 3783 | EMW7: 3783 | EMX7: 3783 | EMY7: 3783 | EMZ7: 3783 | ENA7: 3783 | ENB7: 3783 | ENC7: 3783 | END7: 3783 | ENE7: 3783 | ENF7: 3783 | ENG7: 3783 | ENH7: 3783 | ENI7: 3783 | ENJ7: 3783 | ENK7: 3783 | ENL7: 3783 | ENM7: 3783 | ENN7: 3783 | ENO7: 3783 | ENP7: 3783 | ENQ7: 3783 | ENR7: 3783 | ENS7: 3783 | ENT7: 3783 | ENU7: 3783 | ENV7: 3783 | ENW7: 3783 | ENX7: 3783 | ENY7: 3783 | ENZ7: 3783 | EOA7: 3783 | EOB7: 3783 | EOC7: 3783 | EOD7: 3783 | EOE7: 3783 | EOF7: 3783 | EOG7: 3783 | EOH7: 3783 | EOI7: 3783 | EOJ7: 3783 | EOK7: 3783 | EOL7: 3783 | EOM7: 3783 | EON7: 3783 | EOO7: 3783 | EOP7: 3783 | EOQ7: 3783 | EOR7: 3783 | EOS7: 3783 | EOT7: 3783 | EOU7: 3783 | EOV7: 3783 | EOW7: 3783 | EOX7: 3783 | EOY7: 3783 | EOZ7: 3783 | EPA7: 3783 | EPB7: 3783 | EPC7: 3783 | EPD7: 3783 | EPE7: 3783 | EPF7: 3783 | EPG7: 3783 | EPH7: 3783 | EPI7: 3783 | EPJ7: 3783 | EPK7: 3783 | EPL7: 3783 | EPM7: 3783 | EPN7: 3783 | EPO7: 3783 | EPP7: 3783 | EPQ7: 3783 | EPR7: 3783 | EPS7: 3783 | EPT7: 3783 | EPU7: 3783 | EPV7: 3783 | EPW7: 3783 | EPX7: 3783 | EPY7: 3783 | EPZ7: 3783 | EQA7: 3783 | EQB7: 3783 | EQC7: 3783 | EQD7: 3783 | EQE7: 3783 | EQF7: 3783 | EQG7: 3783 | EQH7: 3783 | EQI7: 3783 | EQJ7: 3783 | EQK7: 3783 | EQL7: 3783 | EQM7: 3783 | EQN7: 3783 | EQO7: 3783 | EQP7: 3783 | EQQ7: 3783 | EQR7: 3783 | EQS7: 3783 | EQT7: 3783 | EQU7: 3783 | EQV7: 3783 | EQW7: 3783 | EQX7: 3783 | EQY7: 3783 | EQZ7: 3783 | ERA7: 3783 | ERB7: 3783 | ERC7: 3783 | ERD7: 3783 | ERE7: 3783 | ERF7: 3783 | ERG7: 3783 | ERH7: 3783 | ERI7: 3783 | ERJ7: 3783 | ERK7: 3783 | ERL7: 3783 | ERM7: 3783 | ERN7: 3783 | ERO7: 3783 | ERP7: 3783 | ERQ7: 3783 | ERR7: 3783 | ERS7: 3783 | ERT7: 3783 | ERU7: 3783 | ERV7: 3783 | ERW7: 3783 | ERX7: 3783 | ERY7: 3783 | ERZ7: 3783 | ESA7: 3783 | ESB7: 3783 | ESC7: 3783 | ESD7: 3783 | ESE7: 3783 | ESF7: 3783 | ESG7: 3783 | ESH7: 3783 | ESI7: 3783 | ESJ7: 3783 | ESK7: 3783 | ESL7: 3783 | ESM7: 3783 | ESN7: 3783 | ESO7: 3783 | ESP7: 3783 | ESQ7: 3783 | ESR7: 3783 | ESS7: 3783 | EST7: 3783 | ESU7: 3783 | ESV7: 3783 | ESW7: 3783 | ESX7: 3783 | ESY7: 3783 | ESZ7: 3783 | ETA7: 3783 | ETB7: 3783 | ETC7: 3783 | ETD7: 3783 | ETE7: 3783 | ETF7: 3783 | ETG7: 3783 | ETH7: 3783 | ETI7: 3783 | ETJ7: 3783 | ETK7: 3783 | ETL7: 3783 | ETM7: 3783 | ETN7: 3783 | ETO7: 3783 | ETP7: 3783 | ETQ7: 3783 | ETR7: 3783 | ETS7: 3783 | ETT7: 3783 | ETU7: 3783 | ETV7: 3783 | ETW7: 3783 | ETX7: 3783 | ETY7: 3783 | ETZ7: 3783 | EUA7: 3783 | EUB7: 3783 | EUC7: 3783 | EUD7: 3783 | EUE7: 3783 | EUF7: 3783 | EUG7: 3783 | EUH7: 3783 | EUI7: 3783 | EUJ7: 3783 | EUK7: 3783 | EUL7: 3783 | EUM7: 3783 | EUN7: 3783 | EUO7: 3783 | EUP7: 3783 | EUQ7: 3783 | EUR7: 3783 | EUS7: 3783 | EUT7: 3783 | EUU7: 3783 | EUV7: 3783 | EUW7: 3783 | EUX7: 3783 | EUY7: 3783 | EUZ7: 3783 | EVA7: 3783 | EVB7: 3783 | EVC7: 3783 | EVD7: 3783 | EVE7: 3783 | EVF7: 3783 | EVG7: 3783 | EVH7: 3783 | EVI7: 3783 | EVJ7: 3783 | EVK7: 3783 | EVL7: 3783 | EVM7: 3783 | EVN7: 3783 | EVO7: 3783 | EVP7: 3783 | EVQ7: 3783 | EVR7: 3783 | EVS7: 3783 | EVT7: 3783 | EVU7: 3783 | EVV7: 3783 | EVW7: 3783 | EVX7: 3783 | EVY7: 3783 | EVZ7: 3783 | EWA7: 3783 | EWB7: 3783 | EWC7: 3783 | EWD7: 3783 | EWE7: 3783 | EWF7: 3783 | EWG7: 3783 | EWH7: 3783 | EWI7: 3783 | EWJ7: 3783 | EWK7: 3783 | EWL7: 3783 | EWM7: 3783 | EWN7: 3783 | EWO7: 3783 | EWP7: 3783 | EWQ7: 3783 | EWR7: 3783 | EWS7: 3783 | EWT7: 3783 | EWU7: 3783 | EWV7: 3783 | EWW7: 3783 | EWX7: 3783 | EWY7: 3783 | EWZ7: 3783 | EXA7: 3783 | EXB7: 3783 | EXC7: 3783 | EXD7: 3783 | EXE7: 3783 | EXF7: 3783 | EXG7: 3783 | EXH7: 3783 | EXI7: 3783 | EXJ7: 3783 | EXK7: 3783 | EXL7: 3783 | EXM7: 3783 | EXN7: 3783 | EXO7: 3783 | EXP7: 3783 | EXQ7: 3783 | EXR7: 3783 | EXS7: 3783 | EXT7: 3783 | EXU7: 3783 | EXV7: 3783 | EXW7: 3783 | EXX7: 3783 | EXY7: 3783 | EXZ7: 3783 | EYA7: 3783 | EYB7: 3783 | EYC7: 3783 | EYD7: 3783 | EYE7: 3783 | EYF7: 3783 | EYG7: 3783 | EYH7: 3783 | EYI7: 3783 | EYJ7: 3783 | EYK7: 3783 | EYL7: 3783 | EYM7: 3783 | EYN7: 3783 | EYO7: 3783 | EYP7: 3783 | EYQ7: 3783 | EYR7: 3783 | EYS7: 3783 | EYT7: 3783 | EYU7: 3783 | EYV7: 3783 | EYW7: 3783 | EYX7: 3783 | EYY7: 3783 | EYZ7: 3783 | EZA7: 3783 | EZB7: 3783 | EZC7: 3783 | EZD7: 3783 | EZE7: 3783 | EZF7: 3783 | EZG7: 3783 | EZH7: 3783 | EZI7: 3783 | EZJ7: 3783 | EZK7: 3783 | EZL7: 3783 | EZM7: 3783 | EZN7: 3783 | EZO7: 3783 | EZP7: 3783 | EZQ7: 3783 | EZR7: 3783 | EZS7: 3783 | EZT7: 3783 | EZU7: 3783 | EZV7: 3783 | EZW7: 3783 | EZX7: 3783 | EZY7: 3783 | EZZ7: 3783 | FAA7: 3783 | FAB7: 3783 | FAC7: 3783 | FAD7: 3783 | FAE7: 3783 | FAF7: 3783 | FAG7: 3783 | FAH7: 3783 | FAI7: 3783 | FAJ7: 3783 | FAK7: 3783 | FAL7: 3783 | FAM7: 3783 | FAN7: 3783 | FAO7: 3783 | FAP7: 3783 | FAQ7: 3783 | FAR7: 3783 | FAS7: 3783 | FAT7: 3783 | FAU7: 3783 | FAV7: 3783 | FAW7: 3783 | FAX7: 3783 | FAY7: 3783 | FAZ7: 3783 | FBA7: 3783 | FBB7: 3783 | FBC7: 3783 | FBD7: 3783 | FBE7: 3783 | FBF7: 3783 | FBG7: 3783 | FBH7: 3783 | FBI7: 3783 | FBJ7: 3783 | FBK7: 3783 | FBL7: 3783 | FBM7: 3783 | FBN7: 3783 | FBO7: 3783 | FBP7: 3783 | FBQ7: 3783 | FBR7: 3783 | FBS7: 3783 | FBT7: 3783 | FBU7: 3783 | FBV7: 3783 | FBW7: 3783 | FBX7: 3783 | FBY7: 3783 | FBZ7: 3783 | FCA7: 3783 | FCB7: 3783 | FCC7: 3783 | FCD7: 3783 | FCE7: 3783 | FCF7: 3783 | FCG7: 3783 | FCH7: 3783 | FCI7: 3783 | FCJ7: 3783 | FCK7: 3783 | FCL7: 3783 | FCM7: 3783 | FCN7: 3783 | FCO7: 3783 | FCP7: 3783 | FCQ7: 3783 | FCR7: 3783 | FCS7: 3783 | FCT7: 3783 | FCU7: 3783 | FCV7: 3783 | FCW7: 3783 | FCX7: 3783 | FCY7: 3783 | FCZ7: 3783 | FDA7: 3783 | FDB7: 3783 | FDC7: 3783 | FDD7: 3783 | FDE7: 3783 | FDF7: 3783 | FDG7: 3783 | FDH7: 3783 | FDI7: 3783 | FDJ7: 3783 | FDK7: 3783 | FDL7: 3783 | FDM7: 3783 | FDN7: 3783 | FDO7: 3783 | FDP7: 3783 | FDQ7: 3783 | FDR7: 3783 | FDS7: 3783 | FDT7: 3783 | FDU7: 3783 | FDV7: 3783 | FDW7: 3783 | FDX7: 3783 | FDY7: 3783 | FDZ7: 3783 | FEA7: 3783 | FEB7: 3783 | FEC7: 3783 | FED7: 3783 | FEE7: 3783 | FEF7: 3783 | FEG7: 3783 | FEH7: 3783 | FEI7: 3783 | FEJ7: 3783 | FEK7: 3783 | FEL7: 3783 | FEM7: 3783 | FEN7: 3783 | FEO7: 3783 | FEP7: 3783 | FEQ7: 3783 | FER7: 3783 | FES7: 3783 | FET7: 3783 | FEU7: 3783 | FEV7: 3783 | FEW7: 3783 | FEX7: 3783 | FEY7: 3783 | FEZ7: 3783 | FFA7: 3783 | FFB7: 3783 | FFC7: 3783 | FFD7: 3783 | FFE7: 3783 | FFF7: 3783 | FFG7: 3783 | FFH7: 3783 | FFI7: 3783 | FFJ7: 3783 | FFK7: 3783 | FFL7: 3783 | FFM7: 3783 | FFN7: 3783 | FFO7: 3783 | FFP7: 3783 | FFQ7: 3783 | FFR7: 3783 | FFS7: 3783 | FFT7: 3783 | FFU7: 3783 | FFV7: 3783 | FFW7: 3783 | FFX7: 3783 | FFY7: 3783 | FFZ7: 3783 | FGA7: 3783 | FGB7: 3783 | FGC7: 3783 | FGD7: 3783 | FGE7: 3783 | FGF7: 3783 | FGG7: 3783 | FGH7: 3783 | FGI7: 3783 | FGJ7: 3783 | FGK7: 3783 | FGL7: 3783 | FGM7: 3783 | FGN7: 3783 | FGO7: 3783 | FGP7: 3783 | FGQ7: 3783 | FGR7: 3783 | FGS7: 3783 | FGT7: 3783 | FGU7: 3783 | FGV7: 3783 | FGW7: 3783 | FGX7: 3783 | FGY7: 3783 | FGZ7: 3783 | FHA7: 3783 | FHB7: 3783 | FHC7: 3783 | FHD7: 3783 | FHE7: 3783 | FHF7: 3783 | FHG7: 3783 | FHH7: 3783 | FHI7: 3783 | FHJ7: 3783 | FHK7: 3783 | FHL7: 3783 | FHM7: 3783 | FHN7: 3783 | FHO7: 3783 | FHP7: 3783 | FHQ7: 3783 | FHR7: 3783 | FHS7: 3783 | FHT7: 3783 | FHU7: 3783 | FHV7: 3783 | FHW7: 3783 | FHX7: 3783 | FHY7: 3783 | FHZ7: 3783 | FIA7: 3783 | FIB7: 3783 | FIC7: 3783 | FID7: 3783 | FIE7: 3783 | FIF7: 3783 | FIG7: 3783 | FIH7: 3783 | FII7: 3783 | FIJ7: 3783 | FIK7: 3783 | FIL7: 3783 | FIM7: 3783 | FIN7: 3783 | FIO7: 3783 | FIP7: 3783 | FIQ7: 3783 | FIR7: 3783 | FIS7: 3783 | FIT7: 3783 | FIU7: 3783 | FIV7: 3783 | FIW7: 3783 | FIX7: 3783 | FIY7: 3783 | FIZ7: 3783 | FJA7: 3783 | FJB7: 3783 | FJC7: 3783 | FJD7: 3783 | FJE7: 3783 | FJF7: 3783 | FJG7: 3783 | FJH7: 3783 | FJI7: 3783 | FJJ7: 3783 | FJK7: 3783 | FJL7: 3783 | FJM7: 3783 | FJN7: 3783 | FJO7: 3783 | FJP7: 3783 | FJQ7: 3783 | FJR7: 3783 | FJS7: 3783 | FJT7: 3783 | FJU7: 3783 | FJV7: 3783 | FJW7: 3783 | FJX7: 3783 | FJY7: 3783 | FJZ7: 3783 | FKA7: 3783 | FKB7: 3783 | FKC7: 3783 | FKD7: 3783 | FKE7: 3783 | FKF7: 3783 | FKG7: 3783 | FKH7: 3783 | FKI7: 3783 | FKJ7: 3783 | FKK7: 3783 | FKL7: 3783 | FKM7: 3783 | FKN7: 3783 | FKO7: 3783 | FKP7: 3783 | FKQ7: 3783 | FKR7: 3783 | FKS7: 3783 | FKT7: 3783 | FKU7: 3783 | FKV7: 3783 | FKW7: 3783 | FKX7: 3783 | FKY7: 3783 | FKZ7: 3783 | FLA7: 3783 | FLB7: 3783 | FLC7: 3783 | FLD7: 3783 | FLE7: 3783 | FLF7: 3783 | FLG7: 3783 | FLH7: 3783 | FLI7: 3783 | FLJ7: 3783 | FLK7: 3783 | FLL7: 3783 | FLM7: 3783 | FLN7: 3783 | FLO7: 3783 | FLP7: 3783 | FLQ7: 3783 | FLR7: 3783 | FLS7: 3783 | FLT7: 3783 | FLU7: 3783 | FLV7: 3783 | FLW7: 3783 | FLX7: 3783 | FLY7: 3783 | FLZ7: 3783 | FMA7: 3783 | FMB7: 3783 | FMC7: 3783 | FMD7: 3783 | FME7: 3783 | FMF7: 3783 | FMG7: 3783 | FMH7: 3783 | FMI7: 3783 | FMJ7: 3783 | FMK7: 3783 | FML7: 3783 | FMM7: 3783 | FMN7: 3783 | FMO7: 3783 | FMP7: 3783 | FMQ7: 3783 | FMR7: 3783 | FMS7: 3783 | FMT7: 3783 | FMU7: 3783 | FMV7: 3783 | FMW7: 3783 | FMX7: 3783 | FMY7: 3783 | FMZ7: 3783 | FNA7: 3783 | FNB7: 3783 | FNC7: 3783 | FND7: 3783 | FNE7: 3783 | FNF7: 3783 | FNG7: 3783 | FNH7: 3783 | FNI7: 3783 | FNJ7: 3783 | FNK7: 3783 | FNL7: 3783 | FNM7: 3783 | FNN7: 3783 | FNO7: 3783 | FNP7: 3783 | FNQ7: 3783 | FNR7: 3783 | FNS7: 3783 | FNT7: 3783 | FNU7: 3783 | FNV7: 3783 | FNW7: 3783 | FNX7: 3783 | FNY7: 3783 | FNZ7: 3783 | FOA7: 3783 | FOB7: 3783 | FOC7: 3783 | FOD7: 3783 | FOE7: 3783 | FOF7: 3783 | FOG7: 3783 | FOH7: 3783 | FOI7: 3783 | FOJ7: 3783 | FOK7: 3783 | FOL7: 3783 | FOM7: 3783 | FON7: 3783 | FOO7: 3783 | FOP7: 3783 | FOQ7: 3783 | FOR7: 3783 | FOS7: 3783 | FOT7: 3783 | FOU7: 3783 | FOV7: 3783 | FOW7: 3783 | FOX7: 3783 | FOY7: 3783 | FOZ7: 3783 | FPA7: 3783 | FPB7: 3783 | FPC7: 3783 | FPD7: 3783 | FPE7: 3783 | FPF7: 3783 | FPG7: 3783 | FPH7: 3783 | FPI7: 3783 | FPJ7: 3783 | FPK7: 3783 | FPL7: 3783 | FPM7: 3783 | FPN7: 3783 | FPO7: 3783 | FPP7: 3783 | FPQ7: 3783 | FPR7: 3783 | FPS7: 3783 | FPT7: 3783 | FPU7: 3783 | FPV7: 3783 | FPW7: 3783 | FPX7: 3783 | FPY7: 3783 | FPZ7: 3783 | FQA7: 3783 | FQB7: 3783 | FQC7: 3783 | FQD7: 3783 | FQE7: 3783 | FQF7: 3783 | FQG7: 3783 | FQH7: 3783 | FQI7: 3783 | FQJ7: 3783 | FQK7: 3783 | FQL7: 3783 | FQM7: 3783 | FQN7: 3783 | FQO7: 3783 | FQP7: 3783 | FQQ7: 3783 | FQR7: 3783 | FQS7: 3783 | FQT7: 3783 | FQU7: 3783 | FQV7: 3783 | FQW7: 3783 | FQX7: 3783 | FQY7: 3783 | FQZ7: 3783 | FRA7: 3783 | FRB7: 3783 | FRC7: 3783 | FRD7: 3783 | FRE7: 3783 | FRF7: 3783 | FRG7: 3783 | FRH7: 3783 | FRI7: 3783 | FRJ7: 3783 | FRK7: 3783 | FRL7: 3783 | FRM7: 3783 | FRN7: 3783 | FRO7: 3783 | FRP7: 3783 | FRQ7: 3783 | FRR7: 3783 | FRS7: 3783 | FRT7: 3783 | FRU7: 3783 | FRV7: 3783 | FRW7: 3783 | FRX7: 3783 | FRY7: 3783 | FRZ7: 3783 | FSA7: 3783 | FSB7: 3783 | FSC7: 3783 | FSD7: 3783 | FSE7: 3783 | FSF7: 3783 | FSG7: 3783 | FSH7: 3783 | FSI7: 3783 | FSJ7: 3783 | FSK7: 3783 | FSL7: 3783 | FSM7: 3783 | FSN7: 3783 | FSO7: 3783 | FSP7: 3783 | FSQ7: 3783 | FSR7: 3783 | FSS7: 3783 | FST7: 3783 | FSU7: 3783 | FSV7: 3783 | FSW7: 3783 | FSX7: 3783 | FSY7: 3783 | FSZ7: 3783 | FTA7: 3783 | FTB7: 3783 | FTC7: 3783 | FTD7: 3783 | FTE7: 3783 | FTF7: 3783 | FTG7: 3783 | FTH7: 3783 | FTI7: 3783 | FTJ7: 3783 | FTK7: 3783 | FTL7: 3783 | FTM7: 3783 | FTN7: 3783 | FTO7: 3783 | FTP7: 3783 | FTQ7: 3783 | FTR7: 3783 | FTS7: 3783 | FTT7: 3783 | FTU7: 3783 | FTV7: 3783 | FTW7: 3783 | FTX7: 3783 | FTY7: 3783 | FTZ7: 3783 | FUA7: 3783 | FUB7: 3783 | FUC7: 3783 | FUD7: 3783 | FUE7: 3783 | FUF7: 3783 | FUG7: 3783 | FUH7: 3783 | FUI7: 3783 | FUJ7: 3783 | FUK7: 3783 | FUL7: 3783 | FUM7: 3783 | FUN7: 3783 | FUO7: 3783 | FUP7: 3783 | FUQ7: 3783 | FUR7: 3783 | FUS7: 3783 | FUT7: 3783 | FUU7: 3783 | FUV7: 3783 | FUW7: 3783 | FUX7: 3783 | FUY7: 3783 | FUZ7: 3783 | FVA7: 3783 | FVB7: 3783 | FVC7: 3783 | FVD7: 3783 | FVE7: 3783 | FVF7: 3783 | FVG7: 3783 | FVH7: 3783 | FVI7: 3783 | FVJ7: 3783 | FVK7: 3783 | FVL7: 3783 | FVM7: 3783 | FVN7: 3783 | FVO7: 3783 | FVP7: 3783 | FVQ7: 3783 | FVR7: 3783 | FVS7: 3783 | FVT7: 3783 | FVU7: 3783 | FVV7: 3783 | FVW7: 3783 | FVX7: 3783 | FVY7: 3783 | FVZ7: 3783 | FWA7: 3783 | FWB7: 3783 | FWC7: 3783 | FWD7: 3783 | FWE7: 3783 | FWF7: 3783 | FWG7: 3783 | FWH7: 3783 | FWI7: 3783 | FWJ7: 3783 | FWK7: 3783 | FWL7: 3783 | FWM7: 3783 | FWN7: 3783 | FWO7: 3783 | FWP7: 3783 | FWQ7: 3783 | FWR7: 3783 | FWS7: 3783 | FWT7: 3783 | FWU7: 3783 | FWV7: 3783 | FWW7: 3783 | FWX7: 3783 | FWY7: 3783 | FWZ7: 3783 | FXA7: 3783 | FXB7: 3783 | FXC7: 3783 | FXD7: 3783 | FXE7: 3783 | FXF7: 3783 | FXG7: 3783 | FXH7: 3783 | FXI7: 3783 | FXJ7: 3783 | FXK7: 3783 | FXL7: 3783 | FXM7: 3783 | FXN7: 3783 | FXO7: 3783 | FXP7: 3783 | FXQ7: 3783 | FXR7: 3783 | FXS7: 3783 | FXT7: 3783 | FXU7: 3783 | FXV7: 3783 | FXW7: 3783 | FXX7: 3783 | FXY7: 3783 | FXZ7: 3783 | FYA7: 3783 | FYB7: 3783 | FYC7: 3783 | FYD7: 3783 | FYE7: 3783 | FYF7: 3783 | FYG7: 3783 | FYH7: 3783 | FYI7: 3783 | FYJ7: 3783 | FYK7: 3783 | FYL7: 3783 | FYM7: 3783 | FYN7: 3783 | FYO7: 3783 | FYP7: 3783 | FYQ7: 3783 | FYR7: 3783 | FYS7: 3783 | FYT7: 3783 | FYU7: 3783 | FYV7: 3783 | FYW7: 3783 | FYX7: 3783 | FYY7: 3783 | FYZ7: 3783 | FZA7: 3783 | FZB7: 3783 | FZC7: 3783 | FZD7: 3783 | FZE7: 3783 | FZF7: 3783 | FZG7: 3783 | FZH7: 3783 | FZI7: 3783 | FZJ7: 3783 | FZK7: 3783 | FZL7: 3783 | FZM7: 3783 | FZN7: 3783 | FZO7: 3783 | FZP7: 3783 | FZQ7: 3783 | FZR7: 3783 | FZS7: 3783 | FZT7: 3783 | FZU7: 3783 | FZV7: 3783 | FZW7: 3783 | FZX7: 3783 | FZY7: 3783 | FZZ7: 3783 | GAA7: 3783 | GAB7: 3783 | GAC7: 3783 | GAD7: 3783 | GAE7: 3783 | GAF7: 3783 | GAG7: 3783 | GAH7: 3783 | GAI7: 3783 | GAJ7: 3783 | GAK7: 3783 | GAL7: 3783 | GAM7: 3783 | GAN7: 3783 | GAO7: 3783 | GAP7: 3783 | GAQ7: 3783 | GAR7: 3783 | GAS7: 3783 | GAT7: 3783 | GAU7: 3783 | GAV7: 3783 | GAW7: 3783 | GAX7: 3783 | GAY7: 3783 | GAZ7: 3783 | GBA7: 3783 | GBB7: 3783 | GBC7: 3783 | GBD7: 3783 | GBE7: 3783 | GBF7: 3783 | GBG7: 3783 | GBH7: 3783 | GBI7: 3783 | GBJ7: 3783 | GBK7: 3783 | GBL7: 3783 | GBM7: 3783 | GBN7: 3783 | GBO7: 3783 | GBP7: 3783 | GBQ7: 3783 | GBR7: 3783 | GBS7: 3783 | GBT7: 3783 | GBU7: 3783 | GBV7: 3783 | GBW7: 3783 | GBX7: 3783 | GBY7: 3783 | GBZ7: 3783 | GCA7: 3783 | GCB7: 3783 | GCC7: 3783 | GCD7: 3783 | GCE7: 3783 | GCF7: 3783 | GCG7: 3783 | GCH7: 3783 | GCI7: 3783 | GCJ7: 3783 | GCK7: 3783 | GCL7: 3783 | GCM7: 3783 | GCN7: 3783 | GCO7: 3783 | GCP7: 3783 | GCQ7: 3783 | GCR7: 3783 | GCS7: 3783 | GCT7: 3783 | GCU7: 3783 | GCV7: 3783 | GCW7: 3783 | GCX7: 3783 | GCY7: 3783 | GCZ7: 3783 | GDA7: 3783 | GDB7: 3783 | GDC7: 3783 | GDD7: 3783 | GDE7: 3783 | GDF7: 3783 | GDG7: 3783 | GDH7: 3783 | GDI7: 3783 | GDJ7: 3783 | GDK7: 3783 | GDL7: 3783 | GDM7: 3783 | GDN7: 3783 | GDO7: 3783 | GDP7: 3783 | GDQ7: 3783 | GDR7: 3783 | GDS7: 3783 | GDT7: 3783 | GDU7: 3783 | GDV7: 3783 | GDW7: 3783 | GDX7: 3783 | GDY7: 3783 | GDZ7: 3783 | GEA7: 3783 | GEB7: 3783 | GEC7: 3783 | GED7: 3783 | GEE7: 3783 | GEF7: 3783 | GEG7: 3783 | GEH7: 3783 | GEI7: 3783 | GEJ7: 3783 | GEK7: 3783 | GEL7: 3783 | GEM7: 3783 | GEN7: 3783 | GEO7: 3783 | GEP7: 3783 | GEQ7: 3783 | GER7: 3783 | GES7: 3783 | GET7: 3783 | GEU7: 3783 | GEV7: 3783 | GEW7: 3783 | GEX7: 3783 | GEY7: 3783 | GEZ7: 3783 | GFA7: 3783 | GFB7: 3783 | GFC7: 3783 | GFD7: 3783 | GFE7: 3783 | GFF7: 3783 | GFG7: 3783 | GFH7: 3783 | GFI7: 3783 | GFJ7: 3783 | GFK7: 3783 | GFL7: 3783 | GFM7: 3783 | GFN7: 3783 | GFO7: 3783 | GFP7: 3783 | GFQ7: 3783 | GFR7: 3783 | GFS7: 3783 | GFT7: 3783 | GFU7: 3783 | GFV7: 3783 | GFW7: 3783 | GFX7: 3783 | GFY7: 3783 | GFZ7: 3783 | GGA7: 3783 | GGB7: 3783 | GGC7: 3783 | GGD7: 3783 | GGE7: 3783 | GGF7: 3783 | GGG7: 3783 | GGH7: 3783 | GGI7: 3783 | GGJ7: 3783 | GGK7: 3783 | GGL7: 3783 | GGM7: 3783 | GGN7: 3783 | GGO7: 3783 | GGP7: 3783 | GGQ7: 3783 | GGR7: 3783 | GGS7: 3783 | GGT7: 3783 | GGU7: 3783 | GGV7: 3783 | GGW7: 3783 | GGX7: 3783 | GGY7: 3783 | GGZ7: 3783 | GHA7: 3783 | GHB7: 3783 | GHC7: 3783 | GHD7: 3783 | GHE7: 3783 | GHF7: 3783 | GHG7: 3783 | GHH7: 3783 | GHI7: 3783 | GHJ7: 3783 | GHK7: 3783 | GHL7: 3783 | GHM7: 3783 | GHN7: 3783 | GHO7: 3783 | GHP7: 3783 | GHQ7: 3783 | GHR7: 3783 | GHS7: 3783 | GHT7: 3783 | GHU7: 3783 | GHV7: 3783 | GHW7: 3783 | GHX7: 3783 | GHY7: 3783 | GHZ7: 3783 | GIA7: 3783 | GIB7: 3783 | GIC7: 3783 | GID7: 3783 | GIE7: 3783 | GIF7: 3783 | GIG7: 3783 | GIH7: 3783 | GII7: 3783 | GIJ7: 3783 | GIK7: 3783 | GIL7: 3783 | GIM7: 3783 | GIN7: 3783 | GIO7: 3783 | GIP7: 3783 | GIQ7: 3783 | GIR7: 3783 | GIS7: 3783 | GIT7: 3783 | GIU7: 3783 | GIV7: 3783 | GIW7: 3783 | GIX7: 3783 | GIY7: 3783 | GIZ7: 3783 | GJA7: 3783 | GJB7: 3783 | GJC7: 3783 | GJD7: 3783 | GJE7: 3783 | GJF7: 3783 | GJG7: 3783 | GJH7: 3783 | GJI7: 3783 | GJJ7: 3783 | GJK7: 3783 | GJL7: 3783 | GJM7: 3783 | GJN7: 3783 | GJO7: 3783 | GJP7: 3783 | GJQ7: 3783 | GJR7: 3783 | GJS7: 3783 | GJT7: 3783 | GJU7: 3783 | GJV7: 3783 | GJW7: 3783 | GJX7: 3783 | GJY7: 3783 | GJZ7: 3783 | GKA7: 3783 | GKB7: 3783 | GKC7: 3783 | GKD7: 3783 | GKE7: 3783 | GKF7: 3783 | GKG7: 3783 | GKH7: 3783 | GKI7: 3783 | GKJ7: 3783 | GKK7: 3783 | GKL7: 3783 | GKM7: 3783 | GKN7: 3783 | GKO7: 3783 | GKP7: 3783 | GKQ7: 3783 | GKR7: 3783 | GKS7: 3783 | GKT7: 3783 | GKU7: 3783 | GKV7: 3783 | GKW7: 3783 | GKX7: 3783 | GKY7: 3783 | GKZ7: 3783 | GLA7: 3783 | GLB7: 3783 | GLC7: 3783 | GLD7: 3783 | GLE7: 3783 | GLF7: 3783 | GLG7: 3783 | GLH7: 3783 | GLI7: 3783 | GLJ7: 3783 | GLK7: 3783 | GLL7: 3783 | GLM7: 3783 | GLN7: 3783 | GLO7: 3783 | GLP7: 3783 | GLQ7: 3783 | GLR7: 3783 | GLS7: 3783 | GLT7: 3783 | GLU7: 3783 | GLV7: 3783 | GLW7: 3783 | GLX7: 3783 | GLY7: 3783 | GLZ7: 3783 | GMA7: 3783 | GMB7: 3783 | GMC7: 3783 | GMD7: 3783 | GME7: 3783 | GMF7: 3783 | GMG7: 3783 | GMH7: 3783 | GMI7: 3783 | GMJ7: 3783 | GMK7: 3783 | GML7: 3783 | GMM7: 3783 | GMN7: 3783 | GMO7: 3783 | GMP7: 3783 | GMQ7: 3783 | GMR7: 3783 | GMS7: 3783 | GMT7: 3783 | GMU7: 3783 | GMV7: 3783 | GMW7: 3783 | GMX7: 3783 | GMY7: 3783 | GMZ7: 3783 | GNA7: 3783 | GNB7: 3783 | GNC7: 3783 | GND7: 3783 | GNE7: 3783 | GNF7: 3783 | GNG7: 3783 | GNH7: 3783 | GNI7: 3783 | GNJ7: 3783 | GNK7: 3783 | GNL7: 3783 | GNM7: 3783 | GNN7: 3783 | GNO7: 3783 | GNP7: 3783 | GNQ7: 3783 | GNR7: 3783 | GNS7: 3783 | GNT7: 3783 | GNU7: 3783 | GNV7: 3783 | GNW7: 3783 | GNX7: 3783 | GNY7: 3783 | GNZ7: 3783 | GOA7: 3783 | GOB7: 3783 | GOC7: 3783 | GOD7: 3783 | GOE7: 3783 | GOF7: 3783 | GOG7: 3783 | GOH7: 3783 | GOI7: 3783 | GOJ7: 3783 | GOK7: 3783 | GOL7: 3783 | GOM7: 3783 | GON7: 3783 | GOO7: 3783 | GOP7: 3783 | GOQ7: 3783 | GOR7: 3783 | GOS7: 3783 | GOT7: 3783 | GOU7: 3783 | GOV7: 3783 | GOW7: 3783 | GOX7: 3783 | GOY7: 3783 | GOZ7: 3783 | GPA7: 3783 | GPB7: 3783 | GPC7: 3783 | GPD7: 3783 | GPE7: 3783 | GPF7: 3783 | GPG7: 3783 | GPH7: 3783 | GPI7: 3783 | GPJ7: 3783 | GPK7: 3783 | GPL7: 3783 | GPM7: 3783 | GPN7: 3783 | GPO7: 3783 | GPP7: 3783 | GPQ7: 3783 | GPR7: 3783 | GPS7: 3783 | GPT7: 3783 | GPU7: 3783 | GPV7: 3783 | GPW7: 3783 | GPX7: 3783 | GPY7: 3783 | GPZ7: 3783 | GQA7: 3783 | GQB7: 3783 | GQC7: 3783 | GQD7: 3783 | GQE7: 3783 | GQF7: 3783 | GQG7: 3783 | GQH7: 3783 | GQI7: 3783 | GQJ7: 3783 | GQK7: 3783 | GQL7: 3783 | GQM7: 3783 | GQN7: 3783 | GQO7: 3783 | GQP7: 3783 | GQQ7: 3783 | GQR7: 3783 | GQS7: 3783 | GQT7: 3783 | GQU7: 3783 | GQV7: 3783 | GQW7: 3783 | GQX7: 3783 | GQY7: 3783 | GQZ7: 3783 | GRA7: 3783 | GRB7: 3783 | GRC7: 3783 | GRD7: 3783 | GRE7: 3783 | GRF7: 3783 | GRG7: 3783 | GRH7: 3783 | GRI7: 3783 | GRJ7: 3783 | GRK7: 3783 | GRL7: 3783 | GRM7: 3783 | GRN7: 3783 | GRO7: 3783 | GRP7: 3783 | GRQ7: 3783 | GRR7: 3783 | GRS7: 3783 | GRT7: 3783 | GRU7: 3783 | GRV7: 3783 | GRW7: 3783 | GRX7: 3783 | GRY7: 3783 | GRZ7: 3783 | GSA7: 3783 | GSB7: 3783 | GSC7: 3783 | GSD7: 3783 | GSE7: 3783 | GSF7: 3783 | GSG7: 3783 | GSH7: 3783 | GSI7: 3783 | GSJ7: 3783 | GSK7: 3783 | GSL7: 3783 | GSM7: 3783 | GSN7: 3783 | GSO7: 3783 | GSP7: 3783 | GSQ7: 3783 | GSR7: 3783 | GSS7: 3783 | GST7: 3783 | GSU7: 3783 | GSV7: 3783 | GSW7: 3783 | GSX7: 3783 | GSY7: 3783 | GSZ7: 3783 | GTA7: 3783 | GTB7: 3783 | GTC7: 3783 | GTD7: 3783 | GTE7: 3783 | GTF7: 3783 | GTG7: 3783 | GTH7: 3783 | GTI7: 3783 | GTJ7: 3783 | GTK7: 3783 | GTL7: 3783 | GTM7: 3783 | GTN7: 3783 | GTO7: 3783 | GTP7: 3783 | GTQ7: 3783 | GTR7: 3783 | GTS7: 3783 | GTT7: 3783 | GTU7: 3783 | GTV7: 3783 | GTW7: 3783 | GTX7: 3783 | GTY7: 3783 | GTZ7: 3783 | GUA7: 3783 | GUB7: 3783 | GUC7: 3783 | GUD7: 3783 | GUE7: 3783 | GUF7: 3783 | GUG7: 3783 | GUH7: 3783 | GUI7: 3783 | GUJ7: 3783 | GUK7: 3783 | GUL7: 3783 | GUM7: 3783 | GUN7: 3783 | GUO7: 3783 | GUP7: 3783 | GUQ7: 3783 | GUR7: 3783 | GUS7: 3783 | GUT7: 3783 | GUU7: 3783 | GUV7: 3783 | GUW7: 3783 | GUX7: 3783 | GUY7: 3783 | GUZ7: 3783 | GVA7: 3783 | GVB7: 3783 | GVC7: 3783 | GVD7: 3783 | GVE7: 3783 | GVF7: 3783 | GVG7: 3783 | GVH7: 3783 | GVI7: 3783 | GVJ7: 3783 | GVK7: 3783 | GVL7: 3783 | GVM7: 3783 | GVN7: 3783 | GVO7: 3783 | GVP7: 3783 | GVQ7: 3783 | GVR7: 3783 | GVS7: 3783 | GVT7: 3783 | GVU7: 3783 | GVV7: 3783 | GVW7: 3783 | GVX7: 3783 | GVY7: 3783 | GVZ7: 3783 | GWA7: 3783 | GWB7: 3783 | GWC7: 3783 | GWD7: 3783 | GWE7: 3783 | GWF7: 3783 | GWG7: 3783 | GWH7: 3783 | GWI7: 3783 | GWJ7: 3783 | GWK7: 3783 | GWL7: 3783 | GWM7: 3783 | GWN7: 3783 | GWO7: 3783 | GWP7: 3783 | GWQ7: 3783 | GWR7: 3783 | GWS7: 3783 | GWT7: 3783 | GWU7: 3783 | GWV7: 3783 | GWW7: 3783 | GWX7: 3783 | GWY7: 3783 | GWZ7: 3783 | GXA7: 3783 | GXB7: 3783 | GXC7: 3783 | GXD7: 3783 | GXE7: 3783 | GXF7: 3783 | GXG7: 3783 | GXH7: 3783 | GXI7: 3783 | GXJ7: 3783 | GXK7: 3783 | GXL7: 3783 | GXM7: 3783 | GXN7: 3783 | GXO7: 3783 | GXP7: 3783 | GXQ7: 3783 | GXR7: 3783 | GXS7: 3783 | GXT7: 3783 | GXU7: 3783 | GXV7: 3783 | GXW7: 3783 | GXX7: 3783 | GXY7: 3783 | GXZ7: 3783 | GYA7: 3783 | GYB7: 3783 | GYC7: 3783 | GYD7: 3783 | GYE7: 3783 | GYF7: 3783 | GYG7: 3783 | GYH7: 3783 | GYI7: 3783 | GYJ7: 3783 | GYK7: 3783 | GYL7: 3783 | GYM7: 3783 | GYN7: 3783 | GYO7: 3783 | GYP7: 3783 | GYQ7: 3783 | GYR7: 3783 | GYS7: 3783 | GYT7: 3783 | GYU7: 3783 | GYV7: 3783 | GYW7: 3783 | GYX7: 3783 | GYY7: 3783 | GYZ7: 3783 | GZA7: 3783 | GZB7: 3783 | GZC7: 3783 | GZD7: 3783 | GZE7: 3783 | GZF7: 3783 | GZG7: 3783 | GZH7: 3783 | GZI7: 3783 | GZJ7: 3783 | GZK7: 3783 | GZL7: 3783 | GZM7: 3783 | GZN7: 3783 | GZO7: 3783 | GZP7: 3783 | GZQ7: 3783 | GZR7: 3783 | GZS7: 3783 | GZT7: 3783 | GZU7: 3783 | GZV7: 3783 | GZW7: 3783 | GZX7: 3783 | GZY7: 3783 | GZZ7: 3783 | HAA7: 3783 | HAB7: 3783 | HAC7: 3783 | HAD7: 3783 | HAE7: 3783 | HAF7: 3783 | HAG7: 3783 | HAH7: 3783 | HAI7: 3783 | HAJ7: 3783 | HAK7: 3783 | HAL7: 3783 | HAM7: 3783 | HAN7: 3783 | HAO7: 3783 | HAP7: 3783 | HAQ7: 3783 | HAR7: 3783 | HAS7: 3783 | HAT7: 3783 | HAU7: 3783 | HAV7: 3783 | HAW7: 3783 | HAX7: 3783 | HAY7: 3783 | HAZ7: 3783 | HBA7: 3783 | HBB7: 3783 | HBC7: 3783 | HBD7: 3783 | HBE7: 3783 | HBF7: 3783 | HBG7: 3783 | HBH7: 3783 | HBI7: 3783 | HBJ7: 3783 | HBK7: 3783 | HBL7: 3783 | HBM7: 3783 | HBN7: 3783 | HBO7: 3783 | HBP7: 3783 | HBQ7: 3783 | HBR7: 3783 | HBS7: 3783 | HBT7: 3783 | HBU7: 3783 | HBV7: 3783 | HBW7: 3783 | HBX7: 3783 | HBY7: 3783 | HBZ7: 3783 | HCA7: 3783 | HCB7: 3783 | HCC7: 3783 | HCD7: 3783 | HCE7: 3783 | HCF7: 3783 | HCG7: 3783 | HCH7: 3783 | HCI7: 3783 | HCJ7: 3783 | HCK7: 3783 | HCL7: 3783 | HCM7: 3783 | HCN7: 3783 | HCO7: 3783 | HCP7: 3783 | HCQ7: 3783 | HCR7: 3783 | HCS7: 3783 | HCT7: 3783 | HCU7: 3783 | HCV7: 3783 | HCW7: 3783 | HCX7: 3783 | HCY7: 3783 | HCZ7: 3783 | HDA7: 3783 | HDB7: 3783 | HDC7: 3783 | HDD7: 3783 | HDE7: 3783 | HDF7: 3783 | HDG7: 3783 | HDH7: 3783 | HDI7: 3783 | HDJ7: 3783 | HDK7: 3783 | HDL7: 3783 | HDM7: 3783 | HDN7: 3783 | HDO7: 3783 | HDP7: 3783 | HDQ7: 3783 | HDR7: 3783 | HDS7: 3783 | HDT7: 3783 | HDU7: 3783 | HDV7: 3783 | HDW7: 3783 | HDX7: 3783 | HDY7: 3783 | HDZ7: 3783 | HEA7: 3783 | HEB7: 3783 | HEC7: 3783 | HED7: 3783 | HEE7: 3783 | HEF7: 3783 | HEG7: 3783 | HEH7: 3783 | HEI7: 3783 | HEJ7: 3783 | HEK7: 3783 | HEL7: 3783 | HEM7: 3783 | HEN7: 3783 | HEO7: 3783 | HEP7: 3783 | HEQ7: 3783 | HER7: 3783 | HES7: 3783 | HET7: 3783 | HEU7: 3783 | HEV7: 3783 | HEW7: 3783 | HEX7: 3783 | HEY7: 3783 | HEZ7: 3783 | HFA7: 3783 | HFB7: 3783 | HFC7: 3783 | HFD7: 3783 | HFE7: 3783 | HFF7: 3783 | HFG7: 3783 | HFH7: 3783 | HFI7: 3783 | HFJ7: 3783 | HFK7: 3783 | HFL7: 3783 | HFM7: 3783 | HFN7: 3783 | HFO7: 3783 | HFP7: 3783 | HFQ7: 3783 | HFR7: 3783 | HFS7: 3783 | HFT7: 3783 | HFU7: 3783 | HFV7: 3783 | HFW7: 3783 | HFX7: 3783 | HFY7: 3783 | HFZ7: 3783 | HGA7: 3783 | HGB7: 3783 | HGC7: 3783 | HGD7: 3783 | HGE7: 3783 | HGF7: 3783 | HGG7: 3783 | HGH7: 3783 | HGI7: 3783 | HGJ7: 3783 | HGK7: 3783 | HGL7: 3783 | HGM7: 3783 | HGN7: 3783 | HGO7: 3783 | HGP7: 3783 | HGQ7: 3783 | HGR7: 3783 | HGS7: 3783 | HGT7: 3783 | HGU7: 3783 | HGV7: 3783 | HGW7: 3783 | HGX7: 3783 | HGY7: 3783 | HGZ7: 3783 | HHA7: 3783 | HHB7: 3783 | HHC7: 3783 | HHD7: 3783 | HHE7: 3783 | HHF7: 3783 | HHG7: 3783 | HHH7: 3783 | HHI7: 3783 | HHJ7: 3783 | HHK7: 3783 | HHL7: 3783 | HHM7: 3783 | HHN7: 3783 | HHO7: 3783 | HHP7: 3783 | HHQ7: 3783 | HHR7: 3783 | HHS7: 3783 | HHT7: 3783 | HHU7: 3783 | HHV7: 3783 | HHW7: 3783 | HHX7: 3783 | HHY7: 3783 | HHZ7: 3783 | HIA7: 3783 | HIB7: 3783 | HIC7: 3783 | HID7: 3783 | HIE7: 3783 | HIF7: 3783 | HIG7: 3783 | HIH7: 3783 | HII7: 3783 | HIJ7: 3783 | HIK7: 3783 | HIL7: 3783 | HIM7: 3783 | HIN7: 3783 | HIO7: 3783 | HIP7: 3783 | HIQ7: 3783 | HIR7: 3783 | HIS7: 3783 | HIT7: 3783 | HIU7: 3783 | HIV7: 3783 | HIW7: 3783 | HIX7: 3783 | HIY7: 3783 | HIZ7: 3783 | HJA7: 3783 | HJB7: 3783 | HJC7: 3783 | HJD7: 3783 | HJE7: 3783 | HJF7: 3783 | HJG7: 3783 | HJH7: 3783 | HJI7: 3783 | HJJ7: 3783 | HJK7: 3783 | HJL7: 3783 | HJM7: 3783 | HJN7: 3783 | HJO7: 3783 | HJP7: 3783 | HJQ7: 3783 | HJR7: 3783 | HJS7: 3783 | HJT7: 3783 | HJU7: 3783 | HJV7: 3783 | HJW7: 3783 | HJX7: 3783 | HJY7: 3783 | HJZ7: 3783 | HKA7: 3783 | HKB7: 3783 | HKC7: 3783 | HKD7: 3783 | HKE7: 3783 | HKF7: 3783 | HKG7: 3783 | HKH7: 3783 | HKI7: 3783 | HKJ7: 3783 | HKK7: 3783 | HKL7: 3783 | HKM7: 3783 | HKN7: 3783 | HKO7: 3783 | HKP7: 3783 | HKQ7: 3783 | HKR7: 3783 | HKS7: 3783 | HKT7: 3783 | HKU7: 3783 | HKV7: 3783 | HKW7: 3783 | HKX7: 3783 | HKY7: 3783 | HKZ7: 3783 | HLA7: 3783 | HLB7: 3783 | HLC7: 3783 | HLD7: 3783 | HLE7: 3783 | HLF7: 3783 | HLG7: 3783 | HLH7: 3783 | HLI7: 3783 | HLJ7: 3783 | HLK7: 3783 | HLL7: 3783 | HLM7: 3783 | HLN7: 3783 | HLO7: 3783 | HLP7: 3783 | HLQ7: 3783 | HLR7: 3783 | HLS7: 3783 | HLT7: 3783 | HLU7: 3783 | HLV7: 3783 | HLW7: 3783 | HLX7: 3783 | HLY7: 3783 | HLZ7: 3783 | HMA7: 3783 | HMB7: 3783 | HMC7: 3783 | HMD7: 3783 | HME7: 3783 | HMF7: 3783 | HMG7: 3783 | HMH7: 3783 | HMI7: 3783 | HMJ7: 3783 | HMK7: 3783 | HML7: 3783 | HMM7: 3783 | HMN7: 3783 | HMO7: 3783 | HMP7: 3783 | HMQ7: 3783 | HMR7: 3783 | HMS7: 3783 | HMT7: 3783 | HMU7: 3783 | HMV7: 3783 | HMW7: 3783 | HMX7: 3783 | HMY7: 3783 | HMZ7: 3783 | HNA7: 3783 | HNB7: 3783 | HNC7: 3783 | HND7: 3783 | HNE7: 3783 | HNF7: 3783 | HNG7: 3783 | HNH7: 3783 | HNI7: 3783 | HNJ7: 3783 | HNK7: 3783 | HNL7: 3783 | HNM7: 3783 | HNN7: 3783 | HNO7: 3783 | HNP7: 3783 | HNQ7: 3783 | HNR7: 3783 | HNS7: 3783 | HNT7: 3783 | HNU7: 3783 | HNV7: 3783 | HNW7: 3783 | HNX7: 3783 | HNY7: 3783 | HNZ7: 3783 | HOA7: 3783 | HOB7: 3783 | HOC7: 3783 | HOD7: 3783 | HOE7: 3783 | HOF7: 3783 | HOG7: 3783 | HOH7: 3783 | HOI7: 3783 | HOJ7: 3783 | HOK7: 3783 | HOL7: 3783 | HOM7: 3783 | HON7: 3783 | HOO7: 3783 | HOP7: 3783 | HOQ7: 3783 | HOR7: 3783 | HOS7: 3783 | HOT7: 3783 | HOU7: 3783 | HOV7: 3783 | HOW7: 3783 | HOX7: 3783 | HOY7: 3783 | HOZ7: 3783 | HPA7: 3783 | HPB7: 3783 | HPC7: 3783 | HPD7: 3783 | HPE7: 3783 | HPF7: 3783 | HPG7: 3783 | HPH7: 3783 | HPI7: 3783 | HPJ7: 3783 | HPK7: 3783 | HPL7: 3783 | HPM7: 3783 | HPN7: 3783 | HPO7: 3783 | HPP7: 3783 | HPQ7: 3783 | HPR7: 3783 | HPS7: 3783 | HPT7: 3783 | HPU7: 3783 | HPV7: 3783 | HPW7: 3783 | HPX7: 3783 | HPY7: 3783 | HPZ7: 3783 | HQA7: 3783 | HQB7: 3783 | HQC7: 3783 | HQD7: 3783 | HQE7: 3783 | HQF7: 3783 | HQG7: 3783 | HQH7: 3783 | HQI7: 3783 | HQJ7: 3783 | HQK7: 3783 | HQL7: 3783 | HQM7: 3783 | HQN7: 3783 | HQO7: 3783 | HQP7: 3783 | HQQ7: 3783 | HQR7: 3783 | HQS7: 3783 | HQT7: 3783 | HQU7: 3783 | HQV7: 3783 | HQW7: 3783 | HQX7: 3783 | HQY7: 3783 | HQZ7: 3783 | HRA7: 3783 | HRB7: 3783 | HRC7: 3783 | HRD7: 3783 | HRE7: 3783 | HRF7: 3783 | HRG7: 3783 | HRH7: 3783 | HRI7: 3783 | HRJ7: 3783 | HRK7: 3783 | HRL7: 3783 | HRM7: 3783 | HRN7: 3783 | HRO7: 3783 | HRP7: 3783 | HRQ7: 3783 | HRR7: 3783 | HRS7: 3783 | HRT7: 3783 | HRU7: 3783 | HRV7: 3783 | HRW7: 3783 | HRX7: 3783 | HRY7: 3783 | HRZ7: 3783 | HSA7: 3783 | HSB7: 3783 | HSC7: 3783 | HSD7: 3783 | HSE7: 3783 | HSF7: 3783 | HSG7: 3783 | HSH7: 3783 | HSI7: 3783 | HSJ7: 3783 | HSK7: 3783 | HSL7: 3783 | HSM7: 3783 | HSN7: 3783 | HSO7: 3783 | HSP7: 3783 | HSQ7: 3783 | HSR7: 3783 | HSS7: 3783 | HST7: 3783 | HSU7: 3783 | HSV7: 3783 | HSW7: 3783 | HSX7: 3783 | HSY7: 3783 | HSZ7: 3783 | HTA7: 3783 | HTB7: 3783 | HTC7: 3783 | HTD7: 3783 | HTE7: 3783 | HTF7: 3783 | HTG7: 3783 | HTH7: 3783 | HTI7: 3783 | HTJ7: 3783 | HTK7: 3783 | HTL7: 3783 | HTM7: 3783 | HTN7: 3783 | HTO7: 3783 | HTP7: 3783 | HTQ7: 3783 | HTR7: 3783 | HTS7: 3783 | HTT7: 3783 | HTU7: 3783 | HTV7: 3783 | HTW7: 3783 | HTX7: 3783 | HTY7: 3783 | HTZ7: 3783 | HUA7: 3783 | HUB7: 3783 | HUC7: 3783 | HUD7: 3783 | HUE7: 3783 | HUF7: 3783 | HUG7: 3783 | HUH7: 3783 | HUI7: 3783 | HUJ7: 3783 | HUK7: 3783 | HUL7: 3783 | HUM7: 3783 | HUN7: 3783 | HUO7: 3783 | HUP7: 3783 | HUQ7: 3783 | HUR7: 3783 | HUS7: 3783 | HUT7: 3783 | HUU7: 3783 | HUV7: 3783 | HUW7: 3783 | HUX7: 3783 | HUY7: 3783 | HUZ7: 3783 | HVA7: 3783 | HVB7: 3783 | HVC7: 3783 | HVD7: 3783 | HVE7: 3783 | HVF7: 3783 | HVG7: 3783 | HVH7: 3783 | HVI7: 3783 | HVJ7: 3783 | HVK7: 3783 | HVL7: 3783 | HVM7: 3783 | HVN7: 3783 | HVO7: 3783 | HVP7: 3783 | HVQ7: 3783 | HVR7: 3783 | HVS7: 3783 | HVT7: 3783 | HVU7: 3783 | HVV7: 3783 | HVW7: 3783 | HVX7: 3783 | HVY7: 3783 | HVZ7: 3783 | HWA7: 3783 | HWB7: 3783 | HWC7: 3783 | HWD7: 3783 | HWE7: 3783 | HWF7: 3783 | HWG7: 3783 | HWH7: 3783 | HWI7: 3783 | HWJ7: 3783 | HWK7: 3783 | HWL7: 3783 | HWM7: 3783 | HWN7: 3783 | HWO7: 3783 | HWP7: 3783 | HWQ7: 3783 | HWR7: 3783 | HWS7: 3783 | HWT7: 3783 | HWU7: 3783 | HWV7: 3783 | HWW7: 3783 | HWX7: 3783 | HWY7: 3783 | HWZ7: 3783 | HXA7: 3783 | HXB7: 3783 | HXC7: 3783 | HXD7: 3783 | HXE7: 3783 | HXF7: 3783 | HXG7: 3783 | HXH7: 3783 | HXI7: 3783 | HXJ7: 3783 | HXK7: 3783 | HXL7: 3783 | HXM7: 3783 | HXN7: 3783 | HXO7: 3783 | HXP7: 3783 | HXQ7: 3783 | HXR7: 3783 | HXS7: 3783 | HXT7: 3783 | HXU7: 3783 | HXV7: 3783 | HXW7: 3783 | HXX7: 3783 | HXY7: 3783 | HXZ7: 3783 | HYA7: 3783 | HYB7: 3783 | HYC7: 3783 | HYD7: 3783 | HYE7: 3783 | HYF7: 3783 | HYG7: 3783 | HYH7: 3783 | HYI7: 3783 | HYJ7: 3783 | HYK7: 3783 | HYL7: 3783 | HYM7: 3783 | HYN7: 3783 | HYO7: 3783 | HYP7: 3783 | HYQ7: 3783 | HYR7: 3783 | HYS7: 3783 | HYT7: 3783 | HYU7: 3783 | HYV7: 3783 | HYW7: 3783 | HYX7: 3783 | HYY7: 3783 | HYZ7: 3783 | HZA7: 3783 | HZB7: 3783 | HZC7: 3783 | HZD7: 3783 | HZE7: 3783 | HZF7: 3783 | HZG7: 3783 | HZH7: 3783 | HZI7: 3783 | HZJ7: 3783 | HZK7: 3783 | HZL7: 3783 | HZM7: 3783 | HZN7: 3783 | HZO7: 3783 | HZP7: 3783 | HZQ7: 3783 | HZR7: 3783 | HZS7: 3783 | HZT7: 3783 | HZU7: 3783 | HZV7: 3783 | HZW7: 3783 | HZX7: 3783 | HZY7: 3783 | HZZ7: 3783 | IAA7: 3783 | IAB7: 3783 | IAC7: 3783 | IAD7: 3783 | IAE7: 3783 | IAF7: 3783 | IAG7: 3783 | IAH7: 3783 | IAI7: 3783 | IAJ7: 3783 | IAK7: 3783 | IAL7: 3783 | IAM7: 3783 | IAN7: 3783 | IAO7: 3783 | IAP7: 3783 | IAQ7: 3783 | IAR7: 3783 | IAS7: 3783 | IAT7: 3783 | IAU7: 3783 | IAV7: 3783 | IAW7: 3783 | IAX7: 3783 | IAY7: 3783 | IAZ7: 3783 | IBA7: 3783 | IBB7: 3783 | IBC7: 3783 | IBD7: 3783 | IBE7: 3783 | IBF7: 3783 | IBG7: 3783 | IBH7: 3783 | IBI7: 3783 | IBJ7: 3783 | IBK7: 3783 | IBL7: 3783 | IBM7: 3783 | IBN7: 3783 | IBO7: 3783 | IBP7: 3783 | IBQ7: 3783 | IBR7: 3783 | IBS7: 3783 | IBT7: 3783 | IBU7: 3783 | IBV7: 3783 | IBW7: 3783 | IBX7: 3783 | IBY7: 3783 | IBZ7: 3783 | ICA7: 3783 | ICB7: 3783 | ICC7: 3783 | ICD7: 3783 | ICE7: 3783 | ICF7: 3783 | ICG7: 3783 | ICH7: 3783 | ICI7: 3783 | ICJ7: 3783 | ICK7: 3783 | ICL7: 3783 | ICM7: 3783 | ICN7: 3783 | ICO7: 3783 | ICP7: 3783 | ICQ7: 3783 | ICR7: 3783 | ICS7: 3783 | ICT7: 3783 | ICU7: 3783 | ICV7: 3783 | ICW7: 3783 | ICX7: 3783 | ICY7: 3783 | ICZ7: 3783 | IDA7: 3783 | IDB7: 3783 | IDC7: 3783 | IDD7: 3783 | IDE7: 3783 | IDF7: 3783 | IDG7: 3783 | IDH7: 3783 | IDI7: 3783 | IDJ7: 3783 | IDK7: 3783 | IDL7: 3783 | IDM7: 3783 | IDN7: 3783 | IDO7: 3783 | IDP7: 3783 | IDQ7: 3783 | IDR7: 3783 | IDS7: 3783 | IDT7: 3783 | IDU7: 3783 | IDV7: 3783 | IDW7: 3783 | IDX7: 3783 | IDY7: 3783 | IDZ7: 3783 | IEA7: 3783 | IEB7: 3783 | IEC7: 3783 | IED7: 3783 | IEE7: 3783 | IEF7: 3783 | IEG7: 3783 | IEH7: 3783 | IEI7: 3783 | IEJ7: 3783 | IEK7: 3783 | IEL7: 3783 | IEM7: 3783 | IEN7: 3783 | IEO7: 3783 | IEP7: 3783 | IEQ7: 3783 | IER7: 3783 | IES7: 3783 | IET7: 3783 | IEU7: 3783 | IEV7: 3783 | IEW7: 3783 | IEX7: 3783 | IEY7: 3783 | IEZ7: 3783 | IFA7: 3783 | IFB7: 3783 | IFC7: 3783 | IFD7: 3783 | IFE7: 3783 | IFF7: 3783 | IFG7: 3783 | IFH7: 3783 | IFI7: 3783 | IFJ7: 3783 | IFK7: 3783 | IFL7: 3783 | IFM7: 3783 | IFN7: 3783 | IFO7: 3783 | IFP7: 3783 | IFQ7: 3783 | IFR7: 3783 | IFS7: 3783 | IFT7: 3783 | IFU7: 3783 | IFV7: 3783 | IFW7: 3783 | IFX7: 3783 | IFY7: 3783 | IFZ7: 3783 | IGA7: 3783 | IGB7: 3783 | IGC7: 3783 | IGD7: 3783 | IGE7: 3783 | IGF7: 3783 | IGG7: 3783 | IGH7: 3783 | IGI7: 3783 | IGJ7: 3783 | IGK7: 3783 | IGL7: 3783 | IGM7: 3783 | IGN7: 3783 | IGO7: 3783 | IGP7: 3783 | IGQ7: 3783 | IGR7: 3783 | IGS7: 3783 | IGT7: 3783 | IGU7: 3783 | IGV7: 3783 | IGW7: 3783 | IGX7: 3783 | IGY7: 3783 | IGZ7: 3783 | IHA7: 3783 | IHB7: 3783 | IHC7: 3783 | IHD7: 3783 | IHE7: 3783 | IHF7: 3783 | IHG7: 3783 | IHH7: 3783 | IHI7: 3783 | IHJ7: 3783 | IHK7: 3783 | IHL7: 3783 | IHM7: 3783 | IHN7: 3783 | IHO7: 3783 | IHP7: 3783 | IHQ7: 3783 | IHR7: 3783 | IHS7: 3783 | IHT7: 3783 | IHU7: 3783 | IHV7: 3783 | IHW7: 3783 | IHX7: 3783 | IHY7: 3783 | IHZ7: 3783 | IIA7: 3783 | IIB7: 3783 | IIC7: 3783 | IID7: 3783 | IIE7: 3783 | IIF7: 3783 | IIG7: 3783 | IIH7: 3783 | III7: 3783 | IIJ7: 3783 | IIK7: 3783 | IIL7: 3783 | IIM7: 3783 | IIN7: 3783 | IIO7: 3783 | IIP7: 3783 | IIQ7: 3783 | IIR7: 3783 | IIS7: 3783 | IIT7: 3783 | IIU7: 3783 | IIV7: 3783 | IIW7: 3783 | IIX7: 3783 | IIY7: 3783 | IIZ7: 3783 | IJA7: 3783 | IJB7: 3783 | IJC7: 3783 | IJD7: 3783 | IJE7: 3783 | IJF7: 3783 | IJG7: 3783 | IJH7: 3783 | IJI7: 3783 | IJJ7: 3783 | IJK7: 3783 | IJL7: 3783 | IJM7: 3783 | IJN7: 3783 | IJO7: 3783 | IJP7: 3783 | IJQ7: 3783 | IJR7: 3783 | IJS7: 3783 | IJT7: 3783 | IJU7: 3783 | IJV7: 3783 | IJW7: 3783 | IJX7: 3783 | IJY7: 3783 | IJZ7: 3783 | IKA7: 3783 | IKB7: 3783 | IKC7: 3783 | IKD7: 3783 | IKE7: 3783 | IKF7: 3783 | IKG7: 3783 | IKH7: 3783 | IKI7: 3783 | IKJ7: 3783 | IKK7: 3783 | IKL7: 3783 | IKM7: 3783 | IKN7: 3783 | IKO7: 3783 | IKP7: 3783 | IKQ7: 3783 | IKR7: 3783 | IKS7: 3783 | IKT7: 3783 | IKU7: 3783 | IKV7: 3783 | IKW7: 3783 | IKX7: 3783 | IKY7: 3783 | IKZ7: 3783 | ILA7: 3783 | ILB7: 3783 | ILC7: 3783 | ILD7: 3783 | ILE7: 3783 | ILF7: 3783 | ILG7: 3783 | ILH7: 3783 | ILI7: 3783 | ILJ7: 3783 | ILK7: 3783 | ILL7: 3783 | ILM7: 3783 | ILN7: 3783 | ILO7: 3783 | ILP7: 3783 | ILQ7: 3783 | ILR7: 3783 | ILS7: 3783 | ILT7: 3783 | ILU7: 3783 | ILV7: 3783 | ILW7: 3783 | ILX7: 3783 | ILY7: 3783 | ILZ7: 3783 | IMA7: 3783 | IMB7: 3783 | IMC7: 3783 | IMD7: 3783 | IME7: 3783 | IMF7: 3783 | IMG7: 3783 | IMH7: 3783 | IMI7: 3783 | IMJ7: 3783 | IMK7: 3783 | IML7: 3783 | IMM7: 3783 | IMN7: 3783 | IMO7: 3783 | IMP7: 3783 | IMQ7: 3783 | IMR7: 3783 | IMS7: 3783 | IMT7: 3783 | IMU7: 3783 | IMV7: 3783 | IMW7: 3783 | IMX7: 3783 | IMY7: 3783 | IMZ7: 3783 | INA7: 3783 | INB7: 3783 | INC7: 3783 | IND7: 3783 | INE7: 3783 | INF7: 3783 | ING7: 3783 | INH7: 3783 | INI7: 3783 | INJ7: 3783 | INK7: 3783 | INL7: 3783 | INM7: 3783 | INN7: 3783 | INO7: 3783 | INP7: 3783 | INQ7: 3783 | INR7: 3783 | INS7: 3783 | INT7: 3783 | INU7: 3783 | INV7: 3783 | INW7: 3783 | INX7: 3783 | INY7: 3783 | INZ7: 3783 | IOA7: 3783 | IOB7: 3783 | IOC7: 3783 | IOD7: 3783 | IOE7: 3783 | IOF7: 3783 | IOG7: 3783 | IOH7: 3783 | IOI7: 3783 | IOJ7: 3783 | IOK7: 3783 | IOL7: 3783 | IOM7: 3783 | ION7: 3783 | IOO7: 3783 | IOP7: 3783 | IOQ7: 3783 | IOR7: 3783 | IOS7: 3783 | IOT7: 3783 | IOU7: 3783 | IOV7: 3783 | IOW7: 3783 | IOX7: 3783 | IOY7: 3783 | IOZ7: 3783 | IPA7: 3783 | IPB7: 3783 | IPC7: 3783 | IPD7: 3783 | IPE7: 3783 | IPF7: 3783 | IPG7: 3783 | IPH7: 3783 | IPI7: 3783 | IPJ7: 3783 | IPK7: 3783 | IPL7: 3783 | IPM7: 3783 | IPN7: 3783 | IPO7: 3783 | IPP7: 3783 | IPQ7: 3783 | IPR7: 3783 | IPS7: 3783 | IPT7: 3783 | IPU7: 3783 | IPV7: 3783 | IPW7: 3783 | IPX7: 3783 | IPY7: 3783 | IPZ7: 3783 | IQA7: 3783 | IQB7: 3783 | IQC7: 3783 | IQD7: 3783 | IQE7: 3783 | IQF7: 3783 | IQG7: 3783 | IQH7: 3783 | IQI7: 3783 | IQJ7: 3783 | IQK7: 3783 | IQL7: 3783 | IQM7: 3783 | IQN7: 3783 | IQO7: 3783 | IQP7: 3783 | IQQ7: 3783 | IQR7: 3783 | IQS7: 3783 | IQT7: 3783 | IQU7: 3783 | IQV7: 3783 | IQW7: 3783 | IQX7: 3783 | IQY7: 3783 | IQZ7: 3783 | IRA7: 3783 | IRB7: 3783 | IRC7: 3783 | IRD7: 3783 | IRE7: 3783 | IRF7: 3783 | IRG7: 3783 | IRH7: 3783 | IRI7: 3783 | IRJ7: 3783 | IRK7: 3783 | IRL7: 3783 | IRM7: 3783 | IRN7: 3783 | IRO7: 3783 | IRP7: 3783 | IRQ7: 3783 | IRR7: 3783 | IRS7: 3783 | IRT7: 3783 | IRU7: 3783 | IRV7: 3783 | IRW7: 3783 | IRX7: 3783 | IRY7: 3783 | IRZ7: 3783 | ISA7: 3783 | ISB7: 3783 | ISC7: 3783 | ISD7: 3783 | ISE7: 3783 | ISF7: 3783 | ISG7: 3783 | ISH7: 3783 | ISI7: 3783 | ISJ7: 3783 | ISK7: 3783 | ISL7: 3783 | ISM7: 3783 | ISN7: 3783 | ISO7: 3783 | ISP7: 3783 | ISQ7: 3783 | ISR7: 3783 | ISS7: 3783 | IST7: 3783 | ISU7: 3783 | ISV7: 3783 | ISW7: 3783 | ISX7: 3783 | ISY7: 3783 | ISZ7: 3783 | ITA7: 3783 | ITB7: 3783 | ITC7: 3783 | ITD7: 3783 | ITE7: 3783 | ITF7: 3783 | ITG7: 3783 | ITH7: 3783 | ITI7: 3783 | ITJ7: 3783 | ITK7: 3783 | ITL7: 3783 | ITM7: 3783 | ITN7: 3783 | ITO7: 3783 | ITP7: 3783 | ITQ7: 3783 | ITR7: 3783 | ITS7: 3783 | ITT7: 3783 | ITU7: 3783 | ITV7: 3783 | ITW7: 3783 | ITX7: 3783 | ITY7: 3783 | ITZ7: 3783 | IUA7: 3783 | IUB7: 3783 | IUC7: 3783 | IUD7: 3783 | IUE7: 3783 | IUF7: 3783 | IUG7: 3783 | IUH7: 3783 | IUI7: 3783 | IUJ7: 3783 | IUK7: 3783 | IUL7: 3783 | IUM7: 3783 | IUN7: 3783 | IUO7: 3783 | IUP7: 3783 | IUQ7: 3783 | IUR7: 3783 | IUS7: 3783 | IUT7: 3783 | IUU7: 3783 | IUV7: 3783 | IUW7: 3783 | IUX7: 3783 | IUY7: 3783 | IUZ7: 3783 | IVA7: 3783 | IVB7: 3783 | IVC7: 3783 | IVD7: 3783 | IVE7: 3783 | IVF7: 3783 | IVG7: 3783 | IVH7: 3783 | IVI7: 3783 | IVJ7: 3783 | IVK7: 3783 | IVL7: 3783 | IVM7: 3783 | IVN7: 3783 | IVO7: 3783 | IVP7: 3783 | IVQ7: 3783 | IVR7: 3783 | IVS7: 3783 | IVT7: 3783 | IVU7: 3783 | IVV7: 3783 | IVW7: 3783 | IVX7: 3783 | IVY7: 3783 | IVZ7: 3783 | IWA7: 3783 | IWB7: 3783 | IWC7: 3783 | IWD7: 3783 | IWE7: 3783 | IWF7: 3783 | IWG7: 3783 | IWH7: 3783 | IWI7: 3783 | IWJ7: 3783 | IWK7: 3783 | IWL7: 3783 | IWM7: 3783 | IWN7: 3783 | IWO7: 3783 | IWP7: 3783 | IWQ7: 3783 | IWR7: 3783 | IWS7: 3783 | IWT7: 3783 | IWU7: 3783 | IWV7: 3783 | IWW7: 3783 | IWX7: 3783 | IWY7: 3783 | IWZ7: 3783 | IXA7: 3783 | IXB7: 3783 | IXC7: 3783 | IXD7: 3783 | IXE7: 3783 | IXF7: 3783 | IXG7: 3783 | IXH7: 3783 | IXI7: 3783 | IXJ7: 3783 | IXK7: 3783 | IXL7: 3783 | IXM7: 3783 | IXN7: 3783 | IXO7: 3783 | IXP7: 3783 | IXQ7: 3783 | IXR7: 3783 | IXS7: 3783 | IXT7: 3783 | IXU7: 3783 | IXV7: 3783 | IXW7: 3783 | IXX7: 3783 | IXY7: 3783 | IXZ7: 3783 | IYA7: 3783 | IYB7: 3783 | IYC7: 3783 | IYD7: 3783 | IYE7: 3783 | IYF7: 3783 | IYG7: 3783 | IYH7: 3783 | IYI7: 3783 | IYJ7: 3783 | IYK7: 3783 | IYL7: 3783 | IYM7: 3783 | IYN7: 3783 | IYO7: 3783 | IYP7: 3783 | IYQ7: 3783 | IYR7: 3783 | IYS7: 3783 | IYT7: 3783 | IYU7: 3783 | IYV7: 3783 | IYW7: 3783 | IYX7: 3783 | IYY7: 3783 | IYZ7: 3783 | IZA7: 3783 | IZB7: 3783 | IZC7: 3783 | IZD7: 3783 | IZE7: 3783 | IZF7: 3783 | IZG7: 3783 | IZH7: 3783 | IZI7: 3783 | IZJ7: 3783 | IZK7: 3783 | IZL7: 3783 | IZM7: 3783 | IZN7: 3783 | IZO7: 3783 | IZP7: 3783 | IZQ7: 3783 | IZR7: 3783 | IZS7: 3783 | IZT7: 3783 | IZU7: 3783 | IZV7: 3783 | IZW7: 3783 | IZX7: 3783 | IZY7: 3783 | IZZ7: 3783 | JAA7: 3783 | JAB7: 3783 | JAC7: 3783 | JAD7: 3783 | JAE7: 3783 | JAF7: 3783 | JAG7: 3783 | JAH7: 3783 | JAI7: 3783 | JAJ7: 3783 | JAK7: 3783 | JAL7: 3783 | JAM7: 3783 | JAN7: 3783 | JAO7: 3783 | JAP7: 3783 | JAQ7: 3783 | JAR7: 3783 | JAS7: 3783 | JAT7: 3783 | JAU7: 3783 | JAV7: 3783 | JAW7: 3783 | JAX7: 3783 | JAY7: 3783 | JAZ7: 3783 | JBA7: 3783 | JBB7: 3783 | JBC7: 3783 | JBD7: 3783 | JBE7: 3783 | JBF7: 3783 | JBG7: 3783 | JBH7: 3783 | JBI7: 3783 | JBJ7: 3783 | JBK7: 3783 | JBL7: 3783 | JBM7: 3783 | JBN7: 3783 | JBO7: 3783 | JBP7: 3783 | JBQ7: 3783 | JBR7: 3783 | JBS7: 3783 | JBT7: 3783 | JBU7: 3783 | JBV7: 3783 | JBW7: 3783 | JBX7: 3783 | JBY7: 3783 | JBZ7: 3783 | JCA7: 3783 | JCB7: 3783 | JCC7: 3783 | JCD7: 3783 | JCE7: 3783 | JCF7: 3783 | JCG7: 3783 | JCH7: 3783 | JCI7: 3783 | JCJ7: 3783 | JCK7: 3783 | JCL7: 3783 | JCM7: 3783 | JCN7: 3783 | JCO7: 3783 | JCP7: 3783 | JCQ7: 3783 | JCR7: 3783 | JCS7: 3783 | JCT7: 3783 | JCU7: 3783 | JCV7: 3783 | JCW7: 3783 | JCX7: 3783 | JCY7: 3783 | JCZ7: 3783 | JDA7: 3783 | JDB7: 3783 | JDC7: 3783 | JDD7: 3783 | JDE7: 3783 | JDF7: 3783 | JDG7: 3783 | JDH7: 3783 | JDI7: 3783 | JDJ7: 3783 | JDK7: 3783 | JDL7: 3783 | JDM7: 3783 | JDN7: 3783 | JDO7: 3783 | JDP7: 3783 | JDQ7: 3783 | JDR7: 3783 | JDS7: 3783 | JDT7: 3783 | JDU7: 3783 | JDV7: 3783 | JDW7: 3783 | JDX7: 3783 | JDY7: 3783 | JDZ7: 3783 | JEA7: 3783 | JEB7: 3783 | JEC7: 3783 | JED7: 3783 | JEE7: 3783 | JEF7: 3783 | JEG7: 3783 | JEH7: 3783 | JEI7: 3783 | JEJ7: 3783 | JEK7: 3783 | JEL7: 3783 | JEM7: 3783 | JEN7: 3783 | JEO7: 3783 | JEP7: 3783 | JEQ7: 3783 | JER7: 3783 | JES7: 3783 | JET7: 3783 | JEU7: 3783 | JEV7: 3783 | JEW7: 3783 | JEX7: 3783 | JEY7: 3783 | JEZ7: 3783 | JFA7: 3783 | JFB7: 3783 | JFC7: 3783 | JFD7: 3783 | JFE7: 3783 | JFF7: 3783 | JFG7: 3783 | JFH7: 3783 | JFI7: 3783 | JFJ7: 3783 | JFK7: 3783 | JFL7: 3783 | JFM7: 3783 | JFN7: 3783 | JFO7: 3783 | JFP7: 3783 | JFQ7: 3783 | JFR7: 3783 | JFS7: 3783 | JFT7: 3783 | JFU7: 3783 | JFV7: 3783 | JFW7: 3783 | JFX7: 3783 | JFY7: 3783 | JFZ7: 3783 | JGA7: 3783 | JGB7: 3783 | JGC7: 3783 | JGD7: 3783 | JGE7: 3783 | JGF7: 3783 | JGG7: 3783 | JGH7: 3783 | JGI7: 3783 | JGJ7: 3783 | JGK7: 3783 | JGL7: 3783 | JGM7: 3783 | JGN7: 3783 | JGO7: 3783 | JGP7: 3783 | JGQ7: 3783 | JGR7: 3783 | JGS7: 3783 | JGT7: 3783 | JGU7: 3783 | JGV7: 3783 | JGW7: 3783 | JGX7: 3783 | JGY7: 3783 | JGZ7: 3783 | JHA7: 3783 | JHB7: 3783 | JHC7: 3783 | JHD7: 3783 | JHE7: 3783 | JHF7: 3783 | JHG7: 3783 | JHH7: 3783 | JHI7: 3783 | JHJ7: 3783 | JHK7: 3783 | JHL7: 3783 | JHM7: 3783 | JHN7: 3783 | JHO7: 3783 | JHP7: 3783 | JHQ7: 3783 | JHR7: 3783 | JHS7: 3783 | JHT7: 3783 | JHU7: 3783 | JHV7: 3783 | JHW7: 3783 | JHX7: 3783 | JHY7: 3783 | JHZ7: 3783 | JIA7: 3783 | JIB7: 3783 | JIC7: 3783 | JID7: 3783 | JIE7: 3783 | JIF7: 3783 | JIG7: 3783 | JIH7: 3783 | JII7: 3783 | JIJ7: 3783 | JIK7: 3783 | JIL7: 3783 | JIM7: 3783 | JIN7: 3783 | JIO7: 3783 | JIP7: 3783 | JIQ7: 3783 | JIR7: 3783 | JIS7: 3783 | JIT7: 3783 | JIU7: 3783 | JIV7: 3783 | JIW7: 3783 | JIX7: 3783 | JIY7: 3783 | JIZ7: 3783 | JJA7: 3783 | JJB7: 3783 | JJC7: 3783 | JJD7: 3783 | JJE7: 3783 | JJF7: 3783 | JJG7: 3783 | JJH7: 3783 | JJI7: 3783 | JJJ7: 3783 | JJK7: 3783 | JJL7: 3783 | JJM7: 3783 | JJN7: 3783 | JJO7: 3783 | JJP7: 3783 | JJQ7: 3783 | JJR7: 3783 | JJS7: 3783 | JJT7: 3783 | JJU7: 3783 | JJV7: 3783 | JJW7: 3783 | JJX7: 3783 | JJY7: 3783 | JJZ7: 3783 | JKA7: 3783 | JKB7: 3783 | JKC7: 3783 | JKD7: 3783 | JKE7: 3783 | JKF7: 3783 | JKG7: 3783 | JKH7: 3783 | JKI7: 3783 | JKJ7: 3783 | JKK7: 3783 | JKL7: 3783 | JKM7: 3783 | JKN7: 3783 | JKO7: 3783 | JKP7: 3783 | JKQ7: 3783 | JKR7: 3783 | JKS7: 3783 | JKT7: 3783 | JKU7: 3783 | JKV7: 3783 | JKW7: 3783 | JKX7: 3783 | JKY7: 3783 | JKZ7: 3783 | JLA7: 3783 | JLB7: 3783 | JLC7: 3783 | JLD7: 3783 | JLE7: 3783 | JLF7: 3783 | JLG7: 3783 | JLH7: 3783 | JLI7: 3783 | JLJ7: 3783 | JLK7: 3783 | JLL7: 3783 | JLM7: 3783 | JLN7: 3783 | JLO7: 3783 | JLP7: 3783 | JLQ7: 3783 | JLR7: 3783 | JLS7: 3783 | JLT7: 3783 | JLU7: 3783 | JLV7: 3783 | JLW7: 3783 | JLX7: 3783 | JLY7: 3783 | JLZ7: 3783 | JMA7: 3783 | JMB7: 3783 | JMC7: 3783 | JMD7: 3783 | JME7: 3783 | JMF7: 3783 | JMG7: 3783 | JMH7: 3783 | JMI7: 3783 | JMJ7: 3783 | JMK7: 3783 | JML7: 3783 | JMM7: 3783 | JMN7: 3783 | JMO7: 3783 | JMP7: 3783 | JMQ7: 3783 | JMR7: 3783 | JMS7: 3783 | JMT7: 3783 | JMU7: 3783 | JMV7: 3783 | JMW7: 3783 | JMX7: 3783 | JMY7: 3783 | JMZ7: 3783 | JNA7: 3783 | JNB7: 3783 | JNC7: 3783 | JND7: 3783 | JNE7: 3783 | JNF7: 3783 | JNG7: 3783 | JNH7: 3783 | JNI7: 3783 | JNJ7: 3783 | JNK7: 3783 | JNL7: 3783 | JNM7: 3783 | JNN7: 3783 | JNO7: 3783 | JNP7: 3783 | JNQ7: 3783 | JNR7: 3783 | JNS7: 3783 | JNT7: 3783 | JNU7: 3783 | JNV7: 3783 | JNW7: 3783 | JNX7: 3783 | JNY7: 3783 | JNZ7: 3783 | JOA7: 3783 | JOB7: 3783 | JOC7: 3783 | JOD7: 3783 | JOE7: 3783 | JOF7: 3783 | JOG7: 3783 | JOH7: 3783 | JOI7: 3783 | JOJ7: 3783 | JOK7: 3783 | JOL7: 3783 | JOM7: 3783 | JON7: 3783 | JOO7: 3783 | JOP7: 3783 | JOQ7: 3783 | JOR7: 3783 | JOS7: 3783 | JOT7: 3783 | JOU7: 3783 | JOV7: 3783 | JOW7: 3783 | JOX7: 3783 | JOY7: 3783 | JOZ7: 3783 | JPA7: 3783 | JPB7: 3783 | JPC7: 3783 | JPD7: 3783 | JPE7: 3783 | JPF7: 3783 | JPG7: 3783 | JPH7: 3783 | JPI7: 3783 | JPJ7: 3783 | JPK7: 3783 | JPL7: 3783 | JPM7: 3783 | JPN7: 3783 | JPO7: 3783 | JPP7: 3783 | JPQ7: 3783 | JPR7: 3783 | JPS7: 3783 | JPT7: 3783 | JPU7: 3783 | JPV7: 3783 | JPW7: 3783 | JPX7: 3783 | JPY7: 3783 | JPZ7: 3783 | JQA7: 3783 | JQB7: 3783 | JQC7: 3783 | JQD7: 3783 | JQE7: 3783 | JQF7: 3783 | JQG7: 3783 | JQH7: 3783 | JQI7: 3783 | JQJ7: 3783 | JQK7: 3783 | JQL7: 3783 | JQM7: 3783 | JQN7: 3783 | JQO7: 3783 | JQP7: 3783 | JQQ7: 3783 | JQR7: 3783 | JQS7: 3783 | JQT7: 3783 | JQU7: 3783 | JQV7: 3783 | JQW7: 3783 | JQX7: 3783 | JQY7: 3783 | JQZ7: 3783 | JRA7: 3783 | JRB7: 3783 | JRC7: 3783 | JRD7: 3783 | JRE7: 3783 | JRF7: 3783 | JRG7: 3783 | JRH7: 3783 | JRI7: 3783 | JRJ7: 3783 | JRK7: 3783 | JRL7: 3783 | JRM7: 3783 | JRN7: 3783 | JRO7: 3783 | JRP7: 3783 | JRQ7: 3783 | JRR7: 3783 | JRS7: 3783 | JRT7: 3783 | JRU7: 3783 | JRV7: 3783 | JRW7: 3783 | JRX7: 3783 | JRY7: 3783 | JRZ7: 3783 | JSA7: 3783 | JSB7: 3783 | JSC7: 3783 | JSD7: 3783 | JSE7: 3783 | JSF7: 3783 | JSG7: 3783 | JSH7: 3783 | JSI7: 3783 | JSJ7: 3783 | JSK7: 3783 | JSL7: 3783 | JSM7: 3783 | JSN7: 3783 | JSO7: 3783 | JSP7: 3783 | JSQ7: 3783 | JSR7: 3783 | JSS7: 3783 | JST7: 3783 | JSU7: 3783 | JSV7: 3783 | JSW7: 3783 | JSX7: 3783 | JSY7: 3783 | JSZ7: 3783 | JTA7: 3783 | JTB7: 3783 | JTC7: 3783 | JTD7: 3783 | JTE7: 3783 | JTF7: 3783 | JTG7: 3783 | JTH7: 3783 | JTI7: 3783 | JTJ7: 3783 | JTK7: 3783 | JTL7: 3783 | JTM7: 3783 | JTN7: 3783 | JTO7: 3783 | JTP7: 3783 | JTQ7: 3783 | JTR7: 3783 | JTS7: 3783 | JTT7: 3783 | JTU7: 3783 | JTV7: 3783 | JTW7: 3783 | JTX7: 3783 | JTY7: 3783 | JTZ7: 3783 | JUA7: 3783 | JUB7: 3783 | JUC7: 3783 | JUD7: 3783 | JUE7: 3783 | JUF7: 3783 | JUG7: 3783 | JUH7: 3783 | JUI7: 3783 | JUJ7: 3783 | JUK7: 3783 | JUL7: 3783 | JUM7: 3783 | JUN7: 3783 | JUO7: 3783 | JUP7: 3783 | JUQ7: 3783 | JUR7: 3783 | JUS7: 3783 | JUT7: 3783 | JUU7: 3783 | JUV7: 3783 | JUW7: 3783 | JUX7: 3783 | JUY7: 3783 | JUZ7: 3783 | JVA7: 3783 | JVB7: 3783 | JVC7: 3783 | JVD7: 3783 | JVE7: 3783 | JVF7: 3783 | JVG7: 3783 | JVH7: 3783 | JVI7: 3783 | JVJ7: 3783 | JVK7: 3783 | JVL7: 3783 | JVM7: 3783 | JVN7: 3783 | JVO7: 3783 | JVP7: 3783 | JVQ7: 3783 | JVR7: 3783 | JVS7: 3783 | JVT7: 3783 | JVU7: 3783 | JVV7: 3783 | JVW7: 3783 | JVX7: 3783 | JVY7: 3783 | JVZ7: 3783 | JWA7: 3783 | JWB7: 3783 | JWC7: 3783 | JWD7: 3783 | JWE7: 3783 | JWF7: 3783 | JWG7: 3783 | JWH7: 3783 | JWI7: 3783 | JWJ7: 3783 | JWK7: 3783 | JWL7: 3783 | JWM7: 3783 | JWN7: 3783 | JWO7: 3783 | JWP7: 3783 | JWQ7: 3783 | JWR7: 3783 | JWS7: 3783 | JWT7: 3783 | JWU7: 3783 | JWV7: 3783 | JWW7: 3783 | JWX7: 3783 | JWY7: 3783 | JWZ7: 3783 | JXA7: 3783 | JXB7: 3783 | JXC7: 3783 | JXD7: 3783 | JXE7: 3783 | JXF7: 3783 | JXG7: 3783 | JXH7: 3783 | JXI7: 3783 | JXJ7: 3783 | JXK7: 3783 | JXL7: 3783 | JXM7: 3783 | JXN7: 3783 | JXO7: 3783 | JXP7: 3783 | JXQ7: 3783 | JXR7: 3783 | JXS7: 3783 | JXT7: 3783 | JXU7: 3783 | JXV7: 3783 | JXW7: 3783 | JXX7: 3783 | JXY7: 3783 | JXZ7: 3783 | JYA7: 3783 | JYB7: 3783 | JYC7: 3783 | JYD7: 3783 | JYE7: 3783 | JYF7: 3783 | JYG7: 3783 | JYH7: 3783 | JYI7: 3783 | JYJ7: 3783 | JYK7: 3783 | JYL7: 3783 | JYM7: 3783 | JYN7: 3783 | JYO7: 3783 | JYP7: 3783 | JYQ7: 3783 | JYR7: 3783 | JYS7: 3783 | JYT7: 3783 | JYU7: 3783 | JYV7: 3783 | JYW7: 3783 | JYX7: 3783 | JYY7: 3783 | JYZ7: 3783 | JZA7: 3783 | JZB7: 3783 | JZC7: 3783 | JZD7: 3783 | JZE7: 3783 | JZF7: 3783 | JZG7: 3783 | JZH7: 3783 | JZI7: 3783 | JZJ7: 3783 | JZK7: 3783 | JZL7: 3783 | JZM7: 3783 | JZN7: 3783 | JZO7: 3783 | JZP7: 3783 | JZQ7: 3783 | JZR7: 3783 | JZS7: 3783 | JZT7: 3783 | JZU7: 3783 | JZV7: 3783 | JZW7: 3783 | JZX7: 3783 | JZY7: 3783 | JZZ7: 3783 | KAA7: 3783 | KAB7: 3783 | KAC7: 3783 | KAD7: 3783 | KAE7: 3783 | KAF7: 3783 | KAG7: 3783 | KAH7: 3783 | KAI7: 3783 | KAJ7: 3783 | KAK7: 3783 | KAL7: 3783 | KAM7: 3783 | KAN7: 3783 | KAO7: 3783 | KAP7: 3783 | KAQ7: 3783 | KAR7: 3783 | KAS7: 3783 | KAT7: 3783 | KAU7: 3783 | KAV7: 3783 | KAW7: 3783 | KAX7: 3783 | KAY7: 3783 | KAZ7: 3783 | KBA7: 3783 | KBB7: 3783 | KBC7: 3783 | KBD7: 3783 | KBE7: 3783 | KBF7: 3783 | KBG7: 3783 | KBH7: 3783 | KBI7: 3783 | KBJ7: 3783 | KBK7: 3783 | KBL7: 3783 | KBM7: 3783 | KBN7: 3783 | KBO7: 3783 | KBP7: 3783 | KBQ7: 3783 | KBR7: 3783 | KBS7: 3783 | KBT7: 3783 | KBU7: 3783 | KBV7: 3783 | KBW7: 3783 | KBX7: 3783 | KBY7: 3783 | KBZ7: 3783 | KCA7: 3783 | KCB7: 3783 | KCC7: 3783 | KCD7: 3783 | KCE7: 3783 | KCF7: 3783 | KCG7: 3783 | KCH7: 3783 | KCI7: 3783 | KCJ7: 3783 | KCK7: 3783 | KCL7: 3783 | KCM7: 3783 | KCN7: 3783 | KCO7: 3783 | KCP7: 3783 | KCQ7: 3783 | KCR7: 3783 | KCS7: 3783 | KCT7: 3783 | KCU7: 3783 | KCV7: 3783 | KCW7: 3783 | KCX7: 3783 | KCY7: 3783 | KCZ7: 3783 | KDA7: 3783 | KDB7: 3783 | KDC7: 3783 | KDD7: 3783 | KDE7: 3783 | KDF7: 3783 | KDG7: 3783 | KDH7: 3783 | KDI7: 3783 | KDJ7: 3783 | KDK7: 3783 | KDL7: 3783 | KDM7: 3783 | KDN7: 3783 | KDO7: 3783 | KDP7: 3783 | KDQ7: 3783 | KDR7: 3783 | KDS7: 3783 | KDT7: 3783 | KDU7: 3783 | KDV7: 3783 | KDW7: 3783 | KDX7: 3783 | KDY7: 3783 | KDZ7: 3783 | KEA7: 3783 | KEB7: 3783 | KEC7: 3783 | KED7: 3783 | KEE7: 3783 | KEF7: 3783 | KEG7: 3783 | KEH7: 3783 | KEI7: 3783 | KEJ7: 3783 | KEK7: 3783 | KEL7: 3783 | KEM7: 3783 | KEN7: 3783 | KEO7: 3783 | KEP7: 3783 | KEQ7: 3783 | KER7: 3783 | KES7: 3783 | KET7: 3783 | KEU7: 3783 | KEV7: 3783 | KEW7: 3783 | KEX7: 3783 | KEY7: 3783 | KEZ7: 3783 | KFA7: 3783 | KFB7: 3783 | KFC7: 3783 | KFD7: 3783 | KFE7: 3783 | KFF7: 3783 | KFG7: 3783 | KFH7: 3783 | KFI7: 3783 | KFJ7: 3783 | KFK7: 3783 | KFL7: 3783 | KFM7: 3783 | KFN7: 3783 | KFO7: 3783 | KFP7: 3783 | KFQ7: 3783 | KFR7: 3783 | KFS7: 3783 | KFT7: 3783 | KFU7: 3783 | KFV7: 3783 | KFW7: 3783 | KFX7: 3783 | KFY7: 3783 | KFZ7: 3783 | KGA7: 3783 | KGB7: 3783 | KGC7: 3783 | KGD7: 3783 | KGE7: 3783 | KGF7: 3783 | KGG7: 3783 | KGH7: 3783 | KGI7: 3783 | KGJ7: 3783 | KGK7: 3783 | KGL7: 3783 | KGM7: 3783 | KGN7: 3783 | KGO7: 3783 | KGP7: 3783 | KGQ7: 3783 | KGR7: 3783 | KGS7: 3783 | KGT7: 3783 | KGU7: 3783 | KGV7: 3783 | KGW7: 3783 | KGX7: 3783 | KGY7: 3783 | KGZ7: 3783 | KHA7: 3783 | KHB7: 3783 | KHC7: 3783 | KHD7: 3783 | KHE7: 3783 | KHF7: 3783 | KHG7: 3783 | KHH7: 3783 | KHI7: 3783 | KHJ7: 3783 | KHK7: 3783 | KHL7: 3783 | KHM7: 3783 | KHN7: 3783 | KHO7: 3783 | KHP7: 3783 | KHQ7: 3783 | KHR7: 3783 | KHS7: 3783 | KHT7: 3783 | KHU7: 3783 | KHV7: 3783 | KHW7: 3783 | KHX7: 3783 | KHY7: 3783 | KHZ7: 3783 | KIA7: 3783 | KIB7: 3783 | KIC7: 3783 | KID7: 3783 | KIE7: 3783 | KIF7: 3783 | KIG7: 3783 | KIH7: 3783 | KII7: 3783 | KIJ7: 3783 | KIK7: 3783 | KIL7: 3783 | KIM7: 3783 | KIN7: 3783 | KIO7: 3783 | KIP7: 3783 | KIQ7: 3783 | KIR7: 3783 | KIS7: 3783 | KIT7: 3783 | KIU7: 3783 | KIV7: 3783 | KIW7: 3783 | KIX7: 3783 | KIY7: 3783 | KIZ7: 3783 | KJA7: 3783 | KJB7: 3783 | KJC7: 3783 | KJD7: 3783 | KJE7: 3783 | KJF7: 3783 | KJG7: 3783 | KJH7: 3783 | KJI7: 3783 | KJJ7: 3783 | KJK7: 3783 | KJL7: 3783 | KJM7: 3783 | KJN7: 3783 | KJO7: 3783 | KJP7: 3783 | KJQ7: 3783 | KJR7: 3783 | KJS7: 3783 | KJT7: 3783 | KJU7: 3783 | KJV7: 3783 | KJW7: 3783 | KJX7: 3783 | KJY7: 3783 | KJZ7: 3783 | KKA7: 3783 | KKB7: 3783 | KKC7: 3783 | KKD7: 3783 | KKE7: 3783 | KKF7: 3783 | KKG7: 3783 | KKH7: 3783 | KKI7: 3783 | KKJ7: 3783 | KKK7: 3783 | KKL7: 3783 | KKM7: 3783 | KKN7: 3783 | KKO7: 3783 | KKP7: 3783 | KKQ7: 3783 | KKR7: 3783 | KKS7: 3783 | KKT7: 3783 | KKU7: 3783 | KKV7: 3783 | KKW7: 3783 | KKX7: 3783 | KKY7: 3783 | KKZ7: 3783 | KLA7: 3783 | KLB7: 3783 | KLC7: 3783 | KLD7: 3783 | KLE7: 3783 | KLF7: 3783 | KLG7: 3783 | KLH7: 3783 | KLI7: 3783 | KLJ7: 3783 | KLK7: 3783 | KLL7: 3783 | KLM7: 3783 | KLN7: 3783 | KLO7: 3783 | KLP7: 3783 | KLQ7: 3783 | KLR7: 3783 | KLS7: 3783 | KLT7: 3783 | KLU7: 3783 | KLV7: 3783 | KLW7: 3783 | KLX7: 3783 | KLY7: 3783 | KLZ7: 3783 | KMA7: 3783 | KMB7: 3783 | KMC7: 3783 | KMD7: 3783 | KME7: 3783 | KMF7: 3783 | KMG7: 3783 | KMH7: 3783 | KMI7: 3783 | KMJ7: 3783 | KMK7: 3783 | KML7: 3783 | KMM7: 3783 | KMN7: 3783 | KMO7: 3783 | KMP7: 3783 | KMQ7: 3783 | KMR7: 3783 | KMS7: 3783 | KMT7: 3783 | KMU7: 3783 | KMV7: 3783 | KMW7: 3783 | KMX7: 3783 | KMY7: 3783 | KMZ7: 3783 | KNA7: 3783 | KNB7: 3783 | KNC7: 3783 | KND7: 3783 | KNE7: 3783 | KNF7: 3783 | KNG7: 3783 | KNH7: 3783 | KNI7: 3783 | KNJ7: 3783 | KNK7: 3783 | KNL7: 3783 | KNM7: 3783 | KNN7: 3783 | KNO7: 3783 | KNP7: 3783 | KNQ7: 3783 | KNR7: 3783 | KNS7: 3783 | KNT7: 3783 | KNU7: 3783 | KNV7: 3783 | KNW7: 3783 | KNX7: 3783 | KNY7: 3783 | KNZ7: 3783 | KOA7: 3783 | KOB7: 3783 | KOC7: 3783 | KOD7: 3783 | KOE7: 3783 | KOF7: 3783 | KOG7: 3783 | KOH7: 3783 | KOI7: 3783 | KOJ7: 3783 | KOK7: 3783 | KOL7: 3783 | KOM7: 3783 | KON7: 3783 | KOO7: 3783 | KOP7: 3783 | KOQ7: 3783 | KOR7: 3783 | KOS7: 3783 | KOT7: 3783 | KOU7: 3783 | KOV7: 3783 | KOW7: 3783 | KOX7: 3783 | KOY7: 3783 | KOZ7: 3783 | KPA7: 3783 | KPB7: 3783 | KPC7: 3783 | KPD7: 3783 | KPE7: 3783 | KPF7: 3783 | KPG7: 3783 | KPH7: 3783 | KPI7: 3783 | KPJ7: 3783 | KPK7: 3783 | KPL7: 3783 | KPM7: 3783 | KPN7: 3783 | KPO7: 3783 | KPP7: 3783 | KPQ7: 3783 | KPR7: 3783 | KPS7: 3783 | KPT7: 3783 | KPU7: 3783 | KPV7: 3783 | KPW7: 3783 | KPX7: 3783 | KPY7: 3783 | KPZ7: 3783 | KQA7: 3783 | KQB7: 3783 | KQC7: 3783 | KQD7: 3783 | KQE7: 3783 | KQF7: 3783 | KQG7: 3783 | KQH7: 3783 | KQI7: 3783 | KQJ7: 3783 | KQK7: 3783 | KQL7: 3783 | KQM7: 3783 | KQN7: 3783 | KQO7: 3783 | KQP7: 3783 | KQQ7: 3783 | KQR7: 3783 | KQS7: 3783 | KQT7: 3783 | KQU7: 3783 | KQV7: 3783 | KQW7: 3783 | KQX7: 3783 | KQY7: 3783 | KQZ7: 3783 | KRA7: 3783 | KRB7: 3783 | KRC7: 3783 | KRD7: 3783 | KRE7: 3783 | KRF7: 3783 | KRG7: 3783 | KRH7: 3783 | KRI7: 3783 | KRJ7: 3783 | KRK7: 3783 | KRL7: 3783 | KRM7: 3783 | KRN7: 3783 | KRO7: 3783 | KRP7: 3783 | KRQ7: 3783 | KRR7: 3783 | KRS7: 3783 | KRT7: 3783 | KRU7: 3783 | KRV7: 3783 | KRW7: 3783 | KRX7: 3783 | KRY7: 3783 | KRZ7: 3783 | KSA7: 3783 | KSB7: 3783 | KSC7: 3783 | KSD7: 3783 | KSE7: 3783 | KSF7: 3783 | KSG7: 3783 | KSH7: 3783 | KSI7: 3783 | KSJ7: 3783 | KSK7: 3783 | KSL7: 3783 | KSM7: 3783 | KSN7: 3783 | KSO7: 3783 | KSP7: 3783 | KSQ7: 3783 | KSR7: 3783 | KSS7: 3783 | KST7: 3783 | KSU7: 3783 | KSV7: 3783 | KSW7: 3783 | KSX7: 3783 | KSY7: 3783 | KSZ7: 3783 | KTA7: 3783 | KTB7: 3783 | KTC7: 3783 | KTD7: 3783 | KTE7: 3783 | KTF7: 3783 | KTG7: 3783 | KTH7: 3783 | KTI7: 3783 | KTJ7: 3783 | KTK7: 3783 | KTL7: 3783 | KTM7: 3783 | KTN7: 3783 | KTO7: 3783 | KTP7: 3783 | KTQ7: 3783 | KTR7: 3783 | KTS7: 3783 | KTT7: 3783 | KTU7: 3783 | KTV7: 3783 | KTW7: 3783 | KTX7: 3783 | KTY7: 3783 | KTZ7: 3783 | KUA7: 3783 | KUB7: 3783 | KUC7: 3783 | KUD7: 3783 | KUE7: 3783 | KUF7: 3783 | KUG7: 3783 | KUH7: 3783 | KUI7: 3783 | KUJ7: 3783 | KUK7: 3783 | KUL7: 3783 | KUM7: 3783 | KUN7: 3783 | KUO7: 3783 | KUP7: 3783 | KUQ7: 3783 | KUR7: 3783 | KUS7: 3783 | KUT7: 3783 | KUU7: 3783 | KUV7: 3783 | KUW7: 3783 | KUX7: 3783 | KUY7: 3783 | KUZ7: 3783 | KVA7: 3783 | KVB7: 3783 | KVC7: 3783 | KVD7: 3783 | KVE7: 3783 | KVF7: 3783 | KVG7: 3783 | KVH7: 3783 | KVI7: 3783 | KVJ7: 3783 | KVK7: 3783 | KVL7: 3783 | KVM7: 3783 | KVN7: 3783 | KVO7: 3783 | KVP7: 3783 | KVQ7: 3783 | KVR7: 3783 | KVS7: 3783 | KVT7: 3783 | KVU7: 3783 | KVV7: 3783 | KVW7: 3783 | KVX7: 3783 | KVY7: 3783 | KVZ7: 3783 | KWA7: 3783 | KWB7: 3783 | KWC7: 3783 | KWD7: 3783 | KWE7: 3783 | KWF7: 3783 | KWG7: 3783 | KWH7: 3783 | KWI7: 3783 | KWJ7: 3783 | KWK7: 3783 | KWL7: 3783 | KWM7: 3783 | KWN7: 3783 | KWO7: 3783 | KWP7: 3783 | KWQ7: 3783 | KWR7: 3783 | KWS7: 3783 | KWT7: 3783 | KWU7: 3783 | KWV7: 3783 | KWW7: 3783 | KWX7: 3783 | KWY7: 3783 | KWZ7: 3783 | KXA7: 3783 | KXB7: 3783 | KXC7: 3783 | KXD7: 3783 | KXE7: 3783 | KXF7: 3783 | KXG7: 3783 | KXH7: 3783 | KXI7: 3783 | KXJ7: 3783 | KXK7: 3783 | KXL7: 3783 | KXM7: 3783 | KXN7: 3783 | KXO7: 3783 | KXP7: 3783 | KXQ7: 3783 | KXR7: 3783 | KXS7: 3783 | KXT7: 3783 | KXU7: 3783 | KXV7: 3783 | KXW7: 3783 | KXX7: 3783 | KXY7: 3783 | KXZ7: 3783 | KYA7: 3783 | KYB7: 3783 | KYC7: 3783 | KYD7: 3783 | KYE7: 3783 | KYF7: 3783 | KYG7: 3783 | KYH7: 3783 | KYI7: 3783 | KYJ7: 3783 | KYK7: 3783 | KYL7: 3783 | KYM7: 3783 | KYN7: 3783 | KYO7: 3783 | KYP7: 3783 | KYQ7: 3783 | KYR7: 3783 | KYS7: 3783 | KYT7: 3783 | KYU7: 3783 | KYV7: 3783 | KYW7: 3783 | KYX7: 3783 | KYY7: 3783 | KYZ7: 3783 | KZA7: 3783 | KZB7: 3783 | KZC7: 3783 | KZD7: 3783 | KZE7: 3783 | KZF7: 3783 | KZG7: 3783 | KZH7: 3783 | KZI7: 3783 | KZJ7: 3783 | KZK7: 3783 | KZL7: 3783 | KZM7: 3783 | KZN7: 3783 | KZO7: 3783 | KZP7: 3783 | KZQ7: 3783 | KZR7: 3783 | KZS7: 3783 | KZT7: 3783 | KZU7: 3783 | KZV7: 3783 | KZW7: 3783 | KZX7: 3783 | KZY7: 3783 | KZZ7: 3783 | LAA7: 3783 | LAB7: 3783 | LAC7: 3783 | LAD7: 3783 | LAE7: 3783 | LAF7: 3783 | LAG7: 3783 | LAH7: 3783 | LAI7: 3783 | LAJ7: 3783 | LAK7: 3783 | LAL7: 3783 | LAM7: 3783 | LAN7: 3783 | LAO7: 3783 | LAP7: 3783 | LAQ7: 3783 | LAR7: 3783 | LAS7: 3783 | LAT7: 3783 | LAU7: 3783 | LAV7: 3783 | LAW7: 3783 | LAX7: 3783 | LAY7: 3783 | LAZ7: 3783 | LBA7: 3783 | LBB7: 3783 | LBC7: 3783 | LBD7: 3783 | LBE7: 3783 | LBF7: 3783 | LBG7: 3783 | LBH7: 3783 | LBI7: 3783 | LBJ7: 3783 | LBK7: 3783 | LBL7: 3783 | LBM7: 3783 | LBN7: 3783 | LBO7: 3783 | LBP7: 3783 | LBQ7: 3783 | LBR7: 3783 | LBS7: 3783 | LBT7: 3783 | LBU7: 3783 | LBV7: 3783 | LBW7: 3783 | LBX7: 3783 | LBY7: 3783 | LBZ7: 3783 | LCA7: 3783 | LCB7: 3783 | LCC7: 3783 | LCD7: 3783 | LCE7: 3783 | LCF7: 3783 | LCG7: 3783 | LCH7: 3783 | LCI7: 3783 | LCJ7: 3783 | LCK7: 3783 | LCL7: 3783 | LCM7: 3783 | LCN7: 3783 | LCO7: 3783 | LCP7: 3783 | LCQ7: 3783 | LCR7: 3783 | LCS7: 3783 | LCT7: 3783 | LCU7: 3783 | LCV7: 3783 | LCW7: 3783 | LCX7: 3783 | LCY7: 3783 | LCZ7: 3783 | LDA7: 3783 | LDB7: 3783 | LDC7: 3783 | LDD7: 3783 | LDE7: 3783 | LDF7: 3783 | LDG7: 3783 | LDH7: 3783 | LDI7: 3783 | LDJ7: 3783 | LDK7: 3783 | LDL7: 3783 | LDM7: 3783 | LDN7: 3783 | LDO7: 3783 | LDP7: 3783 | LDQ7: 3783 | LDR7: 3783 | LDS7: 3783 | LDT7: 3783 | LDU7: 3783 | LDV7: 3783 | LDW7: 3783 | LDX7: 3783 | LDY7: 3783 | LDZ7: 3783 | LEA7: 3783 | LEB7: 3783 | LEC7: 3783 | LED7: 3783 | LEE7: 3783 | LEF7: 3783 | LEG7: 3783 | LEH7: 3783 | LEI7: 3783 | LEJ7: 3783 | LEK7: 3783 | LEL7: 3783 | LEM7: 3783 | LEN7: 3783 | LEO7: 3783 | LEP7: 3783 | LEQ7: 3783 | LER7: 3783 | LES7: 3783 | LET7: 3783 | LEU7: 3783 | LEV7: 3783 | LEW7: 3783 | LEX7: 3783 | LEY7: 3783 | LEZ7: 3783 | LFA7: 3783 | LFB7: 3783 | LFC7: 3783 | LFD7: 3783 | LFE7: 3783 | LFF7: 3783 | LFG7: 3783 | LFH7: 3783 | LFI7: 3783 | LFJ7: 3783 | LFK7: 3783 | LFL7: 3783 | LFM7: 3783 | LFN7: 3783 | LFO7: 3783 | LFP7: 3783 | LFQ7: 3783 | LFR7: 3783 | LFS7: 3783 | LFT7: 3783 | LFU7: 3783 | LFV7: 3783 | LFW7: 3783 | LFX7: 3783 | LFY7: 3783 | LFZ7: 3783 | LGA7: 3783 | LGB7: 3783 | LGC7: 3783 | LGD7: 3783 | LGE7: 3783 | LGF7: 3783 | LGG7: 3783 | LGH7: 3783 | LGI7: 3783 | LGJ7: 3783 | LGK7: 3783 | LGL7: 3783 | LGM7: 3783 | LGN7: 3783 | LGO7: 3783 | LGP7: 3783 | LGQ7: 3783 | LGR7: 3783 | LGS7: 3783 | LGT7: 3783 | LGU7: 3783 | LGV7: 3783 | LGW7: 3783 | LGX7: 3783 | LGY7: 3783 | LGZ7: 3783 | LHA7: 3783 | LHB7: 3783 | LHC7: 3783 | LHD7: 3783 | LHE7: 3783 | LHF7: 3783 | LHG7: 3783 | LHH7: 3783 | LHI7: 3783 | LHJ7: 3783 | LHK7: 3783 | LHL7: 3783 | LHM7: 3783 | LHN7: 3783 | LHO7: 3783 | LHP7: 3783 | LHQ7: 3783 | LHR7: 3783 | LHS7: 3783 | LHT7: 3783 | LHU7: 3783 | LHV7: 3783 | LHW7: 3783 | LHX7: 3783 | LHY7: 3783 | LHZ7: 3783 | LIA7: 3783 | LIB7: 3783 | LIC7: 3783 | LID7: 3783 | LIE7: 3783 | LIF7: 3783 | LIG7: 3783 | LIH7: 3783 | LII7: 3783 | LIJ7: 3783 | LIK7: 3783 | LIL7: 3783 | LIM7: 3783 | LIN7: 3783 | LIO7: 3783 | LIP7: 3783 | LIQ7: 3783 | LIR7: 3783 | LIS7: 3783 | LIT7: 3783 | LIU7: 3783 | LIV7: 3783 | LIW7: 3783 | LIX7: 3783 | LIY7: 3783 | LIZ7: 3783 | LJA7: 3783 | LJB7: 3783 | LJC7: 3783 | LJD7: 3783 | LJE7: 3783 | LJF7: 3783 | LJG7: 3783 | LJH7: 3783 | LJI7: 3783 | LJJ7: 3783 | LJK7: 3783 | LJL7: 3783 | LJM7: 3783 | LJN7: 3783 | LJO7: 3783 | LJP7: 3783 | LJQ7: 3783 | LJR7: 3783 | LJS7: 3783 | LJT7: 3783 | LJU7: 3783 | LJV7: 3783 | LJW7: 3783 | LJX7: 3783 | LJY7: 3783 | LJZ7: 3783 | LKA7: 3783 | LKB7: 3783 | LKC7: 3783 | LKD7: 3783 | LKE7: 3783 | LKF7: 3783 | LKG7: 3783 | LKH7: 3783 | LKI7: 3783 | LKJ7: 3783 | LKK7: 3783 | LKL7: 3783 | LKM7: 3783 | LKN7: 3783 | LKO7: 3783 | LKP7: 3783 | LKQ7: 3783 | LKR7: 3783 | LKS7: 3783 | LKT7: 3783 | LKU7: 3783 | LKV7: 3783 | LKW7: 3783 | LKX7: 3783 | LKY7: 3783 | LKZ7: 3783 | LLA7: 3783 | LLB7: 3783 | LLC7: 3783 | LLD7: 3783 | LLE7: 3783 | LLF7: 3783 | LLG7: 3783 | LLH7: 3783 | LLI7: 3783 | LLJ7: 3783 | LLK7: 3783 | LLL7: 3783 | LLM7: 3783 | LLN7: 3783 | LLO7: 3783 | LLP7: 3783 | LLQ7: 3783 | LLR7: 3783 | LLS7: 3783 | LLT7: 3783 | LLU7: 3783 | LLV7: 3783 | LLW7: 3783 | LLX7: 3783 | LLY7: 3783 | LLZ7: 3783 | LMA7: 3783 | LMB7: 3783 | LMC7: 3783 | LMD7: 3783 | LME7: 3783 | LMF7: 3783 | LMG7: 3783 | LMH7: 3783 | LMI7: 3783 | LMJ7: 3783 | LMK7: 3783 | LML7: 3783 | LMM7: 3783 | LMN7: 3783 | LMO7: 3783 | LMP7: 3783 | LMQ7: 3783 | LMR7: 3783 | LMS7: 3783 | LMT7: 3783 | LMU7: 3783 | LMV7: 3783 | LMW7: 3783 | LMX7: 3783 | LMY7: 3783 | LMZ7: 3783 | LNA7: 3783 | LNB7: 3783 | LNC7: 3783 | LND7: 3783 | LNE7: 3783 | LNF7: 3783 | LNG7: 3783 | LNH7: 3783 | LNI7: 3783 | LNJ7: 3783 | LNK7: 3783 | LNL7: 3783 | LNM7: 3783 | LNN7: 3783 | LNO7: 3783 | LNP7: 3783 | LNQ7: 3783 | LNR7: 3783 | LNS7: 3783 | LNT7: 3783 | LNU7: 3783 | LNV7: 3783 | LNW7: 3783 | LNX7: 3783 | LNY7: 3783 | LNZ7: 3783 | LOA7: 3783 | LOB7: 3783 | LOC7: 3783 | LOD7: 3783 | LOE7: 3783 | LOF7: 3783 | LOG7: 3783 | LOH7: 3783 | LOI7: 3783 | LOJ7: 3783 | LOK7: 3783 | LOL7: 3783 | LOM7: 3783 | LON7: 3783 | LOO7: 3783 | LOP7: 3783 | LOQ7: 3783 | LOR7: 3783 | LOS7: 3783 | LOT7: 3783 | LOU7: 3783 | LOV7: 3783 | LOW7: 3783 | LOX7: 3783 | LOY7: 3783 | LOZ7: 3783 | LPA7: 3783 | LPB7: 3783 | LPC7: 3783 | LPD7: 3783 | LPE7: 3783 | LPF7: 3783 | LPG7: 3783 | LPH7: 3783 | LPI7: 3783 | LPJ7: 3783 | LPK7: 3783 | LPL7: 3783 | LPM7: 3783 | LPN7: 3783 | LPO7: 3783 | LPP7: 3783 | LPQ7: 3783 | LPR7: 3783 | LPS7: 3783 | LPT7: 3783 | LPU7: 3783 | LPV7: 3783 | LPW7: 3783 | LPX7: 3783 | LPY7: 3783 | LPZ7: 3783 | LQA7: 3783 | LQB7: 3783 | LQC7: 3783 | LQD7: 3783 | LQE7: 3783 | LQF7: 3783 | LQG7: 3783 | LQH7: 3783 | LQI7: 3783 | LQJ7: 3783 | LQK7: 3783 | LQL7: 3783 | LQM7: 3783 | LQN7: 3783 | LQO7: 3783 | LQP7: 3783 | LQQ7: 3783 | LQR7: 3783 | LQS7: 3783 | LQT7: 3783 | LQU7: 3783 | LQV7: 3783 | LQW7: 3783 | LQX7: 3783 | LQY7: 3783 | LQZ7: 3783 | LRA7: 3783 | LRB7: 3783 | LRC7: 3783 | LRD7: 3783 | LRE7: 3783 | LRF7: 3783 | LRG7: 3783 | LRH7: 3783 | LRI7: 3783 | LRJ7: 3783 | LRK7: 3783 | LRL7: 3783 | LRM7: 3783 | LRN7: 3783 | LRO7: 3783 | LRP7: 3783 | LRQ7: 3783 | LRR7: 3783 | LRS7: 3783 | LRT7: 3783 | LRU7: 3783 | LRV7: 3783 | LRW7: 3783 | LRX7: 3783 | LRY7: 3783 | LRZ7: 3783 | LSA7: 3783 | LSB7: 3783 | LSC7: 3783 | LSD7: 3783 | LSE7: 3783 | LSF7: 3783 | LSG7: 3783 | LSH7: 3783 | LSI7: 3783 | LSJ7: 3783 | LSK7: 3783 | LSL7: 3783 | LSM7: 3783 | LSN7: 3783 | LSO7: 3783 | LSP7: 3783 | LSQ7: 3783 | LSR7: 3783 | LSS7: 3783 | LST7: 3783 | LSU7: 3783 | LSV7: 3783 | LSW7: 3783 | LSX7: 3783 | LSY7: 3783 | LSZ7: 3783 | LTA7: 3783 | LTB7: 3783 | LTC7: 3783 | LTD7: 3783 | LTE7: 3783 | LTF7: 3783 | LTG7: 3783 | LTH7: 3783 | LTI7: 3783 | LTJ7: 3783 | LTK7: 3783 | LTL7: 3783 | LTM7: 3783 | LTN7: 3783 | LTO7: 3783 | LTP7: 3783 | LTQ7: 3783 | LTR7: 3783 | LTS7: 3783 | LTT7: 3783 | LTU7: 3783 | LTV7: 3783 | LTW7: 3783 | LTX7: 3783 | LTY7: 3783 | LTZ7: 3783 | LUA7: 3783 | LUB7: 3783 | LUC7: 3783 | LUD7: 3783 | LUE7: 3783 | LUF7: 3783 | LUG7: 3783 | LUH7: 3783 | LUI7: 3783 | LUJ7: 3783 | LUK7: 3783 | LUL7: 3783 | LUM7: 3783 | LUN7: 3783 | LUO7: 3783 | LUP7: 3783 | LUQ7: 3783 | LUR7: 3783 | LUS7: 3783 | LUT7: 3783 | LUU7: 3783 | LUV7: 3783 | LUW7: 3783 | LUX7: 3783 | LUY7: 3783 | LUZ7: 3783 | LVA7: 3783 | LVB7: 3783 | LVC7: 3783 | LVD7: 3783 | LVE7: 3783 | LVF7: 3783 | LVG7: 3783 | LVH7: 3783 | LVI7: 3783 | LVJ7: 3783 | LVK7: 3783 | LVL7: 3783 | LVM7: 3783 | LVN7: 3783 | LVO7: 3783 | LVP7: 3783 | LVQ7: 3783 | LVR7: 3783 | LVS7: 3783 | LVT7: 3783 | LVU7: 3783 | LVV7: 3783 | LVW7: 3783 | LVX7: 3783 | LVY7: 3783 | LVZ7: 3783 | LWA7: 3783 | LWB7: 3783 | LWC7: 3783 | LWD7: 3783 | LWE7: 3783 | LWF7: 3783 | LWG7: 3783 | LWH7: 3783 | LWI7: 3783 | LWJ7: 3783 | LWK7: 3783 | LWL7: 3783 | LWM7: 3783 | LWN7: 3783 | LWO7: 3783 | LWP7: 3783 | LWQ7: 3783 | LWR7: 3783 | LWS7: 3783 | LWT7: 3783 | LWU7: 3783 | LWV7: 3783 | LWW7: 3783 | LWX7: 3783 | LWY7: 3783 | LWZ7: 3783 | LXA7: 3783 | LXB7: 3783 | LXC7: 3783 | LXD7: 3783 | LXE7: 3783 | LXF7: 3783 | LXG7: 3783 | LXH7: 3783 | LXI7: 3783 | LXJ7: 3783 | LXK7: 3783 | LXL7: 3783 | LXM7: 3783 | LXN7: 3783 | LXO7: 3783 | LXP7: 3783 | LXQ7: 3783 | LXR7: 3783 | LXS7: 3783 | LXT7: 3783 | LXU7: 3783 | LXV7: 3783 | LXW7: 3783 | LXX7: 3783 | LXY7: 3783 | LXZ7: 3783 | LYA7: 3783 | LYB7: 3783 | LYC7: 3783 | LYD7: 3783 | LYE7: 3783 | LYF7: 3783 | LYG7: 3783 | LYH7: 3783 | LYI7: 3783 | LYJ7: 3783 | LYK7: 3783 | LYL7: 3783 | LYM7: 3783 | LYN7: 3783 | LYO7: 3783 | LYP7: 3783 | LYQ7: 3783 | LYR7: 3783 | LYS7: 3783 | LYT7: 3783 | LYU7: 3783 | LYV7: 3783 | LYW7: 3783 | LYX7: 3783 | LYY7: 3783 | LYZ7: 3783 | LZA7: 3783 | LZB7: 3783 | LZC7: 3783 | LZD7: 3783 | LZE7: 3783 | LZF7: 3783 | LZG7: 3783 | LZH7: 3783 | LZI7: 3783 | LZJ7: 3783 | LZK7: 3783 | LZL7: 3783 | LZM7: 3783 | LZN7: 3783 | LZO7: 3783 | LZP7: 3783 | LZQ7: 3783 | LZR7: 3783 | LZS7: 3783 | LZT7: 3783 | LZU7: 3783 | LZV7: 3783 | LZW7: 3783 | LZX7: 3783 | LZY7: 3783 | LZZ7: 3783 | MAA7: 3783 | MAB7: 3783 | MAC7: 3783 | MAD7: 3783 | MAE7: 3783 | MAF7: 3783 | MAG7: 3783 | MAH7: 3783 | MAI7: 3783 | MAJ7: 3783 | MAK7: 3783 | MAL7: 3783 | MAM7: 3783 | MAN7: 3783 | MAO7: 3783 | MAP7: 3783 | MAQ7: 3783 | MAR7: 3783 | MAS7: 3783 | MAT7: 3783 | MAU7: 3783 | MAV7: 3783 | MAW7: 3783 | MAX7: 3783 | MAY7: 3783 | MAZ7: 3783 | MBA7: 3783 | MBB7: 3783 | MBC7: 3783 | MBD7: 3783 | MBE7: 3783 | MBF7: 3783 | MBG7: 3783 | MBH7: 3783 | MBI7: 3783 | MBJ7: 3783 | MBK7: 3783 | MBL7: 3783 | MBM7: 3783 | MBN7: 3783 | MBO7: 3783 | MBP7: 3783 | MBQ7: 3783 | MBR7: 3783 | MBS7: 3783 | MBT7: 3783 | MBU7: 3783 | MBV7: 3783 | MBW7: 3783 | MBX7: 3783 | MBY7: 3783 | MBZ7: 3783 | MCA7: 3783 | MCB7: 3783 | MCC7: 3783 | MCD7: 3783 | MCE7: 3783 | MCF7: 3783 | MCG7: 3783 | MCH7: 3783 | MCI7: 3783 | MCJ7: 3783 | MCK7: 3783 | MCL7: 3783 | MCM7: 3783 | MCN7: 3783 | MCO7: 3783 | MCP7: 3783 | MCQ7: 3783 | MCR7: 3783 | MCS7: 3783 | MCT7: 3783 | MCU7: 3783 | MCV7: 3783 | MCW7: 3783 | MCX7: 3783 | MCY7: 3783 | MCZ7: 3783 | MDA7: 3783 | MDB7: 3783 | MDC7: 3783 | MDD7: 3783 | MDE7: 3783 | MDF7: 3783 | MDG7: 3783 | MDH7: 3783 | MDI7: 3783 | MDJ7: 3783 | MDK7: 3783 | MDL7: 3783 | MDM7: 3783 | MDN7: 3783 | MDO7: 3783 | MDP7: 3783 | MDQ7: 3783 | MDR7: 3783 | MDS7: 3783 | MDT7: 3783 | MDU7: 3783 | MDV7: 3783 | MDW7: 3783 | MDX7: 3783 | MDY7: 3783 | MDZ7: 3783 | MEA7: 3783 | MEB7: 3783 | MEC7: 3783 | MED7: 3783 | MEE7: 3783 | MEF7: 3783 | MEG7: 3783 | MEH7: 3783 | MEI7: 3783 | MEJ7: 3783 | MEK7: 3783 | MEL7: 3783 | MEM7: 3783 | MEN7: 3783 | MEO7: 3783 | MEP7: 3783 | MEQ7: 3783 | MER7: 3783 | MES7: 3783 | MET7: 3783 | MEU7: 3783 | MEV7: 3783 | MEW7: 3783 | MEX7: 3783 | MEY7: 3783 | MEZ7: 3783 | MFA7: 3783 | MFB7: 3783 | MFC7: 3783 | MFD7: 3783 | MFE7: 3783 | MFF7: 3783 | MFG7: 3783 | MFH7: 3783 | MFI7: 3783 | MFJ7: 3783 | MFK7: 3783 | MFL7: 3783 | MFM7: 3783 | MFN7: 3783 | MFO7: 3783 | MFP7: 3783 | MFQ7: 3783 | MFR7: 3783 | MFS7: 3783 | MFT7: 3783 | MFU7: 3783 | MFV7: 3783 | MFW7: 3783 | MFX7: 3783 | MFY7: 3783 | MFZ7: 3783 | MGA7: 3783 | MGB7: 3783 | MGC7: 3783 | MGD7: 3783 | MGE7: 3783 | MGF7: 3783 | MGG7: 3783 | MGH7: 3783 | MGI7: 3783 | MGJ7: 3783 | MGK7: 3783 | MGL7: 3783 | MGM7: 3783 | MGN7: 3783 | MGO7: 3783 | MGP7: 3783 | MGQ7: 3783 | MGR7: 3783 | MGS7: 3783 | MGT7: 3783 | MGU7: 3783 | MGV7: 3783 | MGW7: 3783 | MGX7: 3783 | MGY7: 3783 | MGZ7: 3783 | MHA7: 3783 | MHB7: 3783 | MHC7: 3783 | MHD7: 3783 | MHE7: 3783 | MHF7: 3783 | MHG7: 3783 | MHH7: 3783 | MHI7: 3783 | MHJ7: 3783 | MHK7: 3783 | MHL7: 3783 | MHM7: 3783 | MHN7: 3783 | MHO7: 3783 | MHP7: 3783 | MHQ7: 3783 | MHR7: 3783 | MHS7: 3783 | MHT7: 3783 | MHU7: 3783 | MHV7: 3783 | MHW7: 3783 | MHX7: 3783 | MHY7: 3783 | MHZ7: 3783 | MIA7: 3783 | MIB7: 3783 | MIC7: 3783 | MID7: 3783 | MIE7: 3783 | MIF7: 3783 | MIG7: 3783 | MIH7: 3783 | MII7: 3783 | MIJ7: 3783 | MIK7: 3783 | MIL7: 3783 | MIM7: 3783 | MIN7: 3783 | MIO7: 3783 | MIP7: 3783 | MIQ7: 3783 | MIR7: 3783 | MIS7: 3783 | MIT7: 3783 | MIU7: 3783 | MIV7: 3783 | MIW7: 3783 | MIX7: 3783 | MIY7: 3783 | MIZ7: 3783 | MJA7: 3783 | MJB7: 3783 | MJC7: 3783 | MJD7: 3783 | MJE7: 3783 | MJF7: 3783 | MJG7: 3783 | MJH7: 3783 | MJI7: 3783 | MJJ7: 3783 | MJK7: 3783 | MJL7: 3783 | MJM7: 3783 | MJN7: 3783 | MJO7: 3783 | MJP7: 3783 | MJQ7: 3783 | MJR7: 3783 | MJS7: 3783 | MJT7: 3783 | MJU7: 3783 | MJV7: 3783 | MJW7: 3783 | MJX7: 3783 | MJY7: 3783 | MJZ7: 3783 | MKA7: 3783 | MKB7: 3783 | MKC7: 3783 | MKD7: 3783 | MKE7: 3783 | MKF7: 3783 | MKG7: 3783 | MKH7: 3783 | MKI7: 3783 | MKJ7: 3783 | MKK7: 3783 | MKL7: 3783 | MKM7: 3783 | MKN7: 3783 | MKO7: 3783 | MKP7: 3783 | MKQ7: 3783 | MKR7: 3783 | MKS7: 3783 | MKT7: 3783 | MKU7: 3783 | MKV7: 3783 | MKW7: 3783 | MKX7: 3783 | MKY7: 3783 | MKZ7: 3783 | MLA7: 3783 | MLB7: 3783 | MLC7: 3783 | MLD7: 3783 | MLE7: 3783 | MLF7: 3783 | MLG7: 3783 | MLH7: 3783 | MLI7: 3783 | MLJ7: 3783 | MLK7: 3783 | MLL7: 3783 | MLM7: 3783 | MLN7: 3783 | MLO7: 3783 | MLP7: 3783 | MLQ7: 3783 | MLR7: 3783 | MLS7: 3783 | MLT7: 3783 | MLU7: 3783 | MLV7: 3783 | MLW7: 3783 | MLX7: 3783 | MLY7: 3783 | MLZ7: 3783 | MMA7: 3783 | MMB7: 3783 | MMC7: 3783 | MMD7: 3783 | MME7: 3783 | MMF7: 3783 | MMG7: 3783 | MMH7: 3783 | MMI7: 3783 | MMJ7: 3783 | MMK7: 3783 | MML7: 3783 | MMM7: 3783 | MMN7: 3783 | MMO7: 3783 | MMP7: 3783 | MMQ7: 3783 | MMR7: 3783 | MMS7: 3783 | MMT7: 3783 | MMU7: 3783 | MMV7: 3783 | MMW7: 3783 | MMX7: 3783 | MMY7: 3783 | MMZ7: 3783 | MNA7: 3783 | MNB7: 3783 | MNC7: 3783 | MND7: 3783 | MNE7: 3783 | MNF7: 3783 | MNG7: 3783 | MNH7: 3783 | MNI7: 3783 | MNJ7: 3783 | MNK7: 3783 | MNL7: 3783 | MNM7: 3783 | MNN7: 3783 | MNO7: 3783 | MNP7: 3783 | MNQ7: 3783 | MNR7: 3783 | MNS7: 3783 | MNT7: 3783 | MNU7: 3783 | MNV7: 3783 | MNW7: 3783 | MNX7: 3783 | MNY7: 3783 | MNZ7: 3783 | MOA7: 3783 | MOB7: 3783 | MOC7: 3783 | MOD7: 3783 | MOE7: 3783 | MOF7: 3783 | MOG7: 3783 | MOH7: 3783 | MOI7: 3783 | MOJ7: 3783 | MOK7: 3783 | MOL7: 3783 | MOM7: 3783 | MON7: 3783 | MOO7: 3783 | MOP7: 3783 | MOQ7: 3783 | MOR7: 3783 | MOS7: 3783 | MOT7: 3783 | MOU7: 3783 | MOV7: 3783 | MOW7: 3783 | MOX7: 3783 | MOY7: 3783 | MOZ7: 3783 | MPA7: 3783 | MPB7: 3783 | MPC7: 3783 | MPD7: 3783 | MPE7: 3783 | MPF7: 3783 | MPG7: 3783 | MPH7: 3783 | MPI7: 3783 | MPJ7: 3783 | MPK7: 3783 | MPL7: 3783 | MPM7: 3783 | MPN7: 3783 | MPO7: 3783 | MPP7: 3783 | MPQ7: 3783 | MPR7: 3783 | MPS7: 3783 | MPT7: 3783 | MPU7: 3783 | MPV7: 3783 | MPW7: 3783 | MPX7: 3783 | MPY7: 3783 | MPZ7: 3783 | MQA7: 3783 | MQB7: 3783 | MQC7: 3783 | MQD7: 3783 | MQE7: 3783 | MQF7: 3783 | MQG7: 3783 | MQH7: 3783 | MQI7: 3783 | MQJ7: 3783 | MQK7: 3783 | MQL7: 3783 | MQM7: 3783 | MQN7: 3783 | MQO7: 3783 | MQP7: 3783 | MQQ7: 3783 | MQR7: 3783 | MQS7: 3783 | MQT7: 3783 | MQU7: 3783 | MQV7: 3783 | MQW7: 3783 | MQX7: 3783 | MQY7: 3783 | MQZ7: 3783 | MRA7: 3783 | MRB7: 3783 | MRC7: 3783 | MRD7: 3783 | MRE7: 3783 | MRF7: 3783 | MRG7: 3783 | MRH7: 3783 | MRI7: 3783 | MRJ7: 3783 | MRK7: 3783 | MRL7: 3783 | MRM7: 3783 | MRN7: 3783 | MRO7: 3783 | MRP7: 3783 | MRQ7: 3783 | MRR7: 3783 | MRS7: 3783 | MRT7: 3783 | MRU7: 3783 | MRV7: 3783 | MRW7: 3783 | MRX7: 3783 | MRY7: 3783 | MRZ7: 3783 | MSA7: 3783 | MSB7: 3783 | MSC7: 3783 | MSD7: 3783 | MSE7: 3783 | MSF7: 3783 | MSG7: 3783 | MSH7: 3783 | MSI7: 3783 | MSJ7: 3783 | MSK7: 3783 | MSL7: 3783 | MSM7: 3783 | MSN7: 3783 | MSO7: 3783 | MSP7: 3783 | MSQ7: 3783 | MSR7: 3783 | MSS7: 3783 | MST7: 3783 | MSU7: 3783 | MSV7: 3783 | MSW7: 3783 | MSX7: 3783 | MSY7: 3783 | MSZ7: 3783 | MTA7: 3783 | MTB7: 3783 | MTC7: 3783 | MTD7: 3783 | MTE7: 3783 | MTF7: 3783 | MTG7: 3783 | MTH7: 3783 | MTI7: 3783 | MTJ7: 3783 | MTK7: 3783 | MTL7: 3783 | MTM7: 3783 | MTN7: 3783 | MTO7: 3783 | MTP7: 3783 | MTQ7: 3783 | MTR7: 3783 | MTS7: 3783 | MTT7: 3783 | MTU7: 3783 | MTV7: 3783 | MTW7: 3783 | MTX7: 3783 | MTY7: 3783 | MTZ7: 3783 | MUA7: 3783 | MUB7: 3783 | MUC7: 3783 | MUD7: 3783 | MUE7: 3783 | MUF7: 3783 | MUG7: 3783 | MUH7: 3783 | MUI7: 3783 | MUJ7: 3783 | MUK7: 3783 | MUL7: 3783 | MUM7: 3783 | MUN7: 3783 | MUO7: 3783 | MUP7: 3783 | MUQ7: 3783 | MUR7: 3783 | MUS7: 3783 | MUT7: 3783 | MUU7: 3783 | MUV7: 3783 | MUW7: 3783 | MUX7: 3783 | MUY7: 3783 | MUZ7: 3783 | MVA7: 3783 | MVB7: 3783 | MVC7: 3783 | MVD7: 3783 | MVE7: 3783 | MVF7: 3783 | MVG7: 3783 | MVH7: 3783 | MVI7: 3783 | MVJ7: 3783 | MVK7: 3783 | MVL7: 3783 | MVM7: 3783 | MVN7: 3783 | MVO7: 3783 | MVP7: 3783 | MVQ7: 3783 | MVR7: 3783 | MVS7: 3783 | MVT7: 3783 | MVU7: 3783 | MVV7: 3783 | MVW7: 3783 | MVX7: 3783 | MVY7: 3783 | MVZ7: 3783 | MWA7: 3783 | MWB7: 3783 | MWC7: 3783 | MWD7: 3783 | MWE7: 3783 | MWF7: 3783 | MWG7: 3783 | MWH7: 3783 | MWI7: 3783 | MWJ7: 3783 | MWK7: 3783 | MWL7: 3783 | MWM7: 3783 | MWN7: 3783 | MWO7: 3783 | MWP7: 3783 | MWQ7: 3783 | MWR7: 3783 | MWS7: 3783 | MWT7: 3783 | MWU7: 3783 | MWV7: 3783 | MWW7: 3783 | MWX7: 3783 | MWY7: 3783 | MWZ7: 3783 | MXA7: 3783 | MXB7: 3783 | MXC7: 3783 | MXD7: 3783 | MXE7: 3783 | MXF7: 3783 | MXG7: 3783 | MXH7: 3783 | MXI7: 3783 | MXJ7: 3783 | MXK7: 3783 | MXL7: 3783 | MXM7: 3783 | MXN7: 3783 | MXO7: 3783 | MXP7: 3783 | MXQ7: 3783 | MXR7: 3783 | MXS7: 3783 | MXT7: 3783 | MXU7: 3783 | MXV7: 3783 | MXW7: 3783 | MXX7: 3783 | MXY7: 3783 | MXZ7: 3783 | MYA7: 3783 | MYB7: 3783 | MYC7: 3783 | MYD7: 3783 | MYE7: 3783 | MYF7: 3783 | MYG7: 3783 | MYH7: 3783 | MYI7: 3783 | MYJ7: 3783 | MYK7: 3783 | MYL7: 3783 | MYM7: 3783 | MYN7: 3783 | MYO7: 3783 | MYP7: 3783 | MYQ7: 3783 | MYR7: 3783 | MYS7: 3783 | MYT7: 3783 | MYU7: 3783 | MYV7: 3783 | MYW7: 3783 | MYX7: 3783 | MYY7: 3783 | MYZ7: 3783 | MZA7: 3783 | MZB7: 3783 | MZC7: 3783 | MZD7: 3783 | MZE7: 3783 | MZF7: 3783 | MZG7: 3783 | MZH7: 3783 | MZI7: 3783 | MZJ7: 3783 | MZK7: 3783 | MZL7: 3783 | MZM7: 3783 | MZN7: 3783 | MZO7: 3783 | MZP7: 3783 | MZQ7: 3783 | MZR7: 3783 | MZS7: 3783 | MZT7: 3783 | MZU7: 3783 | MZV7: 3783 | MZW7: 3783 | MZX7: 3783 | MZY7: 3783 | MZZ7: 3783 | NAA7: 3783 | NAB7: 3783 | NAC7: 3783 | NAD7: 3783 | NAE7: 3783 | NAF7: 3783 | NAG7: 3783 | NAH7: 3783 | NAI7: 3783 | NAJ7: 3783 | NAK7: 3783 | NAL7: 3783 | NAM7: 3783 | NAN7: 3783 | NAO7: 3783 | NAP7: 3783 | NAQ7: 3783 | NAR7: 3783 | NAS7: 3783 | NAT7: 3783 | NAU7: 3783 | NAV7: 3783 | NAW7: 3783 | NAX7: 3783 | NAY7: 3783 | NAZ7: 3783 | NBA7: 3783 | NBB7: 3783 | NBC7: 3783 | NBD7: 3783 | NBE7: 3783 | NBF7: 3783 | NBG7: 3783 | NBH7: 3783 | NBI7: 3783 | NBJ7: 3783 | NBK7: 3783 | NBL7: 3783 | NBM7: 3783 | NBN7: 3783 | NBO7: 3783 | NBP7: 3783 | NBQ7: 3783 | NBR7: 3783 | NBS7: 3783 | NBT7: 3783 | NBU7: 3783 | NBV7: 3783 | NBW7: 3783 | NBX7: 3783 | NBY7: 3783 | NBZ7: 3783 | NCA7: 3783 | NCB7: 3783 | NCC7: 3783 | NCD7: 3783 | NCE7: 3783 | NCF7: 3783 | NCG7: 3783 | NCH7: 3783 | NCI7: 3783 | NCJ7: 3783 | NCK7: 3783 | NCL7: 3783 | NCM7: 3783 | NCN7: 3783 | NCO7: 3783 | NCP7: 3783 | NCQ7: 3783 | NCR7: 3783 | NCS7: 3783 | NCT7: 3783 | NCU7: 3783 | NCV7: 3783 | NCW7: 3783 | NCX7: 3783 | NCY7: 3783 | NCZ7: 3783 | NDA7: 3783 | NDB7: 3783 | NDC7: 3783 | NDD7: 3783 | NDE7: 3783 | NDF7: 3783 | NDG7: 3783 | NDH7: 3783 | NDI7: 3783 | NDJ7: 3783 | NDK7: 3783 | NDL7: 3783 | NDM7: 3783 | NDN7: 3783 | NDO7: 3783 | NDP7: 3783 | NDQ7: 3783 | NDR7: 3783 | NDS7: 3783 | NDT7: 3783 | NDU7: 3783 | NDV7: 3783 | NDW7: 3783 | NDX7: 3783 | NDY7: 3783 | NDZ7: 3783 | NEA7: 3783 | NEB7: 3783 | NEC7: 3783 | NED7: 3783 | NEE7: 3783 | NEF7: 3783 | NEG7: 3783 | NEH7: 3783 | NEI7: 3783 | NEJ7: 3783 | NEK7: 3783 | NEL7: 3783 | NEM7: 3783 | NEN7: 3783 | NEO7: 3783 | NEP7: 3783 | NEQ7: 3783 | NER7: 3783 | NES7: 3783 | NET7: 3783 | NEU7: 3783 | NEV7: 3783 | NEW7: 3783 | NEX7: 3783 | NEY7: 3783 | NEZ7: 3783 | NFA7: 3783 | NFB7: 3783 | NFC7: 3783 | NFD7: 3783 | NFE7: 3783 | NFF7: 3783 | NFG7: 3783 | NFH7: 3783 | NFI7: 3783 | NFJ7: 3783 | NFK7: 3783 | NFL7: 3783 | NFM7: 3783 | NFN7: 3783 | NFO7: 3783 | NFP7: 3783 | NFQ7: 3783 | NFR7: 3783 | NFS7: 3783 | NFT7: 3783 | NFU7: 3783 | NFV7: 3783 | NFW7: 3783 | NFX7: 3783 | NFY7: 3783 | NFZ7: 3783 | NGA7: 3783 | NGB7: 3783 | NGC7: 3783 | NGD7: 3783 | NGE7: 3783 | NGF7: 3783 | NGG7: 3783 | NGH7: 3783 | NGI7: 3783 | NGJ7: 3783 | NGK7: 3783 | NGL7: 3783 | NGM7: 3783 | NGN7: 3783 | NGO7: 3783 | NGP7: 3783 | NGQ7: 3783 | NGR7: 3783 | NGS7: 3783 | NGT7: 3783 | NGU7: 3783 | NGV7: 3783 | NGW7: 3783 | NGX7: 3783 | NGY7: 3783 | NGZ7: 3783 | NHA7: 3783 | NHB7: 3783 | NHC7: 3783 | NHD7: 3783 | NHE7: 3783 | NHF7: 3783 | NHG7: 3783 | NHH7: 3783 | NHI7: 3783 | NHJ7: 3783 | NHK7: 3783 | NHL7: 3783 | NHM7: 3783 | NHN7: 3783 | NHO7: 3783 | NHP7: 3783 | NHQ7: 3783 | NHR7: 3783 | NHS7: 3783 | NHT7: 3783 | NHU7: 3783 | NHV7: 3783 | NHW7: 3783 | NHX7: 3783 | NHY7: 3783 | NHZ7: 3783 | NIA7: 3783 | NIB7: 3783 | NIC7: 3783 | NID7: 3783 | NIE7: 3783 | NIF7: 3783 | NIG7: 3783 | NIH7: 3783 | NII7: 3783 | NIJ7: 3783 | NIK7: 3783 | NIL7: 3783 | NIM7: 3783 | NIN7: 3783 | NIO7: 3783 | NIP7: 3783 | NIQ7: 3783 | NIR7: 3783 | NIS7: 3783 | NIT7: 3783 | NIU7: 3783 | NIV7: 3783 | NIW7: 3783 | NIX7: 3783 | NIY7: 3783 | NIZ7: 3783 | NJA7: 3783 | NJB7: 3783 | NJC7: 3783 | NJD7: 3783 | NJE7: 3783 | NJF7: 3783 | NJG7: 3783 | NJH7: 3783 | NJI7: 3783 | NJJ7: 3783 | NJK7: 3783 | NJL7: 3783 | NJM7: 3783 | NJN7: 3783 | NJO7: 3783 | NJP7: 3783 | NJQ7: 3783 | NJR7: 3783 | NJS7: 3783 | NJT7: 3783 | NJU7: 3783 | NJV7: 3783 | NJW7: 3783 | NJX7: 3783 | NJY7: 3783 | NJZ7: 3783 | NKA7: 3783 | NKB7: 3783 | NKC7: 3783 | NKD7: 3783 | NKE7: 3783 | NKF7: 3783 | NKG7: 3783 | NKH7: 3783 | NKI7: 3783 | NKJ7: 3783 | NKK7: 3783 | NKL7: 3783 | NKM7: 3783 | NKN7: 3783 | NKO7: 3783 | NKP7: 3783 | NKQ7: 3783 | NKR7: 3783 | NKS7: 3783 | NKT7: 3783 | NKU7: 3783 | NKV7: 3783 | NKW7: 3783 | NKX7: 3783 | NKY7: 3783 | NKZ7: 3783 | NLA7: 3783 | NLB7: 3783 | NLC7: 3783 | NLD7: 3783 | NLE7: 3783 | NLF7: 3783 | NLG7: 3783 | NLH7: 3783 | NLI7: 3783 | NLJ7: 3783 | NLK7: 3783 | NLL7: 3783 | NLM7: 3783 | NLN7: 3783 | NLO7: 3783 | NLP7: 3783 | NLQ7: 3783 | NLR7: 3783 | NLS7: 3783 | NLT7: 3783 | NLU7: 3783 | NLV7: 3783 | NLW7: 3783 | NLX7: 3783 | NLY7: 3783 | NLZ7: 3783 | NMA7: 3783 | NMB7: 3783 | NMC7: 3783 | NMD7: 3783 | NME7: 3783 | NMF7: 3783 | NMG7: 3783 | NMH7: 3783 | NMI7: 3783 | NMJ7: 3783 | NMK7: 3783 | NML7: 3783 | NMM7: 3783 | NMN7: 3783 | NMO7: 3783 | NMP7: 3783 | NMQ7: 3783 | NMR7: 3783 | NMS7: 3783 | NMT7: 3783 | NMU7: 3783 | NMV7: 3783 | NMW7: 3783 | NMX7: 3783 | NMY7: 3783 | NMZ7: 3783 | NNA7: 3783 | NNB7: 3783 | NNC7: 3783 | NND7: 3783 | NNE7: 3783 | NNF7: 3783 | NNG7: 3783 | NNH7: 3783 | NNI7: 3783 | NNJ7: 3783 | NNK7: 3783 | NNL7: 3783 | NNM7: 3783 | NNN7: 3783 | NNO7: 3783 | NNP7: 3783 | NNQ7: 3783 | NNR7: 3783 | NNS7: 3783 | NNT7: 3783 | NNU7: 3783 | NNV7: 3783 | NNW7: 3783 | NNX7: 3783 | NNY7: 3783 | NNZ7: 3783 | NOA7: 3783 | NOB7: 3783 | NOC7: 3783 | NOD7: 3783 | NOE7: 3783 | NOF7: 3783 | NOG7: 3783 | NOH7: 3783 | NOI7: 3783 | NOJ7: 3783 | NOK7: 3783 | NOL7: 3783 | NOM7: 3783 | NON7: 3783 | NOO7: 3783 | NOP7: 3783 | NOQ7: 3783 | NOR7: 3783 | NOS7: 3783 | NOT7: 3783 | NOU7: 3783 | NOV7: 3783 | NOW7: 3783 | NOX7: 3783 | NOY7: 3783 | NOZ7: 3783 | NPA7: 3783 | NPB7: 3783 | NPC7: 3783 | NPD7: 3783 | NPE7: 3783 | NPF7: 3783 | NPG7: 3783 | NPH7: 3783 | NPI7: 3783 | NPJ7: 3783 | NPK7: 3783 | NPL7: 3783 | NPM7: 3783 | NPN7: 3783 | NPO7: 3783 | NPP7: 3783 | NPQ7: 3783 | NPR7: 3783 | NPS7: 3783 | NPT7: 3783 | NPU7: 3783 | NPV7: 3783 | NPW7: 3783 | NPX7: 3783 | NPY7: 3783 | NPZ7: 3783 | NQA7: 3783 | NQB7: 3783 | NQC7: 3783 | NQD7: 3783 | NQE7: 3783 | NQF7: 3783 | NQG7: 3783 | NQH7: 3783 | NQI7: 3783 | NQJ7: 3783 | NQK7: 3783 | NQL7: 3783 | NQM7: 3783 | NQN7: 3783 | NQO7: 3783 | NQP7: 3783 | NQQ7: 3783 | NQR7: 3783 | NQS7: 3783 | NQT7: 3783 | NQU7: 3783 | NQV7: 3783 | NQW7: 3783 | NQX7: 3783 | NQY7: 3783 | NQZ7: 3783 | NRA7: 3783 | NRB7: 3783 | NRC7: 3783 | NRD7: 3783 | NRE7: 3783 | NRF7: 3783 | NRG7: 3783 | NRH7: 3783 | NRI7: 3783 | NRJ7: 3783 | NRK7: 3783 | NRL7: 3783 | NRM7: 3783 | NRN7: 3783 | NRO7: 3783 | NRP7: 3783 | NRQ7: 3783 | NRR7: 3783 | NRS7: 3783 | NRT7: 3783 | NRU7: 3783 | NRV7: 3783 | NRW7: 3783 | NRX7: 3783 | NRY7: 3783 | NRZ7: 3783 | NSA7: 3783 | NSB7: 3783 | NSC7: 3783 | NSD7: 3783 | NSE7: 3783 | NSF7: 3783 | NSG7: 3783 | NSH7: 3783 | NSI7: 3783 | NSJ7: 3783 | NSK7: 3783 | NSL7: 3783 | NSM7: 3783 | NSN7: 3783 | NSO7: 3783 | NSP7: 3783 | NSQ7: 3783 | NSR7: 3783 | NSS7: 3783 | NST7: 3783 | NSU7: 3783 | NSV7: 3783 | NSW7: 3783 | NSX7: 3783 | NSY7: 3783 | NSZ7: 3783 | NTA7: 3783 | NTB7: 3783 | NTC7: 3783 | NTD7: 3783 | NTE7: 3783 | NTF7: 3783 | NTG7: 3783 | NTH7: 3783 | NTI7: 3783 | NTJ7: 3783 | NTK7: 3783 | NTL7: 3783 | NTM7: 3783 | NTN7: 3783 | NTO7: 3783 | NTP7: 3783 | NTQ7: 3783 | NTR7: 3783 | NTS7: 3783 | NTT7: 3783 | NTU7: 3783 | NTV7: 3783 | NTW7: 3783 | NTX7: 3783 | NTY7: 3783 | NTZ7: 3783 | NUA7: 3783 | NUB7: 3783 | NUC7: 3783 | NUD7: 3783 | NUE7: 3783 | NUF7: 3783 | NUG7: 3783 | NUH7: 3783 | NUI7: 3783 | NUJ7: 3783 | NUK7: 3783 | NUL7: 3783 | NUM7: 3783 | NUN7: 3783 | NUO7: 3783 | NUP7: 3783 | NUQ7: 3783 | NUR7: 3783 | NUS7: 3783 | NUT7: 3783 | NUU7: 3783 | NUV7: 3783 | NUW7: 3783 | NUX7: 3783 | NUY7: 3783 | NUZ7: 3783 | NVA7: 3783 | NVB7: 3783 | NVC7: 3783 | NVD7: 3783 | NVE7: 3783 | NVF7: 3783 | NVG7: 3783 | NVH7: 3783 | NVI7: 3783 | NVJ7: 3783 | NVK7: 3783 | NVL7: 3783 | NVM7: 3783 | NVN7: 3783 | NVO7: 3783 | NVP7: 3783 | NVQ7: 3783 | NVR7: 3783 | NVS7: 3783 | NVT7: 3783 | NVU7: 3783 | NVV7: 3783 | NVW7: 3783 | NVX7: 3783 | NVY7: 3783 | NVZ7: 3783 | NWA7: 3783 | NWB7: 3783 | NWC7: 3783 | NWD7: 3783 | NWE7: 3783 | NWF7: 3783 | NWG7: 3783 | NWH7: 3783 | NWI7: 3783 | NWJ7: 3783 | NWK7: 3783 | NWL7: 3783 | NWM7: 3783 | NWN7: 3783 | NWO7: 3783 | NWP7: 3783 | NWQ7: 3783 | NWR7: 3783 | NWS7: 3783 | NWT7: 3783 | NWU7: 3783 | NWV7: 3783 | NWW7: 3783 | NWX7: 3783 | NWY7: 3783 | NWZ7: 3783 | NXA7: 3783 | NXB7: 3783 | NXC7: 3783 | NXD7: 3783 | NXE7: 3783 | NXF7: 3783 | NXG7: 3783 | NXH7: 3783 | NXI7: 3783 | NXJ7: 3783 | NXK7: 3783 | NXL7: 3783 | NXM7: 3783 | NXN7: 3783 | NXO7: 3783 | NXP7: 3783 | NXQ7: 3783 | NXR7: 3783 | NXS7: 3783 | NXT7: 3783 | NXU7: 3783 | NXV7: 3783 | NXW7: 3783 | NXX7: 3783 | NXY7: 3783 | NXZ7: 3783 | NYA7: 3783 | NYB7: 3783 | NYC7: 3783 | NYD7: 3783 | NYE7: 3783 | NYF7: 3783 | NYG7: 3783 | NYH7: 3783 | NYI7: 3783 | NYJ7: 3783 | NYK7: 3783 | NYL7: 3783 | NYM7: 3783 | NYN7: 3783 | NYO7: 3783 | NYP7: 3783 | NYQ7: 3783 | NYR7: 3783 | NYS7: 3783 | NYT7: 3783 | NYU7: 3783 | NYV7: 3783 | NYW7: 3783 | NYX7: 3783 | NYY7: 3783 | NYZ7: 3783 | NZA7: 3783 | NZB7: 3783 | NZC7: 3783 | NZD7: 3783 | NZE7: 3783 | NZF7: 3783 | NZG7: 3783 | NZH7: 3783 | NZI7: 3783 | NZJ7: 3783 | NZK7: 3783 | NZL7: 3783 | NZM7: 3783 | NZN7: 3783 | NZO7: 3783 | NZP7: 3783 | NZQ7: 3783 | NZR7: 3783 | NZS7: 3783 | NZT7: 3783 | NZU7: 3783 | NZV7: 3783 | NZW7: 3783 | NZX7: 3783 | NZY7: 3783 | NZZ7: 3783 | OAA7: 3783 | OAB7: 3783 | OAC7: 3783 | OAD7: 3783 | OAE7: 3783 | OAF7: 3783 | OAG7: 3783 | OAH7: 3783 | OAI7: 3783 | OAJ7: 3783 | OAK7: 3783 | OAL7: 3783 | OAM7: 3783 | OAN7: 3783 | OAO7: 3783 | OAP7: 3783 | OAQ7: 3783 | OAR7: 3783 | OAS7: 3783 | OAT7: 3783 | OAU7: 3783 | OAV7: 3783 | OAW7: 3783 | OAX7: 3783 | OAY7: 3783 | OAZ7: 3783 | OBA7: 3783 | OBB7: 3783 | OBC7: 3783 | OBD7: 3783 | OBE7: 3783 | OBF7: 3783 | OBG7: 3783 | OBH7: 3783 | OBI7: 3783 | OBJ7: 3783 | OBK7: 3783 | OBL7: 3783 | OBM7: 3783 | OBN7: 3783 | OBO7: 3783 | OBP7: 3783 | OBQ7: 3783 | OBR7: 3783 | OBS7: 3783 | OBT7: 3783 | OBU7: 3783 | OBV7: 3783 | OBW7: 3783 | OBX7: 3783 | OBY7: 3783 | OBZ7: 3783 | OCA7: 3783 | OCB7: 3783 | OCC7: 3783 | OCD7: 3783 | OCE7: 3783 | OCF7: 3783 | OCG7: 3783 | OCH7: 3783 | OCI7: 3783 | OCJ7: 3783 | OCK7: 3783 | OCL7: 3783 | OCM7: 3783 | OCN7: 3783 | OCO7: 3783 | OCP7: 3783 | OCQ7: 3783 | OCR7: 3783 | OCS7: 3783 | OCT7: 3783 | OCU7: 3783 | OCV7: 3783 | OCW7: 3783 | OCX7: 3783 | OCY7: 3783 | OCZ7: 3783 | ODA7: 3783 | ODB7: 3783 | ODC7: 3783 | ODD7: 3783 | ODE7: 3783 | ODF7: 3783 | ODG7: 3783 | ODH7: 3783 | ODI7: 3783 | ODJ7: 3783 | ODK7: 3783 | ODL7: 3783 | ODM7: 3783 | ODN7: 3783 | ODO7: 3783 | ODP7: 3783 | ODQ7: 3783 | ODR7: 3783 | ODS7: 3783 | ODT7: 3783 | ODU7: 3783 | ODV7: 3783 | ODW7: 3783 | ODX7: 3783 | ODY7: 3783 | ODZ7: 3783 | OEA7: 3783 | OEB7: 3783 | OEC7: 3783 | OED7: 3783 | OEE7: 3783 | OEF7: 3783 | OEG7: 3783 | OEH7: 3783 | OEI7: 3783 | OEJ7: 3783 | OEK7: 3783 | OEL7: 3783 | OEM7: 3783 | OEN7: 3783 | OEO7: 3783 | OEP7: 3783 | OEQ7: 3783 | OER7: 3783 | OES7: 3783 | OET7: 3783 | OEU7: 3783 | OEV7: 3783 | OEW7: 3783 | OEX7: 3783 | OEY7: 3783 | OEZ7: 3783 | OFA7: 3783 | OFB7: 3783 | OFC7: 3783 | OFD7: 3783 | OFE7: 3783 | OFF7: 3783 | OFG7: 3783 | OFH7: 3783 | OFI7: 3783 | OFJ7: 3783 | OFK7: 3783 | OFL7: 3783 | OFM7: 3783 | OFN7: 3783 | OFO7: 3783 | OFP7: 3783 | OFQ7: 3783 | OFR7: 3783 | OFS7: 3783 | OFT7: 3783 | OFU7: 3783 | OFV7: 3783 | OFW7: 3783 | OFX7: 3783 | OFY7: 3783 | OFZ7: 3783 | OGA7: 3783 | OGB7: 3783 | OGC7: 3783 | OGD7: 3783 | OGE7: 3783 | OGF7: 3783 | OGG7: 3783 | OGH7: 3783 | OGI7: 3783 | OGJ7: 3783 | OGK7: 3783 | OGL7: 3783 | OGM7: 3783 | OGN7: 3783 | OGO7: 3783 | OGP7: 3783 | OGQ7: 3783 | OGR7: 3783 | OGS7: 3783 | OGT7: 3783 | OGU7: 3783 | OGV7: 3783 | OGW7: 3783 | OGX7: 3783 | OGY7: 3783 | OGZ7: 3783 | OHA7: 3783 | OHB7: 3783 | OHC7: 3783 | OHD7: 3783 | OHE7: 3783 | OHF7: 3783 | OHG7: 3783 | OHH7: 3783 | OHI7: 3783 | OHJ7: 3783 | OHK7: 3783 | OHL7: 3783 | OHM7: 3783 | OHN7: 3783 | OHO7: 3783 | OHP7: 3783 | OHQ7: 3783 | OHR7: 3783 | OHS7: 3783 | OHT7: 3783 | OHU7: 3783 | OHV7: 3783 | OHW7: 3783 | OHX7: 3783 | OHY7: 3783 | OHZ7: 3783 | OIA7: 3783 | OIB7: 3783 | OIC7: 3783 | OID7: 3783 | OIE7: 3783 | OIF7: 3783 | OIG7: 3783 | OIH7: 3783 | OII7: 3783 | OIJ7: 3783 | OIK7: 3783 | OIL7: 3783 | OIM7: 3783 | OIN7: 3783 | OIO7: 3783 | OIP7: 3783 | OIQ7: 3783 | OIR7: 3783 | OIS7: 3783 | OIT7: 3783 | OIU7: 3783 | OIV7: 3783 | OIW7: 3783 | OIX7: 3783 | OIY7: 3783 | OIZ7: 3783 | OJA7: 3783 | OJB7: 3783 | OJC7: 3783 | OJD7: 3783 | OJE7: 3783 | OJF7: 3783 | OJG7: 3783 | OJH7: 3783 | OJI7: 3783 | OJJ7: 3783 | OJK7: 3783 | OJL7: 3783 | OJM7: 3783 | OJN7: 3783 | OJO7: 3783 | OJP7: 3783 | OJQ7: 3783 | OJR7: 3783 | OJS7: 3783 | OJT7: 3783 | OJU7: 3783 | OJV7: 3783 | OJW7: 3783 | OJX7: 3783 | OJY7: 3783 | OJZ7: 3783 | OKA7: 3783 | OKB7: 3783 | OKC7: 3783 | OKD7: 3783 | OKE7: 3783 | OKF7: 3783 | OKG7: 3783 | OKH7: 3783 | OKI7: 3783 | OKJ7: 3783 | OKK7: 3783 | OKL7: 3783 | OKM7: 3783 | OKN7: 3783 | OKO7: 3783 | OKP7: 3783 | OKQ7: 3783 | OKR7: 3783 | OKS7: 3783 | OKT7: 3783 | OKU7: 3783 | OKV7: 3783 | OKW7: 3783 | OKX7: 3783 | OKY7: 3783 | OKZ7: 3783 | OLA7: 3783 | OLB7: 3783 | OLC7: 3783 | OLD7: 3783 | OLE7: 3783 | OLF7: 3783 | OLG7: 3783 | OLH7: 3783 | OLI7: 3783 | OLJ7: 3783 | OLK7: 3783 | OLL7: 3783 | OLM7: 3783 | OLN7: 3783 | OLO7: 3783 | OLP7: 3783 | OLQ7: 3783 | OLR7: 3783 | OLS7: 3783 | OLT7: 3783 | OLU7: 3783 | OLV7: 3783 | OLW7: 3783 | OLX7: 3783 | OLY7: 3783 | OLZ7: 3783 | OMA7: 3783 | OMB7: 3783 | OMC7: 3783 | OMD7: 3783 | OME7: 3783 | OMF7: 3783 | OMG7: 3783 | OMH7: 3783 | OMI7: 3783 | OMJ7: 3783 | OMK7: 3783 | OML7: 3783 | OMM7: 3783 | OMN7: 3783 | OMO7: 3783 | OMP7: 3783 | OMQ7: 3783 | OMR7: 3783 | OMS7: 3783 | OMT7: 3783 | OMU7: 3783 | OMV7: 3783 | OMW7: 3783 | OMX7: 3783 | OMY7: 3783 | OMZ7: 3783 | ONA7: 3783 | ONB7: 3783 | ONC7: 3783 | OND7: 3783 | ONE7: 3783 | ONF7: 3783 | ONG7: 3783 | ONH7: 3783 | ONI7: 3783 | ONJ7: 3783 | ONK7: 3783 | ONL7: 3783 | ONM7: 3783 | ONN7: 3783 | ONO7: 3783 | ONP7: 3783 | ONQ7: 3783 | ONR7: 3783 | ONS7: 3783 | ONT7: 3783 | ONU7: 3783 | ONV7: 3783 | ONW7: 3783 | ONX7: 3783 | ONY7: 3783 | ONZ7: 3783 | OOA7: 3783 | OOB7: 3783 | OOC7: 3783 | OOD7: 3783 | OOE7: 3783 | OOF7: 3783 | OOG7: 3783 | OOH7: 3783 | OOI7: 3783 | OOJ7: 3783 | OOK7: 3783 | OOL7: 3783 | OOM7: 3783 | OON7: 3783 | OOO7: 3783 | OOP7: 3783 | OOQ7: 3783 | OOR7: 3783 | OOS7: 3783 | OOT7: 3783 | OOU7: 3783 | OOV7: 3783 | OOW7: 3783 | OOX7: 3783 | OOY7: 3783 | OOZ7: 3783 | OPA7: 3783 | OPB7: 3783 | OPC7: 3783 | OPD7: 3783 | OPE7: 3783 | OPF7: 3783 | OPG7: 3783 | OPH7: 3783 | OPI7: 3783 | OPJ7: 3783 | OPK7: 3783 | OPL7: 3783 | OPM7: 3783 | OPN7: 3783 | OPO7: 3783 | OPP7: 3783 | OPQ7: 3783 | OPR7: 3783 | OPS7: 3783 | OPT7: 3783 | OPU7: 3783 | OPV7: 3783 | OPW7: 3783 | OPX7: 3783 | OPY7: 3783 | OPZ7: 3783 | OQA7: 3783 | OQB7: 3783 | OQC7: 3783 | OQD7: 3783 | OQE7: 3783 | OQF7: 3783 | OQG7: 3783 | OQH7: 3783 | OQI7: 3783 | OQJ7: 3783 | OQK7: 3783 | OQL7: 3783 | OQM7: 3783 | OQN7: 3783 | OQO7: 3783 | OQP7: 3783 | OQQ7: 3783 | OQR7: 3783 | OQS7: 3783 | OQT7: 3783 | OQU7: 3783 | OQV7: 3783 | OQW7: 3783 | OQX7: 3783 | OQY7: 3783 | OQZ7: 3783 | ORA7: 3783 | ORB7: 3783 | ORC7: 3783 | ORD7: 3783 | ORE7: 3783 | ORF7: 3783 | ORG7: 3783 | ORH7: 3783 | ORI7: 3783 | ORJ7: 3783 | ORK7: 3783 | ORL7: 3783 | ORM7: 3783 | ORN7: 3783 | ORO7: 3783 | ORP7: 3783 | ORQ7: 3783 | ORR7: 3783 | ORS7: 3783 | ORT7: 3783 | ORU7: 3783 | ORV7: 3783 | ORW7: 3783 | ORX7: 3783 | ORY7: 3783 | ORZ7: 3783 | OSA7: 3783 | OSB7: 3783 | OSC7: 3783 | OSD7: 3783 | OSE7: 3783 | OSF7: 3783 | OSG7: 3783 | OSH7: 3783 | OSI7: 3783 | OSJ7: 3783 | OSK7: 3783 | OSL7: 3783 | OSM7: 3783 | OSN7: 3783 | OSO7: 3783 | OSP7: 3783 | OSQ7: 3783 | OSR7: 3783 | OSS7: 3783 | OST7: 3783 | OSU7: 3783 | OSV7: 3783 | OSW7: 3783 | OSX7: 3783 | OSY7: 3783 | OSZ7: 3783 | OTA7: 3783 | OTB7: 3783 | OTC7: 3783 | OTD7: 3783 | OTE7: 3783 | OTF7: 3783 | OTG7: 3783 | OTH7: 3783 | OTI7: 3783 | OTJ7: 3783 | OTK7: 3783 | OTL7: 3783 | OTM7: 3783 | OTN7: 3783 | OTO7: 3783 | OTP7: 3783 | OTQ7: 3783 | OTR7: 3783 | OTS7: 3783 | OTT7: 3783 | OTU7: 3783 | OTV7: 3783 | OTW7: 3783 | OTX7: 3783 | OTY7: 3783 | OTZ7: 3783 | OUA7: 3783 | OUB7: 3783 | OUC7: 3783 | OUD7: 3783 | OUE7: 3783 | OUF7: 3783 | OUG7: 3783 | OUH7: 3783 | OUI7: 3783 | OUJ7: 3783 | OUK7: 3783 | OUL7: 3783 | OUM7: 3783 | OUN7: 3783 | OUO7: 3783 | OUP7: 3783 | OUQ7: 3783 | OUR7: 3783 | OUS7: 3783 | OUT7: 3783 | OUU7: 3783 | OUV7: 3783 | OUW7: 3783 | OUX7: 3783 | OUY7: 3783 | OUZ7: 3783 | OVA7: 3783 | OVB7: 3783 | OVC7: 3783 | OVD7: 3783 | OVE7: 3783 | OVF7: 3783 | OVG7: 3783 | OVH7: 3783 | OVI7: 3783 | OVJ7: 3783 | OVK7: 3783 | OVL7: 3783 | OVM7: 3783 | OVN7: 3783 | OVO7: 3783 | OVP7: 3783 | OVQ7: 3783 | OVR7: 3783 | OVS7: 3783 | OVT7: 3783 | OVU7: 3783 | OVV7: 3783 | OVW7: 3783 | OVX7: 3783 | OVY7: 3783 | OVZ7: 3783 | OWA7: 3783 | OWB7: 3783 | OWC7: 3783 | OWD7: 3783 | OWE7: 3783 | OWF7: 3783 | OWG7: 3783 | OWH7: 3783 | OWI7: 3783 | OWJ7: 3783 | OWK7: 3783 | OWL7: 3783 | OWM7: 3783 | OWN7: 3783 | OWO7: 3783 | OWP7: 3783 | OWQ7: 3783 | OWR7: 3783 | OWS7: 3783 | OWT7: 3783 | OWU7: 3783 | OWV7: 3783 | OWW7: 3783 | OWX7: 3783 | OWY7: 3783 | OWZ7: 3783 | OXA7: 3783 | OXB7: 3783 | OXC7: 3783 | OXD7: 3783 | OXE7: 3783 | OXF7: 3783 | OXG7: 3783 | OXH7: 3783 | OXI7: 3783 | OXJ7: 3783 | OXK7: 3783 | OXL7: 3783 | OXM7: 3783 | OXN7: 3783 | OXO7: 3783 | OXP7: 3783 | OXQ7: 3783 | OXR7: 3783 | OXS7: 3783 | OXT7: 3783 | OXU7: 3783 | OXV7: 3783 | OXW7: 3783 | OXX7: 3783 | OXY7: 3783 | OXZ7: 3783 | OYA7: 3783 | OYB7: 3783 | OYC7: 3783 | OYD7: 3783 | OYE7: 3783 | OYF7: 3783 | OYG7: 3783 | OYH7: 3783 | OYI7: 3783 | OYJ7: 3783 | OYK7: 3783 | OYL7: 3783 | OYM7: 3783 | OYN7: 3783 | OYO7: 3783 | OYP7: 3783 | OYQ7: 3783 | OYR7: 3783 | OYS7: 3783 | OYT7: 3783 | OYU7: 3783 | OYV7: 3783 | OYW7: 3783 | OYX7: 3783 | OYY7: 3783 | OYZ7: 3783 | OZA7: 3783 | OZB7: 3783 | OZC7: 3783 | OZD7: 3783 | OZE7: 3783 | OZF7: 3783 | OZG7: 3783 | OZH7: 3783 | OZI7: 3783 | OZJ7: 3783 | OZK7: 3783 | OZL7: 3783 | OZM7: 3783 | OZN7: 3783 | OZO7: 3783 | OZP7: 3783 | OZQ7: 3783 | OZR7: 3783 | OZS7: 3783 | OZT7: 3783 | OZU7: 3783 | OZV7: 3783 | OZW7: 3783 | OZX7: 3783 | OZY7: 3783 | OZZ7: 3783 | PAA7: 3783 | PAB7: 3783 | PAC7: 3783 | PAD7: 3783 | PAE7: 3783 | PAF7: 3783 | PAG7: 3783 | PAH7: 3783 | PAI7: 3783 | PAJ7: 3783 | PAK7: 3783 | PAL7: 3783 | PAM7: 3783 | PAN7: 3783 | PAO7: 3783 | PAP7: 3783 | PAQ7: 3783 | PAR7: 3783 | PAS7: 3783 | PAT7: 3783 | PAU7: 3783 | PAV7: 3783 | PAW7: 3783 | PAX7: 3783 | PAY7: 3783 | PAZ7: 3783 | PBA7: 3783 | PBB7: 3783 | PBC7: 3783 | PBD7: 3783 | PBE7: 3783 | PBF7: 3783 | PBG7: 3783 | PBH7: 3783 | PBI7: 3783 | PBJ7: 3783 | PBK7: 3783 | PBL7: 3783 | PBM7: 3783 | PBN7: 3783 | PBO7: 3783 | PBP7: 3783 | PBQ7: 3783 | PBR7: 3783 | PBS7: 3783 | PBT7: 3783 | PBU7: 3783 | PBV7: 3783 | PBW7: 3783 | PBX7: 3783 | PBY7: 3783 | PBZ7: 3783 | PCA7: 3783 | PCB7: 3783 | PCC7: 3783 | PCD7: 3783 | PCE7: 3783 | PCF7: 3783 | PCG7: 3783 | PCH7: 3783 | PCI7: 3783 | PCJ7: 3783 | PCK7: 3783 | PCL7: 3783 | PCM7: 3783 | PCN7: 3783 | PCO7: 3783 | PCP7: 3783 | PCQ7: 3783 | PCR7: 3783 | PCS7: 3783 | PCT7: 3783 | PCU7: 3783 | PCV7: 3783 | PCW7: 3783 | PCX7: 3783 | PCY7: 3783 | PCZ7: 3783 | PDA7: 3783 | PDB7: 3783 | PDC7: 3783 | PDD7: 3783 | PDE7: 3783 | PDF7: 3783 | PDG7: 3783 | PDH7: 3783 | PDI7: 3783 | PDJ7: 3783 | PDK7: 3783 | PDL7: 3783 | PDM7: 3783 | PDN7: 3783 | PDO7: 3783 | PDP7: 3783 | PDQ7: 3783 | PDR7: 3783 | PDS7: 3783 | PDT7: 3783 | PDU7: 3783 | PDV7: 3783 | PDW7: 3783 | PDX7: 3783 | PDY7: 3783 | PDZ7: 3783 | PEA7: 3783 | PEB7: 3783 | PEC7: 3783 | PED7: 3783 | PEE7: 3783 | PEF7: 3783 | PEG7: 3783 | PEH7: 3783 | PEI7: 3783 | PEJ7: 3783 | PEK7: 3783 | PEL7: 3783 | PEM7: 3783 | PEN7: 3783 | PEO7: 3783 | PEP7: 3783 | PEQ7: 3783 | PER7: 3783 | PES7: 3783 | PET7: 3783 | PEU7: 3783 | PEV7: 3783 | PEW7: 3783 | PEX7: 3783 | PEY7: 3783 | PEZ7: 3783 | PFA7: 3783 | PFB7: 3783 | PFC7: 3783 | PFD7: 3783 | PFE7: 3783 | PFF7: 3783 | PFG7: 3783 | PFH7: 3783 | PFI7: 3783 | PFJ7: 3783 | PFK7: 3783 | PFL7: 3783 | PFM7: 3783 | PFN7: 3783 | PFO7: 3783 | PFP7: 3783 | PFQ7: 3783 | PFR7: 3783 | PFS7: 3783 | PFT7: 3783 | PFU7: 3783 | PFV7: 3783 | PFW7: 3783 | PFX7: 3783 | PFY7: 3783 | PFZ7: 3783 | PGA7: 3783 | PGB7: 3783 | PGC7: 3783 | PGD7: 3783 | PGE7: 3783 | PGF7: 3783 | PGG7: 3783 | PGH7: 3783 | PGI7: 3783 | PGJ7: 3783 | PGK7: 3783 | PGL7: 3783 | PGM7: 3783 | PGN7: 3783 | PGO7: 3783 | PGP7: 3783 | PGQ7: 3783 | PGR7: 3783 | PGS7: 3783 | PGT7: 3783 | PGU7: 3783 | PGV7: 3783 | PGW7: 3783 | PGX7: 3783 | PGY7: 3783 | PGZ7: 3783 | PHA7: 3783 | PHB7: 3783 | PHC7: 3783 | PHD7: 3783 | PHE7: 3783 | PHF7: 3783 | PHG7: 3783 | PHH7: 3783 | PHI7: 3783 | PHJ7: 3783 | PHK7: 3783 | PHL7: 3783 | PHM7: 3783 | PHN7: 3783 | PHO7: 3783 | PHP7: 3783 | PHQ7: 3783 | PHR7: 3783 | PHS7: 3783 | PHT7: 3783 | PHU7: 3783 | PHV7: 3783 | PHW7: 3783 | PHX7: 3783 | PHY7: 3783 | PHZ7: 3783 | PIA7: 3783 | PIB7: 3783 | PIC7: 3783 | PID7: 3783 | PIE7: 3783 | PIF7: 3783 | PIG7: 3783 | PIH7: 3783 | PII7: 3783 | PIJ7: 3783 | PIK7: 3783 | PIL7: 3783 | PIM7: 3783 | PIN7: 3783 | PIO7: 3783 | PIP7: 3783 | PIQ7: 3783 | PIR7: 3783 | PIS7: 3783 | PIT7: 3783 | PIU7: 3783 | PIV7: 3783 | PIW7: 3783 | PIX7: 3783 | PIY7: 3783 | PIZ7: 3783 | PJA7: 3783 | PJB7: 3783 | PJC7: 3783 | PJD7: 3783 | PJE7: 3783 | PJF7: 3783 | PJG7: 3783 | PJH7: 3783 | PJI7: 3783 | PJJ7: 3783 | PJK7: 3783 | PJL7: 3783 | PJM7: 3783 | PJN7: 3783 | PJO7: 3783 | PJP7: 3783 | PJQ7: 3783 | PJR7: 3783 | PJS7: 3783 | PJT7: 3783 | PJU7: 3783 | PJV7: 3783 | PJW7: 3783 | PJX7: 3783 | PJY7: 3783 | PJZ7: 3783 | PKA7: 3783 | PKB7: 3783 | PKC7: 3783 | PKD7: 3783 | PKE7: 3783 | PKF7: 3783 | PKG7: 3783 | PKH7: 3783 | PKI7: 3783 | PKJ7: 3783 | PKK7: 3783 | PKL7: 3783 | PKM7: 3783 | PKN7: 3783 | PKO7: 3783 | PKP7: 3783 | PKQ7: 3783 | PKR7: 3783 | PKS7: 3783 | PKT7: 3783 | PKU7: 3783 | PKV7: 3783 | PKW7: 3783 | PKX7: 3783 | PKY7: 3783 | PKZ7: 3783 | PLA7: 3783 | PLB7: 3783 | PLC7: 3783 | PLD7: 3783 | PLE7: 3783 | PLF7: 3783 | PLG7: 3783 | PLH7: 3783 | PLI7: 3783 | PLJ7: 3783 | PLK7: 3783 | PLL7: 3783 | PLM7: 3783 | PLN7: 3783 | PLO7: 3783 | PLP7: 3783 | PLQ7: 3783 | PLR7: 3783 | PLS7: 3783 | PLT7: 3783 | PLU7: 3783 | PLV7: 3783 | PLW7: 3783 | PLX7: 3783 | PLY7: 3783 | PLZ7: 3783 | PMA7: 3783 | PMB7: 3783 | PMC7: 3783 | PMD7: 3783 | PME7: 3783 | PMF7: 3783 | PMG7: 3783 | PMH7: 3783 | PMI7: 3783 | PMJ7: 3783 | PMK7: 3783 | PML7: 3783 | PMM7: 3783 | PMN7: 3783 | PMO7: 3783 | PMP7: 3783 | PMQ7: 3783 | PMR7: 3783 | PMS7: 3783 | PMT7: 3783 | PMU7: 3783 | PMV7: 3783 | PMW7: 3783 | PMX7: 3783 | PMY7: 3783 | PMZ7: 3783 | PNA7: 3783 | PNB7: 3783 | PNC7: 3783 | PND7: 3783 | PNE7: 3783 | PNF7: 3783 | PNG7: 3783 | PNH7: 3783 | PNI7: 3783 | PNJ7: 3783 | PNK7: 3783 | PNL7: 3783 | PNM7: 3783 | PNN7: 3783 | PNO7: 3783 | PNP7: 3783 | PNQ7: 3783 | PNR7: 3783 | PNS7: 3783 | PNT7: 3783 | PNU7: 3783 | PNV7: 3783 | PNW7: 3783 | PNX7: 3783 | PNY7: 3783 | PNZ7: 3783 | POA7: 3783 | POB7: 3783 | POC7: 3783 | POD7: 3783 | POE7: 3783 | POF7: 3783 | POG7: 3783 | POH7: 3783 | POI7: 3783 | POJ7: 3783 | POK7: 3783 | POL7: 3783 | POM7: 3783 | PON7: 3783 | POO7: 3783 | POP7: 3783 | POQ7: 3783 | POR7: 3783 | POS7: 3783 | POT7: 3783 | POU7: 3783 | POV7: 3783 | POW7: 3783 | POX7: 3783 | POY7: 3783 | POZ7: 3783 | PPA7: 3783 | PPB7: 3783 | PPC7: 3783 | PPD7: 3783 | PPE7: 3783 | PPF7: 3783 | PPG7: 3783 | PPH7: 3783 | PPI7: 3783 | PPJ7: 3783 | PPK7: 3783 | PPL7: 3783 | PPM7: 3783 | PPN7: 3783 | PPO7: 3783 | PPP7: 3783 | PPQ7: 3783 | PPR7: 3783 | PPS7: 3783 | PPT7: 3783 | PPU7: 3783 | PPV7: 3783 | PPW7: 3783 | PPX7: 3783 | PPY7: 3783 | PPZ7: 3783 | PQA7: 3783 | PQB7: 3783 | PQC7: 3783 | PQD7: 3783 | PQE7: 3783 | PQF7: 3783 | PQG7: 3783 | PQH7: 3783 | PQI7: 3783 | PQJ7: 3783 | PQK7: 3783 | PQL7: 3783 | PQM7: 3783 | PQN7: 3783 | PQO7: 3783 | PQP7: 3783 | PQQ7: 3783 | PQR7: 3783 | PQS7: 3783 | PQT7: 3783 | PQU7: 3783 | PQV7: 3783 | PQW7: 3783 | PQX7: 3783 | PQY7: 3783 | PQZ7: 3783 | PRA7: 3783 | PRB7: 3783 | PRC7: 3783 | PRD7: 3783 | PRE7: 3783 | PRF7: 3783 | PRG7: 3783 | PRH7: 3783 | PRI7: 3783 | PRJ7: 3783 | PRK7: 3783 | PRL7: 3783 | PRM7: 3783 | PRN7: 3783 | PRO7: 3783 | PRP7: 3783 | PRQ7: 3783 | PRR7: 3783 | PRS7: 3783 | PRT7: 3783 | PRU7: 3783 | PRV7: 3783 | PRW7: 3783 | PRX7: 3783 | PRY7: 3783 | PRZ7: 3783 | PSA7: 3783 | PSB7: 3783 | PSC7: 3783 | PSD7: 3783 | PSE7: 3783 | PSF7: 3783 | PSG7: 3783 | PSH7: 3783 | PSI7: 3783 | PSJ7: 3783 | PSK7: 3783 | PSL7: 3783 | PSM7: 3783 | PSN7: 3783 | PSO7: 3783 | PSP7: 3783 | PSQ7: 3783 | PSR7: 3783 | PSS7: 3783 | PST7: 3783 | PSU7: 3783 | PSV7: 3783 | PSW7: 3783 | PSX7: 3783 | PSY7: 3783 | PSZ7: 3783 | PTA7: 3783 | PTB7: 3783 | PTC7: 3783 | PTD7: 3783 | PTE7: 3783 | PTF7: 3783 | PTG7: 3783 | PTH7: 3783 | PTI7: 3783 | PTJ7: 3783 | PTK7: 3783 | PTL7: 3783 | PTM7: 3783 | PTN7: 3783 | PTO7: 3783 | PTP7: 3783 | PTQ7: 3783 | PTR7: 3783 | PTS7: 3783 | PTT7: 3783 | PTU7: 3783 | PTV7: 3783 | PTW7: 3783 | PTX7: 3783 | PTY7: 3783 | PTZ7: 3783 | PUA7: 3783 | PUB7: 3783 | PUC7: 3783 | PUD7: 3783 | PUE7: 3783 | PUF7: 3783 | PUG7: 3783 | PUH7: 3783 | PUI7: 3783 | PUJ7: 3783 | PUK7: 3783 | PUL7: 3783 | PUM7: 3783 | PUN7: 3783 | PUO7: 3783 | PUP7: 3783 | PUQ7: 3783 | PUR7: 3783 | PUS7: 3783 | PUT7: 3783 | PUU7: 3783 | PUV7: 3783 | PUW7: 3783 | PUX7: 3783 | PUY7: 3783 | PUZ7: 3783 | PVA7: 3783 | PVB7: 3783 | PVC7: 3783 | PVD7: 3783 | PVE7: 3783 | PVF7: 3783 | PVG7: 3783 | PVH7: 3783 | PVI7: 3783 | PVJ7: 3783 | PVK7: 3783 | PVL7: 3783 | PVM7: 3783 | PVN7: 3783 | PVO7: 3783 | PVP7: 3783 | PVQ7: 3783 | PVR7: 3783 | PVS7: 3783 | PVT7: 3783 | PVU7: 3783 | PVV7: 3783 | PVW7: 3783 | PVX7: 3783 | PVY7: 3783 | PVZ7: 3783 | PWA7: 3783 | PWB7: 3783 | PWC7: 3783 | PWD7: 3783 | PWE7: 3783 | PWF7: 3783 | PWG7: 3783 | PWH7: 3783 | PWI7: 3783 | PWJ7: 3783 | PWK7: 3783 | PWL7: 3783 | PWM7: 3783 | PWN7: 3783 | PWO7: 3783 | PWP7: 3783 | PWQ7: 3783 | PWR7: 3783 | PWS7: 3783 | PWT7: 3783 | PWU7: 3783 | PWV7: 3783 | PWW7: 3783 | PWX7: 3783 | PWY7: 3783 | PWZ7: 3783 | PXA7: 3783 | PXB7: 3783 | PXC7: 3783 | PXD7: 3783 | PXE7: 3783 | PXF7: 3783 | PXG7: 3783 | PXH7: 3783 | PXI7: 3783 | PXJ7: 3783 | PXK7: 3783 | PXL7: 3783 | PXM7: 3783 | PXN7: 3783 | PXO7: 3783 | PXP7: 3783 | PXQ7: 3783 | PXR7: 3783 | PXS7: 3783 | PXT7: 3783 | PXU7: 3783 | PXV7: 3783 | PXW7: 3783 | PXX7: 3783 | PXY7: 3783 | PXZ7: 3783 | PYA7: 3783 | PYB7: 3783 | PYC7: 3783 | PYD7: 3783 | PYE7: 3783 | PYF7: 3783 | PYG7: 3783 | PYH7: 3783 | PYI7: 3783 | PYJ7: 3783 | PYK7: 3783 | PYL7: 3783 | PYM7: 3783 | PYN7: 3783 | PYO7: 3783 | PYP7: 3783 | PYQ7: 3783 | PYR7: 3783 | PYS7: 3783 | PYT7: 3783 | PYU7: 3783 | PYV7: 3783 | PYW7: 3783 | PYX7: 3783 | PYY7: 3783 | PYZ7: 3783 | PZA7: 3783 | PZB7: 3783 | PZC7: 3783 | PZD7: 3783 | PZE7: 3783 | PZF7: 3783 | PZG7: 3783 | PZH7: 3783 | PZI7: 3783 | PZJ7: 3783 | PZK7: 3783 | PZL7: 3783 | PZM7: 3783 | PZN7: 3783 | PZO7: 3783 | PZP7: 3783 | PZQ7: 3783 | PZR7: 3783 | PZS7: 3783 | PZT7: 3783 | PZU7: 3783 | PZV7: 3783 | PZW7: 3783 | PZX7: 3783 | PZY7: 3783 | PZZ7: 3783 | QAA7: 3783 | QAB7: 3783 | QAC7: 3783 | QAD7: 3783 | QAE7: 3783 | QAF7: 3783 | QAG7: 3783 | QAH7: 3783 | QAI7: 3783 | QAJ7: 3783 | QAK7: 3783 | QAL7: 3783 | QAM7: 3783 | QAN7: 3783 | QAO7: 3783 | QAP7: 3783 | QAQ7: 3783 | QAR7: 3783 | QAS7: 3783 | QAT7: 3783 | QAU7: 3783 | QAV7: 3783 | QAW7: 3783 | QAX7: 3783 | QAY7: 3783 | QAZ7: 3783 | QBA7: 3783 | QBB7: 3783 | QBC7: 3783 | QBD7: 3783 | QBE7: 3783 | QBF7: 3783 | QBG7: 3783 | QBH7: 3783 | QBI7: 3783 | QBJ7: 3783 | QBK7: 3783 | QBL7: 3783 | QBM7: 3783 | QBN7: 3783 | QBO7: 3783 | QBP7: 3783 | QBQ7: 3783 | QBR7: 3783 | QBS7: 3783 | QBT7: 3783 | QBU7: 3783 | QBV7: 3783 | QBW7: 3783 | QBX7: 3783 | QBY7: 3783 | QBZ7: 3783 | QCA7: 3783 | QCB7: 3783 | QCC7: 3783 | QCD7: 3783 | QCE7: 3783 | QCF7: 3783 | QCG7: 3783 | QCH7: 3783 | QCI7: 3783 | QCJ7: 3783 | QCK7: 3783 | QCL7: 3783 | QCM7: 3783 | QCN7: 3783 | QCO7: 3783 | QCP7: 3783 | QCQ7: 3783 | QCR7: 3783 | QCS7: 3783 | QCT7: 3783 | QCU7: 3783 | QCV7: 3783 | QCW7: 3783 | QCX7: 3783 | QCY7: 3783 | QCZ7: 3783 | QDA7: 3783 | QDB7: 3783 | QDC7: 3783 | QDD7: 3783 | QDE7: 3783 | QDF7: 3783 | QDG7: 3783 | QDH7: 3783 | QDI7: 3783 | QDJ7: 3783 | QDK7: 3783 | QDL7: 3783 | QDM7: 3783 | QDN7: 3783 | QDO7: 3783 | QDP7: 3783 | QDQ7: 3783 | QDR7: 3783 | QDS7: 3783 | QDT7: 3783 | QDU7: 3783 | QDV7: 3783 | QDW7: 3783 | QDX7: 3783 | QDY7: 3783 | QDZ7: 3783 | QEA7: 3783 | QEB7: 3783 | QEC7: 3783 | QED7: 3783 | QEE7: 3783 | QEF7: 3783 | QEG7: 3783 | QEH7: 3783 | QEI7: 3783 | QEJ7: 3783 | QEK7: 3783 | QEL7: 3783 | QEM7: 3783 | QEN7: 3783 | QEO7: 3783 | QEP7: 3783 | QEQ7: 3783 | QER7: 3783 | QES7: 3783 | QET7: 3783 | QEU7: 3783 | QEV7: 3783 | QEW7: 3783 | QEX7: 3783 | QEY7: 3783 | QEZ7: 3783 | QFA7: 3783 | QFB7: 3783 | QFC7: 3783 | QFD7: 3783 | QFE7: 3783 | QFF7: 3783 | QFG7: 3783 | QFH7: 3783 | QFI7: 3783 | QFJ7: 3783 | QFK7: 3783 | QFL7: 3783 | QFM7: 3783 | QFN7: 3783 | QFO7: 3783 | QFP7: 3783 | QFQ7: 3783 | QFR7: 3783 | QFS7: 3783 | QFT7: 3783 | QFU7: 3783 | QFV7: 3783 | QFW7: 3783 | QFX7: 3783 | QFY7: 3783 | QFZ7: 3783 | QGA7: 3783 | QGB7: 3783 | QGC7: 3783 | QGD7: 3783 | QGE7: 3783 | QGF7: 3783 | QGG7: 3783 | QGH7: 3783 | QGI7: 3783 | QGJ7: 3783 | QGK7: 3783 | QGL7: 3783 | QGM7: 3783 | QGN7: 3783 | QGO7: 3783 | QGP7: 3783 | QGQ7: 3783 | QGR7: 3783 | QGS7: 3783 | QGT7: 3783 | QGU7: 3783 | QGV7: 3783 | QGW7: 3783 | QGX7: 3783 | QGY7: 3783 | QGZ7: 3783 | QHA7: 3783 | QHB7: 3783 | QHC7: 3783 | QHD7: 3783 | QHE7: 3783 | QHF7: 3783 | QHG7: 3783 | QHH7: 3783 | QHI7: 3783 | QHJ7: 3783 | QHK7: 3783 | QHL7: 3783 | QHM7: 3783 | QHN7: 3783 | QHO7: 3783 | QHP7: 3783 | QHQ7: 3783 | QHR7: 3783 | QHS7: 3783 | QHT7: 3783 | QHU7: 3783 | QHV7: 3783 | QHW7: 3783 | QHX7: 3783 | QHY7: 3783 | QHZ7: 3783 | QIA7: 3783 | QIB7: 3783 | QIC7: 3783 | QID7: 3783 | QIE7: 3783 | QIF7: 3783 | QIG7: 3783 | QIH7: 3783 | QII7: 3783 | QIJ7: 3783 | QIK7: 3783 | QIL7: 3783 | QIM7: 3783 | QIN7: 3783 | QIO7: 3783 | QIP7: 3783 | QIQ7: 3783 | QIR7: 3783 | QIS7: 3783 | QIT7: 3783 | QIU7: 3783 | QIV7: 3783 | QIW7: 3783 | QIX7: 3783 | QIY7: 3783 | QIZ7: 3783 | QJA7: 3783 | QJB7: 3783 | QJC7: 3783 | QJD7: 3783 | QJE7: 3783 | QJF7: 3783 | QJG7: 3783 | QJH7: 3783 | QJI7: 3783 | QJJ7: 3783 | QJK7: 3783 | QJL7: 3783 | QJM7: 3783 | QJN7: 3783 | QJO7: 3783 | QJP7: 3783 | QJQ7: 3783 | QJR7: 3783 | QJS7: 3783 | QJT7: 3783 | QJU7: 3783 | QJV7: 3783 | QJW7: 3783 | QJX7: 3783 | QJY7: 3783 | QJZ7: 3783 | QKA7: 3783 | QKB7: 3783 | QKC7: 3783 | QKD7: 3783 | QKE7: 3783 | QKF7: 3783 | QKG7: 3783 | QKH7: 3783 | QKI7: 3783 | QKJ7: 3783 | QKK7: 3783 | QKL7: 3783 | QKM7: 3783 | QKN7: 3783 | QKO7: 3783 | QKP7: 3783 | QKQ7: 3783 | QKR7: 3783 | QKS7: 3783 | QKT7: 3783 | QKU7: 3783 | QKV7: 3783 | QKW7: 3783 | QKX7: 3783 | QKY7: 3783 | QKZ7: 3783 | QLA7: 3783 | QLB7: 3783 | QLC7: 3783 | QLD7: 3783 | QLE7: 3783 | QLF7: 3783 | QLG7: 3783 | QLH7: 3783 | QLI7: 3783 | QLJ7: 3783 | QLK7: 3783 | QLL7: 3783 | QLM7: 3783 | QLN7: 3783 | QLO7: 3783 | QLP7: 3783 | QLQ7: 3783 | QLR7: 3783 | QLS7: 3783 | QLT7: 3783 | QLU7: 3783 | QLV7: 3783 | QLW7: 3783 | QLX7: 3783 | QLY7: 3783 | QLZ7: 3783 | QMA7: 3783 | QMB7: 3783 | QMC7: 3783 | QMD7: 3783 | QME7: 3783 | QMF7: 3783 | QMG7: 3783 | QMH7: 3783 | QMI7: 3783 | QMJ7: 3783 | QMK7: 3783 | QML7: 3783 | QMM7: 3783 | QMN7: 3783 | QMO7: 3783 | QMP7: 3783 | QMQ7: 3783 | QMR7: 3783 | QMS7: 3783 | QMT7: 3783 | QMU7: 3783 | QMV7: 3783 | QMW7: 3783 | QMX7: 3783 | QMY7: 3783 | QMZ7: 3783 | QNA7: 3783 | QNB7: 3783 | QNC7: 3783 | QND7: 3783 | QNE7: 3783 | QNF7: 3783 | QNG7: 3783 | QNH7: 3783 | QNI7: 3783 | QNJ7: 3783 | QNK7: 3783 | QNL7: 3783 | QNM7: 3783 | QNN7: 3783 | QNO7: 3783 | QNP7: 3783 | QNQ7: 3783 | QNR7: 3783 | QNS7: 3783 | QNT7: 3783 | QNU7: 3783 | QNV7: 3783 | QNW7: 3783 | QNX7: 3783 | QNY7: 3783 | QNZ7: 3783 | QOA7: 3783 | QOB7: 3783 | QOC7: 3783 | QOD7: 3783 | QOE7: 3783 | QOF7: 3783 | QOG7: 3783 | QOH7: 3783 | QOI7: 3783 | QOJ7: 3783 | QOK7: 3783 | QOL7: 3783 | QOM7: 3783 | QON7: 3783 | QOO7: 3783 | QOP7: 3783 | QOQ7: 3783 | QOR7: 3783 | QOS7: 3783 | QOT7: 3783 | QOU7: 3783 | QOV7: 3783 | QOW7: 3783 | QOX7: 3783 | QOY7: 3783 | QOZ7: 3783 | QPA7: 3783 | QPB7: 3783 | QPC7: 3783 | QPD7: 3783 | QPE7: 3783 | QPF7: 3783 | QPG7: 3783 | QPH7: 3783 | QPI7: 3783 | QPJ7: 3783 | QPK7: 3783 | QPL7: 3783 | QPM7: 3783 | QPN7: 3783 | QPO7: 3783 | QPP7: 3783 | QPQ7: 3783 | QPR7: 3783 | QPS7: 3783 | QPT7: 3783 | QPU7: 3783 | QPV7: 3783 | QPW7: 3783 | QPX7: 3783 | QPY7: 3783 | QPZ7: 3783 | QQA7: 3783 | QQB7: 3783 | QQC7: 3783 | QQD7: 3783 | QQE7: 3783 | QQF7: 3783 | QQG7: 3783 | QQH7: 3783 | QQI7: 3783 | QQJ7: 3783 | QQK7: 3783 | QQL7: 3783 | QQM7: 3783 | QQN7: 3783 | QQO7: 3783 | QQP7: 3783 | QQQ7: 3783 | QQR7: 3783 | QQS7: 3783 | QQT7: 3783 | QQU7: 3783 | QQV7: 3783 | QQW7: 3783 | QQX7: 3783 | QQY7: 3783 | QQZ7: 3783 | QRA7: 3783 | QRB7: 3783 | QRC7: 3783 | QRD7: 3783 | QRE7: 3783 | QRF7: 3783 | QRG7: 3783 | QRH7: 3783 | QRI7: 3783 | QRJ7: 3783 | QRK7: 3783 | QRL7: 3783 | QRM7: 3783 | QRN7: 3783 | QRO7: 3783 | QRP7: 3783 | QRQ7: 3783 | QRR7: 3783 | QRS7: 3783 | QRT7: 3783 | QRU7: 3783 | QRV7: 3783 | QRW7: 3783 | QRX7: 3783 | QRY7: 3783 | QRZ7: 3783 | QSA7: 3783 | QSB7: 3783 | QSC7: 3783 | QSD7: 3783 | QSE7: 3783 | QSF7: 3783 | QSG7: 3783 | QSH7: 3783 | QSI7: 3783 | QSJ7: 3783 | QSK7: 3783 | QSL7: 3783 | QSM7: 3783 | QSN7: 3783 | QSO7: 3783 | QSP7: 3783 | QSQ7: 3783 | QSR7: 3783 | QSS7: 3783 | QST7: 3783 | QSU7: 3783 | QSV7: 3783 | QSW7: 3783 | QSX7: 3783 | QSY7: 3783 | QSZ7: 3783 | QTA7: 3783 | QTB7: 3783 | QTC7: 3783 | QTD7: 3783 | QTE7: 3783 | QTF7: 3783 | QTG7: 3783 | QTH7: 3783 | QTI7: 3783 | QTJ7: 3783 | QTK7: 3783 | QTL7: 3783 | QTM7: 3783 | QTN7: 3783 | QTO7: 3783 | QTP7: 3783 | QTQ7: 3783 | QTR7: 3783 | QTS7: 3783 | QTT7: 3783 | QTU7: 3783 | QTV7: 3783 | QTW7: 3783 | QTX7: 3783 | QTY7: 3783 | QTZ7: 3783 | QUA7: 3783 | QUB7: 3783 | QUC7: 3783 | QUD7: 3783 | QUE7: 3783 | QUF7: 3783 | QUG7: 3783 | QUH7: 3783 | QUI7: 3783 | QUJ7: 3783 | QUK7: 3783 | QUL7: 3783 | QUM7: 3783 | QUN7: 3783 | QUO7: 3783 | QUP7: 3783 | QUQ7: 3783 | QUR7: 3783 | QUS7: 3783 | QUT7: 3783 | QUU7: 3783 | QUV7: 3783 | QUW7: 3783 | QUX7: 3783 | QUY7: 3783 | QUZ7: 3783 | QVA7: 3783 | QVB7: 3783 | QVC7: 3783 | QVD7: 3783 | QVE7: 3783 | QVF7: 3783 | QVG7: 3783 | QVH7: 3783 | QVI7: 3783 | QVJ7: 3783 | QVK7: 3783 | QVL7: 3783 | QVM7: 3783 | QVN7: 3783 | QVO7: 3783 | QVP7: 3783 | QVQ7: 3783 | QVR7: 3783 | QVS7: 3783 | QVT7: 3783 | QVU7: 3783 | QVV7: 3783 | QVW7: 3783 | QVX7: 3783 | QVY7: 3783 | QVZ7: 3783 | QWA7: 3783 | QWB7: 3783 | QWC7: 3783 | QWD7: 3783 | QWE7: 3783 | QWF7: 3783 | QWG7: 3783 | QWH7: 3783 | QWI7: 3783 | QWJ7: 3783 | QWK7: 3783 | QWL7: 3783 | QWM7: 3783 | QWN7: 3783 | QWO7: 3783 | QWP7: 3783 | QWQ7: 3783 | QWR7: 3783 | QWS7: 3783 | QWT7: 3783 | QWU7: 3783 | QWV7: 3783 | QWW7: 3783 | QWX7: 3783 | QWY7: 3783 | QWZ7: 3783 | QXA7: 3783 | QXB7: 3783 | QXC7: 3783 | QXD7: 3783 | QXE7: 3783 | QXF7: 3783 | QXG7: 3783 | QXH7: 3783 | QXI7: 3783 | QXJ7: 3783 | QXK7: 3783 | QXL7: 3783 | QXM7: 3783 | QXN7: 3783 | QXO7: 3783 | QXP7: 3783 | QXQ7: 3783 | QXR7: 3783 | QXS7: 3783 | QXT7: 3783 | QXU7: 3783 | QXV7: 3783 | QXW7: 3783 | QXX7: 3783 | QXY7: 3783 | QXZ7: 3783 | QYA7: 3783 | QYB7: 3783 | QYC7: 3783 | QYD7: 3783 | QYE7: 3783 | QYF7: 3783 | QYG7: 3783 | QYH7: 3783 | QYI7: 3783 | QYJ7: 3783 | QYK7: 3783 | QYL7: 3783 | QYM7: 3783 | QYN7: 3783 | QYO7: 3783 | QYP7: 3783 | QYQ7: 3783 | QYR7: 3783 | QYS7: 3783 | QYT7: 3783 | QYU7: 3783 | QYV7: 3783 | QYW7: 3783 | QYX7: 3783 | QYY7: 3783 | QYZ7: 3783 | QZA7: 3783 | QZB7: 3783 | QZC7: 3783 | QZD7: 3783 | QZE7: 3783 | QZF7: 3783 | QZG7: 3783 | QZH7: 3783 | QZI7: 3783 | QZJ7: 3783 | QZK7: 3783 | QZL7: 3783 | QZM7: 3783 | QZN7: 3783 | QZO7: 3783 | QZP7: 3783 | QZQ7: 3783 | QZR7: 3783 | QZS7: 3783 | QZT7: 3783 | QZU7: 3783 | QZV7: 3783 | QZW7: 3783 | QZX7: 3783 | QZY7: 3783 | QZZ7: 3783 | RAA7: 3783 | RAB7: 3783 | RAC7: 3783 | RAD7: 3783 | RAE7: 3783 | RAF7: 3783 | RAG7: 3783 | RAH7: 3783 | RAI7: 3783 | RAJ7: 3783 | RAK7: 3783 | RAL7: 3783 | RAM7: 3783 | RAN7: 3783 | RAO7: 3783 | RAP7: 3783 | RAQ7: 3783 | RAR7: 3783 | RAS7: 3783 | RAT7: 3783 | RAU7: 3783 | RAV7: 3783 | RAW7: 3783 | RAX7: 3783 | RAY7: 3783 | RAZ7: 3783 | RBA7: 3783 | RBB7: 3783 | RBC7: 3783 | RBD7: 3783 | RBE7: 3783 | RBF7: 3783 | RBG7: 3783 | RBH7: 3783 | RBI7: 3783 | RBJ7: 3783 | RBK7: 3783 | RBL7: 3783 | RBM7: 3783 | RBN7: 3783 | RBO7: 3783 | RBP7: 3783 | RBQ7: 3783 | RBR7: 3783 | RBS7: 3783 | RBT7: 3783 | RBU7: 3783 | RBV7: 3783 | RBW7: 3783 | RBX7: 3783 | RBY7: 3783 | RBZ7: 3783 | RCA7: 3783 | RCB7: 3783 | RCC7: 3783 | RCD7: 3783 | RCE7: 3783 | RCF7: 3783 | RCG7: 3783 | RCH7: 3783 | RCI7: 3783 | RCJ7: 3783 | RCK7: 3783 | RCL7: 3783 | RCM7: 3783 | RCN7: 3783 | RCO7: 3783 | RCP7: 3783 | RCQ7: 3783 | RCR7: 3783 | RCS7: 3783 | RCT7: 3783 | RCU7: 3783 | RCV7: 3783 | RCW7: 3783 | RCX7: 3783 | RCY7: 3783 | RCZ7: 3783 | RDA7: 3783 | RDB7: 3783 | RDC7: 3783 | RDD7: 3783 | RDE7: 3783 | RDF7: 3783 | RDG7: 3783 | RDH7: 3783 | RDI7: 3783 | RDJ7: 3783 | RDK7: 3783 | RDL7: 3783 | RDM7: 3783 | RDN7: 3783 | RDO7: 3783 | RDP7: 3783 | RDQ7: 3783 | RDR7: 3783 | RDS7: 3783 | RDT7: 3783 | RDU7: 3783 | RDV7: 3783 | RDW7: 3783 | RDX7: 3783 | RDY7: 3783 | RDZ7: 3783 | REA7: 3783 | REB7: 3783 | REC7: 3783 | RED7: 3783 | REE7: 3783 | REF7: 3783 | REG7: 3783 | REH7: 3783 | REI7: 3783 | REJ7: 3783 | REK7: 3783 | REL7: 3783 | REM7: 3783 | REN7: 3783 | REO7: 3783 | REP7: 3783 | REQ7: 3783 | RER7: 3783 | RES7: 3783 | RET7: 3783 | REU7: 3783 | REV7: 3783 | REW7: 3783 | REX7: 3783 | REY7: 3783 | REZ7: 3783 | RFA7: 3783 | RFB7: 3783 | RFC7: 3783 | RFD7: 3783 | RFE7: 3783 | RFF7: 3783 | RFG7: 3783 | RFH7: 3783 | RFI7: 3783 | RFJ7: 3783 | RFK7: 3783 | RFL7: 3783 | RFM7: 3783 | RFN7: 3783 | RFO7: 3783 | RFP7: 3783 | RFQ7: 3783 | RFR7: 3783 | RFS7: 3783 | RFT7: 3783 | RFU7: 3783 | RFV7: 3783 | RFW7: 3783 | RFX7: 3783 | RFY7: 3783 | RFZ7: 3783 | RGA7: 3783 | RGB7: 3783 | RGC7: 3783 | RGD7: 3783 | RGE7: 3783 | RGF7: 3783 | RGG7: 3783 | RGH7: 3783 | RGI7: 3783 | RGJ7: 3783 | RGK7: 3783 | RGL7: 3783 | RGM7: 3783 | RGN7: 3783 | RGO7: 3783 | RGP7: 3783 | RGQ7: 3783 | RGR7: 3783 | RGS7: 3783 | RGT7: 3783 | RGU7: 3783 | RGV7: 3783 | RGW7: 3783 | RGX7: 3783 | RGY7: 3783 | RGZ7: 3783 | RHA7: 3783 | RHB7: 3783 | RHC7: 3783 | RHD7: 3783 | RHE7: 3783 | RHF7: 3783 | RHG7: 3783 | RHH7: 3783 | RHI7: 3783 | RHJ7: 3783 | RHK7: 3783 | RHL7: 3783 | RHM7: 3783 | RHN7: 3783 | RHO7: 3783 | RHP7: 3783 | RHQ7: 3783 | RHR7: 3783 | RHS7: 3783 | RHT7: 3783 | RHU7: 3783 | RHV7: 3783 | RHW7: 3783 | RHX7: 3783 | RHY7: 3783 | RHZ7: 3783 | RIA7: 3783 | RIB7: 3783 | RIC7: 3783 | RID7: 3783 | RIE7: 3783 | RIF7: 3783 | RIG7: 3783 | RIH7: 3783 | RII7: 3783 | RIJ7: 3783 | RIK7: 3783 | RIL7: 3783 | RIM7: 3783 | RIN7: 3783 | RIO7: 3783 | RIP7: 3783 | RIQ7: 3783 | RIR7: 3783 | RIS7: 3783 | RIT7: 3783 | RIU7: 3783 | RIV7: 3783 | RIW7: 3783 | RIX7: 3783 | RIY7: 3783 | RIZ7: 3783 | RJA7: 3783 | RJB7: 3783 | RJC7: 3783 | RJD7: 3783 | RJE7: 3783 | RJF7: 3783 | RJG7: 3783 | RJH7: 3783 | RJI7: 3783 | RJJ7: 3783 | RJK7: 3783 | RJL7: 3783 | RJM7: 3783 | RJN7: 3783 | RJO7: 3783 | RJP7: 3783 | RJQ7: 3783 | RJR7: 3783 | RJS7: 3783 | RJT7: 3783 | RJU7: 3783 | RJV7: 3783 | RJW7: 3783 | RJX7: 3783 | RJY7: 3783 | RJZ7: 3783 | RKA7: 3783 | RKB7: 3783 | RKC7: 3783 | RKD7: 3783 | RKE7: 3783 | RKF7: 3783 | RKG7: 3783 | RKH7: 3783 | RKI7: 3783 | RKJ7: 3783 | RKK7: 3783 | RKL7: 3783 | RKM7: 3783 | RKN7: 3783 | RKO7: 3783 | RKP7: 3783 | RKQ7: 3783 | RKR7: 3783 | RKS7: 3783 | RKT7: 3783 | RKU7: 3783 | RKV7: 3783 | RKW7: 3783 | RKX7: 3783 | RKY7: 3783 | RKZ7: 3783 | RLA7: 3783 | RLB7: 3783 | RLC7: 3783 | RLD7: 3783 | RLE7: 3783 | RLF7: 3783 | RLG7: 3783 | RLH7: 3783 | RLI7: 3783 | RLJ7: 3783 | RLK7: 3783 | RLL7: 3783 | RLM7: 3783 | RLN7: 3783 | RLO7: 3783 | RLP7: 3783 | RLQ7: 3783 | RLR7: 3783 | RLS7: 3783 | RLT7: 3783 | RLU7: 3783 | RLV7: 3783 | RLW7: 3783 | RLX7: 3783 | RLY7: 3783 | RLZ7: 3783 | RMA7: 3783 | RMB7: 3783 | RMC7: 3783 | RMD7: 3783 | RME7: 3783 | RMF7: 3783 | RMG7: 3783 | RMH7: 3783 | RMI7: 3783 | RMJ7: 3783 | RMK7: 3783 | RML7: 3783 | RMM7: 3783 | RMN7: 3783 | RMO7: 3783 | RMP7: 3783 | RMQ7: 3783 | RMR7: 3783 | RMS7: 3783 | RMT7: 3783 | RMU7: 3783 | RMV7: 3783 | RMW7: 3783 | RMX7: 3783 | RMY7: 3783 | RMZ7: 3783 | RNA7: 3783 | RNB7: 3783 | RNC7: 3783 | RND7: 3783 | RNE7: 3783 | RNF7: 3783 | RNG7: 3783 | RNH7: 3783 | RNI7: 3783 | RNJ7: 3783 | RNK7: 3783 | RNL7: 3783 | RNM7: 3783 | RNN7: 3783 | RNO7: 3783 | RNP7: 3783 | RNQ7: 3783 | RNR7: 3783 | RNS7: 3783 | RNT7: 3783 | RNU7: 3783 | RNV7: 3783 | RNW7: 3783 | RNX7: 3783 | RNY7: 3783 | RNZ7: 3783 | ROA7: 3783 | ROB7: 3783 | ROC7: 3783 | ROD7: 3783 | ROE7: 3783 | ROF7: 3783 | ROG7: 3783 | ROH7: 3783 | ROI7: 3783 | ROJ7: 3783 | ROK7: 3783 | ROL7: 3783 | ROM7: 3783 | RON7: 3783 | ROO7: 3783 | ROP7: 3783 | ROQ7: 3783 | ROR7: 3783 | ROS7: 3783 | ROT7: 3783 | ROU7: 3783 | ROV7: 3783 | ROW7: 3783 | ROX7: 3783 | ROY7: 3783 | ROZ7: 3783 | RPA7: 3783 | RPB7: 3783 | RPC7: 3783 | RPD7: 3783 | RPE7: 3783 | RPF7: 3783 | RPG7: 3783 | RPH7: 3783 | RPI7: 3783 | RPJ7: 3783 | RPK7: 3783 | RPL7: 3783 | RPM7: 3783 | RPN7: 3783 | RPO7: 3783 | RPP7: 3783 | RPQ7: 3783 | RPR7: 3783 | RPS7: 3783 | RPT7: 3783 | RPU7: 3783 | RPV7: 3783 | RPW7: 3783 | RPX7: 3783 | RPY7: 3783 | RPZ7: 3783 | RQA7: 3783 | RQB7: 3783 | RQC7: 3783 | RQD7: 3783 | RQE7: 3783 | RQF7: 3783 | RQG7: 3783 | RQH7: 3783 | RQI7: 3783 | RQJ7: 3783 | RQK7: 3783 | RQL7: 3783 | RQM7: 3783 | RQN7: 3783 | RQO7: 3783 | RQP7: 3783 | RQQ7: 3783 | RQR7: 3783 | RQS7: 3783 | RQT7: 3783 | RQU7: 3783 | RQV7: 3783 | RQW7: 3783 | RQX7: 3783 | RQY7: 3783 | RQZ7: 3783 | RRA7: 3783 | RRB7: 3783 | RRC7: 3783 | RRD7: 3783 | RRE7: 3783 | RRF7: 3783 | RRG7: 3783 | RRH7: 3783 | RRI7: 3783 | RRJ7: 3783 | RRK7: 3783 | RRL7: 3783 | RRM7: 3783 | RRN7: 3783 | RRO7: 3783 | RRP7: 3783 | RRQ7: 3783 | RRR7: 3783 | RRS7: 3783 | RRT7: 3783 | RRU7: 3783 | RRV7: 3783 | RRW7: 3783 | RRX7: 3783 | RRY7: 3783 | RRZ7: 3783 | RSA7: 3783 | RSB7: 3783 | RSC7: 3783 | RSD7: 3783 | RSE7: 3783 | RSF7: 3783 | RSG7: 3783 | RSH7: 3783 | RSI7: 3783 | RSJ7: 3783 | RSK7: 3783 | RSL7: 3783 | RSM7: 3783 | RSN7: 3783 | RSO7: 3783 | RSP7: 3783 | RSQ7: 3783 | RSR7: 3783 | RSS7: 3783 | RST7: 3783 | RSU7: 3783 | RSV7: 3783 | RSW7: 3783 | RSX7: 3783 | RSY7: 3783 | RSZ7: 3783 | RTA7: 3783 | RTB7: 3783 | RTC7: 3783 | RTD7: 3783 | RTE7: 3783 | RTF7: 3783 | RTG7: 3783 | RTH7: 3783 | RTI7: 3783 | RTJ7: 3783 | RTK7: 3783 | RTL7: 3783 | RTM7: 3783 | RTN7: 3783 | RTO7: 3783 | RTP7: 3783 | RTQ7: 3783 | RTR7: 3783 | RTS7: 3783 | RTT7: 3783 | RTU7: 3783 | RTV7: 3783 | RTW7: 3783 | RTX7: 3783 | RTY7: 3783 | RTZ7: 3783 | RUA7: 3783 | RUB7: 3783 | RUC7: 3783 | RUD7: 3783 | RUE7: 3783 | RUF7: 3783 | RUG7: 3783 | RUH7: 3783 | RUI7: 3783 | RUJ7: 3783 | RUK7: 3783 | RUL7: 3783 | RUM7: 3783 | RUN7: 3783 | RUO7: 3783 | RUP7: 3783 | RUQ7: 3783 | RUR7: 3783 | RUS7: 3783 | RUT7: 3783 | RUU7: 3783 | RUV7: 3783 | RUW7: 3783 | RUX7: 3783 | RUY7: 3783 | RUZ7: 3783 | RVA7: 3783 | RVB7: 3783 | RVC7: 3783 | RVD7: 3783 | RVE7: 3783 | RVF7: 3783 | RVG7: 3783 | RVH7: 3783 | RVI7: 3783 | RVJ7: 3783 | RVK7: 3783 | RVL7: 3783 | RVM7: 3783 | RVN7: 3783 | RVO7: 3783 | RVP7: 3783 | RVQ7: 3783 | RVR7: 3783 | RVS7: 3783 | RVT7: 3783 | RVU7: 3783 | RVV7: 3783 | RVW7: 3783 | RVX7: 3783 | RVY7: 3783 | RVZ7: 3783 | RWA7: 3783 | RWB7: 3783 | RWC7: 3783 | RWD7: 3783 | RWE7: 3783 | RWF7: 3783 | RWG7: 3783 | RWH7: 3783 | RWI7: 3783 | RWJ7: 3783 | RWK7: 3783 | RWL7: 3783 | RWM7: 3783 | RWN7: 3783 | RWO7: 3783 | RWP7: 3783 | RWQ7: 3783 | RWR7: 3783 | RWS7: 3783 | RWT7: 3783 | RWU7: 3783 | RWV7: 3783 | RWW7: 3783 | RWX7: 3783 | RWY7: 3783 | RWZ7: 3783 | RXA7: 3783 | RXB7: 3783 | RXC7: 3783 | RXD7: 3783 | RXE7: 3783 | RXF7: 3783 | RXG7: 3783 | RXH7: 3783 | RXI7: 3783 | RXJ7: 3783 | RXK7: 3783 | RXL7: 3783 | RXM7: 3783 | RXN7: 3783 | RXO7: 3783 | RXP7: 3783 | RXQ7: 3783 | RXR7: 3783 | RXS7: 3783 | RXT7: 3783 | RXU7: 3783 | RXV7: 3783 | RXW7: 3783 | RXX7: 3783 | RXY7: 3783 | RXZ7: 3783 | RYA7: 3783 | RYB7: 3783 | RYC7: 3783 | RYD7: 3783 | RYE7: 3783 | RYF7: 3783 | RYG7: 3783 | RYH7: 3783 | RYI7: 3783 | RYJ7: 3783 | RYK7: 3783 | RYL7: 3783 | RYM7: 3783 | RYN7: 3783 | RYO7: 3783 | RYP7: 3783 | RYQ7: 3783 | RYR7: 3783 | RYS7: 3783 | RYT7: 3783 | RYU7: 3783 | RYV7: 3783 | RYW7: 3783 | RYX7: 3783 | RYY7: 3783 | RYZ7: 3783 | RZA7: 3783 | RZB7: 3783 | RZC7: 3783 | RZD7: 3783 | RZE7: 3783 | RZF7: 3783 | RZG7: 3783 | RZH7: 3783 | RZI7: 3783 | RZJ7: 3783 | RZK7: 3783 | RZL7: 3783 | RZM7: 3783 | RZN7: 3783 | RZO7: 3783 | RZP7: 3783 | RZQ7: 3783 | RZR7: 3783 | RZS7: 3783 | RZT7: 3783 | RZU7: 3783 | RZV7: 3783 | RZW7: 3783 | RZX7: 3783 | RZY7: 3783 | RZZ7: 3783 | SAA7: 3783 | SAB7: 3783 | SAC7: 3783 | SAD7: 3783 | SAE7: 3783 | SAF7: 3783 | SAG7: 3783 | SAH7: 3783 | SAI7: 3783 | SAJ7: 3783 | SAK7: 3783 | SAL7: 3783 | SAM7: 3783 | SAN7: 3783 | SAO7: 3783 | SAP7: 3783 | SAQ7: 3783 | SAR7: 3783 | SAS7: 3783 | SAT7: 3783 | SAU7: 3783 | SAV7: 3783 | SAW7: 3783 | SAX7: 3783 | SAY7: 3783 | SAZ7: 3783 | SBA7: 3783 | SBB7: 3783 | SBC7: 3783 | SBD7: 3783 | SBE7: 3783 | SBF7: 3783 | SBG7: 3783 | SBH7: 3783 | SBI7: 3783 | SBJ7: 3783 | SBK7: 3783 | SBL7: 3783 | SBM7: 3783 | SBN7: 3783 | SBO7: 3783 | SBP7: 3783 | SBQ7: 3783 | SBR7: 3783 | SBS7: 3783 | SBT7: 3783 | SBU7: 3783 | SBV7: 3783 | SBW7: 3783 | SBX7: 3783 | SBY7: 3783 | SBZ7: 3783 | SCA7: 3783 | SCB7: 3783 | SCC7: 3783 | SCD7: 3783 | SCE7: 3783 | SCF7: 3783 | SCG7: 3783 | SCH7: 3783 | SCI7: 3783 | SCJ7: 3783 | SCK7: 3783 | SCL7: 3783 | SCM7: 3783 | SCN7: 3783 | SCO7: 3783 | SCP7: 3783 | SCQ7: 3783 | SCR7: 3783 | SCS7: 3783 | SCT7: 3783 | SCU7: 3783 | SCV7: 3783 | SCW7: 3783 | SCX7: 3783 | SCY7: 3783 | SCZ7: 3783 | SDA7: 3783 | SDB7: 3783 | SDC7: 3783 | SDD7: 3783 | SDE7: 3783 | SDF7: 3783 | SDG7: 3783 | SDH7: 3783 | SDI7: 3783 | SDJ7: 3783 | SDK7: 3783 | SDL7: 3783 | SDM7: 3783 | SDN7: 3783 | SDO7: 3783 | SDP7: 3783 | SDQ7: 3783 | SDR7: 3783 | SDS7: 3783 | SDT7: 3783 | SDU7: 3783 | SDV7: 3783 | SDW7: 3783 | SDX7: 3783 | SDY7: 3783 | SDZ7: 3783 | SEA7: 3783 | SEB7: 3783 | SEC7: 3783 | SED7: 3783 | SEE7: 3783 | SEF7: 3783 | SEG7: 3783 | SEH7: 3783 | SEI7: 3783 | SEJ7: 3783 | SEK7: 3783 | SEL7: 3783 | SEM7: 3783 | SEN7: 3783 | SEO7: 3783 | SEP7: 3783 | SEQ7: 3783 | SER7: 3783 | SES7: 3783 | SET7: 3783 | SEU7: 3783 | SEV7: 3783 | SEW7: 3783 | SEX7: 3783 | SEY7: 3783 | SEZ7: 3783 | SFA7: 3783 | SFB7: 3783 | SFC7: 3783 | SFD7: 3783 | SFE7: 3783 | SFF7: 3783 | SFG7: 3783 | SFH7: 3783 | SFI7: 3783 | SFJ7: 3783 | SFK7: 3783 | SFL7: 3783 | SFM7: 3783 | SFN7: 3783 | SFO7: 3783 | SFP7: 3783 | SFQ7: 3783 | SFR7: 3783 | SFS7: 3783 | SFT7: 3783 | SFU7: 3783 | SFV7: 3783 | SFW7: 3783 | SFX7: 3783 | SFY7: 3783 | SFZ7: 3783 | SGA7: 3783 | SGB7: 3783 | SGC7: 3783 | SGD7: 3783 | SGE7: 3783 | SGF7: 3783 | SGG7: 3783 | SGH7: 3783 | SGI7: 3783 | SGJ7: 3783 | SGK7: 3783 | SGL7: 3783 | SGM7: 3783 | SGN7: 3783 | SGO7: 3783 | SGP7: 3783 | SGQ7: 3783 | SGR7: 3783 | SGS7: 3783 | SGT7: 3783 | SGU7: 3783 | SGV7: 3783 | SGW7: 3783 | SGX7: 3783 | SGY7: 3783 | SGZ7: 3783 | SHA7: 3783 | SHB7: 3783 | SHC7: 3783 | SHD7: 3783 | SHE7: 3783 | SHF7: 3783 | SHG7: 3783 | SHH7: 3783 | SHI7: 3783 | SHJ7: 3783 | SHK7: 3783 | SHL7: 3783 | SHM7: 3783 | SHN7: 3783 | SHO7: 3783 | SHP7: 3783 | SHQ7: 3783 | SHR7: 3783 | SHS7: 3783 | SHT7: 3783 | SHU7: 3783 | SHV7: 3783 | SHW7: 3783 | SHX7: 3783 | SHY7: 3783 | SHZ7: 3783 | SIA7: 3783 | SIB7: 3783 | SIC7: 3783 | SID7: 3783 | SIE7: 3783 | SIF7: 3783 | SIG7: 3783 | SIH7: 3783 | SII7: 3783 | SIJ7: 3783 | SIK7: 3783 | SIL7: 3783 | SIM7: 3783 | SIN7: 3783 | SIO7: 3783 | SIP7: 3783 | SIQ7: 3783 | SIR7: 3783 | SIS7: 3783 | SIT7: 3783 | SIU7: 3783 | SIV7: 3783 | SIW7: 3783 | SIX7: 3783 | SIY7: 3783 | SIZ7: 3783 | SJA7: 3783 | SJB7: 3783 | SJC7: 3783 | SJD7: 3783 | SJE7: 3783 | SJF7: 3783 | SJG7: 3783 | SJH7: 3783 | SJI7: 3783 | SJJ7: 3783 | SJK7: 3783 | SJL7: 3783 | SJM7: 3783 | SJN7: 3783 | SJO7: 3783 | SJP7: 3783 | SJQ7: 3783 | SJR7: 3783 | SJS7: 3783 | SJT7: 3783 | SJU7: 3783 | SJV7: 3783 | SJW7: 3783 | SJX7: 3783 | SJY7: 3783 | SJZ7: 3783 | SKA7: 3783 | SKB7: 3783 | SKC7: 3783 | SKD7: 3783 | SKE7: 3783 | SKF7: 3783 | SKG7: 3783 | SKH7: 3783 | SKI7: 3783 | SKJ7: 3783 | SKK7: 3783 | SKL7: 3783 | SKM7: 3783 | SKN7: 3783 | SKO7: 3783 | SKP7: 3783 | SKQ7: 3783 | SKR7: 3783 | SKS7: 3783 | SKT7: 3783 | SKU7: 3783 | SKV7: 3783 | SKW7: 3783 | SKX7: 3783 | SKY7: 3783 | SKZ7: 3783 | SLA7: 3783 | SLB7: 3783 | SLC7: 3783 | SLD7: 3783 | SLE7: 3783 | SLF7: 3783 | SLG7: 3783 | SLH7: 3783 | SLI7: 3783 | SLJ7: 3783 | SLK7: 3783 | SLL7: 3783 | SLM7: 3783 | SLN7: 3783 | SLO7: 3783 | SLP7: 3783 | SLQ7: 3783 | SLR7: 3783 | SLS7: 3783 | SLT7: 3783 | SLU7: 3783 | SLV7: 3783 | SLW7: 3783 | SLX7: 3783 | SLY7: 3783 | SLZ7: 3783 | SMA7: 3783 | SMB7: 3783 | SMC7: 3783 | SMD7: 3783 | SME7: 3783 | SMF7: 3783 | SMG7: 3783 | SMH7: 3783 | SMI7: 3783 | SMJ7: 3783 | SMK7: 3783 | SML7: 3783 | SMM7: 3783 | SMN7: 3783 | SMO7: 3783 | SMP7: 3783 | SMQ7: 3783 | SMR7: 3783 | SMS7: 3783 | SMT7: 3783 | SMU7: 3783 | SMV7: 3783 | SMW7: 3783 | SMX7: 3783 | SMY7: 3783 | SMZ7: 3783 | SNA7: 3783 | SNB7: 3783 | SNC7: 3783 | SND7: 3783 | SNE7: 3783 | SNF7: 3783 | SNG7: 3783 | SNH7: 3783 | SNI7: 3783 | SNJ7: 3783 | SNK7: 3783 | SNL7: 3783 | SNM7: 3783 | SNN7: 3783 | SNO7: 3783 | SNP7: 3783 | SNQ7: 3783 | SNR7: 3783 | SNS7: 3783 | SNT7: 3783 | SNU7: 3783 | SNV7: 3783 | SNW7: 3783 | SNX7: 3783 | SNY7: 3783 | SNZ7: 3783 | SOA7: 3783 | SOB7: 3783 | SOC7: 3783 | SOD7: 3783 | SOE7: 3783 | SOF7: 3783 | SOG7: 3783 | SOH7: 3783 | SOI7: 3783 | SOJ7: 3783 | SOK7: 3783 | SOL7: 3783 | SOM7: 3783 | SON7: 3783 | SOO7: 3783 | SOP7: 3783 | SOQ7: 3783 | SOR7: 3783 | SOS7: 3783 | SOT7: 3783 | SOU7: 3783 | SOV7: 3783 | SOW7: 3783 | SOX7: 3783 | SOY7: 3783 | SOZ7: 3783 | SPA7: 3783 | SPB7: 3783 | SPC7: 3783 | SPD7: 3783 | SPE7: 3783 | SPF7: 3783 | SPG7: 3783 | SPH7: 3783 | SPI7: 3783 | SPJ7: 3783 | SPK7: 3783 | SPL7: 3783 | SPM7: 3783 | SPN7: 3783 | SPO7: 3783 | SPP7: 3783 | SPQ7: 3783 | SPR7: 3783 | SPS7: 3783 | SPT7: 3783 | SPU7: 3783 | SPV7: 3783 | SPW7: 3783 | SPX7: 3783 | SPY7: 3783 | SPZ7: 3783 | SQA7: 3783 | SQB7: 3783 | SQC7: 3783 | SQD7: 3783 | SQE7: 3783 | SQF7: 3783 | SQG7: 3783 | SQH7: 3783 | SQI7: 3783 | SQJ7: 3783 | SQK7: 3783 | SQL7: 3783 | SQM7: 3783 | SQN7: 3783 | SQO7: 3783 | SQP7: 3783 | SQQ7: 3783 | SQR7: 3783 | SQS7: 3783 | SQT7: 3783 | SQU7: 3783 | SQV7: 3783 | SQW7: 3783 | SQX7: 3783 | SQY7: 3783 | SQZ7: 3783 | SRA7: 3783 | SRB7: 3783 | SRC7: 3783 | SRD7: 3783 | SRE7: 3783 | SRF7: 3783 | SRG7: 3783 | SRH7: 3783 | SRI7: 3783 | SRJ7: 3783 | SRK7: 3783 | SRL7: 3783 | SRM7: 3783 | SRN7: 3783 | SRO7: 3783 | SRP7: 3783 | SRQ7: 3783 | SRR7: 3783 | SRS7: 3783 | SRT7: 3783 | SRU7: 3783 | SRV7: 3783 | SRW7: 3783 | SRX7: 3783 | SRY7: 3783 | SRZ7: 3783 | SSA7: 3783 | SSB7: 3783 | SSC7: 3783 | SSD7: 3783 | SSE7: 3783 | SSF7: 3783 | SSG7: 3783 | SSH7: 3783 | SSI7: 3783 | SSJ7: 3783 | SSK7: 3783 | SSL7: 3783 | SSM7: 3783 | SSN7: 3783 | SSO7: 3783 | SSP7: 3783 | SSQ7: 3783 | SSR7: 3783 | SSS7: 3783 | SST7: 3783 | SSU7: 3783 | SSV7: 3783 | SSW7: 3783 | SSX7: 3783 | SSY7: 3783 | SSZ7: 3783 | STA7: 3783 | STB7: 3783 | STC7: 3783 | STD7: 3783 | STE7: 3783 | STF7: 3783 | STG7: 3783 | STH7: 3783 | STI7: 3783 | STJ7: 3783 | STK7: 3783 | STL7: 3783 | STM7: 3783 | STN7: 3783 | STO7: 3783 | STP7: 3783 | STQ7: 3783 | STR7: 3783 | STS7: 3783 | STT7: 3783 | STU7: 3783 | STV7: 3783 | STW7: 3783 | STX7: 3783 | STY7: 3783 | STZ7: 3783 | SUA7: 3783 | SUB7: 3783 | SUC7: 3783 | SUD7: 3783 | SUE7: 3783 | SUF7: 3783 | SUG7: 3783 | SUH7: 3783 | SUI7: 3783 | SUJ7: 3783 | SUK7: 3783 | SUL7: 3783 | SUM7: 3783 | SUN7: 3783 | SUO7: 3783 | SUP7: 3783 | SUQ7: 3783 | SUR7: 3783 | SUS7: 3783 | SUT7: 3783 | SUU7: 3783 | SUV7: 3783 | SUW7: 3783 | SUX7: 3783 | SUY7: 3783 | SUZ7: 3783 | SVA7: 3783 | SVB7: 3783 | SVC7: 3783 | SVD7: 3783 | SVE7: 3783 | SVF7: 3783 | SVG7: 3783 | SVH7: 3783 | SVI7: 3783 | SVJ7: 3783 | SVK7: 3783 | SVL7: 3783 | SVM7: 3783 | SVN7: 3783 | SVO7: 3783 | SVP7: 3783 | SVQ7: 3783 | SVR7: 3783 | SVS7: 3783 | SVT7: 3783 | SVU7: 3783 | SVV7: 3783 | SVW7: 3783 | SVX7: 3783 | SVY7: 3783 | SVZ7: 3783 | SWA7: 3783 | SWB7: 3783 | SWC7: 3783 | SWD7: 3783 | SWE7: 3783 | SWF7: 3783 | SWG7: 3783 | SWH7: 3783 | SWI7: 3783 | SWJ7: 3783 | SWK7: 3783 | SWL7: 3783 | SWM7: 3783 | SWN7: 3783 | SWO7: 3783 | SWP7: 3783 | SWQ7: 3783 | SWR7: 3783 | SWS7: 3783 | SWT7: 3783 | SWU7: 3783 | SWV7: 3783 | SWW7: 3783 | SWX7: 3783 | SWY7: 3783 | SWZ7: 3783 | SXA7: 3783 | SXB7: 3783 | SXC7: 3783 | SXD7: 3783 | SXE7: 3783 | SXF7: 3783 | SXG7: 3783 | SXH7: 3783 | SXI7: 3783 | SXJ7: 3783 | SXK7: 3783 | SXL7: 3783 | SXM7: 3783 | SXN7: 3783 | SXO7: 3783 | SXP7: 3783 | SXQ7: 3783 | SXR7: 3783 | SXS7: 3783 | SXT7: 3783 | SXU7: 3783 | SXV7: 3783 | SXW7: 3783 | SXX7: 3783 | SXY7: 3783 | SXZ7: 3783 | SYA7: 3783 | SYB7: 3783 | SYC7: 3783 | SYD7: 3783 | SYE7: 3783 | SYF7: 3783 | SYG7: 3783 | SYH7: 3783 | SYI7: 3783 | SYJ7: 3783 | SYK7: 3783 | SYL7: 3783 | SYM7: 3783 | SYN7: 3783 | SYO7: 3783 | SYP7: 3783 | SYQ7: 3783 | SYR7: 3783 | SYS7: 3783 | SYT7: 3783 | SYU7: 3783 | SYV7: 3783 | SYW7: 3783 | SYX7: 3783 | SYY7: 3783 | SYZ7: 3783 | SZA7: 3783 | SZB7: 3783 | SZC7: 3783 | SZD7: 3783 | SZE7: 3783 | SZF7: 3783 | SZG7: 3783 | SZH7: 3783 | SZI7: 3783 | SZJ7: 3783 | SZK7: 3783 | SZL7: 3783 | SZM7: 3783 | SZN7: 3783 | SZO7: 3783 | SZP7: 3783 | SZQ7: 3783 | SZR7: 3783 | SZS7: 3783 | SZT7: 3783 | SZU7: 3783 | SZV7: 3783 | SZW7: 3783 | SZX7: 3783 | SZY7: 3783 | SZZ7: 3783 | TAA7: 3783 | TAB7: 3783 | TAC7: 3783 | TAD7: 3783 | TAE7: 3783 | TAF7: 3783 | TAG7: 3783 | TAH7: 3783 | TAI7: 3783 | TAJ7: 3783 | TAK7: 3783 | TAL7: 3783 | TAM7: 3783 | TAN7: 3783 | TAO7: 3783 | TAP7: 3783 | TAQ7: 3783 | TAR7: 3783 | TAS7: 3783 | TAT7: 3783 | TAU7: 3783 | TAV7: 3783 | TAW7: 3783 | TAX7: 3783 | TAY7: 3783 | TAZ7: 3783 | TBA7: 3783 | TBB7: 3783 | TBC7: 3783 | TBD7: 3783 | TBE7: 3783 | TBF7: 3783 | TBG7: 3783 | TBH7: 3783 | TBI7: 3783 | TBJ7: 3783 | TBK7: 3783 | TBL7: 3783 | TBM7: 3783 | TBN7: 3783 | TBO7: 3783 | TBP7: 3783 | TBQ7: 3783 | TBR7: 3783 | TBS7: 3783 | TBT7: 3783 | TBU7: 3783 | TBV7: 3783 | TBW7: 3783 | TBX7: 3783 | TBY7: 3783 | TBZ7: 3783 | TCA7: 3783 | TCB7: 3783 | TCC7: 3783 | TCD7: 3783 | TCE7: 3783 | TCF7: 3783 | TCG7: 3783 | TCH7: 3783 | TCI7: 3783 | TCJ7: 3783 | TCK7: 3783 | TCL7: 3783 | TCM7: 3783 | TCN7: 3783 | TCO7: 3783 | TCP7: 3783 | TCQ7: 3783 | TCR7: 3783 | TCS7: 3783 | TCT7: 3783 | TCU7: 3783 | TCV7: 3783 | TCW7: 3783 | TCX7: 3783 | TCY7: 3783 | TCZ7: 3783 | TDA7: 3783 | TDB7: 3783 | TDC7: 3783 | TDD7: 3783 | TDE7: 3783 | TDF7: 3783 | TDG7: 3783 | TDH7: 3783 | TDI7: 3783 | TDJ7: 3783 | TDK7: 3783 | TDL7: 3783 | TDM7: 3783 | TDN7: 3783 | TDO7: 3783 | TDP7: 3783 | TDQ7: 3783 | TDR7: 3783 | TDS7: 3783 | TDT7: 3783 | TDU7: 3783 | TDV7: 3783 | TDW7: 3783 | TDX7: 3783 | TDY7: 3783 | TDZ7: 3783 | TEA7: 3783 | TEB7: 3783 | TEC7: 3783 | TED7: 3783 | TEE7: 3783 | TEF7: 3783 | TEG7: 3783 | TEH7: 3783 | TEI7: 3783 | TEJ7: 3783 | TEK7: 3783 | TEL7: 3783 | TEM7: 3783 | TEN7: 3783 | TEO7: 3783 | TEP7: 3783 | TEQ7: 3783 | TER7: 3783 | TES7: 3783 | TET7: 3783 | TEU7: 3783 | TEV7: 3783 | TEW7: 3783 | TEX7: 3783 | TEY7: 3783 | TEZ7: 3783 | TFA7: 3783 | TFB7: 3783 | TFC7: 3783 | TFD7: 3783 | TFE7: 3783 | TFF7: 3783 | TFG7: 3783 | TFH7: 3783 | TFI7: 3783 | TFJ7: 3783 | TFK7: 3783 | TFL7: 3783 | TFM7: 3783 | TFN7: 3783 | TFO7: 3783 | TFP7: 3783 | TFQ7: 3783 | TFR7: 3783 | TFS7: 3783 | TFT7: 3783 | TFU7: 3783 | TFV7: 3783 | TFW7: 3783 | TFX7: 3783 | TFY7: 3783 | TFZ7: 3783 | TGA7: 3783 | TGB7: 3783 | TGC7: 3783 | TGD7: 3783 | TGE7: 3783 | TGF7: 3783 | TGG7: 3783 | TGH7: 3783 | TGI7: 3783 | TGJ7: 3783 | TGK7: 3783 | TGL7: 3783 | TGM7: 3783 | TGN7: 3783 | TGO7: 3783 | TGP7: 3783 | TGQ7: 3783 | TGR7: 3783 | TGS7: 3783 | TGT7: 3783 | TGU7: 3783 | TGV7: 3783 | TGW7: 3783 | TGX7: 3783 | TGY7: 3783 | TGZ7: 3783 | THA7: 3783 | THB7: 3783 | THC7: 3783 | THD7: 3783 | THE7: 3783 | THF7: 3783 | THG7: 3783 | THH7: 3783 | THI7: 3783 | THJ7: 3783 | THK7: 3783 | THL7: 3783 | THM7: 3783 | THN7: 3783 | THO7: 3783 | THP7: 3783 | THQ7: 3783 | THR7: 3783 | THS7: 3783 | THT7: 3783 | THU7: 3783 | THV7: 3783 | THW7: 3783 | THX7: 3783 | THY7: 3783 | THZ7: 3783 | TIA7: 3783 | TIB7: 3783 | TIC7: 3783 | TID7: 3783 | TIE7: 3783 | TIF7: 3783 | TIG7: 3783 | TIH7: 3783 | TII7: 3783 | TIJ7: 3783 | TIK7: 3783 | TIL7: 3783 | TIM7: 3783 | TIN7: 3783 | TIO7: 3783 | TIP7: 3783 | TIQ7: 3783 | TIR7: 3783 | TIS7: 3783 | TIT7: 3783 | TIU7: 3783 | TIV7: 3783 | TIW7: 3783 | TIX7: 3783 | TIY7: 3783 | TIZ7: 3783 | TJA7: 3783 | TJB7: 3783 | TJC7: 3783 | TJD7: 3783 | TJE7: 3783 | TJF7: 3783 | TJG7: 3783 | TJH7: 3783 | TJI7: 3783 | TJJ7: 3783 | TJK7: 3783 | TJL7: 3783 | TJM7: 3783 | TJN7: 3783 | TJO7: 3783 | TJP7: 3783 | TJQ7: 3783 | TJR7: 3783 | TJS7: 3783 | TJT7: 3783 | TJU7: 3783 | TJV7: 3783 | TJW7: 3783 | TJX7: 3783 | TJY7: 3783 | TJZ7: 3783 | TKA7: 3783 | TKB7: 3783 | TKC7: 3783 | TKD7: 3783 | TKE7: 3783 | TKF7: 3783 | TKG7: 3783 | TKH7: 3783 | TKI7: 3783 | TKJ7: 3783 | TKK7: 3783 | TKL7: 3783 | TKM7: 3783 | TKN7: 3783 | TKO7: 3783 | TKP7: 3783 | TKQ7: 3783 | TKR7: 3783 | TKS7: 3783 | TKT7: 3783 | TKU7: 3783 | TKV7: 3783 | TKW7: 3783 | TKX7: 3783 | TKY7: 3783 | TKZ7: 3783 | TLA7: 3783 | TLB7: 3783 | TLC7: 3783 | TLD7: 3783 | TLE7: 3783 | TLF7: 3783 | TLG7: 3783 | TLH7: 3783 | TLI7: 3783 | TLJ7: 3783 | TLK7: 3783 | TLL7: 3783 | TLM7: 3783 | TLN7: 3783 | TLO7: 3783 | TLP7: 3783 | TLQ7: 3783 | TLR7: 3783 | TLS7: 3783 | TLT7: 3783 | TLU7: 3783 | TLV7: 3783 | TLW7: 3783 | TLX7: 3783 | TLY7: 3783 | TLZ7: 3783 | TMA7: 3783 | TMB7: 3783 | TMC7: 3783 | TMD7: 3783 | TME7: 3783 | TMF7: 3783 | TMG7: 3783 | TMH7: 3783 | TMI7: 3783 | TMJ7: 3783 | TMK7: 3783 | TML7: 3783 | TMM7: 3783 | TMN7: 3783 | TMO7: 3783 | TMP7: 3783 | TMQ7: 3783 | TMR7: 3783 | TMS7: 3783 | TMT7: 3783 | TMU7: 3783 | TMV7: 3783 | TMW7: 3783 | TMX7: 3783 | TMY7: 3783 | TMZ7: 3783 | TNA7: 3783 | TNB7: 3783 | TNC7: 3783 | TND7: 3783 | TNE7: 3783 | TNF7: 3783 | TNG7: 3783 | TNH7: 3783 | TNI7: 3783 | TNJ7: 3783 | TNK7: 3783 | TNL7: 3783 | TNM7: 3783 | TNN7: 3783 | TNO7: 3783 | TNP7: 3783 | TNQ7: 3783 | TNR7: 3783 | TNS7: 3783 | TNT7: 3783 | TNU7: 3783 | TNV7: 3783 | TNW7: 3783 | TNX7: 3783 | TNY7: 3783 | TNZ7: 3783 | TOA7: 3783 | TOB7: 3783 | TOC7: 3783 | TOD7: 3783 | TOE7: 3783 | TOF7: 3783 | TOG7: 3783 | TOH7: 3783 | TOI7: 3783 | TOJ7: 3783 | TOK7: 3783 | TOL7: 3783 | TOM7: 3783 | TON7: 3783 | TOO7: 3783 | TOP7: 3783 | TOQ7: 3783 | TOR7: 3783 | TOS7: 3783 | TOT7: 3783 | TOU7: 3783 | TOV7: 3783 | TOW7: 3783 | TOX7: 3783 | TOY7: 3783 | TOZ7: 3783 | TPA7: 3783 | TPB7: 3783 | TPC7: 3783 | TPD7: 3783 | TPE7: 3783 | TPF7: 3783 | TPG7: 3783 | TPH7: 3783 | TPI7: 3783 | TPJ7: 3783 | TPK7: 3783 | TPL7: 3783 | TPM7: 3783 | TPN7: 3783 | TPO7: 3783 | TPP7: 3783 | TPQ7: 3783 | TPR7: 3783 | TPS7: 3783 | TPT7: 3783 | TPU7: 3783 | TPV7: 3783 | TPW7: 3783 | TPX7: 3783 | TPY7: 3783 | TPZ7: 3783 | TQA7: 3783 | TQB7: 3783 | TQC7: 3783 | TQD7: 3783 | TQE7: 3783 | TQF7: 3783 | TQG7: 3783 | TQH7: 3783 | TQI7: 3783 | TQJ7: 3783 | TQK7: 3783 | TQL7: 3783 | TQM7: 3783 | TQN7: 3783 | TQO7: 3783 | TQP7: 3783 | TQQ7: 3783 | TQR7: 3783 | TQS7: 3783 | TQT7: 3783 | TQU7: 3783 | TQV7: 3783 | TQW7: 3783 | TQX7: 3783 | TQY7: 3783 | TQZ7: 3783 | TRA7: 3783 | TRB7: 3783 | TRC7: 3783 | TRD7: 3783 | TRE7: 3783 | TRF7: 3783 | TRG7: 3783 | TRH7: 3783 | TRI7: 3783 | TRJ7: 3783 | TRK7: 3783 | TRL7: 3783 | TRM7: 3783 | TRN7: 3783 | TRO7: 3783 | TRP7: 3783 | TRQ7: 3783 | TRR7: 3783 | TRS7: 3783 | TRT7: 3783 | TRU7: 3783 | TRV7: 3783 | TRW7: 3783 | TRX7: 3783 | TRY7: 3783 | TRZ7: 3783 | TSA7: 3783 | TSB7: 3783 | TSC7: 3783 | TSD7: 3783 | TSE7: 3783 | TSF7: 3783 | TSG7: 3783 | TSH7: 3783 | TSI7: 3783 | TSJ7: 3783 | TSK7: 3783 | TSL7: 3783 | TSM7: 3783 | TSN7: 3783 | TSO7: 3783 | TSP7: 3783 | TSQ7: 3783 | TSR7: 3783 | TSS7: 3783 | TST7: 3783 | TSU7: 3783 | TSV7: 3783 | TSW7: 3783 | TSX7: 3783 | TSY7: 3783 | TSZ7: 3783 | TTA7: 3783 | TTB7: 3783 | TTC7: 3783 | TTD7: 3783 | TTE7: 3783 | TTF7: 3783 | TTG7: 3783 | TTH7: 3783 | TTI7: 3783 | TTJ7: 3783 | TTK7: 3783 | TTL7: 3783 | TTM7: 3783 | TTN7: 3783 | TTO7: 3783 | TTP7: 3783 | TTQ7: 3783 | TTR7: 3783 | TTS7: 3783 | TTT7: 3783 | TTU7: 3783 | TTV7: 3783 | TTW7: 3783 | TTX7: 3783 | TTY7: 3783 | TTZ7: 3783 | TUA7: 3783 | TUB7: 3783 | TUC7: 3783 | TUD7: 3783 | TUE7: 3783 | TUF7: 3783 | TUG7: 3783 | TUH7: 3783 | TUI7: 3783 | TUJ7: 3783 | TUK7: 3783 | TUL7: 3783 | TUM7: 3783 | TUN7: 3783 | TUO7: 3783 | TUP7: 3783 | TUQ7: 3783 | TUR7: 3783 | TUS7: 3783 | TUT7: 3783 | TUU7: 3783 | TUV7: 3783 | TUW7: 3783 | TUX7: 3783 | TUY7: 3783 | TUZ7: 3783 | TVA7: 3783 | TVB7: 3783 | TVC7: 3783 | TVD7: 3783 | TVE7: 3783 | TVF7: 3783 | TVG7: 3783 | TVH7: 3783 | TVI7: 3783 | TVJ7: 3783 | TVK7: 3783 | TVL7: 3783 | TVM7: 3783 | TVN7: 3783 | TVO7: 3783 | TVP7: 3783 | TVQ7: 3783 | TVR7: 3783 | TVS7: 3783 | TVT7: 3783 | TVU7: 3783 | TVV7: 3783 | TVW7: 3783 | TVX7: 3783 | TVY7: 3783 | TVZ7: 3783 | TWA7: 3783 | TWB7: 3783 | TWC7: 3783 | TWD7: 3783 | TWE7: 3783 | TWF7: 3783 | TWG7: 3783 | TWH7: 3783 | TWI7: 3783 | TWJ7: 3783 | TWK7: 3783 | TWL7: 3783 | TWM7: 3783 | TWN7: 3783 | TWO7: 3783 | TWP7: 3783 | TWQ7: 3783 | TWR7: 3783 | TWS7: 3783 | TWT7: 3783 | TWU7: 3783 | TWV7: 3783 | TWW7: 3783 | TWX7: 3783 | TWY7: 3783 | TWZ7: 3783 | TXA7: 3783 | TXB7: 3783 | TXC7: 3783 | TXD7: 3783 | TXE7: 3783 | TXF7: 3783 | TXG7: 3783 | TXH7: 3783 | TXI7: 3783 | TXJ7: 3783 | TXK7: 3783 | TXL7: 3783 | TXM7: 3783 | TXN7: 3783 | TXO7: 3783 | TXP7: 3783 | TXQ7: 3783 | TXR7: 3783 | TXS7: 3783 | TXT7: 3783 | TXU7: 3783 | TXV7: 3783 | TXW7: 3783 | TXX7: 3783 | TXY7: 3783 | TXZ7: 3783 | TYA7: 3783 | TYB7: 3783 | TYC7: 3783 | TYD7: 3783 | TYE7: 3783 | TYF7: 3783 | TYG7: 3783 | TYH7: 3783 | TYI7: 3783 | TYJ7: 3783 | TYK7: 3783 | TYL7: 3783 | TYM7: 3783 | TYN7: 3783 | TYO7: 3783 | TYP7: 3783 | TYQ7: 3783 | TYR7: 3783 | TYS7: 3783 | TYT7: 3783 | TYU7: 3783 | TYV7: 3783 | TYW7: 3783 | TYX7: 3783 | TYY7: 3783 | TYZ7: 3783 | TZA7: 3783 | TZB7: 3783 | TZC7: 3783 | TZD7: 3783 | TZE7: 3783 | TZF7: 3783 | TZG7: 3783 | TZH7: 3783 | TZI7: 3783 | TZJ7: 3783 | TZK7: 3783 | TZL7: 3783 | TZM7: 3783 | TZN7: 3783 | TZO7: 3783 | TZP7: 3783 | TZQ7: 3783 | TZR7: 3783 | TZS7: 3783 | TZT7: 3783 | TZU7: 3783 | TZV7: 3783 | TZW7: 3783 | TZX7: 3783 | TZY7: 3783 | TZZ7: 3783 | UAA7: 3783 | UAB7: 3783 | UAC7: 3783 | UAD7: 3783 | UAE7: 3783 | UAF7: 3783 | UAG7: 3783 | UAH7: 3783 | UAI7: 3783 | UAJ7: 3783 | UAK7: 3783 | UAL7: 3783 | UAM7: 3783 | UAN7: 3783 | UAO7: 3783 | UAP7: 3783 | UAQ7: 3783 | UAR7: 3783 | UAS7: 3783 | UAT7: 3783 | UAU7: 3783 | UAV7: 3783 | UAW7: 3783 | UAX7: 3783 | UAY7: 3783 | UAZ7: 3783 | UBA7: 3783 | UBB7: 3783 | UBC7: 3783 | UBD7: 3783 | UBE7: 3783 | UBF7: 3783 | UBG7: 3783 | UBH7: 3783 | UBI7: 3783 | UBJ7: 3783 | UBK7: 3783 | UBL7: 3783 | UBM7: 3783 | UBN7: 3783 | UBO7: 3783 | UBP7: 3783 | UBQ7: 3783 | UBR7: 3783 | UBS7: 3783 | UBT7: 3783 | UBU7: 3783 | UBV7: 3783 | UBW7: 3783 | UBX7: 3783 | UBY7: 3783 | UBZ7: 3783 | UCA7: 3783 | UCB7: 3783 | UCC7: 3783 | UCD7: 3783 | UCE7: 3783 | UCF7: 3783 | UCG7: 3783 | UCH7: 3783 | UCI7: 3783 | UCJ7: 3783 | UCK7: 3783 | UCL7: 3783 | UCM7: 3783 | UCN7: 3783 | UCO7: 3783 | UCP7: 3783 | UCQ7: 3783 | UCR7: 3783 | UCS7: 3783 | UCT7: 3783 | UCU7: 3783 | UCV7: 3783 | UCW7: 3783 | UCX7: 3783 | UCY7: 3783 | UCZ7: 3783 | UDA7: 3783 | UDB7: 3783 | UDC7: 3783 | UDD7: 3783 | UDE7: 3783 | UDF7: 3783 | UDG7: 3783 | UDH7: 3783 | UDI7: 3783 | UDJ7: 3783 | UDK7: 3783 | UDL7: 3783 | UDM7: 3783 | UDN7: 3783 | UDO7: 3783 | UDP7: 3783 | UDQ7: 3783 | UDR7: 3783 | UDS7: 3783 | UDT7: 3783 | UDU7: 3783 | UDV7: 3783 | UDW7: 3783 | UDX7: 3783 | UDY7: 3783 | UDZ7: 3783 | UEA7: 3783 | UEB7: 3783 | UEC7: 3783 | UED7: 3783 | UEE7: 3783 | UEF7: 3783 | UEG7: 3783 | UEH7: 3783 | UEI7: 3783 | UEJ7: 3783 | UEK7: 3783 | UEL7: 3783 | UEM7: 3783 | UEN7: 3783 | UEO7: 3783 | UEP7: 3783 | UEQ7: 3783 | UER7: 3783 | UES7: 3783 | UET7: 3783 | UEU7: 3783 | UEV7: 3783 | UEW7: 3783 | UEX7: 3783 | UEY7: 3783 | UEZ7: 3783 | UFA7: 3783 | UFB7: 3783 | UFC7: 3783 | UFD7: 3783 | UFE7: 3783 | UFF7: 3783 | UFG7: 3783 | UFH7: 3783 | UFI7: 3783 | UFJ7: 3783 | UFK7: 3783 | UFL7: 3783 | UFM7: 3783 | UFN7: 3783 | UFO7: 3783 | UFP7: 3783 | UFQ7: 3783 | UFR7: 3783 | UFS7: 3783 | UFT7: 3783 | UFU7: 3783 | UFV7: 3783 | UFW7: 3783 | UFX7: 3783 | UFY7: 3783 | UFZ7: 3783 | UGA7: 3783 | UGB7: 3783 | UGC7: 3783 | UGD7: 3783 | UGE7: 3783 | UGF7: 3783 | UGG7: 3783 | UGH7: 3783 | UGI7: 3783 | UGJ7: 3783 | UGK7: 3783 | UGL7: 3783 | UGM7: 3783 | UGN7: 3783 | UGO7: 3783 | UGP7: 3783 | UGQ7: 3783 | UGR7: 3783 | UGS7: 3783 | UGT7: 3783 | UGU7: 3783 | UGV7: 3783 | UGW7: 3783 | UGX7: 3783 | UGY7: 3783 | UGZ7: 3783 | UHA7: 3783 | UHB7: 3783 | UHC7: 3783 | UHD7: 3783 | UHE7: 3783 | UHF7: 3783 | UHG7: 3783 | UHH7: 3783 | UHI7: 3783 | UHJ7: 3783 | UHK7: 3783 | UHL7: 3783 | UHM7: 3783 | UHN7: 3783 | UHO7: 3783 | UHP7: 3783 | UHQ7: 3783 | UHR7: 3783 | UHS7: 3783 | UHT7: 3783 | UHU7: 3783 | UHV7: 3783 | UHW7: 3783 | UHX7: 3783 | UHY7: 3783 | UHZ7: 3783 | UIA7: 3783 | UIB7: 3783 | UIC7: 3783 | UID7: 3783 | UIE7: 3783 | UIF7: 3783 | UIG7: 3783 | UIH7: 3783 | UII7: 3783 | UIJ7: 3783 | UIK7: 3783 | UIL7: 3783 | UIM7: 3783 | UIN7: 3783 | UIO7: 3783 | UIP7: 3783 | UIQ7: 3783 | UIR7: 3783 | UIS7: 3783 | UIT7: 3783 | UIU7: 3783 | UIV7: 3783 | UIW7: 3783 | UIX7: 3783 | UIY7: 3783 | UIZ7: 3783 | UJA7: 3783 | UJB7: 3783 | UJC7: 3783 | UJD7: 3783 | UJE7: 3783 | UJF7: 3783 | UJG7: 3783 | UJH7: 3783 | UJI7: 3783 | UJJ7: 3783 | UJK7: 3783 | UJL7: 3783 | UJM7: 3783 | UJN7: 3783 | UJO7: 3783 | UJP7: 3783 | UJQ7: 3783 | UJR7: 3783 | UJS7: 3783 | UJT7: 3783 | UJU7: 3783 | UJV7: 3783 | UJW7: 3783 | UJX7: 3783 | UJY7: 3783 | UJZ7: 3783 | UKA7: 3783 | UKB7: 3783 | UKC7: 3783 | UKD7: 3783 | UKE7: 3783 | UKF7: 3783 | UKG7: 3783 | UKH7: 3783 | UKI7: 3783 | UKJ7: 3783 | UKK7: 3783 | UKL7: 3783 | UKM7: 3783 | UKN7: 3783 | UKO7: 3783 | UKP7: 3783 | UKQ7: 3783 | UKR7: 3783 | UKS7: 3783 | UKT7: 3783 | UKU7: 3783 | UKV7: 3783 | UKW7: 3783 | UKX7: 3783 | UKY7: 3783 | UKZ7: 3783 | ULA7: 3783 | ULB7: 3783 | ULC7: 3783 | ULD7: 3783 | ULE7: 3783 | ULF7: 3783 | ULG7: 3783 | ULH7: 3783 | ULI7: 3783 | ULJ7: 3783 | ULK7: 3783 | ULL7: 3783 | ULM7: 3783 | ULN7: 3783 | ULO7: 3783 | ULP7: 3783 | ULQ7: 3783 | ULR7: 3783 | ULS7: 3783 | ULT7: 3783 | ULU7: 3783 | ULV7: 3783 | ULW7: 3783 | ULX7: 3783 | ULY7: 3783 | ULZ7: 3783 | UMA7: 3783 | UMB7: 3783 | UMC7: 3783 | UMD7: 3783 | UME7: 3783 | UMF7: 3783 | UMG7: 3783 | UMH7: 3783 | UMI7: 3783 | UMJ7: 3783 | UMK7: 3783 | UML7: 3783 | UMM7: 3783 | UMN7: 3783 | UMO7: 3783 | UMP7: 3783 | UMQ7: 3783 | UMR7: 3783 | UMS7: 3783 | UMT7: 3783 | UMU7: 3783 | UMV7: 3783 | UMW7: 3783 | UMX7: 3783 | UMY7: 3783 | UMZ7: 3783 | UNA7: 3783 | UNB7: 3783 | UNC7: 3783 | UND7: 3783 | UNE7: 3783 | UNF7: 3783 | UNG7: 3783 | UNH7: 3783 | UNI7: 3783 | UNJ7: 3783 | UNK7: 3783 | UNL7: 3783 | UNM7: 3783 | UNN7: 3783 | UNO7: 3783 | UNP7: 3783 | UNQ7: 3783 | UNR7: 3783 | UNS7: 3783 | UNT7: 3783 | UNU7: 3783 | UNV7: 3783 | UNW7: 3783 | UNX7: 3783 | UNY7: 3783 | UNZ7: 3783 | UOA7: 3783 | UOB7: 3783 | UOC7: 3783 | UOD7: 3783 | UOE7: 3783 | UOF7: 3783 | UOG7: 3783 | UOH7: 3783 | UOI7: 3783 | UOJ7: 3783 | UOK7: 3783 | UOL7: 3783 | UOM7: 3783 | UON7: 3783 | UOO7: 3783 | UOP7: 3783 | UOQ7: 3783 | UOR7: 3783 | UOS7: 3783 | UOT7: 3783 | UOU7: 3783 | UOV7: 3783 | UOW7: 3783 | UOX7: 3783 | UOY7: 3783 | UOZ7: 3783 | UPA7: 3783 | UPB7: 3783 | UPC7: 3783 | UPD7: 3783 | UPE7: 3783 | UPF7: 3783 | UPG7: 3783 | UPH7: 3783 | UPI7: 3783 | UPJ7: 3783 | UPK7: 3783 | UPL7: 3783 | UPM7: 3783 | UPN7: 3783 | UPO7: 3783 | UPP7: 3783 | UPQ7: 3783 | UPR7: 3783 | UPS7: 3783 | UPT7: 3783 | UPU7: 3783 | UPV7: 3783 | UPW7: 3783 | UPX7: 3783 | UPY7: 3783 | UPZ7: 3783 | UQA7: 3783 | UQB7: 3783 | UQC7: 3783 | UQD7: 3783 | UQE7: 3783 | UQF7: 3783 | UQG7: 3783 | UQH7: 3783 | UQI7: 3783 | UQJ7: 3783 | UQK7: 3783 | UQL7: 3783 | UQM7: 3783 | UQN7: 3783 | UQO7: 3783 | UQP7: 3783 | UQQ7: 3783 | UQR7: 3783 | UQS7: 3783 | UQT7: 3783 | UQU7: 3783 | UQV7: 3783 | UQW7: 3783 | UQX7: 3783 | UQY7: 3783 | UQZ7: 3783 | URA7: 3783 | URB7: 3783 | URC7: 3783 | URD7: 3783 | URE7: 3783 | URF7: 3783 | URG7: 3783 | URH7: 3783 | URI7: 3783 | URJ7: 3783 | URK7: 3783 | URL7: 3783 | URM7: 3783 | URN7: 3783 | URO7: 3783 | URP7: 3783 | URQ7: 3783 | URR7: 3783 | URS7: 3783 | URT7: 3783 | URU7: 3783 | URV7: 3783 | URW7: 3783 | URX7: 3783 | URY7: 3783 | URZ7: 3783 | USA7: 3783 | USB7: 3783 | USC7: 3783 | USD7: 3783 | USE7: 3783 | USF7: 3783 | USG7: 3783 | USH7: 3783 | USI7: 3783 | USJ7: 3783 | USK7: 3783 | USL7: 3783 | USM7: 3783 | USN7: 3783 | USO7: 3783 | USP7: 3783 | USQ7: 3783 | USR7: 3783 | USS7: 3783 | UST7: 3783 | USU7: 3783 | USV7: 3783 | USW7: 3783 | USX7: 3783 | USY7: 3783 | USZ7: 3783 | UTA7: 3783 | UTB7: 3783 | UTC7: 3783 | UTD7: 3783 | UTE7: 3783 | UTF7: 3783 | UTG7: 3783 | UTH7: 3783 | UTI7: 3783 | UTJ7: 3783 | UTK7: 3783 | UTL7: 3783 | UTM7: 3783 | UTN7: 3783 | UTO7: 3783 | UTP7: 3783 | UTQ7: 3783 | UTR7: 3783 | UTS7: 3783 | UTT7: 3783 | UTU7: 3783 | UTV7: 3783 | UTW7: 3783 | UTX7: 3783 | UTY7: 3783 | UTZ7: 3783 | UUA7: 3783 | UUB7: 3783 | UUC7: 3783 | UUD7: 3783 | UUE7: 3783 | UUF7: 3783 | UUG7: 3783 | UUH7: 3783 | UUI7: 3783 | UUJ7: 3783 | UUK7: 3783 | UUL7: 3783 | UUM7: 3783 | UUN7: 3783 | UUO7: 3783 | UUP7: 3783 | UUQ7: 3783 | UUR7: 3783 | UUS7: 3783 | UUT7: 3783 | UUU7: 3783 | UUV7: 3783 | UUW7: 3783 | UUX7: 3783 | UUY7: 3783 | UUZ7: 3783 | UVA7: 3783 | UVB7: 3783 | UVC7: 3783 | UVD7: 3783 | UVE7: 3783 | UVF7: 3783 | UVG7: 3783 | UVH7: 3783 | UVI7: 3783 | UVJ7: 3783 | UVK7: 3783 | UVL7: 3783 | UVM7: 3783 | UVN7: 3783 | UVO7: 3783 | UVP7: 3783 | UVQ7: 3783 | UVR7: 3783 | UVS7: 3783 | UVT7: 3783 | UVU7: 3783 | UVV7: 3783 | UVW7: 3783 | UVX7: 3783 | UVY7: 3783 | UVZ7: 3783 | UWA7: 3783 | UWB7: 3783 | UWC7: 3783 | UWD7: 3783 | UWE7: 3783 | UWF7: 3783 | UWG7: 3783 | UWH7: 3783 | UWI7: 3783 | UWJ7: 3783 | UWK7: 3783 | UWL7: 3783 | UWM7: 3783 | UWN7: 3783 | UWO7: 3783 | UWP7: 3783 | UWQ7: 3783 | UWR7: 3783 | UWS7: 3783 | UWT7: 3783 | UWU7: 3783 | UWV7: 3783 | UWW7: 3783 | UWX7: 3783 | UWY7: 3783 | UWZ7: 3783 | UXA7: 3783 | UXB7: 3783 | UXC7: 3783 | UXD7: 3783 | UXE7: 3783 | UXF7: 3783 | UXG7: 3783 | UXH7: 3783 | UXI7: 3783 | UXJ7: 3783 | UXK7: 3783 | UXL7: 3783 | UXM7: 3783 | UXN7: 3783 | UXO7: 3783 | UXP7: 3783 | UXQ7: 3783 | UXR7: 3783 | UXS7: 3783 | UXT7: 3783 | UXU7: 3783 | UXV7: 3783 | UXW7: 3783 | UXX7: 3783 | UXY7: 3783 | UXZ7: 3783 | UYA7: 3783 | UYB7: 3783 | UYC7: 3783 | UYD7: 3783 | UYE7: 3783 | UYF7: 3783 | UYG7: 3783 | UYH7: 3783 | UYI7: 3783 | UYJ7: 3783 | UYK7: 3783 | UYL7: 3783 | UYM7: 3783 | UYN7: 3783 | UYO7: 3783 | UYP7: 3783 | UYQ7: 3783 | UYR7: 3783 | UYS7: 3783 | UYT7: 3783 | UYU7: 3783 | UYV7: 3783 | UYW7: 3783 | UYX7: 3783 | UYY7: 3783 | UYZ7: 3783 | UZA7: 3783 | UZB7: 3783 | UZC7: 3783 | UZD7: 3783 | UZE7: 3783 | UZF7: 3783 | UZG7: 3783 | UZH7: 3783 | UZI7: 3783 | UZJ7: 3783 | UZK7: 3783 | UZL7: 3783 | UZM7: 3783 | UZN7: 3783 | UZO7: 3783 | UZP7: 3783 | UZQ7: 3783 | UZR7: 3783 | UZS7: 3783 | UZT7: 3783 | UZU7: 3783 | UZV7: 3783 | UZW7: 3783 | UZX7: 3783 | UZY7: 3783 | UZZ7: 3783 | VAA7: 3783 | VAB7: 3783 | VAC7: 3783 | VAD7: 3783 | VAE7: 3783 | VAF7: 3783 | VAG7: 3783 | VAH7: 3783 | VAI7: 3783 | VAJ7: 3783 | VAK7: 3783 | VAL7: 3783 | VAM7: 3783 | VAN7: 3783 | VAO7: 3783 | VAP7: 3783 | VAQ7: 3783 | VAR7: 3783 | VAS7: 3783 | VAT7: 3783 | VAU7: 3783 | VAV7: 3783 | VAW7: 3783 | VAX7: 3783 | VAY7: 3783 | VAZ7: 3783 | VBA7: 3783 | VBB7: 3783 | VBC7: 3783 | VBD7: 3783 | VBE7: 3783 | VBF7: 3783 | VBG7: 3783 | VBH7: 3783 | VBI7: 3783 | VBJ7: 3783 | VBK7: 3783 | VBL7: 3783 | VBM7: 3783 | VBN7: 3783 | VBO7: 3783 | VBP7: 3783 | VBQ7: 3783 | VBR7: 3783 | VBS7: 3783 | VBT7: 3783 | VBU7: 3783 | VBV7: 3783 | VBW7: 3783 | VBX7: 3783 | VBY7: 3783 | VBZ7: 3783 | VCA7: 3783 | VCB7: 3783 | VCC7: 3783 | VCD7: 3783 | VCE7: 3783 | VCF7: 3783 | VCG7: 3783 | VCH7: 3783 | VCI7: 3783 | VCJ7: 3783 | VCK7: 3783 | VCL7: 3783 | VCM7: 3783 | VCN7: 3783 | VCO7: 3783 | VCP7: 3783 | VCQ7: 3783 | VCR7: 3783 | VCS7: 3783 | VCT7: 3783 | VCU7: 3783 | VCV7: 3783 | VCW7: 3783 | VCX7: 3783 | VCY7: 3783 | VCZ7: 3783 | VDA7: 3783 | VDB7: 3783 | VDC7: 3783 | VDD7: 3783 | VDE7: 3783 | VDF7: 3783 | VDG7: 3783 | VDH7: 3783 | VDI7: 3783 | VDJ7: 3783 | VDK7: 3783 | VDL7: 3783 | VDM7: 3783 | VDN7: 3783 | VDO7: 3783 | VDP7: 3783 | VDQ7: 3783 | VDR7: 3783 | VDS7: 3783 | VDT7: 3783 | VDU7: 3783 | VDV7: 3783 | VDW7: 3783 | VDX7: 3783 | VDY7: 3783 | VDZ7: 3783 | VEA7: 3783 | VEB7: 3783 | VEC7: 3783 | VED7: 3783 | VEE7: 3783 | VEF7: 3783 | VEG7: 3783 | VEH7: 3783 | VEI7: 3783 | VEJ7: 3783 | VEK7: 3783 | VEL7: 3783 | VEM7: 3783 | VEN7: 3783 | VEO7: 3783 | VEP7: 3783 | VEQ7: 3783 | VER7: 3783 | VES7: 3783 | VET7: 3783 | VEU7: 3783 | VEV7: 3783 | VEW7: 3783 | VEX7: 3783 | VEY7: 3783 | VEZ7: 3783 | VFA7: 3783 | VFB7: 3783 | VFC7: 3783 | VFD7: 3783 | VFE7: 3783 | VFF7: 3783 | VFG7: 3783 | VFH7: 3783 | VFI7: 3783 | VFJ7: 3783 | VFK7: 3783 | VFL7: 3783 | VFM7: 3783 | VFN7: 3783 | VFO7: 3783 | VFP7: 3783 | VFQ7: 3783 | VFR7: 3783 | VFS7: 3783 | VFT7: 3783 | VFU7: 3783 | VFV7: 3783 | VFW7: 3783 | VFX7: 3783 | VFY7: 3783 | VFZ7: 3783 | VGA7: 3783 | VGB7: 3783 | VGC7: 3783 | VGD7: 3783 | VGE7: 3783 | VGF7: 3783 | VGG7: 3783 | VGH7: 3783 | VGI7: 3783 | VGJ7: 3783 | VGK7: 3783 | VGL7: 3783 | VGM7: 3783 | VGN7: 3783 | VGO7: 3783 | VGP7: 3783 | VGQ7: 3783 | VGR7: 3783 | VGS7: 3783 | VGT7: 3783 | VGU7: 3783 | VGV7: 3783 | VGW7: 3783 | VGX7: 3783 | VGY7: 3783 | VGZ7: 3783 | VHA7: 3783 | VHB7: 3783 | VHC7: 3783 | VHD7: 3783 | VHE7: 3783 | VHF7: 3783 | VHG7: 3783 | VHH7: 3783 | VHI7: 3783 | VHJ7: 3783 | VHK7: 3783 | VHL7: 3783 | VHM7: 3783 | VHN7: 3783 | VHO7: 3783 | VHP7: 3783 | VHQ7: 3783 | VHR7: 3783 | VHS7: 3783 | VHT7: 3783 | VHU7: 3783 | VHV7: 3783 | VHW7: 3783 | VHX7: 3783 | VHY7: 3783 | VHZ7: 3783 | VIA7: 3783 | VIB7: 3783 | VIC7: 3783 | VID7: 3783 | VIE7: 3783 | VIF7: 3783 | VIG7: 3783 | VIH7: 3783 | VII7: 3783 | VIJ7: 3783 | VIK7: 3783 | VIL7: 3783 | VIM7: 3783 | VIN7: 3783 | VIO7: 3783 | VIP7: 3783 | VIQ7: 3783 | VIR7: 3783 | VIS7: 3783 | VIT7: 3783 | VIU7: 3783 | VIV7: 3783 | VIW7: 3783 | VIX7: 3783 | VIY7: 3783 | VIZ7: 3783 | VJA7: 3783 | VJB7: 3783 | VJC7: 3783 | VJD7: 3783 | VJE7: 3783 | VJF7: 3783 | VJG7: 3783 | VJH7: 3783 | VJI7: 3783 | VJJ7: 3783 | VJK7: 3783 | VJL7: 3783 | VJM7: 3783 | VJN7: 3783 | VJO7: 3783 | VJP7: 3783 | VJQ7: 3783 | VJR7: 3783 | VJS7: 3783 | VJT7: 3783 | VJU7: 3783 | VJV7: 3783 | VJW7: 3783 | VJX7: 3783 | VJY7: 3783 | VJZ7: 3783 | VKA7: 3783 | VKB7: 3783 | VKC7: 3783 | VKD7: 3783 | VKE7: 3783 | VKF7: 3783 | VKG7: 3783 | VKH7: 3783 | VKI7: 3783 | VKJ7: 3783 | VKK7: 3783 | VKL7: 3783 | VKM7: 3783 | VKN7: 3783 | VKO7: 3783 | VKP7: 3783 | VKQ7: 3783 | VKR7: 3783 | VKS7: 3783 | VKT7: 3783 | VKU7: 3783 | VKV7: 3783 | VKW7: 3783 | VKX7: 3783 | VKY7: 3783 | VKZ7: 3783 | VLA7: 3783 | VLB7: 3783 | VLC7: 3783 | VLD7: 3783 | VLE7: 3783 | VLF7: 3783 | VLG7: 3783 | VLH7: 3783 | VLI7: 3783 | VLJ7: 3783 | VLK7: 3783 | VLL7: 3783 | VLM7: 3783 | VLN7: 3783 | VLO7: 3783 | VLP7: 3783 | VLQ7: 3783 | VLR7: 3783 | VLS7: 3783 | VLT7: 3783 | VLU7: 3783 | VLV7: 3783 | VLW7: 3783 | VLX7: 3783 | VLY7: 3783 | VLZ7: 3783 | VMA7: 3783 | VMB7: 3783 | VMC7: 3783 | VMD7: 3783 | VME7: 3783 | VMF7: 3783 | VMG7: 3783 | VMH7: 3783 | VMI7: 3783 | VMJ7: 3783 | VMK7: 3783 | VML7: 3783 | VMM7: 3783 | VMN7: 3783 | VMO7: 3783 | VMP7: 3783 | VMQ7: 3783 | VMR7: 3783 | VMS7: 3783 | VMT7: 3783 | VMU7: 3783 | VMV7: 3783 | VMW7: 3783 | VMX7: 3783 | VMY7: 3783 | VMZ7: 3783 | VNA7: 3783 | VNB7: 3783 | VNC7: 3783 | VND7: 3783 | VNE7: 3783 | VNF7: 3783 | VNG7: 3783 | VNH7: 3783 | VNI7: 3783 | VNJ7: 3783 | VNK7: 3783 | VNL7: 3783 | VNM7: 3783 | VNN7: 3783 | VNO7: 3783 | VNP7: 3783 | VNQ7: 3783 | VNR7: 3783 | VNS7: 3783 | VNT7: 3783 | VNU7: 3783 | VNV7: 3783 | VNW7: 3783 | VNX7: 3783 | VNY7: 3783 | VNZ7: 3783 | VOA7: 3783 | VOB7: 3783 | VOC7: 3783 | VOD7: 3783 | VOE7: 3783 | VOF7: 3783 | VOG7: 3783 | VOH7: 3783 | VOI7: 3783 | VOJ7: 3783 | VOK7: 3783 | VOL7: 3783 | VOM7: 3783 | VON7: 3783 | VOO7: 3783 | VOP7: 3783 | VOQ7: 3783 | VOR7: 3783 | VOS7: 3783 | VOT7: 3783 | VOU7: 3783 | VOV7: 3783 | VOW7: 3783 | VOX7: 3783 | VOY7: 3783 | VOZ7: 3783 | VPA7: 3783 | VPB7: 3783 | VPC7: 3783 | VPD7: 3783 | VPE7: 3783 | VPF7: 3783 | VPG7: 3783 | VPH7: 3783 | VPI7: 3783 | VPJ7: 3783 | VPK7: 3783 | VPL7: 3783 | VPM7: 3783 | VPN7: 3783 | VPO7: 3783 | VPP7: 3783 | VPQ7: 3783 | VPR7: 3783 | VPS7: 3783 | VPT7: 3783 | VPU7: 3783 | VPV7: 3783 | VPW7: 3783 | VPX7: 3783 | VPY7: 3783 | VPZ7: 3783 | VQA7: 3783 | VQB7: 3783 | VQC7: 3783 | VQD7: 3783 | VQE7: 3783 | VQF7: 3783 | VQG7: 3783 | VQH7: 3783 | VQI7: 3783 | VQJ7: 3783 | VQK7: 3783 | VQL7: 3783 | VQM7: 3783 | VQN7: 3783 | VQO7: 3783 | VQP7: 3783 | VQQ7: 3783 | VQR7: 3783 | VQS7: 3783 | VQT7: 3783 | VQU7: 3783 | VQV7: 3783 | VQW7: 3783 | VQX7: 3783 | VQY7: 3783 | VQZ7: 3783 | VRA7: 3783 | VRB7: 3783 | VRC7: 3783 | VRD7: 3783 | VRE7: 3783 | VRF7: 3783 | VRG7: 3783 | VRH7: 3783 | VRI7: 3783 | VRJ7: 3783 | VRK7: 3783 | VRL7: 3783 | VRM7: 3783 | VRN7: 3783 | VRO7: 3783 | VRP7: 3783 | VRQ7: 3783 | VRR7: 3783 | VRS7: 3783 | VRT7: 3783 | VRU7: 3783 | VRV7: 3783 | VRW7: 3783 | VRX7: 3783 | VRY7: 3783 | VRZ7: 3783 | VSA7: 3783 | VSB7: 3783 | VSC7: 3783 | VSD7: 3783 | VSE7: 3783 | VSF7: 3783 | VSG7: 3783 | VSH7: 3783 | VSI7: 3783 | VSJ7: 3783 | VSK7: 3783 | VSL7: 3783 | VSM7: 3783 | VSN7: 3783 | VSO7: 3783 | VSP7: 3783 | VSQ7: 3783 | VSR7: 3783 | VSS7: 3783 | VST7: 3783 | VSU7: 3783 | VSV7: 3783 | VSW7: 3783 | VSX7: 3783 | VSY7: 3783 | VSZ7: 3783 | VTA7: 3783 | VTB7: 3783 | VTC7: 3783 | VTD7: 3783 | VTE7: 3783 | VTF7: 3783 | VTG7: 3783 | VTH7: 3783 | VTI7: 3783 | VTJ7: 3783 | VTK7: 3783 | VTL7: 3783 | VTM7: 3783 | VTN7: 3783 | VTO7: 3783 | VTP7: 3783 | VTQ7: 3783 | VTR7: 3783 | VTS7: 3783 | VTT7: 3783 | VTU7: 3783 | VTV7: 3783 | VTW7: 3783 | VTX7: 3783 | VTY7: 3783 | VTZ7: 3783 | VUA7: 3783 | VUB7: 3783 | VUC7: 3783 | VUD7: 3783 | VUE7: 3783 | VUF7: 3783 | VUG7: 3783 | VUH7: 3783 | VUI7: 3783 | VUJ7: 3783 | VUK7: 3783 | VUL7: 3783 | VUM7: 3783 | VUN7: 3783 | VUO7: 3783 | VUP7: 3783 | VUQ7: 3783 | VUR7: 3783 | VUS7: 3783 | VUT7: 3783 | VUU7: 3783 | VUV7: 3783 | VUW7: 3783 | VUX7: 3783 | VUY7: 3783 | VUZ7: 3783 | VVA7: 3783 | VVB7: 3783 | VVC7: 3783 | VVD7: 3783 | VVE7: 3783 | VVF7: 3783 | VVG7: 3783 | VVH7: 3783 | VVI7: 3783 | VVJ7: 3783 | VVK7: 3783 | VVL7: 3783 | VVM7: 3783 | VVN7: 3783 | VVO7: 3783 | VVP7: 3783 | VVQ7: 3783 | VVR7: 3783 | VVS7: 3783 | VVT7: 3783 | VVU7: 3783 | VVV7: 3783 | VVW7: 3783 | VVX7: 3783 | VVY7: 3783 | VVZ7: 3783 | VWA7: 3783 | VWB7: 3783 | VWC7: 3783 | VWD7: 3783 | VWE7: 3783 | VWF7: 3783 | VWG7: 3783 | VWH7: 3783 | VWI7: 3783 | VWJ7: 3783 | VWK7: 3783 | VWL7: 3783 | VWM7: 3783 | VWN7: 3783 | VWO7: 3783 | VWP7: 3783 | VWQ7: 3783 | VWR7: 3783 | VWS7: 3783 | VWT7: 3783 | VWU7: 3783 | VWV7: 3783 | VWW7: 3783 | VWX7: 3783 | VWY7: 3783 | VWZ7: 3783 | VXA7: 3783 | VXB7: 3783 | VXC7: 3783 | VXD7: 3783 | VXE7: 3783 | VXF7: 3783 | VXG7: 3783 | VXH7: 3783 | VXI7: 3783 | VXJ7: 3783 | VXK7: 3783 | VXL7: 3783 | VXM7: 3783 | VXN7: 3783 | VXO7: 3783 | VXP7: 3783 | VXQ7: 3783 | VXR7: 3783 | VXS7: 3783 | VXT7: 3783 | VXU7: 3783 | VXV7: 3783 | VXW7: 3783 | VXX7: 3783 | VXY7: 3783 | VXZ7: 3783 | VYA7: 3783 | VYB7: 3783 | VYC7: 3783 | VYD7: 3783 | VYE7: 3783 | VYF7: 3783 | VYG7: 3783 | VYH7: 3783 | VYI7: 3783 | VYJ7: 3783 | VYK7: 3783 | VYL7: 3783 | VYM7: 3783 | VYN7: 3783 | VYO7: 3783 | VYP7: 3783 | VYQ7: 3783 | VYR7: 3783 | VYS7: 3783 | VYT7: 3783 | VYU7: 3783 | VYV7: 3783 | VYW7: 3783 | VYX7: 3783 | VYY7: 3783 | VYZ7: 3783 | VZA7: 3783 | VZB7: 3783 | VZC7: 3783 | VZD7: 3783 | VZE7: 3783 | VZF7: 3783 | VZG7: 3783 | VZH7: 3783 | VZI7: 3783 | VZJ7: 3783 | VZK7: 3783 | VZL7: 3783 | VZM7: 3783 | VZN7: 3783 | VZO7: 3783 | VZP7: 3783 | VZQ7: 3783 | VZR7: 3783 | VZS7: 3783 | VZT7: 3783 | VZU7: 3783 | VZV7: 3783 | VZW7: 3783 | VZX7: 3783 | VZY7: 3783 | VZZ7: 3783 | WAA7: 3783 | WAB7: 3783 | WAC7: 3783 | WAD7: 3783 | WAE7: 3783 | WAF7: 3783 | WAG7: 3783 | WAH7: 3783 | WAI7: 3783 | WAJ7: 3783 | WAK7: 3783 | WAL7: 3783 | WAM7: 3783 | WAN7: 3783 | WAO7: 3783 | WAP7: 3783 | WAQ7: 3783 | WAR7: 3783 | WAS7: 3783 | WAT7: 3783 | WAU7: 3783 | WAV7: 3783 | WAW7: 3783 | WAX7: 3783 | WAY7: 3783 | WAZ7: 3783 | WBA7: 3783 | WBB7: 3783 | WBC7: 3783 | WBD7: 3783 | WBE7: 3783 | WBF7: 3783 | WBG7: 3783 | WBH7: 3783 | WBI7: 3783 | WBJ7: 3783 | WBK7: 3783 | WBL7: 3783 | WBM7: 3783 | WBN7: 3783 | WBO7: 3783 | WBP7: 3783 | WBQ7: 3783 | WBR7: 3783 | WBS7: 3783 | WBT7: 3783 | WBU7: 3783 | WBV7: 3783 | WBW7: 3783 | WBX7: 3783 | WBY7: 3783 | WBZ7: 3783 | WCA7: 3783 | WCB7: 3783 | WCC7: 3783 | WCD7: 3783 | WCE7: 3783 | WCF7: 3783 | WCG7: 3783 | WCH7: 3783 | WCI7: 3783 | WCJ7: 3783 | WCK7: 3783 | WCL7: 3783 | WCM7: 3783 | WCN7: 3783 | WCO7: 3783 | WCP7: 3783 | WCQ7: 3783 | WCR7: 3783 | WCS7: 3783 | WCT7: 3783 | WCU7: 3783 | WCV7: 3783 | WCW7: 3783 | WCX7: 3783 | WCY7: 3783 | WCZ7: 3783 | WDA7: 3783 | WDB7: 3783 | WDC7: 3783 | WDD7: 3783 | WDE7: 3783 | WDF7: 3783 | WDG7: 3783 | WDH7: 3783 | WDI7: 3783 | WDJ7: 3783 | WDK7: 3783 | WDL7: 3783 | WDM7: 3783 | WDN7: 3783 | WDO7: 3783 | WDP7: 3783 | WDQ7: 3783 | WDR7: 3783 | WDS7: 3783 | WDT7: 3783 | WDU7: 3783 | WDV7: 3783 | WDW7: 3783 | WDX7: 3783 | WDY7: 3783 | WDZ7: 3783 | WEA7: 3783 | WEB7: 3783 | WEC7: 3783 | WED7: 3783 | WEE7: 3783 | WEF7: 3783 | WEG7: 3783 | WEH7: 3783 | WEI7: 3783 | WEJ7: 3783 | WEK7: 3783 | WEL7: 3783 | WEM7: 3783 | WEN7: 3783 | WEO7: 3783 | WEP7: 3783 | WEQ7: 3783 | WER7: 3783 | WES7: 3783 | WET7: 3783 | WEU7: 3783 | WEV7: 3783 | WEW7: 3783 | WEX7: 3783 | WEY7: 3783 | WEZ7: 3783 | WFA7: 3783 | WFB7: 3783 | WFC7: 3783 | WFD7: 3783 | WFE7: 3783 | WFF7: 3783 | WFG7: 3783 | WFH7: 3783 | WFI7: 3783 | WFJ7: 3783 | WFK7: 3783 | WFL7: 3783 | WFM7: 3783 | WFN7: 3783 | WFO7: 3783 | WFP7: 3783 | WFQ7: 3783 | WFR7: 3783 | WFS7: 3783 | WFT7: 3783 | WFU7: 3783 | WFV7: 3783 | WFW7: 3783 | WFX7: 3783 | WFY7: 3783 | WFZ7: 3783 | WGA7: 3783 | WGB7: 3783 | WGC7: 3783 | WGD7: 3783 | WGE7: 3783 | WGF7: 3783 | WGG7: 3783 | WGH7: 3783 | WGI7: 3783 | WGJ7: 3783 | WGK7: 3783 | WGL7: 3783 | WGM7: 3783 | WGN7: 3783 | WGO7: 3783 | WGP7: 3783 | WGQ7: 3783 | WGR7: 3783 | WGS7: 3783 | WGT7: 3783 | WGU7: 3783 | WGV7: 3783 | WGW7: 3783 | WGX7: 3783 | WGY7: 3783 | WGZ7: 3783 | WHA7: 3783 | WHB7: 3783 | WHC7: 3783 | WHD7: 3783 | WHE7: 3783 | WHF7: 3783 | WHG7: 3783 | WHH7: 3783 | WHI7: 3783 | WHJ7: 3783 | WHK7: 3783 | WHL7: 3783 | WHM7: 3783 | WHN7: 3783 | WHO7: 3783 | WHP7: 3783 | WHQ7: 3783 | WHR7: 3783 | WHS7: 3783 | WHT7: 3783 | WHU7: 3783 | WHV7: 3783 | WHW7: 3783 | WHX7: 3783 | WHY7: 3783 | WHZ7: 3783 | WIA7: 3783 | WIB7: 3783 | WIC7: 3783 | WID7: 3783 | WIE7: 3783 | WIF7: 3783 | WIG7: 3783 | WIH7: 3783 | WII7: 3783 | WIJ7: 3783 | WIK7: 3783 | WIL7: 3783 | WIM7: 3783 | WIN7: 3783 | WIO7: 3783 | WIP7: 3783 | WIQ7: 3783 | WIR7: 3783 | WIS7: 3783 | WIT7: 3783 | WIU7: 3783 | WIV7: 3783 | WIW7: 3783 | WIX7: 3783 | WIY7: 3783 | WIZ7: 3783 | WJA7: 3783 | WJB7: 3783 | WJC7: 3783 | WJD7: 3783 | WJE7: 3783 | WJF7: 3783 | WJG7: 3783 | WJH7: 3783 | WJI7: 3783 | WJJ7: 3783 | WJK7: 3783 | WJL7: 3783 | WJM7: 3783 | WJN7: 3783 | WJO7: 3783 | WJP7: 3783 | WJQ7: 3783 | WJR7: 3783 | WJS7: 3783 | WJT7: 3783 | WJU7: 3783 | WJV7: 3783 | WJW7: 3783 | WJX7: 3783 | WJY7: 3783 | WJZ7: 3783 | WKA7: 3783 | WKB7: 3783 | WKC7: 3783 | WKD7: 3783 | WKE7: 3783 | WKF7: 3783 | WKG7: 3783 | WKH7: 3783 | WKI7: 3783 | WKJ7: 3783 | WKK7: 3783 | WKL7: 3783 | WKM7: 3783 | WKN7: 3783 | WKO7: 3783 | WKP7: 3783 | WKQ7: 3783 | WKR7: 3783 | WKS7: 3783 | WKT7: 3783 | WKU7: 3783 | WKV7: 3783 | WKW7: 3783 | WKX7: 3783 | WKY7: 3783 | WKZ7: 3783 | WLA7: 3783 | WLB7: 3783 | WLC7: 3783 | WLD7: 3783 | WLE7: 3783 | WLF7: 3783 | WLG7: 3783 | WLH7: 3783 | WLI7: 3783 | WLJ7: 3783 | WLK7: 3783 | WLL7: 3783 | WLM7: 3783 | WLN7: 3783 | WLO7: 3783 | WLP7: 3783 | WLQ7: 3783 | WLR7: 3783 | WLS7: 3783 | WLT7: 3783 | WLU7: 3783 | WLV7: 3783 | WLW7: 3783 | WLX7: 3783 | WLY7: 3783 | WLZ7: 3783 | WMA7: 3783 | WMB7: 3783 | WMC7: 3783 | WMD7: 3783 | WME7: 3783 | WMF7: 3783 | WMG7: 3783 | WMH7: 3783 | WMI7: 3783 | WMJ7: 3783 | WMK7: 3783 | WML7: 3783 | WMM7: 3783 | WMN7: 3783 | WMO7: 3783 | WMP7: 3783 | WMQ7: 3783 | WMR7: 3783 | WMS7: 3783 | WMT7: 3783 | WMU7: 3783 | WMV7: 3783 | WMW7: 3783 | WMX7: 3783 | WMY7: 3783 | WMZ7: 3783 | WNA7: 3783 | WNB7: 3783 | WNC7: 3783 | WND7: 3783 | WNE7: 3783 | WNF7: 3783 | WNG7: 3783 | WNH7: 3783 | WNI7: 3783 | WNJ7: 3783 | WNK7: 3783 | WNL7: 3783 | WNM7: 3783 | WNN7: 3783 | WNO7: 3783 | WNP7: 3783 | WNQ7: 3783 | WNR7: 3783 | WNS7: 3783 | WNT7: 3783 | WNU7: 3783 | WNV7: 3783 | WNW7: 3783 | WNX7: 3783 | WNY7: 3783 | WNZ7: 3783 | WOA7: 3783 | WOB7: 3783 | WOC7: 3783 | WOD7: 3783 | WOE7: 3783 | WOF7: 3783 | WOG7: 3783 | WOH7: 3783 | WOI7: 3783 | WOJ7: 3783 | WOK7: 3783 | WOL7: 3783 | WOM7: 3783 | WON7: 3783 | WOO7: 3783 | WOP7: 3783 | WOQ7: 3783 | WOR7: 3783 | WOS7: 3783 | WOT7: 3783 | WOU7: 3783 | WOV7: 3783 | WOW7: 3783 | WOX7: 3783 | WOY7: 3783 | WOZ7: 3783 | WPA7: 3783 | WPB7: 3783 | WPC7: 3783 | WPD7: 3783 | WPE7: 3783 | WPF7: 3783 | WPG7: 3783 | WPH7: 3783 | WPI7: 3783 | WPJ7: 3783 | WPK7: 3783 | WPL7: 3783 | WPM7: 3783 | WPN7: 3783 | WPO7: 3783 | WPP7: 3783 | WPQ7: 3783 | WPR7: 3783 | WPS7: 3783 | WPT7: 3783 | WPU7: 3783 | WPV7: 3783 | WPW7: 3783 | WPX7: 3783 | WPY7: 3783 | WPZ7: 3783 | WQA7: 3783 | WQB7: 3783 | WQC7: 3783 | WQD7: 3783 | WQE7: 3783 | WQF7: 3783 | WQG7: 3783 | WQH7: 3783 | WQI7: 3783 | WQJ7: 3783 | WQK7: 3783 | WQL7: 3783 | WQM7: 3783 | WQN7: 3783 | WQO7: 3783 | WQP7: 3783 | WQQ7: 3783 | WQR7: 3783 | WQS7: 3783 | WQT7: 3783 | WQU7: 3783 | WQV7: 3783 | WQW7: 3783 | WQX7: 3783 | WQY7: 3783 | WQZ7: 3783 | WRA7: 3783 | WRB7: 3783 | WRC7: 3783 | WRD7: 3783 | WRE7: 3783 | WRF7: 3783 | WRG7: 3783 | WRH7: 3783 | WRI7: 3783 | WRJ7: 3783 | WRK7: 3783 | WRL7: 3783 | WRM7: 3783 | WRN7: 3783 | WRO7: 3783 | WRP7: 3783 | WRQ7: 3783 | WRR7: 3783 | WRS7: 3783 | WRT7: 3783 | WRU7: 3783 | WRV7: 3783 | WRW7: 3783 | WRX7: 3783 | WRY7: 3783 | WRZ7: 3783 | WSA7: 3783 | WSB7: 3783 | WSC7: 3783 | WSD7: 3783 | WSE7: 3783 | WSF7: 3783 | WSG7: 3783 | WSH7: 3783 | WSI7: 3783 | WSJ7: 3783 | WSK7: 3783 | WSL7: 3783 | WSM7: 3783 | WSN7: 3783 | WSO7: 3783 | WSP7: 3783 | WSQ7: 3783 | WSR7: 3783 | WSS7: 3783 | WST7: 3783 | WSU7: 3783 | WSV7: 3783 | WSW7: 3783 | WSX7: 3783 | WSY7: 3783 | WSZ7: 3783 | WTA7: 3783 | WTB7: 3783 | WTC7: 3783 | WTD7: 3783 | WTE7: 3783 | WTF7: 3783 | WTG7: 3783 | WTH7: 3783 | WTI7: 3783 | WTJ7: 3783 | WTK7: 3783 | WTL7: 3783 | WTM7: 3783 | WTN7: 3783 | WTO7: 3783 | WTP7: 3783 | WTQ7: 3783 | WTR7: 3783 | WTS7: 3783 | WTT7: 3783 | WTU7: 3783 | WTV7: 3783 | WTW7: 3783 | WTX7: 3783 | WTY7: 3783 | WTZ7: 3783 | WUA7: 3783 | WUB7: 3783 | WUC7: 3783 | WUD7: 3783 | WUE7: 3783 | WUF7: 3783 | WUG7: 3783 | WUH7: 3783 | WUI7: 3783 | WUJ7: 3783 | WUK7: 3783 | WUL7: 3783 | WUM7: 3783 | WUN7: 3783 | WUO7: 3783 | WUP7: 3783 | WUQ7: 3783 | WUR7: 3783 | WUS7: 3783 | WUT7: 3783 | WUU7: 3783 | WUV7: 3783 | WUW7: 3783 | WUX7: 3783 | WUY7: 3783 | WUZ7: 3783 | WVA7: 3783 | WVB7: 3783 | WVC7: 3783 | WVD7: 3783 | WVE7: 3783 | WVF7: 3783 | WVG7: 3783 | WVH7: 3783 | WVI7: 3783 | WVJ7: 3783 | WVK7: 3783 | WVL7: 3783 | WVM7: 3783 | WVN7: 3783 | WVO7: 3783 | WVP7: 3783 | WVQ7: 3783 | WVR7: 3783 | WVS7: 3783 | WVT7: 3783 | WVU7: 3783 | WVV7: 3783 | WVW7: 3783 | WVX7: 3783 | WVY7: 3783 | WVZ7: 3783 | WWA7: 3783 | WWB7: 3783 | WWC7: 3783 | WWD7: 3783 | WWE7: 3783 | WWF7: 3783 | WWG7: 3783 | WWH7: 3783 | WWI7: 3783 | WWJ7: 3783 | WWK7: 3783 | WWL7: 3783 | WWM7: 3783 | WWN7: 3783 | WWO7: 3783 | WWP7: 3783 | WWQ7: 3783 | WWR7: 3783 | WWS7: 3783 | WWT7: 3783 | WWU7: 3783 | WWV7: 3783 | WWW7: 3783 | WWX7: 3783 | WWY7: 3783 | WWZ7: 3783 | WXA7: 3783 | WXB7: 3783 | WXC7: 3783 | WXD7: 3783 | WXE7: 3783 | WXF7: 3783 | WXG7: 3783 | WXH7: 3783 | WXI7: 3783 | WXJ7: 3783 | WXK7: 3783 | WXL7: 3783 | WXM7: 3783 | WXN7: 3783 | WXO7: 3783 | WXP7: 3783 | WXQ7: 3783 | WXR7: 3783 | WXS7: 3783 | WXT7: 3783 | WXU7: 3783 | WXV7: 3783 | WXW7: 3783 | WXX7: 3783 | WXY7: 3783 | WXZ7: 3783 | WYA7: 3783 | WYB7: 3783 | WYC7: 3783 | WYD7: 3783 | WYE7: 3783 | WYF7: 3783 | WYG7: 3783 | WYH7: 3783 | WYI7: 3783 | WYJ7: 3783 | WYK7: 3783 | WYL7: 3783 | WYM7: 3783 | WYN7: 3783 | WYO7: 3783 | WYP7: 3783 | WYQ7: 3783 | WYR7: 3783 | WYS7: 3783 | WYT7: 3783 | WYU7: 3783 | WYV7: 3783 | WYW7: 3783 | WYX7: 3783 | WYY7: 3783 | WYZ7: 3783 | WZA7: 3783 | WZB7: 3783 | WZC7: 3783 | WZD7: 3783 | WZE7: 3783 | WZF7: 3783 | WZG7: 3783 | WZH7: 3783 | WZI7: 3783 | WZJ7: 3783 | WZK7: 3783 | WZL7: 3783 | WZM7: 3783 | WZN7: 3783 | WZO7: 3783 | WZP7: 3783 | WZQ7: 3783 | WZR7: 3783 | WZS7: 3783 | WZT7: 3783 | WZU7: 3783 | WZV7: 3783 | WZW7: 3783 | WZX7: 3783 | WZY7: 3783 | WZZ7: 3783 | XAA7: 3783 | XAB7: 3783 | XAC7: 3783 | XAD7: 3783 | XAE7: 3783 | XAF7: 3783 | XAG7: 3783 | XAH7: 3783 | XAI7: 3783 | XAJ7: 3783 | XAK7: 3783 | XAL7: 3783 | XAM7: 3783 | XAN7: 3783 | XAO7: 3783 | XAP7: 3783 | XAQ7: 3783 | XAR7: 3783 | XAS7: 3783 | XAT7: 3783 | XAU7: 3783 | XAV7: 3783 | XAW7: 3783 | XAX7: 3783 | XAY7: 3783 | XAZ7: 3783 | XBA7: 3783 | XBB7: 3783 | XBC7: 3783 | XBD7: 3783 | XBE7: 3783 | XBF7: 3783 | XBG7: 3783 | XBH7: 3783 | XBI7: 3783 | XBJ7: 3783 | XBK7: 3783 | XBL7: 3783 | XBM7: 3783 | XBN7: 3783 | XBO7: 3783 | XBP7: 3783 | XBQ7: 3783 | XBR7: 3783 | XBS7: 3783 | XBT7: 3783 | XBU7: 3783 | XBV7: 3783 | XBW7: 3783 | XBX7: 3783 | XBY7: 3783 | XBZ7: 3783 | XCA7: 3783 | XCB7: 3783 | XCC7: 3783 | XCD7: 3783 | XCE7: 3783 | XCF7: 3783 | XCG7: 3783 | XCH7: 3783 | XCI7: 3783 | XCJ7: 3783 | XCK7: 3783 | XCL7: 3783 | XCM7: 3783 | XCN7: 3783 | XCO7: 3783 | XCP7: 3783 | XCQ7: 3783 | XCR7: 3783 | XCS7: 3783 | XCT7: 3783 | XCU7: 3783 | XCV7: 3783 | XCW7: 3783 | XCX7: 3783 | XCY7: 3783 | XCZ7: 3783 | XDA7: 3783 | XDB7: 3783 | XDC7: 3783 | XDD7: 3783 | XDE7: 3783 | XDF7: 3783 | XDG7: 3783 | XDH7: 3783 | XDI7: 3783 | XDJ7: 3783 | XDK7: 3783 | XDL7: 3783 | XDM7: 3783 | XDN7: 3783 | XDO7: 3783 | XDP7: 3783 | XDQ7: 3783 | XDR7: 3783 | XDS7: 3783 | XDT7: 3783 | XDU7: 3783 | XDV7: 3783 | XDW7: 3783 | XDX7: 3783 | XDY7: 3783 | XDZ7: 3783 | XEA7: 3783 | XEB7: 3783 | XEC7: 3783 | XED7: 3783 | XEE7: 3783 | XEF7: 3783 | XEG7: 3783 | XEH7: 3783 | XEI7: 3783 | XEJ7: 3783 | XEK7: 3783 | XEL7: 3783 | XEM7: 3783 | XEN7: 3783 | XEO7: 3783 | XEP7: 3783 | XEQ7: 3783 | XER7: 3783 | XES7: 3783 | XET7: 3783 | XEU7: 3783 | XEV7: 3783 | XEW7: 3783 | XEX7: 3783 | XEY7: 3783 | XEZ7: 3783 | XFA7: 3783 | XFB7: 3783 | XFC7: 3783 | XFD7: 3783
B8: Obrigações estimadas - folha de pagamento | C8: 12270 | D8: 11886 | E8: 11081 | F8: 10990 | G8: 11495 | H8: 5758 | I8: 6220 | J8: 5990 | K8: 10177 | L8: 14491 | M8: 15982 | N8: 12335 | O8: 16500
B9: Benefícios pós-emprego, previdência complementar | C9: 20506 | D9: 43401 | E9: 22789 | F9: 20980 | G9: 22114 | H9: 16833 | I9: 32784 | J9: 11348 | K9: 11956 | L9: 4915 | M9: 31744 | N9: 56890 | O9: 37457
B10: Tributos e contribuições sociais | C10: 9564 | D10: 7998 | E10: 4756 | F10: 4179 | G10: 4605 | H10: 4426 | I10: 4880 | J10: 4368 | K10: 6309 | L10: 5676 | M10: 5718 | N10: 6711 | O10: 7353
B11: Imposto de renda e contribuição social a recolher | C11: 0 | D11: 0 | E11: 0 | F11: 0 | G11: 3485 | H11: 78 | I11: 143 | J11: 0 | K11: 0 | L11: 0 | M11: 0 | N11: - | O11: -
B12: Dividendos e juros sobre capital próprio | C12: 3190 | D12: 86 | E12: 86 | F12: 1509 | G12: 87 | H12: 3716 | I12: 16010 | J12: 34473 | K12: 27915 | L12: 26880 | M12: 237990 | N12: 9138 | O12: 10532
B13: Serviços - Canal Pinheiros | C13: 0 | D13: 0 | F13: 0 | G13: 0 | H13: 0 | I13: 0 | J13: 0 | K13: 0 | L13: 53 | M13: 0 | N13: - | O13: -
B14: Obrigações Setoriais | C14: 6746 | D14: 7199 | E14: 7855 | F14: 9529 | G14: 7480 | H14: 5637 | I14: 5806 | J14: 5504 | K14: 5200 | L14: 6445 | M14: 4490 | N14: 2654 | O14: 906
B15: Obrigações Especiais - RGR | C15: 0 | D15: 0 | E15: 0 | F15: 0 | G15: 0 | H15: 0 | I15: 0 | J15: 1801 | K15: 1801 | L15: 1801 | M15: 1801 | N15: 1801 | O15: 1801
B16: Cauções e depósitos vinculados | C16: 0 | D16: 40000 | E16: 872 | F16: 19803 | G16: 8325 | H16: 7178 | I16: 6633 | J16: 6633 | K16: 10638 | L16: 11095 | M16: 11288 | N16: 11639 | O16: 0
B17: Encargos de uso da rede elétrica | C17: 2002 | D17: 296 | E17: 647 | F17: 177 | G17: 172 | H17: 200 | I17: 190 | J17: 200 | K17: 199 | L17: 205 | M17: 196 | N17: 171 | O17: 180
B18: Energia de curto prazo - CCEE | C18: 52 | D18: 0 | E18: 1419 | F18: 0 | G18: 0 | H18: 0 | I18: 0 | J18: 0 | K18: 0 | L18: 0 | M18: 0 | N18: - | O18: -
B19: Outras obrigações - Investimentos na concessão | C19: 0 | D19: 0 | E19: 0 | F19: 0 | G19: 0 | H19: 0 | I19: 0 | J19: 0 | K19: 34503 | L19: 38410 | M19: 38200 | N19: 9064 | O19: 12394
B20: Obrigação Comgás | C20: 0 | D20: 0 | E20: 0 | F20: 0 | G20: 0 | H20: 0 | I20: 0 | J20: 0 | K20: 0 | L20: 0 | M20: 481 | N20: 502 | O20: 626
